Workbook

Sheet Introduction
C4: Joint Monitoring Programme for Water Supply, Sanitation and Hygiene
C6: Estimates on household water, sanitation and hygiene by wealth quintile and sub-national region in
C7: =+Water!B5 -> Guinea-Bissau
C9: Updated May 2021
C11: Follow the links below to find the following information:
C13: JMP Estimates
C14: WASH status and trends by wealth quintile (customized quintiles made without water and sanitation assets)
C15: Water
C16: Sanitation
C17: Hygiene
C19: Data inputs
C20: customized wealth quintiles and subnational data:
C21: =IF(INDIRECT(CONCATENATE("Water","!B105"))=0,"",INDIRECT(CONCATENATE("Water","!B105"))) -> MICS00
C22: =IF(INDIRECT(CONCATENATE("Water","!B106"))=0,"",INDIRECT(CONCATENATE("Water","!B106"))) -> MICS06
C23: =IF(INDIRECT(CONCATENATE("Water","!B107"))=0,"",INDIRECT(CONCATENATE("Water","!B107"))) -> MICS10
C24: =IF(INDIRECT(CONCATENATE("Water","!B108"))=0,"",INDIRECT(CONCATENATE("Water","!B108"))) -> MICS14
C25: =IF(INDIRECT(CONCATENATE("Water","!B109"))=0,"",INDIRECT(CONCATENATE("Water","!B109"))) -> MICS19
C26: =IF(INDIRECT(CONCATENATE("Water","!B110"))=0,"",INDIRECT(CONCATENATE("Water","!B110"))) -> 
C27: =IF(INDIRECT(CONCATENATE("Water","!B111"))=0,"",INDIRECT(CONCATENATE("Water","!B111"))) -> 
C28: =IF(INDIRECT(CONCATENATE("Water","!B112"))=0,"",INDIRECT(CONCATENATE("Water","!B112"))) -> 
C29: =IF(INDIRECT(CONCATENATE("Water","!B113"))=0,"",INDIRECT(CONCATENATE("Water","!B113"))) -> 
C30: =IF(INDIRECT(CONCATENATE("Water","!B114"))=0,"",INDIRECT(CONCATENATE("Water","!B114"))) -> 
C31: =IF(INDIRECT(CONCATENATE("Water","!B115"))=0,"",INDIRECT(CONCATENATE("Water","!B115"))) -> 
C32: =IF(INDIRECT(CONCATENATE("Water","!B116"))=0,"",INDIRECT(CONCATENATE("Water","!B116"))) -> 
L55: =+IF(ISNUMBER(M48), "", "Insufficient data to estimate safely managed sanitation services at national level") -> Insufficient data to estimate safely managed sanitation services at national level

Sheet Water
A1: BGD
B4: Summary of trends in use of drinking water by wealth quintile (%)
B5: =IF(ISERROR(INDIRECT(CONCATENATE($B105,"!A2"))),"",INDIRECT(CONCATENATE($B105,"!A2"))) -> Guinea-Bissau
B7: =B118 -> National use of drinking water sources, 2000–2020 | J7: =B218 -> Urban use of drinking water sources, 2000–2020 | R7: =B318 -> Rural use of drinking water sources, 2000–2020
B31: =IF(ISERROR(INDIRECT(CONCATENATE($B105,"!A2"))),"",INDIRECT(CONCATENATE($B105,"!A2"))) -> Guinea-Bissau | F31: Poorest | J31: Poor | N31: Middle | R31: Rich | V31: Richest
F32: Basic | G32: Limited | H32: Unimproved | I32: Surface water | J32: Basic | K32: Limited | L32: Unimproved | M32: Surface water | N32: Basic | O32: Limited | P32: Unimproved | Q32: Surface water | R32: Basic | S32: Limited | T32: Unimproved | U32: Surface water | V32: Basic | W32: Limited | X32: Unimproved | Y32: Surface water
B33: NATIONAL | D33: Estimate | E33: =C99 -> 2000 | F33: =E99 -> 40.04302799 | G33: =F99 -> 3.429169638 | H33: 53.34745796 | I33: 3.18034441 | J33: =J99 -> 45.03479179 | K33: =K99 -> 3.502652057 | L33: 47.76878121 | M33: 3.693774946 | N33: =O99 -> 48.11801761 | O33: =P99 -> 5.252477956 | P33: 43.35669216 | Q33: 3.272812276 | R33: =T99 -> 60.88916241 | S33: =U99 -> 5.349952069 | T33: 31.46640694 | U33: 2.294478575 | V33: =Y99 -> 84.20478485 | W33: =Z99 -> 3.70395375 | X33: 11.57276224 | Y33: 0.518499164
E34: =C100 -> 2020 | F34: =E100 -> 47.51156333 | G34: 4.068753503 | H34: 47.90767872 | I34: 0.5120044467 | J34: =J100 -> 55.52337799 | K34: 4.318418413 | L34: 38.98942343 | M34: 1.168780163 | N34: =O100 -> 61.22637749 | O34: 6.683363406 | P34: 31.61274351 | Q34: 0.477515601 | R34: =T100 -> 76.7509765 | S34: 6.743631037 | T34: 16.33385324 | U34: 0.1715392301 | V34: =Y100 -> 90.7350002 | W34: 3.99120127 | X34: 5.273798527 | Y34: 0
B36: URBAN | D36: Estimate | E36: =C199 -> 2000 | F36: =E199 -> 51.27611809 | G36: =F199 -> 4.333562663 | H36: 42.32253053 | I36: 2.067788713 | J36: =J199 -> 73.87800527 | K36: =K199 -> 5.703821052 | L36: 19.89657942 | M36: 0.5215942586 | N36: =O199 -> 79.18902493 | O36: =P199 -> 6.086402113 | P36: 14.13196273 | Q36: 0.5926102213 | R36: =T199 -> 83.34249092 | S36: =U199 -> 3.674176781 | T36: 12.64130505 | U36: 0.3420272509 | V36: =Y199 -> 87.26742845 | W36: =Z199 -> 3.163410069 | X36: 9.027123305 | Y36: 0.5420381702
E37: =C200 -> 2020 | F37: =E200 -> 72.20448495 | G37: 6.102307892 | H37: 21.69320716 | I37: 0 | J37: =J200 -> 79.72391049 | K37: 6.155159676 | L37: 13.80400251 | M37: 0.316927318 | N37: =O200 -> 85.35340202 | O37: 6.560190971 | P37: 8.086407013 | Q37: 0 | R37: =T200 -> 93.31197066 | S37: 4.113684055 | T37: 2.574345286 | U37: 0 | V37: =Y200 -> 94.52450819 | W37: 3.426476365 | X37: 2.049015445 | Y37: 0
B39: RURAL | D39: Estimate | E39: =C299 -> 2000 | F39: =E299 -> 40.23093979 | G39: =F299 -> 3.465098054 | H39: 52.75321032 | I39: 3.550751831 | J39: =J299 -> 41.02278359 | K39: =K299 -> 3.762611739 | L39: 51.451484 | M39: 3.763120674 | N39: =O299 -> 44.65038743 | O39: =P299 -> 3.516587867 | P39: 48.65190405 | Q39: 3.181120653 | R39: =T299 -> 47.90810617 | S39: =U299 -> 4.572907306 | T39: 43.51949959 | U39: 3.999486932 | V39: =Y299 -> 47.48135709 | W39: =Z299 -> 4.588791473 | X39: 44.15415458 | Y39: 3.775696848
E40: =C300 -> 2020 | F40: =E300 -> 43.86037306 | G40: 3.777701792 | H40: 52.04943599 | I40: 0.3124891561 | J40: =J300 -> 49.9793872 | K40: 4.584111866 | L40: 44.78306581 | M40: 0.6534351183 | N40: =O300 -> 55.59303532 | O40: 4.378412031 | P40: 38.21902761 | Q40: 1.809525042 | R40: =T300 -> 54.9562029 | S40: 5.245659698 | T40: 39.22908234 | U40: 0.5690550577 | V40: =Y300 -> 65.72889464 | W40: 6.352307721 | X40: 27.36115588 | Y40: 0.5576417564
A97: NATIONAL | D97: Poorest | I97: Poor | N97: Middle | S97: Rich | X97: Richest
D98: Improved | E98: Basic | F98: Limited | G98: Unimproved | H98: Surface water | I98: Improved | J98: Basic | K98: Limited | L98: Unimproved | M98: Surface water | N98: Improved | O98: Basic | P98: Limited | Q98: Unimproved | R98: Surface water | S98: Improved | T98: Basic | U98: Limited | V98: Unimproved | W98: Surface water | X98: Improved | Y98: Basic | Z98: Limited | AA98: Unimproved | AB98: Surface water
A99: Forecast period: | C99: 2000 | D99: =IF((D101+H101)>100,D101*100/(D101+H101),D101) -> 43.47219763 | E99: =D99*AVERAGEIF(E105:E116,">0")/100 -> 40.04302799 | F99: =D99*(100-AVERAGEIF(E105:E116,">0"))/100 -> 3.429169638 | G99: =100-(E99+F99+H99) -> 53.34745796 | H99: =IF((D101+H101)>100,H101*100/(D101+H101),H101) -> 3.18034441 | I99: =IF((I101+M101)>100,I101*100/(I101+M101),I101) -> 48.53744385 | J99: =I99*AVERAGEIF(J105:J116,">0")/100 -> 45.03479179 | K99: =I99*(100-AVERAGEIF(J105:J116,">0"))/100 -> 3.502652057 | L99: =100-(J99+K99+M99) -> 47.76878121 | M99: =IF((I101+M101)>100,M101*100/(I101+M101),M101) -> 3.693774946 | N99: =IF((N101+R101)>100,N101*100/(N101+R101),N101) -> 53.37049557 | O99: =N99*AVERAGEIF(O105:O116,">0")/100 -> 48.11801761 | P99: =N99*(100-AVERAGEIF(O105:O116,">0"))/100 -> 5.252477956 | Q99: =100-(O99+P99+R99) -> 43.35669216 | R99: =IF((N101+R101)>100,R101*100/(N101+R101),R101) -> 3.272812276 | S99: =IF((S101+W101)>100,S101*100/(S101+W101),S101) -> 66.23911448 | T99: =S99*AVERAGEIF(T105:T116,">0")/100 -> 60.88916241 | U99: =S99*(100-AVERAGEIF(T105:T116,">0"))/100 -> 5.349952069 | V99: =100-(T99+U99+W99) -> 31.46640694 | W99: =IF((S101+W101)>100,W101*100/(S101+W101),W101) -> 2.294478575 | X99: =IF((X101+AB101)>100,X101*100/(X101+AB101),X101) -> 87.9087386 | Y99: =X99*AVERAGEIF(Y105:Y116,">0")/100 -> 84.20478485 | Z99: =X99*(100-AVERAGEIF(Y105:Y116,">0"))/100 -> 3.70395375 | AA99: =100-(Y99+Z99+AB99) -> 11.57276224 | AB99: =IF((X101+AB101)>100,AB101*100/(X101+AB101),AB101) -> 0.518499164
C100: 2020 | D100: =IF((D102+H102)>100,D102*100/(D102+H102),D102) -> 51.58031683 | E100: =D100*AVERAGEIF(E105:E116,">0")/100 -> 47.51156333 | F100: =D100*(100-AVERAGEIF(E105:E116,">0"))/100 -> 4.068753503 | G100: =100-(E100+F100+H100) -> 47.90767872 | H100: =IF((D102+H102)>100,H102*100/(D102+H102),H102) -> 0.5120044467 | I100: =IF((I102+M102)>100,I102*100/(I102+M102),I102) -> 59.84179641 | J100: =I100*AVERAGEIF(J105:J116,">0")/100 -> 55.52337799 | K100: =I100*(100-AVERAGEIF(J105:J116,">0"))/100 -> 4.318418413 | L100: =100-(J100+K100+M100) -> 38.98942343 | M100: =IF((I102+M102)>100,M102*100/(I102+M102),M102) -> 1.168780163 | N100: =IF((N102+R102)>100,N102*100/(N102+R102),N102) -> 67.90974089 | O100: =N100*AVERAGEIF(O105:O116,">0")/100 -> 61.22637749 | P100: =N100*(100-AVERAGEIF(O105:O116,">0"))/100 -> 6.683363406 | Q100: =100-(O100+P100+R100) -> 31.61274351 | R100: =IF((N102+R102)>100,R102*100/(N102+R102),R102) -> 0.477515601 | S100: =IF((S102+W102)>100,S102*100/(S102+W102),S102) -> 83.49460753 | T100: =S100*AVERAGEIF(T105:T116,">0")/100 -> 76.7509765 | U100: =S100*(100-AVERAGEIF(T105:T116,">0"))/100 -> 6.743631037 | V100: =100-(T100+U100+W100) -> 16.33385324 | W100: =IF((S102+W102)>100,W102*100/(S102+W102),W102) -> 0.1715392301 | X100: =IF((X102+AB102)>100,X102*100/(X102+AB102),X102) -> 94.72620147 | Y100: =X100*AVERAGEIF(Y105:Y116,">0")/100 -> 90.7350002 | Z100: =X100*(100-AVERAGEIF(Y105:Y116,">0"))/100 -> 3.99120127 | AA100: =100-(Y100+Z100+AB100) -> 5.273798527 | AB100: =IF((X102+AB102)>100,AB102*100/(X102+AB102),AB102) -> 0
A101: Regression period: | C101: =MinRegYear(C99,C105:C116) -> 2000 | D101: =IF(MAX(C105:C116)-MIN(C105:C116)<5,AVERAGEIF(C105:C116,">0",D105:D116), IF(FORECAST($C101,D$105:D$116,$C$105:$C$116)<0,0, IF(FORECAST($C101,D$105:D$116,$C$105:$C$116)>100,100, FORECAST($C101,D$105:D$116,$C$105:$C$116)))) -> 43.47219763 | H101: =IF(MAX(C105:C116)-MIN(C105:C116)<5,AVERAGEIF(C105:C116,">0",H105:H116), IF(FORECAST($C101,H$105:H$116,$C$105:$C$116)<0,0, IF(FORECAST($C101,H$105:H$116,$C$105:$C$116)>100,100, FORECAST($C101,H$105:H$116,$C$105:$C$116)))) -> 3.18034441 | I101: =IF(MAX(C105:C116)-MIN(C105:C116)<5,AVERAGEIF(C105:C116,">0",I105:I116), IF(FORECAST($C101,I$105:I$116,$C$105:$C$116)<0,0, IF(FORECAST($C101,I$105:I$116,$C$105:$C$116)>100,100, FORECAST($C101,I$105:I$116,$C$105:$C$116)))) -> 48.53744385 | M101: =IF(MAX(C105:C116)-MIN(C105:C116)<5,AVERAGEIF(C105:C116,">0",M105:M116), IF(FORECAST($C101,M$105:M$116,$C$105:$C$116)<0,0, IF(FORECAST($C101,M$105:M$116,$C$105:$C$116)>100,100, FORECAST($C101,M$105:M$116,$C$105:$C$116)))) -> 3.693774946 | N101: =IF(MAX(C105:C116)-MIN(C105:C116)<5,AVERAGEIF(C105:C116,">0",N105:N116), IF(FORECAST($C101,N$105:N$116,$C$105:$C$116)<0,0, IF(FORECAST($C101,N$105:N$116,$C$105:$C$116)>100,100, FORECAST($C101,N$105:N$116,$C$105:$C$116)))) -> 53.37049557 | R101: =IF(MAX(C105:C116)-MIN(C105:C116)<5,AVERAGEIF(C105:C116,">0",R105:R116), IF(FORECAST($C101,R$105:R$116,$C$105:$C$116)<0,0, IF(FORECAST($C101,R$105:R$116,$C$105:$C$116)>100,100, FORECAST($C101,R$105:R$116,$C$105:$C$116)))) -> 3.272812276 | S101: =IF(MAX(C105:C116)-MIN(C105:C116)<5,AVERAGEIF(C105:C116,">0",S105:S116), IF(FORECAST($C101,S$105:S$116,$C$105:$C$116)<0,0, IF(FORECAST($C101,S$105:S$116,$C$105:$C$116)>100,100, FORECAST($C101,S$105:S$116,$C$105:$C$116)))) -> 66.23911448 | W101: =IF(MAX(C105:C116)-MIN(C105:C116)<5,AVERAGEIF(C105:C116,">0",W105:W116), IF(FORECAST($C101,W$105:W$116,$C$105:$C$116)<0,0, IF(FORECAST($C101,W$105:W$116,$C$105:$C$116)>100,100, FORECAST($C101,W$105:W$116,$C$105:$C$116)))) -> 2.294478575 | X101: =IF(MAX(C105:C116)-MIN(C105:C116)<5,AVERAGEIF(C105:C116,">0",X105:X116), IF(FORECAST($C101,X$105:X$116,$C$105:$C$116)<0,0, IF(FORECAST($C101,X$105:X$116,$C$105:$C$116)>100,100, FORECAST($C101,X$105:X$116,$C$105:$C$116)))) -> 87.9087386 | AB101: =IF(MAX(C105:C116)-MIN(C105:C116)<5,AVERAGEIF(C105:C116,">0",AB105:AB116), IF(FORECAST($C101,AB$105:AB$116,$C$105:$C$116)<0,0, IF(FORECAST($C101,AB$105:AB$116,$C$105:$C$116)>100,100, FORECAST($C101,AB$105:AB$116,$C$105:$C$116)))) -> 0.518499164
C102: =MaxRegYear(C100,C105:C116) -> 2020 | D102: =IF(MAX(C105:C116)-MIN(C105:C116)<5,AVERAGEIF(C105:C116,">0",D105:D116), IF(FORECAST($C102,D$105:D$116,$C$105:$C$116)<0,0, IF(FORECAST($C102,D$105:D$116,$C$105:$C$116)>100,100, FORECAST($C102,D$105:D$116,$C$105:$C$116)))) -> 51.58031683 | H102: =IF(MAX(C105:C116)-MIN(C105:C116)<5,AVERAGEIF(C105:C116,">0",H105:H116), IF(FORECAST($C102,H$105:H$116,$C$105:$C$116)<0,0, IF(FORECAST($C102,H$105:H$116,$C$105:$C$116)>100,100, FORECAST($C102,H$105:H$116,$C$105:$C$116)))) -> 0.5120044467 | I102: =IF(MAX(C105:C116)-MIN(C105:C116)<5,AVERAGEIF(C105:C116,">0",I105:I116), IF(FORECAST($C102,I$105:I$116,$C$105:$C$116)<0,0, IF(FORECAST($C102,I$105:I$116,$C$105:$C$116)>100,100, FORECAST($C102,I$105:I$116,$C$105:$C$116)))) -> 59.84179641 | M102: =IF(MAX(C105:C116)-MIN(C105:C116)<5,AVERAGEIF(C105:C116,">0",M105:M116), IF(FORECAST($C102,M$105:M$116,$C$105:$C$116)<0,0, IF(FORECAST($C102,M$105:M$116,$C$105:$C$116)>100,100, FORECAST($C102,M$105:M$116,$C$105:$C$116)))) -> 1.168780163 | N102: =IF(MAX(C105:C116)-MIN(C105:C116)<5,AVERAGEIF(C105:C116,">0",N105:N116), IF(FORECAST($C102,N$105:N$116,$C$105:$C$116)<0,0, IF(FORECAST($C102,N$105:N$116,$C$105:$C$116)>100,100, FORECAST($C102,N$105:N$116,$C$105:$C$116)))) -> 67.90974089 | R102: =IF(MAX(C105:C116)-MIN(C105:C116)<5,AVERAGEIF(C105:C116,">0",R105:R116), IF(FORECAST($C102,R$105:R$116,$C$105:$C$116)<0,0, IF(FORECAST($C102,R$105:R$116,$C$105:$C$116)>100,100, FORECAST($C102,R$105:R$116,$C$105:$C$116)))) -> 0.477515601 | S102: =IF(MAX(C105:C116)-MIN(C105:C116)<5,AVERAGEIF(C105:C116,">0",S105:S116), IF(FORECAST($C102,S$105:S$116,$C$105:$C$116)<0,0, IF(FORECAST($C102,S$105:S$116,$C$105:$C$116)>100,100, FORECAST($C102,S$105:S$116,$C$105:$C$116)))) -> 83.49460753 | W102: =IF(MAX(C105:C116)-MIN(C105:C116)<5,AVERAGEIF(C105:C116,">0",W105:W116), IF(FORECAST($C102,W$105:W$116,$C$105:$C$116)<0,0, IF(FORECAST($C102,W$105:W$116,$C$105:$C$116)>100,100, FORECAST($C102,W$105:W$116,$C$105:$C$116)))) -> 0.1715392301 | X102: =IF(MAX(C105:C116)-MIN(C105:C116)<5,AVERAGEIF(C105:C116,">0",X105:X116), IF(FORECAST($C102,X$105:X$116,$C$105:$C$116)<0,0, IF(FORECAST($C102,X$105:X$116,$C$105:$C$116)>100,100, FORECAST($C102,X$105:X$116,$C$105:$C$116)))) -> 94.72620147 | AB102: =IF(MAX(C105:C116)-MIN(C105:C116)<5,AVERAGEIF(C105:C116,">0",AB105:AB116), IF(FORECAST($C102,AB$105:AB$116,$C$105:$C$116)<0,0, IF(FORECAST($C102,AB$105:AB$116,$C$105:$C$116)>100,100, FORECAST($C102,AB$105:AB$116,$C$105:$C$116)))) -> 0
B104: Survey | C104: Year | D104: Improved | E104: % Improved < = 30min | H104: Surface water | I104: Improved | J104: % Improved < = 30min | M104: Surface water | N104: Improved | O104: % Improved < = 30min | R104: Surface water | S104: Improved | T104: % Improved < = 30min | W104: Surface water | X104: Improved | Y104: % Improved < = 30min | AB104: Surface water
B105: MICS00 | C105: 2000 | D105: =IF(ISERROR(INDIRECT(CONCATENATE($B105,"!C16"))),"",INDIRECT(CONCATENATE($B105,"!C16"))) -> 41.64339643 | E105: =IF(ISERROR(INDIRECT(CONCATENATE($B105,"!C23"))),"",INDIRECT(CONCATENATE($B105,"!C23"))) -> 95.88735798 | H105: =IF(ISERROR(INDIRECT(CONCATENATE($B105,"!C21"))),"",INDIRECT(CONCATENATE($B105,"!C21"))) -> 3.818813019 | I105: =IF(ISERROR(INDIRECT(CONCATENATE($B105,"!D16"))),"",INDIRECT(CONCATENATE($B105,"!D16"))) -> 52.65808139 | J105: =IF(ISERROR(INDIRECT(CONCATENATE($B105,"!D23"))),"",INDIRECT(CONCATENATE($B105,"!D23"))) -> 97.1788989 | M105: =IF(ISERROR(INDIRECT(CONCATENATE($B105,"!D21"))),"",INDIRECT(CONCATENATE($B105,"!D21"))) -> 3.657896217 | N105: =IF(ISERROR(INDIRECT(CONCATENATE($B105,"!E16"))),"",INDIRECT(CONCATENATE($B105,"!E16"))) -> 54.1590558 | O105: =IF(ISERROR(INDIRECT(CONCATENATE($B105,"!E23"))),"",INDIRECT(CONCATENATE($B105,"!E23"))) -> 95.26247627 | R105: =IF(ISERROR(INDIRECT(CONCATENATE($B105,"!E21"))),"",INDIRECT(CONCATENATE($B105,"!E21"))) -> 3.425830284 | S105: =IF(ISERROR(INDIRECT(CONCATENATE($B105,"!F16"))),"",INDIRECT(CONCATENATE($B105,"!F16"))) -> 64.13820106 | T105: =IF(ISERROR(INDIRECT(CONCATENATE($B105,"!F23"))),"",INDIRECT(CONCATENATE($B105,"!F23"))) -> 95.52595332 | W105: =IF(ISERROR(INDIRECT(CONCATENATE($B105,"!F21"))),"",INDIRECT(CONCATENATE($B105,"!F21"))) -> 2.894727441 | X105: =IF(ISERROR(INDIRECT(CONCATENATE($B105,"!G16"))),"",INDIRECT(CONCATENATE($B105,"!G16"))) -> 88.35467098 | Y105: =IF(ISERROR(INDIRECT(CONCATENATE($B105,"!G23"))),"",INDIRECT(CONCATENATE($B105,"!G23"))) -> 94.85354968 | AB105: =IF(ISERROR(INDIRECT(CONCATENATE($B105,"!G221"))),"",INDIRECT(CONCATENATE($B105,"!G21"))) -> 0.7211446239
B106: MICS06 | C106: 2006 | D106: 48.03158249 | E106: 87.80415062 | H106: 0.5030522238 | I106: 42.78074772 | J106: 88.55938486 | M106: 1.811741663 | N106: 49.89753218 | O106: 85.58150263 | R106: 1.596560502 | S106: 68.88384109 | T106: 90.87563144 | W106: 0.6652923014 | X106: 89.83867662 | Y106: 98.23812721 | AB106: 0
B107: MICS10 | C107: 2010 | D107: 47.3969561 | E107: 91.28202352 | H107: 3.716163447 | I107: 54.78788285 | J107: 93.13539784 | M107: 4.923726652 | N107: 62.70775964 | O107: 94.88481969 | R107: 3.215474704 | S107: 77.46931991 | T107: 90.73965456 | W107: 1.792712771 | X107: 89.80980434 | Y107: 92.70124319 | AB107: 0.315915407
B108: MICS14 | C108: 2014 | D108: 50.8 | E108: 93.9 | H108: 0.4 | I108: 63.5 | J108: 95.4 | M108: 0.5 | N108: 77.2 | O108: 93.2 | R108: 0.5 | S108: 88.2 | T108: 92.1 | W108: 0.1 | X108: 94 | Y108: 96.5 | AB108: 0
B109: MICS19 | C109: 2019 | D109: 49.35394517 | E109: 91.68551682 | H109: 0.9262604497 | I109: 56.65617104 | J109: 89.64436003 | M109: 1.389272981 | N109: 58.50928125 | O109: 81.86350808 | R109: 0.7777190356 | S109: 74.78016833 | T109: 90.37512852 | W109: 0.8184589658 | X109: 94.2433251 | Y109: 96.64004035 | AB109: 0.05126445999
D111: =IF(ISERROR(INDIRECT(CONCATENATE($B111,"!C16"))),"",INDIRECT(CONCATENATE($B111,"!C16"))) ->  | E111: =IF(ISERROR(INDIRECT(CONCATENATE($B111,"!C23"))),"",INDIRECT(CONCATENATE($B111,"!C23"))) ->  | H111: =IF(ISERROR(INDIRECT(CONCATENATE($B111,"!C21"))),"",INDIRECT(CONCATENATE($B111,"!C21"))) ->  | I111: =IF(ISERROR(INDIRECT(CONCATENATE($B111,"!D16"))),"",INDIRECT(CONCATENATE($B111,"!D16"))) ->  | J111: =IF(ISERROR(INDIRECT(CONCATENATE($B111,"!D23"))),"",INDIRECT(CONCATENATE($B111,"!D23"))) ->  | M111: =IF(ISERROR(INDIRECT(CONCATENATE($B111,"!D21"))),"",INDIRECT(CONCATENATE($B111,"!D21"))) ->  | N111: =IF(ISERROR(INDIRECT(CONCATENATE($B111,"!E16"))),"",INDIRECT(CONCATENATE($B111,"!E16"))) ->  | O111: =IF(ISERROR(INDIRECT(CONCATENATE($B111,"!E23"))),"",INDIRECT(CONCATENATE($B111,"!E23"))) ->  | R111: =IF(ISERROR(INDIRECT(CONCATENATE($B111,"!E21"))),"",INDIRECT(CONCATENATE($B111,"!E21"))) ->  | S111: =IF(ISERROR(INDIRECT(CONCATENATE($B111,"!F16"))),"",INDIRECT(CONCATENATE($B111,"!F16"))) ->  | T111: =IF(ISERROR(INDIRECT(CONCATENATE($B111,"!F23"))),"",INDIRECT(CONCATENATE($B111,"!F23"))) ->  | W111: =IF(ISERROR(INDIRECT(CONCATENATE($B111,"!F21"))),"",INDIRECT(CONCATENATE($B111,"!F21"))) ->  | X111: =IF(ISERROR(INDIRECT(CONCATENATE($B111,"!G16"))),"",INDIRECT(CONCATENATE($B111,"!G16"))) ->  | Y111: =IF(ISERROR(INDIRECT(CONCATENATE($B111,"!G23"))),"",INDIRECT(CONCATENATE($B111,"!G23"))) ->  | AB111: =IF(ISERROR(INDIRECT(CONCATENATE($B111,"!G221"))),"",INDIRECT(CONCATENATE($B111,"!G21"))) -> 
D112: =IF(ISERROR(INDIRECT(CONCATENATE($B112,"!C16"))),"",INDIRECT(CONCATENATE($B112,"!C16"))) ->  | E112: =IF(ISERROR(INDIRECT(CONCATENATE($B112,"!C23"))),"",INDIRECT(CONCATENATE($B112,"!C23"))) ->  | H112: =IF(ISERROR(INDIRECT(CONCATENATE($B112,"!C21"))),"",INDIRECT(CONCATENATE($B112,"!C21"))) ->  | I112: =IF(ISERROR(INDIRECT(CONCATENATE($B112,"!D16"))),"",INDIRECT(CONCATENATE($B112,"!D16"))) ->  | J112: =IF(ISERROR(INDIRECT(CONCATENATE($B112,"!D23"))),"",INDIRECT(CONCATENATE($B112,"!D23"))) ->  | M112: =IF(ISERROR(INDIRECT(CONCATENATE($B112,"!D21"))),"",INDIRECT(CONCATENATE($B112,"!D21"))) ->  | N112: =IF(ISERROR(INDIRECT(CONCATENATE($B112,"!E16"))),"",INDIRECT(CONCATENATE($B112,"!E16"))) ->  | O112: =IF(ISERROR(INDIRECT(CONCATENATE($B112,"!E23"))),"",INDIRECT(CONCATENATE($B112,"!E23"))) ->  | R112: =IF(ISERROR(INDIRECT(CONCATENATE($B112,"!E21"))),"",INDIRECT(CONCATENATE($B112,"!E21"))) ->  | S112: =IF(ISERROR(INDIRECT(CONCATENATE($B112,"!F16"))),"",INDIRECT(CONCATENATE($B112,"!F16"))) ->  | T112: =IF(ISERROR(INDIRECT(CONCATENATE($B112,"!F23"))),"",INDIRECT(CONCATENATE($B112,"!F23"))) ->  | W112: =IF(ISERROR(INDIRECT(CONCATENATE($B112,"!F21"))),"",INDIRECT(CONCATENATE($B112,"!F21"))) ->  | X112: =IF(ISERROR(INDIRECT(CONCATENATE($B112,"!G16"))),"",INDIRECT(CONCATENATE($B112,"!G16"))) ->  | Y112: =IF(ISERROR(INDIRECT(CONCATENATE($B112,"!G23"))),"",INDIRECT(CONCATENATE($B112,"!G23"))) ->  | AB112: =IF(ISERROR(INDIRECT(CONCATENATE($B112,"!G221"))),"",INDIRECT(CONCATENATE($B112,"!G21"))) -> 
B118: =CONCATENATE("National use of drinking water sources, ",C99,"–",C100) -> National use of drinking water sources, 2000–2020 | S118: Data points used for regression
E153: =IF(ISERROR(INDIRECT(CONCATENATE($B153,"!M18"))),"",INDIRECT(CONCATENATE($B153,"!M18"))) ->  | F153: =IF(ISERROR(INDIRECT(CONCATENATE($B153,"!M19"))),"",INDIRECT(CONCATENATE($B153,"!M19"))) ->  | G153: =IF(ISERROR(INDIRECT(CONCATENATE($B153,"!M20"))),"",INDIRECT(CONCATENATE($B153,"!M20"))) ->  | H153: =IF(ISERROR(INDIRECT(CONCATENATE($B153,"!M21"))),"",INDIRECT(CONCATENATE($B153,"!M21"))) ->  | J153: =IF(ISERROR(INDIRECT(CONCATENATE($B153,"!N18"))),"",INDIRECT(CONCATENATE($B153,"!N18"))) ->  | K153: =IF(ISERROR(INDIRECT(CONCATENATE($B153,"!N19"))),"",INDIRECT(CONCATENATE($B153,"!N19"))) ->  | L153: =IF(ISERROR(INDIRECT(CONCATENATE($B153,"!N20"))),"",INDIRECT(CONCATENATE($B153,"!N20"))) ->  | M153: =IF(ISERROR(INDIRECT(CONCATENATE($B153,"!N21"))),"",INDIRECT(CONCATENATE($B153,"!N21"))) ->  | O153: =IF(ISERROR(INDIRECT(CONCATENATE($B153,"!O18"))),"",INDIRECT(CONCATENATE($B153,"!O18"))) ->  | P153: =IF(ISERROR(INDIRECT(CONCATENATE($B153,"!O19"))),"",INDIRECT(CONCATENATE($B153,"!O19"))) ->  | Q153: =IF(ISERROR(INDIRECT(CONCATENATE($B153,"!O20"))),"",INDIRECT(CONCATENATE($B153,"!O20"))) ->  | R153: =IF(ISERROR(INDIRECT(CONCATENATE($B153,"!O21"))),"",INDIRECT(CONCATENATE($B153,"!O21"))) ->  | T153: =IF(ISERROR(INDIRECT(CONCATENATE($B153,"!P18"))),"",INDIRECT(CONCATENATE($B153,"!P18"))) ->  | U153: =IF(ISERROR(INDIRECT(CONCATENATE($B153,"!P19"))),"",INDIRECT(CONCATENATE($B153,"!P19"))) ->  | V153: =IF(ISERROR(INDIRECT(CONCATENATE($B153,"!P20"))),"",INDIRECT(CONCATENATE($B153,"!P20"))) ->  | W153: =IF(ISERROR(INDIRECT(CONCATENATE($B153,"!P21"))),"",INDIRECT(CONCATENATE($B153,"!P21"))) ->  | Y153: =IF(ISERROR(INDIRECT(CONCATENATE($B153,"!Q18"))),"",INDIRECT(CONCATENATE($B153,"!Q18"))) ->  | Z153: =IF(ISERROR(INDIRECT(CONCATENATE($B153,"!Q19"))),"",INDIRECT(CONCATENATE($B153,"!Q19"))) ->  | AA153: =IF(ISERROR(INDIRECT(CONCATENATE($B153,"!Q20"))),"",INDIRECT(CONCATENATE($B153,"!Q20"))) ->  | AB153: =IF(ISERROR(INDIRECT(CONCATENATE($B153,"!Q21"))),"",INDIRECT(CONCATENATE($B153,"!Q1"))) -> 
A197: URBAN | D197: Poorest | I197: Poor | N197: Middle | S197: Rich | X197: Richest
D198: Improved | E198: Basic | F198: Limited | G198: Unimproved | H198: Surface water | I198: Improved | J198: Basic | K198: Limited | L198: Unimproved | M198: Surface water | N198: Improved | O198: Basic | P198: Limited | Q198: Unimproved | R198: Surface water | S198: Improved | T198: Basic | U198: Limited | V198: Unimproved | W198: Surface water | X198: Improved | Y198: Basic | Z198: Limited | AA198: Unimproved | AB198: Surface water
A199: Forecast period: | C199: 2000 | D199: =IF((D201+H201)>100,D201*100/(D201+H201),D201) -> 55.60968076 | E199: =D199*AVERAGEIF(E205:E216,">0")/100 -> 51.27611809 | F199: =D199*(100-AVERAGEIF(E205:E216,">0"))/100 -> 4.333562663 | G199: =100-(E199+F199+H199) -> 42.32253053 | H199: =IF((D201+H201)>100,H201*100/(D201+H201),H201) -> 2.067788713 | I199: =IF((I201+M201)>100,I201*100/(I201+M201),I201) -> 79.58182632 | J199: =I199*AVERAGEIF(J205:J216,">0")/100 -> 73.87800527 | K199: =I199*(100-AVERAGEIF(J205:J216,">0"))/100 -> 5.703821052 | L199: =100-(J199+K199+M199) -> 19.89657942 | M199: =IF((I201+M201)>100,M201*100/(I201+M201),M201) -> 0.5215942586 | N199: =IF((N201+R201)>100,N201*100/(N201+R201),N201) -> 85.27542704 | O199: =N199*AVERAGEIF(O205:O216,">0")/100 -> 79.18902493 | P199: =N199*(100-AVERAGEIF(O205:O216,">0"))/100 -> 6.086402113 | Q199: =100-(O199+P199+R199) -> 14.13196273 | R199: =IF((N201+R201)>100,R201*100/(N201+R201),R201) -> 0.5926102213 | S199: =IF((S201+W201)>100,S201*100/(S201+W201),S201) -> 87.0166677 | T199: =S199*AVERAGEIF(T205:T216,">0")/100 -> 83.34249092 | U199: =S199*(100-AVERAGEIF(T205:T216,">0"))/100 -> 3.674176781 | V199: =100-(T199+U199+W199) -> 12.64130505 | W199: =IF((S201+W201)>100,W201*100/(S201+W201),W201) -> 0.3420272509 | X199: =IF((X201+AB201)>100,X201*100/(X201+AB201),X201) -> 90.43083852 | Y199: =X199*AVERAGEIF(Y205:Y216,">0")/100 -> 87.26742845 | Z199: =X199*(100-AVERAGEIF(Y205:Y216,">0"))/100 -> 3.163410069 | AA199: =100-(Y199+Z199+AB199) -> 9.027123305 | AB199: =IF((X201+AB201)>100,AB201*100/(X201+AB201),AB201) -> 0.5420381702
C200: 2020 | D200: =IF((D202+H202)>100,D202*100/(D202+H202),D202) -> 78.30679284 | E200: =D200*AVERAGEIF(E205:E216,">0")/100 -> 72.20448495 | F200: =D200*(100-AVERAGEIF(E205:E216,">0"))/100 -> 6.102307892 | G200: =100-(E200+F200+H200) -> 21.69320716 | H200: =IF((D202+H202)>100,H202*100/(D202+H202),H202) -> 0 | I200: =IF((I202+M202)>100,I202*100/(I202+M202),I202) -> 85.87907017 | J200: =I200*AVERAGEIF(J205:J216,">0")/100 -> 79.72391049 | K200: =I200*(100-AVERAGEIF(J205:J216,">0"))/100 -> 6.155159676 | L200: =100-(J200+K200+M200) -> 13.80400251 | M200: =IF((I202+M202)>100,M202*100/(I202+M202),M202) -> 0.316927318 | N200: =IF((N202+R202)>100,N202*100/(N202+R202),N202) -> 91.91359299 | O200: =N200*AVERAGEIF(O205:O216,">0")/100 -> 85.35340202 | P200: =N200*(100-AVERAGEIF(O205:O216,">0"))/100 -> 6.560190971 | Q200: =100-(O200+P200+R200) -> 8.086407013 | R200: =IF((N202+R202)>100,R202*100/(N202+R202),R202) -> 0 | S200: =IF((S202+W202)>100,S202*100/(S202+W202),S202) -> 97.42565471 | T200: =S200*AVERAGEIF(T205:T216,">0")/100 -> 93.31197066 | U200: =S200*(100-AVERAGEIF(T205:T216,">0"))/100 -> 4.113684055 | V200: =100-(T200+U200+W200) -> 2.574345286 | W200: =IF((S202+W202)>100,W202*100/(S202+W202),W202) -> 0 | X200: =IF((X202+AB202)>100,X202*100/(X202+AB202),X202) -> 97.95098456 | Y200: =X200*AVERAGEIF(Y205:Y216,">0")/100 -> 94.52450819 | Z200: =X200*(100-AVERAGEIF(Y205:Y216,">0"))/100 -> 3.426476365 | AA200: =100-(Y200+Z200+AB200) -> 2.049015445 | AB200: =IF((X202+AB202)>100,AB202*100/(X202+AB202),AB202) -> 0
A201: Regression period: | C201: =MinRegYear(C199,C205:C216) -> 2000 | D201: =IF(MAX(C205:C216)-MIN(C205:C216)<5,AVERAGEIF(C205:C216,">0",D205:D216), IF(FORECAST($C201,D$205:D$216,$C$205:$C$216)<0,0, IF(FORECAST($C201,D$205:D$216,$C$205:$C$216)>100,100, FORECAST($C201,D$205:D$216,$C$205:$C$216)))) -> 55.60968076 | H201: =IF(MAX(C205:C216)-MIN(C205:C216)<5,AVERAGEIF(C205:C216,">0",H205:H216), IF(FORECAST($C201,H$205:H$216,$C$205:$C$216)<0,0, IF(FORECAST($C201,H$205:H$216,$C$205:$C$216)>100,100, FORECAST($C201,H$205:H$216,$C$205:$C$216)))) -> 2.067788713 | I201: =IF(MAX(C205:C216)-MIN(C205:C216)<5,AVERAGEIF(C205:C216,">0",I205:I216), IF(FORECAST($C201,I$205:I$216,$C$205:$C$216)<0,0, IF(FORECAST($C201,I$205:I$216,$C$205:$C$216)>100,100, FORECAST($C201,I$205:I$216,$C$205:$C$216)))) -> 79.58182632 | M201: =IF(MAX(C205:C216)-MIN(C205:C216)<5,AVERAGEIF(C205:C216,">0",M205:M216), IF(FORECAST($C201,M$205:M$216,$C$205:$C$216)<0,0, IF(FORECAST($C201,M$205:M$216,$C$205:$C$216)>100,100, FORECAST($C201,M$205:M$216,$C$205:$C$216)))) -> 0.5215942586 | N201: =IF(MAX(C205:C216)-MIN(C205:C216)<5,AVERAGEIF(C205:C216,">0",N205:N216), IF(FORECAST($C201,N$205:N$216,$C$205:$C$216)<0,0, IF(FORECAST($C201,N$205:N$216,$C$205:$C$216)>100,100, FORECAST($C201,N$205:N$216,$C$205:$C$216)))) -> 85.27542704 | R201: =IF(MAX(C205:C216)-MIN(C205:C216)<5,AVERAGEIF(C205:C216,">0",R205:R216), IF(FORECAST($C201,R$205:R$216,$C$205:$C$216)<0,0, IF(FORECAST($C201,R$205:R$216,$C$205:$C$216)>100,100, FORECAST($C201,R$205:R$216,$C$205:$C$216)))) -> 0.5926102213 | S201: =IF(MAX(C205:C216)-MIN(C205:C216)<5,AVERAGEIF(C205:C216,">0",S205:S216), IF(FORECAST($C201,S$205:S$216,$C$205:$C$216)<0,0, IF(FORECAST($C201,S$205:S$216,$C$205:$C$216)>100,100, FORECAST($C201,S$205:S$216,$C$205:$C$216)))) -> 87.0166677 | W201: =IF(MAX(C205:C216)-MIN(C205:C216)<5,AVERAGEIF(C205:C216,">0",W205:W216), IF(FORECAST($C201,W$205:W$216,$C$205:$C$216)<0,0, IF(FORECAST($C201,W$205:W$216,$C$205:$C$216)>100,100, FORECAST($C201,W$205:W$216,$C$205:$C$216)))) -> 0.3420272509 | X201: =IF(MAX(C205:C216)-MIN(C205:C216)<5,AVERAGEIF(C205:C216,">0",X205:X216), IF(FORECAST($C201,X$205:X$216,$C$205:$C$216)<0,0, IF(FORECAST($C201,X$205:X$216,$C$205:$C$216)>100,100, FORECAST($C201,X$205:X$216,$C$205:$C$216)))) -> 90.43083852 | AB201: =IF(MAX(C205:C216)-MIN(C205:C216)<5,AVERAGEIF(C205:C216,">0",AB205:AB216), IF(FORECAST($C201,AB$205:AB$216,$C$205:$C$216)<0,0, IF(FORECAST($C201,AB$205:AB$216,$C$205:$C$216)>100,100, FORECAST($C201,AB$205:AB$216,$C$205:$C$216)))) -> 0.5420381702
C202: =MaxRegYear(C200,C205:C216) -> 2020 | D202: =IF(MAX(C205:C216)-MIN(C205:C216)<5,AVERAGEIF(C205:C216,">0",D205:D216), IF(FORECAST($C202,D$205:D$216,$C$205:$C$216)<0,0, IF(FORECAST($C202,D$205:D$216,$C$205:$C$216)>100,100, FORECAST($C202,D$205:D$216,$C$205:$C$216)))) -> 78.30679284 | H202: =IF(MAX(C205:C216)-MIN(C205:C216)<5,AVERAGEIF(C205:C216,">0",H205:H216), IF(FORECAST($C202,H$205:H$216,$C$205:$C$216)<0,0, IF(FORECAST($C202,H$205:H$216,$C$205:$C$216)>100,100, FORECAST($C202,H$205:H$216,$C$205:$C$216)))) -> 0 | I202: =IF(MAX(C205:C216)-MIN(C205:C216)<5,AVERAGEIF(C205:C216,">0",I205:I216), IF(FORECAST($C202,I$205:I$216,$C$205:$C$216)<0,0, IF(FORECAST($C202,I$205:I$216,$C$205:$C$216)>100,100, FORECAST($C202,I$205:I$216,$C$205:$C$216)))) -> 85.87907017 | M202: =IF(MAX(C205:C216)-MIN(C205:C216)<5,AVERAGEIF(C205:C216,">0",M205:M216), IF(FORECAST($C202,M$205:M$216,$C$205:$C$216)<0,0, IF(FORECAST($C202,M$205:M$216,$C$205:$C$216)>100,100, FORECAST($C202,M$205:M$216,$C$205:$C$216)))) -> 0.316927318 | N202: =IF(MAX(C205:C216)-MIN(C205:C216)<5,AVERAGEIF(C205:C216,">0",N205:N216), IF(FORECAST($C202,N$205:N$216,$C$205:$C$216)<0,0, IF(FORECAST($C202,N$205:N$216,$C$205:$C$216)>100,100, FORECAST($C202,N$205:N$216,$C$205:$C$216)))) -> 91.91359299 | R202: =IF(MAX(C205:C216)-MIN(C205:C216)<5,AVERAGEIF(C205:C216,">0",R205:R216), IF(FORECAST($C202,R$205:R$216,$C$205:$C$216)<0,0, IF(FORECAST($C202,R$205:R$216,$C$205:$C$216)>100,100, FORECAST($C202,R$205:R$216,$C$205:$C$216)))) -> 0 | S202: =IF(MAX(C205:C216)-MIN(C205:C216)<5,AVERAGEIF(C205:C216,">0",S205:S216), IF(FORECAST($C202,S$205:S$216,$C$205:$C$216)<0,0, IF(FORECAST($C202,S$205:S$216,$C$205:$C$216)>100,100, FORECAST($C202,S$205:S$216,$C$205:$C$216)))) -> 97.42565471 | W202: =IF(MAX(C205:C216)-MIN(C205:C216)<5,AVERAGEIF(C205:C216,">0",W205:W216), IF(FORECAST($C202,W$205:W$216,$C$205:$C$216)<0,0, IF(FORECAST($C202,W$205:W$216,$C$205:$C$216)>100,100, FORECAST($C202,W$205:W$216,$C$205:$C$216)))) -> 0 | X202: =IF(MAX(C205:C216)-MIN(C205:C216)<5,AVERAGEIF(C205:C216,">0",X205:X216), IF(FORECAST($C202,X$205:X$216,$C$205:$C$216)<0,0, IF(FORECAST($C202,X$205:X$216,$C$205:$C$216)>100,100, FORECAST($C202,X$205:X$216,$C$205:$C$216)))) -> 97.95098456 | AB202: =IF(MAX(C205:C216)-MIN(C205:C216)<5,AVERAGEIF(C205:C216,">0",AB205:AB216), IF(FORECAST($C202,AB$205:AB$216,$C$205:$C$216)<0,0, IF(FORECAST($C202,AB$205:AB$216,$C$205:$C$216)>100,100, FORECAST($C202,AB$205:AB$216,$C$205:$C$216)))) -> 0
B204: Survey | C204: Year | D204: Improved | E204: % Improved < = 30min | H204: Surface water | I204: Improved | J204: % Improved < = 30min | M204: Surface water | N204: Improved | O204: % Improved < = 30min | R204: Surface water | S204: Improved | T204: % Improved < = 30min | W204: Surface water | X204: Improved | Y204: % Improved < = 30min | AB204: Surface water
B205: MICS00 | C205: 2000 | D205: =IF(ISERROR(INDIRECT(CONCATENATE($B205,"!H16"))),"",INDIRECT(CONCATENATE($B205,"!H16"))) -> 53.16955291 | E205: =IF(ISERROR(INDIRECT(CONCATENATE($B205,"!H23"))),"",INDIRECT(CONCATENATE($B205,"!H23"))) -> 94.69113486 | H205: =IF(ISERROR(INDIRECT(CONCATENATE($B205,"!H21"))),"",INDIRECT(CONCATENATE($B205,"!H21"))) -> 2.347288961 | I205: =IF(ISERROR(INDIRECT(CONCATENATE($B205,"!I16"))),"",INDIRECT(CONCATENATE($B205,"!I16"))) -> 79.69614758 | J205: =IF(ISERROR(INDIRECT(CONCATENATE($B205,"!I23"))),"",INDIRECT(CONCATENATE($B205,"!I23"))) -> 95.86791307 | M205: =IF(ISERROR(INDIRECT(CONCATENATE($B205,"!I21"))),"",INDIRECT(CONCATENATE($B205,"!I21"))) -> 0.6013665757 | N205: =IF(ISERROR(INDIRECT(CONCATENATE($B205,"!J16"))),"",INDIRECT(CONCATENATE($B205,"!J16"))) -> 84.10137406 | O205: =IF(ISERROR(INDIRECT(CONCATENATE($B205,"!J23"))),"",INDIRECT(CONCATENATE($B205,"!J23"))) -> 94.87557679 | R205: =IF(ISERROR(INDIRECT(CONCATENATE($B205,"!J21"))),"",INDIRECT(CONCATENATE($B205,"!J21"))) -> 0.7485558026 | S205: =IF(ISERROR(INDIRECT(CONCATENATE($B205,"!K16"))),"",INDIRECT(CONCATENATE($B205,"!K16"))) -> 87.97771509 | T205: =IF(ISERROR(INDIRECT(CONCATENATE($B205,"!K23"))),"",INDIRECT(CONCATENATE($B205,"!K23"))) -> 94.39446984 | W205: =IF(ISERROR(INDIRECT(CONCATENATE($B205,"!K21"))),"",INDIRECT(CONCATENATE($B205,"!K21"))) -> 0.4504334261 | X205: =IF(ISERROR(INDIRECT(CONCATENATE($B205,"!L16"))),"",INDIRECT(CONCATENATE($B205,"!L16"))) -> 92.16244358 | Y205: =IF(ISERROR(INDIRECT(CONCATENATE($B205,"!L23"))),"",INDIRECT(CONCATENATE($B205,"!L23"))) -> 94.27198351 | AB205: =IF(ISERROR(INDIRECT(CONCATENATE($B205,"!L221"))),"",INDIRECT(CONCATENATE($B205,"!L21"))) -> 0.8371081241
B206: MICS06 | C206: 2006 | D206: 61.06551916 | E206: 93.52420146 | H206: 0.7644043661 | I206: 81.93645092 | J206: 94.04429998 | M206: 0 | N206: 88.40479383 | O206: 96.38359733 | R206: 0.0681103112 | S206: 89.2806295 | T206: 98.33424807 | W206: 0 | X206: 90.68012028 | Y206: 99.09911336 | AB206: 0
B207: MICS10 | C207: 2010 | D207: 69.61863269 | E207: 91.21756134 | H207: 1.649481834 | I207: 76.86672741 | J207: 89.91931104 | M207: 1.125759374 | N207: 86.60837686 | O207: 88.57137201 | R207: 0.4099117738 | S207: 90.76765437 | T207: 91.51652385 | W207: 0.2550080329 | X207: 93.43114646 | Y207: 94.47612374 | AB207: 0.1516901729
B208: MICS14 | C208: 2014 | D208: 79.5 | E208: 91.4 | H208: 0 | I208: 92.9 | J208: 92.7 | M208: 0 | N208: 95 | O208: 90.8 | R208: 0.2 | S208: 95.5 | T208: 96.3 | W208: 0 | X208: 95.7 | Y208: 96.7 | AB208: 0
B209: MICS19 | C209: 2019 | D209: 70.30262363 | E209: 90.2029993 | H209: 0.2789336716 | I209: 81.93805313 | J209: 91.63227237 | M209: 0.379411339 | N209: 88.52609703 | O209: 93.68272486 | R209: 0 | S209: 97.05935772 | T209: 98.3428444 | W209: 0 | X209: 98.60484007 | Y209: 97.96200898 | AB209: 0.1436152183
B218: =CONCATENATE("Urban use of drinking water sources, ",C199,"–",C200) -> Urban use of drinking water sources, 2000–2020 | S218: Data points used for regression
E253: =IF(ISERROR(INDIRECT(CONCATENATE($B253,"!M18"))),"",INDIRECT(CONCATENATE($B253,"!M18"))) ->  | F253: =IF(ISERROR(INDIRECT(CONCATENATE($B253,"!M19"))),"",INDIRECT(CONCATENATE($B253,"!M19"))) ->  | G253: =IF(ISERROR(INDIRECT(CONCATENATE($B253,"!M20"))),"",INDIRECT(CONCATENATE($B253,"!M20"))) ->  | H253: =IF(ISERROR(INDIRECT(CONCATENATE($B253,"!M21"))),"",INDIRECT(CONCATENATE($B253,"!M21"))) ->  | J253: =IF(ISERROR(INDIRECT(CONCATENATE($B253,"!N18"))),"",INDIRECT(CONCATENATE($B253,"!N18"))) ->  | K253: =IF(ISERROR(INDIRECT(CONCATENATE($B253,"!N19"))),"",INDIRECT(CONCATENATE($B253,"!N19"))) ->  | L253: =IF(ISERROR(INDIRECT(CONCATENATE($B253,"!N20"))),"",INDIRECT(CONCATENATE($B253,"!N20"))) ->  | M253: =IF(ISERROR(INDIRECT(CONCATENATE($B253,"!N21"))),"",INDIRECT(CONCATENATE($B253,"!N21"))) ->  | O253: =IF(ISERROR(INDIRECT(CONCATENATE($B253,"!O18"))),"",INDIRECT(CONCATENATE($B253,"!O18"))) ->  | P253: =IF(ISERROR(INDIRECT(CONCATENATE($B253,"!O19"))),"",INDIRECT(CONCATENATE($B253,"!O19"))) ->  | Q253: =IF(ISERROR(INDIRECT(CONCATENATE($B253,"!O20"))),"",INDIRECT(CONCATENATE($B253,"!O20"))) ->  | R253: =IF(ISERROR(INDIRECT(CONCATENATE($B253,"!O21"))),"",INDIRECT(CONCATENATE($B253,"!O21"))) ->  | T253: =IF(ISERROR(INDIRECT(CONCATENATE($B253,"!P18"))),"",INDIRECT(CONCATENATE($B253,"!P18"))) ->  | U253: =IF(ISERROR(INDIRECT(CONCATENATE($B253,"!P19"))),"",INDIRECT(CONCATENATE($B253,"!P19"))) ->  | V253: =IF(ISERROR(INDIRECT(CONCATENATE($B253,"!P20"))),"",INDIRECT(CONCATENATE($B253,"!P20"))) ->  | W253: =IF(ISERROR(INDIRECT(CONCATENATE($B253,"!P21"))),"",INDIRECT(CONCATENATE($B253,"!P21"))) ->  | Y253: =IF(ISERROR(INDIRECT(CONCATENATE($B253,"!Q18"))),"",INDIRECT(CONCATENATE($B253,"!Q18"))) ->  | Z253: =IF(ISERROR(INDIRECT(CONCATENATE($B253,"!Q19"))),"",INDIRECT(CONCATENATE($B253,"!Q19"))) ->  | AA253: =IF(ISERROR(INDIRECT(CONCATENATE($B253,"!Q20"))),"",INDIRECT(CONCATENATE($B253,"!Q20"))) ->  | AB253: =IF(ISERROR(INDIRECT(CONCATENATE($B253,"!Q21"))),"",INDIRECT(CONCATENATE($B253,"!Q1"))) -> 
E254: =IF(ISERROR(INDIRECT(CONCATENATE($B254,"!M18"))),"",INDIRECT(CONCATENATE($B254,"!M18"))) ->  | F254: =IF(ISERROR(INDIRECT(CONCATENATE($B254,"!M19"))),"",INDIRECT(CONCATENATE($B254,"!M19"))) ->  | G254: =IF(ISERROR(INDIRECT(CONCATENATE($B254,"!M20"))),"",INDIRECT(CONCATENATE($B254,"!M20"))) ->  | H254: =IF(ISERROR(INDIRECT(CONCATENATE($B254,"!M21"))),"",INDIRECT(CONCATENATE($B254,"!M21"))) ->  | J254: =IF(ISERROR(INDIRECT(CONCATENATE($B254,"!N18"))),"",INDIRECT(CONCATENATE($B254,"!N18"))) ->  | K254: =IF(ISERROR(INDIRECT(CONCATENATE($B254,"!N19"))),"",INDIRECT(CONCATENATE($B254,"!N19"))) ->  | L254: =IF(ISERROR(INDIRECT(CONCATENATE($B254,"!N20"))),"",INDIRECT(CONCATENATE($B254,"!N20"))) ->  | M254: =IF(ISERROR(INDIRECT(CONCATENATE($B254,"!N21"))),"",INDIRECT(CONCATENATE($B254,"!N21"))) ->  | O254: =IF(ISERROR(INDIRECT(CONCATENATE($B254,"!O18"))),"",INDIRECT(CONCATENATE($B254,"!O18"))) ->  | P254: =IF(ISERROR(INDIRECT(CONCATENATE($B254,"!O19"))),"",INDIRECT(CONCATENATE($B254,"!O19"))) ->  | Q254: =IF(ISERROR(INDIRECT(CONCATENATE($B254,"!O20"))),"",INDIRECT(CONCATENATE($B254,"!O20"))) ->  | R254: =IF(ISERROR(INDIRECT(CONCATENATE($B254,"!O21"))),"",INDIRECT(CONCATENATE($B254,"!O21"))) ->  | T254: =IF(ISERROR(INDIRECT(CONCATENATE($B254,"!P18"))),"",INDIRECT(CONCATENATE($B254,"!P18"))) ->  | U254: =IF(ISERROR(INDIRECT(CONCATENATE($B254,"!P19"))),"",INDIRECT(CONCATENATE($B254,"!P19"))) ->  | V254: =IF(ISERROR(INDIRECT(CONCATENATE($B254,"!P20"))),"",INDIRECT(CONCATENATE($B254,"!P20"))) ->  | W254: =IF(ISERROR(INDIRECT(CONCATENATE($B254,"!P21"))),"",INDIRECT(CONCATENATE($B254,"!P21"))) ->  | Y254: =IF(ISERROR(INDIRECT(CONCATENATE($B254,"!Q18"))),"",INDIRECT(CONCATENATE($B254,"!Q18"))) ->  | Z254: =IF(ISERROR(INDIRECT(CONCATENATE($B254,"!Q19"))),"",INDIRECT(CONCATENATE($B254,"!Q19"))) ->  | AA254: =IF(ISERROR(INDIRECT(CONCATENATE($B254,"!Q20"))),"",INDIRECT(CONCATENATE($B254,"!Q20"))) ->  | AB254: =IF(ISERROR(INDIRECT(CONCATENATE($B254,"!Q21"))),"",INDIRECT(CONCATENATE($B254,"!Q1"))) -> 
E255: =IF(ISERROR(INDIRECT(CONCATENATE($B255,"!M18"))),"",INDIRECT(CONCATENATE($B255,"!M18"))) ->  | F255: =IF(ISERROR(INDIRECT(CONCATENATE($B255,"!M19"))),"",INDIRECT(CONCATENATE($B255,"!M19"))) ->  | G255: =IF(ISERROR(INDIRECT(CONCATENATE($B255,"!M20"))),"",INDIRECT(CONCATENATE($B255,"!M20"))) ->  | H255: =IF(ISERROR(INDIRECT(CONCATENATE($B255,"!M21"))),"",INDIRECT(CONCATENATE($B255,"!M21"))) ->  | J255: =IF(ISERROR(INDIRECT(CONCATENATE($B255,"!N18"))),"",INDIRECT(CONCATENATE($B255,"!N18"))) ->  | K255: =IF(ISERROR(INDIRECT(CONCATENATE($B255,"!N19"))),"",INDIRECT(CONCATENATE($B255,"!N19"))) ->  | L255: =IF(ISERROR(INDIRECT(CONCATENATE($B255,"!N20"))),"",INDIRECT(CONCATENATE($B255,"!N20"))) ->  | M255: =IF(ISERROR(INDIRECT(CONCATENATE($B255,"!N21"))),"",INDIRECT(CONCATENATE($B255,"!N21"))) ->  | O255: =IF(ISERROR(INDIRECT(CONCATENATE($B255,"!O18"))),"",INDIRECT(CONCATENATE($B255,"!O18"))) ->  | P255: =IF(ISERROR(INDIRECT(CONCATENATE($B255,"!O19"))),"",INDIRECT(CONCATENATE($B255,"!O19"))) ->  | Q255: =IF(ISERROR(INDIRECT(CONCATENATE($B255,"!O20"))),"",INDIRECT(CONCATENATE($B255,"!O20"))) ->  | R255: =IF(ISERROR(INDIRECT(CONCATENATE($B255,"!O21"))),"",INDIRECT(CONCATENATE($B255,"!O21"))) ->  | T255: =IF(ISERROR(INDIRECT(CONCATENATE($B255,"!P18"))),"",INDIRECT(CONCATENATE($B255,"!P18"))) ->  | U255: =IF(ISERROR(INDIRECT(CONCATENATE($B255,"!P19"))),"",INDIRECT(CONCATENATE($B255,"!P19"))) ->  | V255: =IF(ISERROR(INDIRECT(CONCATENATE($B255,"!P20"))),"",INDIRECT(CONCATENATE($B255,"!P20"))) ->  | W255: =IF(ISERROR(INDIRECT(CONCATENATE($B255,"!P21"))),"",INDIRECT(CONCATENATE($B255,"!P21"))) ->  | Y255: =IF(ISERROR(INDIRECT(CONCATENATE($B255,"!Q18"))),"",INDIRECT(CONCATENATE($B255,"!Q18"))) ->  | Z255: =IF(ISERROR(INDIRECT(CONCATENATE($B255,"!Q19"))),"",INDIRECT(CONCATENATE($B255,"!Q19"))) ->  | AA255: =IF(ISERROR(INDIRECT(CONCATENATE($B255,"!Q20"))),"",INDIRECT(CONCATENATE($B255,"!Q20"))) ->  | AB255: =IF(ISERROR(INDIRECT(CONCATENATE($B255,"!Q21"))),"",INDIRECT(CONCATENATE($B255,"!Q1"))) -> 
E256: =IF(ISERROR(INDIRECT(CONCATENATE($B256,"!M18"))),"",INDIRECT(CONCATENATE($B256,"!M18"))) ->  | F256: =IF(ISERROR(INDIRECT(CONCATENATE($B256,"!M19"))),"",INDIRECT(CONCATENATE($B256,"!M19"))) ->  | G256: =IF(ISERROR(INDIRECT(CONCATENATE($B256,"!M20"))),"",INDIRECT(CONCATENATE($B256,"!M20"))) ->  | H256: =IF(ISERROR(INDIRECT(CONCATENATE($B256,"!M21"))),"",INDIRECT(CONCATENATE($B256,"!M21"))) ->  | J256: =IF(ISERROR(INDIRECT(CONCATENATE($B256,"!N18"))),"",INDIRECT(CONCATENATE($B256,"!N18"))) ->  | K256: =IF(ISERROR(INDIRECT(CONCATENATE($B256,"!N19"))),"",INDIRECT(CONCATENATE($B256,"!N19"))) ->  | L256: =IF(ISERROR(INDIRECT(CONCATENATE($B256,"!N20"))),"",INDIRECT(CONCATENATE($B256,"!N20"))) ->  | M256: =IF(ISERROR(INDIRECT(CONCATENATE($B256,"!N21"))),"",INDIRECT(CONCATENATE($B256,"!N21"))) ->  | O256: =IF(ISERROR(INDIRECT(CONCATENATE($B256,"!O18"))),"",INDIRECT(CONCATENATE($B256,"!O18"))) ->  | P256: =IF(ISERROR(INDIRECT(CONCATENATE($B256,"!O19"))),"",INDIRECT(CONCATENATE($B256,"!O19"))) ->  | Q256: =IF(ISERROR(INDIRECT(CONCATENATE($B256,"!O20"))),"",INDIRECT(CONCATENATE($B256,"!O20"))) ->  | R256: =IF(ISERROR(INDIRECT(CONCATENATE($B256,"!O21"))),"",INDIRECT(CONCATENATE($B256,"!O21"))) ->  | T256: =IF(ISERROR(INDIRECT(CONCATENATE($B256,"!P18"))),"",INDIRECT(CONCATENATE($B256,"!P18"))) ->  | U256: =IF(ISERROR(INDIRECT(CONCATENATE($B256,"!P19"))),"",INDIRECT(CONCATENATE($B256,"!P19"))) ->  | V256: =IF(ISERROR(INDIRECT(CONCATENATE($B256,"!P20"))),"",INDIRECT(CONCATENATE($B256,"!P20"))) ->  | W256: =IF(ISERROR(INDIRECT(CONCATENATE($B256,"!P21"))),"",INDIRECT(CONCATENATE($B256,"!P21"))) ->  | Y256: =IF(ISERROR(INDIRECT(CONCATENATE($B256,"!Q18"))),"",INDIRECT(CONCATENATE($B256,"!Q18"))) ->  | Z256: =IF(ISERROR(INDIRECT(CONCATENATE($B256,"!Q19"))),"",INDIRECT(CONCATENATE($B256,"!Q19"))) ->  | AA256: =IF(ISERROR(INDIRECT(CONCATENATE($B256,"!Q20"))),"",INDIRECT(CONCATENATE($B256,"!Q20"))) ->  | AB256: =IF(ISERROR(INDIRECT(CONCATENATE($B256,"!Q21"))),"",INDIRECT(CONCATENATE($B256,"!Q1"))) -> 
E257: =IF(ISERROR(INDIRECT(CONCATENATE($B257,"!M18"))),"",INDIRECT(CONCATENATE($B257,"!M18"))) ->  | F257: =IF(ISERROR(INDIRECT(CONCATENATE($B257,"!M19"))),"",INDIRECT(CONCATENATE($B257,"!M19"))) ->  | G257: =IF(ISERROR(INDIRECT(CONCATENATE($B257,"!M20"))),"",INDIRECT(CONCATENATE($B257,"!M20"))) ->  | H257: =IF(ISERROR(INDIRECT(CONCATENATE($B257,"!M21"))),"",INDIRECT(CONCATENATE($B257,"!M21"))) ->  | J257: =IF(ISERROR(INDIRECT(CONCATENATE($B257,"!N18"))),"",INDIRECT(CONCATENATE($B257,"!N18"))) ->  | K257: =IF(ISERROR(INDIRECT(CONCATENATE($B257,"!N19"))),"",INDIRECT(CONCATENATE($B257,"!N19"))) ->  | L257: =IF(ISERROR(INDIRECT(CONCATENATE($B257,"!N20"))),"",INDIRECT(CONCATENATE($B257,"!N20"))) ->  | M257: =IF(ISERROR(INDIRECT(CONCATENATE($B257,"!N21"))),"",INDIRECT(CONCATENATE($B257,"!N21"))) ->  | O257: =IF(ISERROR(INDIRECT(CONCATENATE($B257,"!O18"))),"",INDIRECT(CONCATENATE($B257,"!O18"))) ->  | P257: =IF(ISERROR(INDIRECT(CONCATENATE($B257,"!O19"))),"",INDIRECT(CONCATENATE($B257,"!O19"))) ->  | Q257: =IF(ISERROR(INDIRECT(CONCATENATE($B257,"!O20"))),"",INDIRECT(CONCATENATE($B257,"!O20"))) ->  | R257: =IF(ISERROR(INDIRECT(CONCATENATE($B257,"!O21"))),"",INDIRECT(CONCATENATE($B257,"!O21"))) ->  | T257: =IF(ISERROR(INDIRECT(CONCATENATE($B257,"!P18"))),"",INDIRECT(CONCATENATE($B257,"!P18"))) ->  | U257: =IF(ISERROR(INDIRECT(CONCATENATE($B257,"!P19"))),"",INDIRECT(CONCATENATE($B257,"!P19"))) ->  | V257: =IF(ISERROR(INDIRECT(CONCATENATE($B257,"!P20"))),"",INDIRECT(CONCATENATE($B257,"!P20"))) ->  | W257: =IF(ISERROR(INDIRECT(CONCATENATE($B257,"!P21"))),"",INDIRECT(CONCATENATE($B257,"!P21"))) ->  | Y257: =IF(ISERROR(INDIRECT(CONCATENATE($B257,"!Q18"))),"",INDIRECT(CONCATENATE($B257,"!Q18"))) ->  | Z257: =IF(ISERROR(INDIRECT(CONCATENATE($B257,"!Q19"))),"",INDIRECT(CONCATENATE($B257,"!Q19"))) ->  | AA257: =IF(ISERROR(INDIRECT(CONCATENATE($B257,"!Q20"))),"",INDIRECT(CONCATENATE($B257,"!Q20"))) ->  | AB257: =IF(ISERROR(INDIRECT(CONCATENATE($B257,"!Q21"))),"",INDIRECT(CONCATENATE($B257,"!Q1"))) -> 
A297: RURAL | D297: Poorest | I297: Poor | N297: Middle | S297: Rich | X297: Richest
D298: Improved | E298: Basic | F298: Limited | G298: Unimproved | H298: Surface water | I298: Improved | J298: Basic | K298: Limited | L298: Unimproved | M298: Surface water | N298: Improved | O298: Basic | P298: Limited | Q298: Unimproved | R298: Surface water | S298: Improved | T298: Basic | U298: Limited | V298: Unimproved | W298: Surface water | X298: Improved | Y298: Basic | Z298: Limited | AA298: Unimproved | AB298: Surface water
A299: Forecast period: | C299: 2000 | D299: =IF((D301+H301)>100,D301*100/(D301+H301),D301) -> 43.69603785 | E299: =D299*AVERAGEIF(E305:E316,">0")/100 -> 40.23093979 | F299: =D299*(100-AVERAGEIF(E305:E316,">0"))/100 -> 3.465098054 | G299: =100-(E299+F299+H299) -> 52.75321032 | H299: =IF((D301+H301)>100,H301*100/(D301+H301),H301) -> 3.550751831 | I299: =IF((I301+M301)>100,I301*100/(I301+M301),I301) -> 44.78539533 | J299: =I299*AVERAGEIF(J305:J316,">0")/100 -> 41.02278359 | K299: =I299*(100-AVERAGEIF(J305:J316,">0"))/100 -> 3.762611739 | L299: =100-(J299+K299+M299) -> 51.451484 | M299: =IF((I301+M301)>100,M301*100/(I301+M301),M301) -> 3.763120674 | N299: =IF((N301+R301)>100,N301*100/(N301+R301),N301) -> 48.1669753 | O299: =N299*AVERAGEIF(O305:O316,">0")/100 -> 44.65038743 | P299: =N299*(100-AVERAGEIF(O305:O316,">0"))/100 -> 3.516587867 | Q299: =100-(O299+P299+R299) -> 48.65190405 | R299: =IF((N301+R301)>100,R301*100/(N301+R301),R301) -> 3.181120653 | S299: =IF((S301+W301)>100,S301*100/(S301+W301),S301) -> 52.48101348 | T299: =S299*AVERAGEIF(T305:T316,">0")/100 -> 47.90810617 | U299: =S299*(100-AVERAGEIF(T305:T316,">0"))/100 -> 4.572907306 | V299: =100-(T299+U299+W299) -> 43.51949959 | W299: =IF((S301+W301)>100,W301*100/(S301+W301),W301) -> 3.999486932 | X299: =IF((X301+AB301)>100,X301*100/(X301+AB301),X301) -> 52.07014857 | Y299: =X299*AVERAGEIF(Y305:Y316,">0")/100 -> 47.48135709 | Z299: =X299*(100-AVERAGEIF(Y305:Y316,">0"))/100 -> 4.588791473 | AA299: =100-(Y299+Z299+AB299) -> 44.15415458 | AB299: =IF((X301+AB301)>100,AB301*100/(X301+AB301),AB301) -> 3.775696848
C300: 2020 | D300: =IF((D302+H302)>100,D302*100/(D302+H302),D302) -> 47.63807485 | E300: =D300*AVERAGEIF(E305:E316,">0")/100 -> 43.86037306 | F300: =D300*(100-AVERAGEIF(E305:E316,">0"))/100 -> 3.777701792 | G300: =100-(E300+F300+H300) -> 52.04943599 | H300: =IF((D302+H302)>100,H302*100/(D302+H302),H302) -> 0.3124891561 | I300: =IF((I302+M302)>100,I302*100/(I302+M302),I302) -> 54.56349907 | J300: =I300*AVERAGEIF(J305:J316,">0")/100 -> 49.9793872 | K300: =I300*(100-AVERAGEIF(J305:J316,">0"))/100 -> 4.584111866 | L300: =100-(J300+K300+M300) -> 44.78306581 | M300: =IF((I302+M302)>100,M302*100/(I302+M302),M302) -> 0.6534351183 | N300: =IF((N302+R302)>100,N302*100/(N302+R302),N302) -> 59.97144735 | O300: =N300*AVERAGEIF(O305:O316,">0")/100 -> 55.59303532 | P300: =N300*(100-AVERAGEIF(O305:O316,">0"))/100 -> 4.378412031 | Q300: =100-(O300+P300+R300) -> 38.21902761 | R300: =IF((N302+R302)>100,R302*100/(N302+R302),R302) -> 1.809525042 | S300: =IF((S302+W302)>100,S302*100/(S302+W302),S302) -> 60.2018626 | T300: =S300*AVERAGEIF(T305:T316,">0")/100 -> 54.9562029 | U300: =S300*(100-AVERAGEIF(T305:T316,">0"))/100 -> 5.245659698 | V300: =100-(T300+U300+W300) -> 39.22908234 | W300: =IF((S302+W302)>100,W302*100/(S302+W302),W302) -> 0.5690550577 | X300: =IF((X302+AB302)>100,X302*100/(X302+AB302),X302) -> 72.08120236 | Y300: =X300*AVERAGEIF(Y305:Y316,">0")/100 -> 65.72889464 | Z300: =X300*(100-AVERAGEIF(Y305:Y316,">0"))/100 -> 6.352307721 | AA300: =100-(Y300+Z300+AB300) -> 27.36115588 | AB300: =IF((X302+AB302)>100,AB302*100/(X302+AB302),AB302) -> 0.5576417564
A301: Regression period: | C301: =MinRegYear(C299,C305:C316) -> 2000 | D301: =IF(MAX(C305:C316)-MIN(C305:C316)<5,AVERAGEIF(C305:C316,">0",D305:D316), IF(FORECAST($C301,D$305:D$316,$C$305:$C$316)<0,0, IF(FORECAST($C301,D$305:D$316,$C$305:$C$316)>100,100, FORECAST($C301,D$305:D$316,$C$305:$C$316)))) -> 43.69603785 | H301: =IF(MAX(C305:C316)-MIN(C305:C316)<5,AVERAGEIF(C305:C316,">0",H305:H316), IF(FORECAST($C301,H$305:H$316,$C$305:$C$316)<0,0, IF(FORECAST($C301,H$305:H$316,$C$305:$C$316)>100,100, FORECAST($C301,H$305:H$316,$C$305:$C$316)))) -> 3.550751831 | I301: =IF(MAX(C305:C316)-MIN(C305:C316)<5,AVERAGEIF(C305:C316,">0",I305:I316), IF(FORECAST($C301,I$305:I$316,$C$305:$C$316)<0,0, IF(FORECAST($C301,I$305:I$316,$C$305:$C$316)>100,100, FORECAST($C301,I$305:I$316,$C$305:$C$316)))) -> 44.78539533 | M301: =IF(MAX(C305:C316)-MIN(C305:C316)<5,AVERAGEIF(C305:C316,">0",M305:M316), IF(FORECAST($C301,M$305:M$316,$C$305:$C$316)<0,0, IF(FORECAST($C301,M$305:M$316,$C$305:$C$316)>100,100, FORECAST($C301,M$305:M$316,$C$305:$C$316)))) -> 3.763120674 | N301: =IF(MAX(C305:C316)-MIN(C305:C316)<5,AVERAGEIF(C305:C316,">0",N305:N316), IF(FORECAST($C301,N$305:N$316,$C$305:$C$316)<0,0, IF(FORECAST($C301,N$305:N$316,$C$305:$C$316)>100,100, FORECAST($C301,N$305:N$316,$C$305:$C$316)))) -> 48.1669753 | R301: =IF(MAX(C305:C316)-MIN(C305:C316)<5,AVERAGEIF(C305:C316,">0",R305:R316), IF(FORECAST($C301,R$305:R$316,$C$305:$C$316)<0,0, IF(FORECAST($C301,R$305:R$316,$C$305:$C$316)>100,100, FORECAST($C301,R$305:R$316,$C$305:$C$316)))) -> 3.181120653 | S301: =IF(MAX(C305:C316)-MIN(C305:C316)<5,AVERAGEIF(C305:C316,">0",S305:S316), IF(FORECAST($C301,S$305:S$316,$C$305:$C$316)<0,0, IF(FORECAST($C301,S$305:S$316,$C$305:$C$316)>100,100, FORECAST($C301,S$305:S$316,$C$305:$C$316)))) -> 52.48101348 | W301: =IF(MAX(C305:C316)-MIN(C305:C316)<5,AVERAGEIF(C305:C316,">0",W305:W316), IF(FORECAST($C301,W$305:W$316,$C$305:$C$316)<0,0, IF(FORECAST($C301,W$305:W$316,$C$305:$C$316)>100,100, FORECAST($C301,W$305:W$316,$C$305:$C$316)))) -> 3.999486932 | X301: =IF(MAX(C305:C316)-MIN(C305:C316)<5,AVERAGEIF(C305:C316,">0",X305:X316), IF(FORECAST($C301,X$305:X$316,$C$305:$C$316)<0,0, IF(FORECAST($C301,X$305:X$316,$C$305:$C$316)>100,100, FORECAST($C301,X$305:X$316,$C$305:$C$316)))) -> 52.07014857 | AB301: =IF(MAX(C305:C316)-MIN(C305:C316)<5,AVERAGEIF(C305:C316,">0",AB305:AB316), IF(FORECAST($C301,AB$305:AB$316,$C$305:$C$316)<0,0, IF(FORECAST($C301,AB$305:AB$316,$C$305:$C$316)>100,100, FORECAST($C301,AB$305:AB$316,$C$305:$C$316)))) -> 3.775696848
C302: =MaxRegYear(C300,C305:C316) -> 2020 | D302: =IF(MAX(C305:C316)-MIN(C305:C316)<5,AVERAGEIF(C305:C316,">0",D305:D316), IF(FORECAST($C302,D$305:D$316,$C$305:$C$316)<0,0, IF(FORECAST($C302,D$305:D$316,$C$305:$C$316)>100,100, FORECAST($C302,D$305:D$316,$C$305:$C$316)))) -> 47.63807485 | H302: =IF(MAX(C305:C316)-MIN(C305:C316)<5,AVERAGEIF(C305:C316,">0",H305:H316), IF(FORECAST($C302,H$305:H$316,$C$305:$C$316)<0,0, IF(FORECAST($C302,H$305:H$316,$C$305:$C$316)>100,100, FORECAST($C302,H$305:H$316,$C$305:$C$316)))) -> 0.3124891561 | I302: =IF(MAX(C305:C316)-MIN(C305:C316)<5,AVERAGEIF(C305:C316,">0",I305:I316), IF(FORECAST($C302,I$305:I$316,$C$305:$C$316)<0,0, IF(FORECAST($C302,I$305:I$316,$C$305:$C$316)>100,100, FORECAST($C302,I$305:I$316,$C$305:$C$316)))) -> 54.56349907 | M302: =IF(MAX(C305:C316)-MIN(C305:C316)<5,AVERAGEIF(C305:C316,">0",M305:M316), IF(FORECAST($C302,M$305:M$316,$C$305:$C$316)<0,0, IF(FORECAST($C302,M$305:M$316,$C$305:$C$316)>100,100, FORECAST($C302,M$305:M$316,$C$305:$C$316)))) -> 0.6534351183 | N302: =IF(MAX(C305:C316)-MIN(C305:C316)<5,AVERAGEIF(C305:C316,">0",N305:N316), IF(FORECAST($C302,N$305:N$316,$C$305:$C$316)<0,0, IF(FORECAST($C302,N$305:N$316,$C$305:$C$316)>100,100, FORECAST($C302,N$305:N$316,$C$305:$C$316)))) -> 59.97144735 | R302: =IF(MAX(C305:C316)-MIN(C305:C316)<5,AVERAGEIF(C305:C316,">0",R305:R316), IF(FORECAST($C302,R$305:R$316,$C$305:$C$316)<0,0, IF(FORECAST($C302,R$305:R$316,$C$305:$C$316)>100,100, FORECAST($C302,R$305:R$316,$C$305:$C$316)))) -> 1.809525042 | S302: =IF(MAX(C305:C316)-MIN(C305:C316)<5,AVERAGEIF(C305:C316,">0",S305:S316), IF(FORECAST($C302,S$305:S$316,$C$305:$C$316)<0,0, IF(FORECAST($C302,S$305:S$316,$C$305:$C$316)>100,100, FORECAST($C302,S$305:S$316,$C$305:$C$316)))) -> 60.2018626 | W302: =IF(MAX(C305:C316)-MIN(C305:C316)<5,AVERAGEIF(C305:C316,">0",W305:W316), IF(FORECAST($C302,W$305:W$316,$C$305:$C$316)<0,0, IF(FORECAST($C302,W$305:W$316,$C$305:$C$316)>100,100, FORECAST($C302,W$305:W$316,$C$305:$C$316)))) -> 0.5690550577 | X302: =IF(MAX(C305:C316)-MIN(C305:C316)<5,AVERAGEIF(C305:C316,">0",X305:X316), IF(FORECAST($C302,X$305:X$316,$C$305:$C$316)<0,0, IF(FORECAST($C302,X$305:X$316,$C$305:$C$316)>100,100, FORECAST($C302,X$305:X$316,$C$305:$C$316)))) -> 72.08120236 | AB302: =IF(MAX(C305:C316)-MIN(C305:C316)<5,AVERAGEIF(C305:C316,">0",AB305:AB316), IF(FORECAST($C302,AB$305:AB$316,$C$305:$C$316)<0,0, IF(FORECAST($C302,AB$305:AB$316,$C$305:$C$316)>100,100, FORECAST($C302,AB$305:AB$316,$C$305:$C$316)))) -> 0.5576417564
B304: Survey | C304: Year | D304: Improved | E304: % Improved < = 30min | H304: Surface water | I304: Improved | J304: % Improved < = 30min | M304: Surface water | N304: Improved | O304: % Improved < = 30min | R304: Surface water | S304: Improved | T304: % Improved < = 30min | W304: Surface water | X304: Improved | Y304: % Improved < = 30min | AB304: Surface water
B305: MICS00 | C305: 2000 | D305: =IF(ISERROR(INDIRECT(CONCATENATE($B305,"!M16"))),"",INDIRECT(CONCATENATE($B305,"!M16"))) -> 40.9425669 | E305: =IF(ISERROR(INDIRECT(CONCATENATE($B305,"!M23"))),"",INDIRECT(CONCATENATE($B305,"!M23"))) -> 95.41977228 | H305: =IF(ISERROR(INDIRECT(CONCATENATE($B305,"!M21"))),"",INDIRECT(CONCATENATE($B305,"!M21"))) -> 4.59082054 | I305: =IF(ISERROR(INDIRECT(CONCATENATE($B305,"!N16"))),"",INDIRECT(CONCATENATE($B305,"!N16"))) -> 47.20160942 | J305: =IF(ISERROR(INDIRECT(CONCATENATE($B305,"!N23"))),"",INDIRECT(CONCATENATE($B305,"!N23"))) -> 96.09882672 | M305: =IF(ISERROR(INDIRECT(CONCATENATE($B305,"!N21"))),"",INDIRECT(CONCATENATE($B305,"!N21"))) -> 4.113779539 | N305: =IF(ISERROR(INDIRECT(CONCATENATE($B305,"!O16"))),"",INDIRECT(CONCATENATE($B305,"!O16"))) -> 53.09039484 | O305: =IF(ISERROR(INDIRECT(CONCATENATE($B305,"!O23"))),"",INDIRECT(CONCATENATE($B305,"!O23"))) -> 97.88787095 | R305: =IF(ISERROR(INDIRECT(CONCATENATE($B305,"!O21"))),"",INDIRECT(CONCATENATE($B305,"!O21"))) -> 2.543504058 | S305: =IF(ISERROR(INDIRECT(CONCATENATE($B305,"!P16"))),"",INDIRECT(CONCATENATE($B305,"!P16"))) -> 52.63861296 | T305: =IF(ISERROR(INDIRECT(CONCATENATE($B305,"!P23"))),"",INDIRECT(CONCATENATE($B305,"!P23"))) -> 95.99755016 | W305: =IF(ISERROR(INDIRECT(CONCATENATE($B305,"!P21"))),"",INDIRECT(CONCATENATE($B305,"!P21"))) -> 4.201890653 | X305: =IF(ISERROR(INDIRECT(CONCATENATE($B305,"!Q16"))),"",INDIRECT(CONCATENATE($B305,"!Q16"))) -> 52.74983358 | Y305: =IF(ISERROR(INDIRECT(CONCATENATE($B305,"!Q23"))),"",INDIRECT(CONCATENATE($B305,"!Q23"))) -> 96.13721621 | AB305: =IF(ISERROR(INDIRECT(CONCATENATE($B305,"!Q221"))),"",INDIRECT(CONCATENATE($B305,"!Q21"))) -> 4.441413922
B306: MICS06 | C306: 2006 | D306: 49.86848619 | E306: 87.4549056 | H306: 0.5348684148 | I306: 42.04851976 | J306: 82.98451288 | M306: 0.7638671615 | N306: 42.24905972 | O306: 92.26620248 | R306: 2.332102187 | S306: 52.36383872 | T306: 87.67475826 | W306: 1.818790317 | X306: 51.35097833 | Y306: 82.4811778 | AB306: 1.181801653
B307: MICS10 | C307: 2010 | D307: 44.30320996 | E307: 90.55708777 | H307: 3.402264305 | I307: 50.44736485 | J307: 93.74086345 | M307: 4.889578727 | N307: 53.74431143 | O307: 93.68792446 | R307: 5.429517413 | S307: 54.18235279 | T307: 94.41474859 | W307: 3.852673673 | X307: 65.61653534 | Y307: 96.13271963 | AB307: 3.848545935
B308: MICS14 | C308: 2014 | D308: 46.4 | E308: 94.2 | H308: 0 | I308: 55.8 | J308: 94.4 | M308: 0.8 | N308: 62.9 | O308: 93.8 | R308: 0.5 | S308: 67.5 | T308: 96.5 | W308: 1 | X308: 74.6 | Y308: 95.1 | AB308: 0.2
B309: MICS19 | C309: 2019 | D309: 46.62391684 | E309: 92.71820857 | H309: 1.292062342 | I309: 52.38583677 | J309: 90.76866816 | M309: 0.6296483305 | N309: 57.77206703 | O309: 85.85386369 | R309: 1.740070358 | S309: 54.63634328 | T309: 81.84568884 | W309: 0.7195219265 | X309: 65.06047739 | Y309: 86.08533364 | AB309: 1.322487756
B318: =CONCATENATE("Rural use of drinking water sources, ",C299,"–",C300) -> Rural use of drinking water sources, 2000–2020 | S318: Data points used for regression

Sheet Sanitation
B4: Summary of trends in use of sanitation facilities by wealth quintile (%)
B5: =IF(ISERROR(INDIRECT(CONCATENATE($B105,"!A2"))),"",INDIRECT(CONCATENATE($B105,"!A2"))) -> Guinea-Bissau
B7: =B118 -> National use of sanitation facilities, 2000–2020 | J7: =B218 -> Urban use of sanitation facilities, 2000–2020 | R7: =B318 -> Rural use of sanitation facilities, 2000–2020
B31: =IF(ISERROR(INDIRECT(CONCATENATE($B105,"!A2"))),"",INDIRECT(CONCATENATE($B105,"!A2"))) -> Guinea-Bissau | F31: Poorest | J31: Poor | N31: Middle | R31: Rich | V31: Richest
F32: Basic | G32: Limited | H32: Unimproved | I32: Open defecation | J32: Basic | K32: Limited | L32: Unimproved | M32: Open defecation | N32: Basic | O32: Limited | P32: Unimproved | Q32: Open defecation | R32: Basic | S32: Limited | T32: Unimproved | U32: Open defecation | V32: Basic | W32: Limited | X32: Unimproved | Y32: Open defecation
B33: NATIONAL | D33: Estimate | E33: =C99 -> 2000 | F33: =E99 -> 8.514522233 | G33: =F99 -> 5.403973271 | H33: 25.36476277 | I33: 60.71674173 | J33: =J99 -> 9.586181284 | K33: =K99 -> 5.382302334 | L33: 26.43755802 | M33: 58.59395836 | N33: =O99 -> 11.45754067 | O33: =P99 -> 6.409511029 | P33: 31.62691336 | Q33: 50.50603494 | R33: =T99 -> 11.59359831 | S33: =U99 -> 16.21918275 | T33: 56.11554364 | U33: 16.0716753 | V33: =Y99 -> 28.56767908 | W33: =Z99 -> 22.32884169 | X33: 48.01664753 | Y33: 1.086831701
E34: =C100 -> 2020 | F34: =E100 -> 4.503054372 | G34: 2.857986015 | H34: 55.94366292 | I34: 36.69529669 | J34: =J100 -> 7.870092339 | K34: 4.418778981 | L34: 76.5281976 | M34: 11.18293108 | N34: =O100 -> 12.98613564 | O34: 7.264628775 | P34: 79.74923558 | Q34: 0 | R34: =T100 -> 17.73911767 | S34: 24.81662582 | T34: 57.44425651 | U34: 0 | V34: =Y100 -> 46.36147374 | W34: 36.23668569 | X34: 17.40184057 | Y34: 0
B36: URBAN | D36: Estimate | E36: =C199 -> 2000 | F36: =E199 -> 20.65229614 | G36: =F199 -> 20.21714864 | H36: 43.95851797 | I36: 15.17203725 | J36: =J199 -> 13.3474821 | K36: =K199 -> 32.47827681 | L36: 50.63172728 | M36: 3.542513808 | N36: =O199 -> 17.38122707 | O36: =P199 -> 36.80036487 | P36: 45.31205803 | Q36: 0.5063500218 | R36: =T199 -> 25.06375454 | S36: =U199 -> 31.37952184 | T36: 42.19224823 | U36: 1.364475395 | V36: =Y199 -> 53.70707063 | W36: =Z199 -> 17.71767927 | X36: 27.88459236 | Y36: 0.6906577474
E37: =C200 -> 2020 | F37: =E200 -> 15.29845371 | G37: 14.9761126 | H37: 67.92938976 | I37: 1.796043927 | J37: =J200 -> 15.15470477 | K37: 36.87577123 | L37: 47.969524 | M37: 0 | N37: =O200 -> 19.20981875 | O37: 40.6719466 | P37: 39.95936369 | Q37: 0.1588709508 | R37: =T200 -> 35.90160195 | S37: 44.94837757 | T37: 19.15002049 | U37: 0 | V37: =Y200 -> 72.43367134 | W37: 23.89548605 | X37: 3.67084261 | Y37: 0
B39: RURAL | D39: Estimate | E39: =C299 -> 2000 | F39: =E299 -> 3.836237757 | G39: =F299 -> 3.063436922 | H39: 29.03781993 | I39: 64.06250539 | J39: =J299 -> 5.066158278 | K39: =K299 -> 2.522946595 | L39: 29.62771677 | M39: 62.78317836 | N39: =O299 -> 5.365664149 | O39: =P299 -> 2.598829235 | P39: 33.3714451 | Q39: 58.66406152 | R39: =T299 -> 6.273445949 | S39: =U299 -> 2.750418418 | T39: 35.17409102 | U39: 55.80204461 | V39: =Y299 -> 7.319336801 | W39: =Z299 -> 3.293668611 | X39: 47.40702737 | Y39: 41.97996722
E40: =C300 -> 2020 | F40: =E300 -> 2.278694973 | G40: 1.819657371 | H40: 50.57895182 | I40: 45.32269584 | J40: =J300 -> 4.158229023 | K40: 2.070797867 | L40: 67.92647105 | M40: 25.84450206 | N40: =O300 -> 4.980824855 | O40: 2.412434488 | P40: 82.90261101 | Q40: 9.70412965 | R40: =T300 -> 8.084530849 | S40: 3.544438372 | T40: 87.85605792 | U40: 0.5149728571 | V40: =Y300 -> 17.30855712 | W40: 7.788772787 | X40: 74.90267009 | Y40: 0
A97: NATIONAL | D97: Poorest | I97: Poor | N97: Middle | S97: Rich | X97: Richest
D98: Improved | E98: Basic | F98: Limited | G98: Unimproved | H98: Open defecation | I98: Improved | J98: Basic | K98: Limited | L98: Unimproved | M98: Open defecation | N98: Improved | O98: Basic | P98: Limited | Q98: Unimproved | R98: Open defecation | S98: Improved | T98: Basic | U98: Limited | V98: Unimproved | W98: Open defecation | X98: Improved | Y98: Basic | Z98: Limited | AA98: Unimproved | AB98: Open defecation
A99: Forecast period: | C99: 2000 | D99: =IF((D101+H101)>100,D101*100/(D101+H101),D101) -> 13.9184955 | E99: =D99*AVERAGEIF(E105:E116,">0")/100 -> 8.514522233 | F99: =D99*(100-AVERAGEIF(E105:E116,">0"))/100 -> 5.403973271 | G99: =100-(E99+F99+H99) -> 25.36476277 | H99: =IF((D101+H101)>100,H101*100/(D101+H101),H101) -> 60.71674173 | I99: =IF((I101+M101)>100,I101*100/(I101+M101),I101) -> 14.96848362 | J99: =I99*AVERAGEIF(J105:J116,">0")/100 -> 9.586181284 | K99: =I99*(100-AVERAGEIF(J105:J116,">0"))/100 -> 5.382302334 | L99: =100-(J99+K99+M99) -> 26.43755802 | M99: =IF((I101+M101)>100,M101*100/(I101+M101),M101) -> 58.59395836 | N99: =IF((N101+R101)>100,N101*100/(N101+R101),N101) -> 17.8670517 | O99: =N99*AVERAGEIF(O105:O116,">0")/100 -> 11.45754067 | P99: =N99*(100-AVERAGEIF(O105:O116,">0"))/100 -> 6.409511029 | Q99: =100-(O99+P99+R99) -> 31.62691336 | R99: =IF((N101+R101)>100,R101*100/(N101+R101),R101) -> 50.50603494 | S99: =IF((S101+W101)>100,S101*100/(S101+W101),S101) -> 27.81278106 | T99: =S99*AVERAGEIF(T105:T116,">0")/100 -> 11.59359831 | U99: =S99*(100-AVERAGEIF(T105:T116,">0"))/100 -> 16.21918275 | V99: =100-(T99+U99+W99) -> 56.11554364 | W99: =IF((S101+W101)>100,W101*100/(S101+W101),W101) -> 16.0716753 | X99: =IF((X101+AB101)>100,X101*100/(X101+AB101),X101) -> 50.89652076 | Y99: =X99*AVERAGEIF(Y105:Y116,">0")/100 -> 28.56767908 | Z99: =X99*(100-AVERAGEIF(Y105:Y116,">0"))/100 -> 22.32884169 | AA99: =100-(Y99+Z99+AB99) -> 48.01664753 | AB99: =IF((X101+AB101)>100,AB101*100/(X101+AB101),AB101) -> 1.086831701
C100: 2020 | D100: =IF((D102+H102)>100,D102*100/(D102+H102),D102) -> 7.361040386 | E100: =D100*AVERAGEIF(E105:E116,">0")/100 -> 4.503054372 | F100: =D100*(100-AVERAGEIF(E105:E116,">0"))/100 -> 2.857986015 | G100: =100-(E100+F100+H100) -> 55.94366292 | H100: =IF((D102+H102)>100,H102*100/(D102+H102),H102) -> 36.69529669 | I100: =IF((I102+M102)>100,I102*100/(I102+M102),I102) -> 12.28887132 | J100: =I100*AVERAGEIF(J105:J116,">0")/100 -> 7.870092339 | K100: =I100*(100-AVERAGEIF(J105:J116,">0"))/100 -> 4.418778981 | L100: =100-(J100+K100+M100) -> 76.5281976 | M100: =IF((I102+M102)>100,M102*100/(I102+M102),M102) -> 11.18293108 | N100: =IF((N102+R102)>100,N102*100/(N102+R102),N102) -> 20.25076442 | O100: =N100*AVERAGEIF(O105:O116,">0")/100 -> 12.98613564 | P100: =N100*(100-AVERAGEIF(O105:O116,">0"))/100 -> 7.264628775 | Q100: =100-(O100+P100+R100) -> 79.74923558 | R100: =IF((N102+R102)>100,R102*100/(N102+R102),R102) -> 0 | S100: =IF((S102+W102)>100,S102*100/(S102+W102),S102) -> 42.55574349 | T100: =S100*AVERAGEIF(T105:T116,">0")/100 -> 17.73911767 | U100: =S100*(100-AVERAGEIF(T105:T116,">0"))/100 -> 24.81662582 | V100: =100-(T100+U100+W100) -> 57.44425651 | W100: =IF((S102+W102)>100,W102*100/(S102+W102),W102) -> 0 | X100: =IF((X102+AB102)>100,X102*100/(X102+AB102),X102) -> 82.59815943 | Y100: =X100*AVERAGEIF(Y105:Y116,">0")/100 -> 46.36147374 | Z100: =X100*(100-AVERAGEIF(Y105:Y116,">0"))/100 -> 36.23668569 | AA100: =100-(Y100+Z100+AB100) -> 17.40184057 | AB100: =IF((X102+AB102)>100,AB102*100/(X102+AB102),AB102) -> 0
A101: Regression period: | C101: =MinRegYear(C99,C105:C116) -> 2000 | D101: =IF(MAX(C105:C116)-MIN(C105:C116)<5,AVERAGEIF(C105:C116,">0",D105:D116), IF(FORECAST($C101,D$105:D$116,$C$105:$C$116)<0,0, IF(FORECAST($C101,D$105:D$116,$C$105:$C$116)>100,100, FORECAST($C101,D$105:D$116,$C$105:$C$116)))) -> 13.9184955 | H101: =IF(MAX(C105:C116)-MIN(C105:C116)<5,AVERAGEIF(C105:C116,">0",H105:H116), IF(FORECAST($C101,H$105:H$116,$C$105:$C$116)<0,0, IF(FORECAST($C101,H$105:H$116,$C$105:$C$116)>100,100, FORECAST($C101,H$105:H$116,$C$105:$C$116)))) -> 60.71674173 | I101: =IF(MAX(C105:C116)-MIN(C105:C116)<5,AVERAGEIF(C105:C116,">0",I105:I116), IF(FORECAST($C101,I$105:I$116,$C$105:$C$116)<0,0, IF(FORECAST($C101,I$105:I$116,$C$105:$C$116)>100,100, FORECAST($C101,I$105:I$116,$C$105:$C$116)))) -> 14.96848362 | M101: =IF(MAX(C105:C116)-MIN(C105:C116)<5,AVERAGEIF(C105:C116,">0",M105:M116), IF(FORECAST($C101,M$105:M$116,$C$105:$C$116)<0,0, IF(FORECAST($C101,M$105:M$116,$C$105:$C$116)>100,100, FORECAST($C101,M$105:M$116,$C$105:$C$116)))) -> 58.59395836 | N101: =IF(MAX(C105:C116)-MIN(C105:C116)<5,AVERAGEIF(C105:C116,">0",N105:N116), IF(FORECAST($C101,N$105:N$116,$C$105:$C$116)<0,0, IF(FORECAST($C101,N$105:N$116,$C$105:$C$116)>100,100, FORECAST($C101,N$105:N$116,$C$105:$C$116)))) -> 17.8670517 | R101: =IF(MAX(C105:C116)-MIN(C105:C116)<5,AVERAGEIF(C105:C116,">0",R105:R116), IF(FORECAST($C101,R$105:R$116,$C$105:$C$116)<0,0, IF(FORECAST($C101,R$105:R$116,$C$105:$C$116)>100,100, FORECAST($C101,R$105:R$116,$C$105:$C$116)))) -> 50.50603494 | S101: =IF(MAX(C105:C116)-MIN(C105:C116)<5,AVERAGEIF(C105:C116,">0",S105:S116), IF(FORECAST($C101,S$105:S$116,$C$105:$C$116)<0,0, IF(FORECAST($C101,S$105:S$116,$C$105:$C$116)>100,100, FORECAST($C101,S$105:S$116,$C$105:$C$116)))) -> 27.81278106 | W101: =IF(MAX(C105:C116)-MIN(C105:C116)<5,AVERAGEIF(C105:C116,">0",W105:W116), IF(FORECAST($C101,W$105:W$116,$C$105:$C$116)<0,0, IF(FORECAST($C101,W$105:W$116,$C$105:$C$116)>100,100, FORECAST($C101,W$105:W$116,$C$105:$C$116)))) -> 16.0716753 | X101: =IF(MAX(C105:C116)-MIN(C105:C116)<5,AVERAGEIF(C105:C116,">0",X105:X116), IF(FORECAST($C101,X$105:X$116,$C$105:$C$116)<0,0, IF(FORECAST($C101,X$105:X$116,$C$105:$C$116)>100,100, FORECAST($C101,X$105:X$116,$C$105:$C$116)))) -> 50.89652076 | AB101: =IF(MAX(C105:C116)-MIN(C105:C116)<5,AVERAGEIF(C105:C116,">0",AB105:AB116), IF(FORECAST($C101,AB$105:AB$116,$C$105:$C$116)<0,0, IF(FORECAST($C101,AB$105:AB$116,$C$105:$C$116)>100,100, FORECAST($C101,AB$105:AB$116,$C$105:$C$116)))) -> 1.086831701
C102: =MaxRegYear(C100,C105:C116) -> 2020 | D102: =IF(MAX(C105:C116)-MIN(C105:C116)<5,AVERAGEIF(C105:C116,">0",D105:D116), IF(FORECAST($C102,D$105:D$116,$C$105:$C$116)<0,0, IF(FORECAST($C102,D$105:D$116,$C$105:$C$116)>100,100, FORECAST($C102,D$105:D$116,$C$105:$C$116)))) -> 7.361040386 | H102: =IF(MAX(C105:C116)-MIN(C105:C116)<5,AVERAGEIF(C105:C116,">0",H105:H116), IF(FORECAST($C102,H$105:H$116,$C$105:$C$116)<0,0, IF(FORECAST($C102,H$105:H$116,$C$105:$C$116)>100,100, FORECAST($C102,H$105:H$116,$C$105:$C$116)))) -> 36.69529669 | I102: =IF(MAX(C105:C116)-MIN(C105:C116)<5,AVERAGEIF(C105:C116,">0",I105:I116), IF(FORECAST($C102,I$105:I$116,$C$105:$C$116)<0,0, IF(FORECAST($C102,I$105:I$116,$C$105:$C$116)>100,100, FORECAST($C102,I$105:I$116,$C$105:$C$116)))) -> 12.28887132 | M102: =IF(MAX(C105:C116)-MIN(C105:C116)<5,AVERAGEIF(C105:C116,">0",M105:M116), IF(FORECAST($C102,M$105:M$116,$C$105:$C$116)<0,0, IF(FORECAST($C102,M$105:M$116,$C$105:$C$116)>100,100, FORECAST($C102,M$105:M$116,$C$105:$C$116)))) -> 11.18293108 | N102: =IF(MAX(C105:C116)-MIN(C105:C116)<5,AVERAGEIF(C105:C116,">0",N105:N116), IF(FORECAST($C102,N$105:N$116,$C$105:$C$116)<0,0, IF(FORECAST($C102,N$105:N$116,$C$105:$C$116)>100,100, FORECAST($C102,N$105:N$116,$C$105:$C$116)))) -> 20.25076442 | R102: =IF(MAX(C105:C116)-MIN(C105:C116)<5,AVERAGEIF(C105:C116,">0",R105:R116), IF(FORECAST($C102,R$105:R$116,$C$105:$C$116)<0,0, IF(FORECAST($C102,R$105:R$116,$C$105:$C$116)>100,100, FORECAST($C102,R$105:R$116,$C$105:$C$116)))) -> 0 | S102: =IF(MAX(C105:C116)-MIN(C105:C116)<5,AVERAGEIF(C105:C116,">0",S105:S116), IF(FORECAST($C102,S$105:S$116,$C$105:$C$116)<0,0, IF(FORECAST($C102,S$105:S$116,$C$105:$C$116)>100,100, FORECAST($C102,S$105:S$116,$C$105:$C$116)))) -> 42.55574349 | W102: =IF(MAX(C105:C116)-MIN(C105:C116)<5,AVERAGEIF(C105:C116,">0",W105:W116), IF(FORECAST($C102,W$105:W$116,$C$105:$C$116)<0,0, IF(FORECAST($C102,W$105:W$116,$C$105:$C$116)>100,100, FORECAST($C102,W$105:W$116,$C$105:$C$116)))) -> 0 | X102: =IF(MAX(C105:C116)-MIN(C105:C116)<5,AVERAGEIF(C105:C116,">0",X105:X116), IF(FORECAST($C102,X$105:X$116,$C$105:$C$116)<0,0, IF(FORECAST($C102,X$105:X$116,$C$105:$C$116)>100,100, FORECAST($C102,X$105:X$116,$C$105:$C$116)))) -> 82.59815943 | AB102: =IF(MAX(C105:C116)-MIN(C105:C116)<5,AVERAGEIF(C105:C116,">0",AB105:AB116), IF(FORECAST($C102,AB$105:AB$116,$C$105:$C$116)<0,0, IF(FORECAST($C102,AB$105:AB$116,$C$105:$C$116)>100,100, FORECAST($C102,AB$105:AB$116,$C$105:$C$116)))) -> 0
B104: Survey | C104: Year | D104: Improved | E104: Not shared | H104: Open defecation | I104: Improved | J104: Not shared | M104: Open defecation | N104: Improved | O104: Not shared | R104: Open defecation | S104: Improved | T104: Not shared | W104: Open defecation | X104: Improved | Y104: Not shared | AB104: Open defecation
B105: MICS00 | C105: 2000 | D105: =IF(ISERROR(INDIRECT(CONCATENATE($B105,"!C122"))),"",INDIRECT(CONCATENATE($B105,"!C122"))) -> 11.23622358 | E105: =IF(ISERROR(INDIRECT(CONCATENATE($B105,"!C129"))),"",INDIRECT(CONCATENATE($B105,"!C129"))) -> N/A | H105: =IF(ISERROR(INDIRECT(CONCATENATE($B105,"!C127"))),"",INDIRECT(CONCATENATE($B105,"!C127"))) -> 55.96309449 | I105: =IF(ISERROR(INDIRECT(CONCATENATE($B105,"!D122"))),"",INDIRECT(CONCATENATE($B105,"!D122"))) -> 11.57128724 | J105: =IF(ISERROR(INDIRECT(CONCATENATE($B105,"!D129"))),"",INDIRECT(CONCATENATE($B105,"!D129"))) -> N/A | M105: =IF(ISERROR(INDIRECT(CONCATENATE($B105,"!D127"))),"",INDIRECT(CONCATENATE($B105,"!D127"))) -> 54.6908071 | N105: =IF(ISERROR(INDIRECT(CONCATENATE($B105,"!E122"))),"",INDIRECT(CONCATENATE($B105,"!E122"))) -> 13.04180234 | O105: =IF(ISERROR(INDIRECT(CONCATENATE($B105,"!E129"))),"",INDIRECT(CONCATENATE($B105,"!E129"))) -> N/A | R105: =IF(ISERROR(INDIRECT(CONCATENATE($B105,"!E127"))),"",INDIRECT(CONCATENATE($B105,"!E127"))) -> 52.67275005 | S105: =IF(ISERROR(INDIRECT(CONCATENATE($B105,"!F122"))),"",INDIRECT(CONCATENATE($B105,"!F122"))) -> 24.8512704 | T105: =IF(ISERROR(INDIRECT(CONCATENATE($B105,"!F129"))),"",INDIRECT(CONCATENATE($B105,"!F129"))) -> N/A | W105: =IF(ISERROR(INDIRECT(CONCATENATE($B105,"!F127"))),"",INDIRECT(CONCATENATE($B105,"!F127"))) -> 20.32827926 | X105: =IF(ISERROR(INDIRECT(CONCATENATE($B105,"!G122"))),"",INDIRECT(CONCATENATE($B105,"!G122"))) -> 50.59287435 | Y105: =IF(ISERROR(INDIRECT(CONCATENATE($B105,"!G129"))),"",INDIRECT(CONCATENATE($B105,"!G129"))) -> N/A | AB105: =IF(ISERROR(INDIRECT(CONCATENATE($B105,"!G2127"))),"",INDIRECT(CONCATENATE($B105,"!G127"))) -> 1.346085143
B106: MICS06 | C106: 2006 | D106: 12.72182553 | E106: 69.91859727 | H106: 52.32193066 | I106: 11.91292085 | J106: 70.57807832 | M106: 53.29986906 | N106: 15.798067 | O106: 70.27673724 | R106: 41.2891862 | S106: 28.41825568 | T106: 41.55909191 | W106: 8.179697541 | X106: 59.30148245 | Y106: 48.76416839 | AB106: 0.4632225633
B107: MICS10 | C107: 2010 | D107: 13.17998153 | E107: 58.12667933 | H107: 55.36077005 | I107: 19.37455255 | J107: 64.97991044 | M107: 31.3001443 | N107: 26.71844197 | O107: 64.28966956 | R107: 12.86953513 | S107: 39.87903401 | T107: 43.81149823 | W107: 1.907287286 | X107: 65.52016804 | Y107: 49.89162888 | AB107: 0.2099042319
B108: MICS14 | C108: 2014 | D108: 12.94505272 | E108: 55.50813942 | H108: 53.07681982 | I108: 21.51389171 | J108: 63.13873358 | M108: 23.48118569 | N108: 31.32309327 | O108: 52.70665862 | R108: 8.769166943 | S108: 50.86128287 | T108: 37.31317088 | W108: 2.71074986 | X108: 79.32481169 | Y108: 63.74449879 | AB108: 0.3402577323
B109: MICS19 | C109: 2019 | D109: 3.443629123 | E109: 61.14321029 | H109: 28.00855328 | I109: 3.904715609 | J109: 57.47301479 | M109: 14.0407688 | N109: 8.293950079 | O109: 69.23351132 | R109: 8.033948345 | S109: 31.17432031 | T109: 44.05394546 | W109: 2.760877734 | X109: 77.41228204 | Y109: 62.11547554 | AB109: 0.02632873973
B118: =CONCATENATE("National use of sanitation facilities, ",C99,"–",C100) -> National use of sanitation facilities, 2000–2020 | S118: Data points used for regression
A197: URBAN | D197: Poorest | I197: Poor | N197: Middle | S197: Rich | X197: Richest
D198: Improved | E198: Basic | F198: Limited | G198: Unimproved | H198: Open defecation | I198: Improved | J198: Basic | K198: Limited | L198: Unimproved | M198: Open defecation | N198: Improved | O198: Basic | P198: Limited | Q198: Unimproved | R198: Open defecation | S198: Improved | T198: Basic | U198: Limited | V198: Unimproved | W198: Open defecation | X198: Improved | Y198: Basic | Z198: Limited | AA198: Unimproved | AB198: Open defecation
A199: Forecast period: | C199: 2000 | D199: =IF((D201+H201)>100,D201*100/(D201+H201),D201) -> 40.86944478 | E199: =D199*AVERAGEIF(E205:E216,">0")/100 -> 20.65229614 | F199: =D199*(100-AVERAGEIF(E205:E216,">0"))/100 -> 20.21714864 | G199: =100-(E199+F199+H199) -> 43.95851797 | H199: =IF((D201+H201)>100,H201*100/(D201+H201),H201) -> 15.17203725 | I199: =IF((I201+M201)>100,I201*100/(I201+M201),I201) -> 45.82575891 | J199: =I199*AVERAGEIF(J205:J216,">0")/100 -> 13.3474821 | K199: =I199*(100-AVERAGEIF(J205:J216,">0"))/100 -> 32.47827681 | L199: =100-(J199+K199+M199) -> 50.63172728 | M199: =IF((I201+M201)>100,M201*100/(I201+M201),M201) -> 3.542513808 | N199: =IF((N201+R201)>100,N201*100/(N201+R201),N201) -> 54.18159195 | O199: =N199*AVERAGEIF(O205:O216,">0")/100 -> 17.38122707 | P199: =N199*(100-AVERAGEIF(O205:O216,">0"))/100 -> 36.80036487 | Q199: =100-(O199+P199+R199) -> 45.31205803 | R199: =IF((N201+R201)>100,R201*100/(N201+R201),R201) -> 0.5063500218 | S199: =IF((S201+W201)>100,S201*100/(S201+W201),S201) -> 56.44327638 | T199: =S199*AVERAGEIF(T205:T216,">0")/100 -> 25.06375454 | U199: =S199*(100-AVERAGEIF(T205:T216,">0"))/100 -> 31.37952184 | V199: =100-(T199+U199+W199) -> 42.19224823 | W199: =IF((S201+W201)>100,W201*100/(S201+W201),W201) -> 1.364475395 | X199: =IF((X201+AB201)>100,X201*100/(X201+AB201),X201) -> 71.42474989 | Y199: =X199*AVERAGEIF(Y205:Y216,">0")/100 -> 53.70707063 | Z199: =X199*(100-AVERAGEIF(Y205:Y216,">0"))/100 -> 17.71767927 | AA199: =100-(Y199+Z199+AB199) -> 27.88459236 | AB199: =IF((X201+AB201)>100,AB201*100/(X201+AB201),AB201) -> 0.6906577474
C200: 2020 | D200: =IF((D202+H202)>100,D202*100/(D202+H202),D202) -> 30.27456631 | E200: =D200*AVERAGEIF(E205:E216,">0")/100 -> 15.29845371 | F200: =D200*(100-AVERAGEIF(E205:E216,">0"))/100 -> 14.9761126 | G200: =100-(E200+F200+H200) -> 67.92938976 | H200: =IF((D202+H202)>100,H202*100/(D202+H202),H202) -> 1.796043927 | I200: =IF((I202+M202)>100,I202*100/(I202+M202),I202) -> 52.030476 | J200: =I200*AVERAGEIF(J205:J216,">0")/100 -> 15.15470477 | K200: =I200*(100-AVERAGEIF(J205:J216,">0"))/100 -> 36.87577123 | L200: =100-(J200+K200+M200) -> 47.969524 | M200: =IF((I202+M202)>100,M202*100/(I202+M202),M202) -> 0 | N200: =IF((N202+R202)>100,N202*100/(N202+R202),N202) -> 59.88176536 | O200: =N200*AVERAGEIF(O205:O216,">0")/100 -> 19.20981875 | P200: =N200*(100-AVERAGEIF(O205:O216,">0"))/100 -> 40.6719466 | Q200: =100-(O200+P200+R200) -> 39.95936369 | R200: =IF((N202+R202)>100,R202*100/(N202+R202),R202) -> 0.1588709508 | S200: =IF((S202+W202)>100,S202*100/(S202+W202),S202) -> 80.84997951 | T200: =S200*AVERAGEIF(T205:T216,">0")/100 -> 35.90160195 | U200: =S200*(100-AVERAGEIF(T205:T216,">0"))/100 -> 44.94837757 | V200: =100-(T200+U200+W200) -> 19.15002049 | W200: =IF((S202+W202)>100,W202*100/(S202+W202),W202) -> 0 | X200: =IF((X202+AB202)>100,X202*100/(X202+AB202),X202) -> 96.32915739 | Y200: =X200*AVERAGEIF(Y205:Y216,">0")/100 -> 72.43367134 | Z200: =X200*(100-AVERAGEIF(Y205:Y216,">0"))/100 -> 23.89548605 | AA200: =100-(Y200+Z200+AB200) -> 3.67084261 | AB200: =IF((X202+AB202)>100,AB202*100/(X202+AB202),AB202) -> 0
A201: Regression period: | C201: =MinRegYear(C199,C205:C216) -> 2000 | D201: =IF(MAX(C205:C216)-MIN(C205:C216)<5,AVERAGEIF(C205:C216,">0",D205:D216), IF(FORECAST($C201,D$205:D$216,$C$205:$C$216)<0,0, IF(FORECAST($C201,D$205:D$216,$C$205:$C$216)>100,100, FORECAST($C201,D$205:D$216,$C$205:$C$216)))) -> 40.86944478 | H201: =IF(MAX(C205:C216)-MIN(C205:C216)<5,AVERAGEIF(C205:C216,">0",H205:H216), IF(FORECAST($C201,H$205:H$216,$C$205:$C$216)<0,0, IF(FORECAST($C201,H$205:H$216,$C$205:$C$216)>100,100, FORECAST($C201,H$205:H$216,$C$205:$C$216)))) -> 15.17203725 | I201: =IF(MAX(C205:C216)-MIN(C205:C216)<5,AVERAGEIF(C205:C216,">0",I205:I216), IF(FORECAST($C201,I$205:I$216,$C$205:$C$216)<0,0, IF(FORECAST($C201,I$205:I$216,$C$205:$C$216)>100,100, FORECAST($C201,I$205:I$216,$C$205:$C$216)))) -> 45.82575891 | M201: =IF(MAX(C205:C216)-MIN(C205:C216)<5,AVERAGEIF(C205:C216,">0",M205:M216), IF(FORECAST($C201,M$205:M$216,$C$205:$C$216)<0,0, IF(FORECAST($C201,M$205:M$216,$C$205:$C$216)>100,100, FORECAST($C201,M$205:M$216,$C$205:$C$216)))) -> 3.542513808 | N201: =IF(MAX(C205:C216)-MIN(C205:C216)<5,AVERAGEIF(C205:C216,">0",N205:N216), IF(FORECAST($C201,N$205:N$216,$C$205:$C$216)<0,0, IF(FORECAST($C201,N$205:N$216,$C$205:$C$216)>100,100, FORECAST($C201,N$205:N$216,$C$205:$C$216)))) -> 54.18159195 | R201: =IF(MAX(C205:C216)-MIN(C205:C216)<5,AVERAGEIF(C205:C216,">0",R205:R216), IF(FORECAST($C201,R$205:R$216,$C$205:$C$216)<0,0, IF(FORECAST($C201,R$205:R$216,$C$205:$C$216)>100,100, FORECAST($C201,R$205:R$216,$C$205:$C$216)))) -> 0.5063500218 | S201: =IF(MAX(C205:C216)-MIN(C205:C216)<5,AVERAGEIF(C205:C216,">0",S205:S216), IF(FORECAST($C201,S$205:S$216,$C$205:$C$216)<0,0, IF(FORECAST($C201,S$205:S$216,$C$205:$C$216)>100,100, FORECAST($C201,S$205:S$216,$C$205:$C$216)))) -> 56.44327638 | W201: =IF(MAX(C205:C216)-MIN(C205:C216)<5,AVERAGEIF(C205:C216,">0",W205:W216), IF(FORECAST($C201,W$205:W$216,$C$205:$C$216)<0,0, IF(FORECAST($C201,W$205:W$216,$C$205:$C$216)>100,100, FORECAST($C201,W$205:W$216,$C$205:$C$216)))) -> 1.364475395 | X201: =IF(MAX(C205:C216)-MIN(C205:C216)<5,AVERAGEIF(C205:C216,">0",X205:X216), IF(FORECAST($C201,X$205:X$216,$C$205:$C$216)<0,0, IF(FORECAST($C201,X$205:X$216,$C$205:$C$216)>100,100, FORECAST($C201,X$205:X$216,$C$205:$C$216)))) -> 71.42474989 | AB201: =IF(MAX(C205:C216)-MIN(C205:C216)<5,AVERAGEIF(C205:C216,">0",AB205:AB216), IF(FORECAST($C201,AB$205:AB$216,$C$205:$C$216)<0,0, IF(FORECAST($C201,AB$205:AB$216,$C$205:$C$216)>100,100, FORECAST($C201,AB$205:AB$216,$C$205:$C$216)))) -> 0.6906577474
C202: =MaxRegYear(C200,C205:C216) -> 2020 | D202: =IF(MAX(C205:C216)-MIN(C205:C216)<5,AVERAGEIF(C205:C216,">0",D205:D216), IF(FORECAST($C202,D$205:D$216,$C$205:$C$216)<0,0, IF(FORECAST($C202,D$205:D$216,$C$205:$C$216)>100,100, FORECAST($C202,D$205:D$216,$C$205:$C$216)))) -> 30.27456631 | H202: =IF(MAX(C205:C216)-MIN(C205:C216)<5,AVERAGEIF(C205:C216,">0",H205:H216), IF(FORECAST($C202,H$205:H$216,$C$205:$C$216)<0,0, IF(FORECAST($C202,H$205:H$216,$C$205:$C$216)>100,100, FORECAST($C202,H$205:H$216,$C$205:$C$216)))) -> 1.796043927 | I202: =IF(MAX(C205:C216)-MIN(C205:C216)<5,AVERAGEIF(C205:C216,">0",I205:I216), IF(FORECAST($C202,I$205:I$216,$C$205:$C$216)<0,0, IF(FORECAST($C202,I$205:I$216,$C$205:$C$216)>100,100, FORECAST($C202,I$205:I$216,$C$205:$C$216)))) -> 52.030476 | M202: =IF(MAX(C205:C216)-MIN(C205:C216)<5,AVERAGEIF(C205:C216,">0",M205:M216), IF(FORECAST($C202,M$205:M$216,$C$205:$C$216)<0,0, IF(FORECAST($C202,M$205:M$216,$C$205:$C$216)>100,100, FORECAST($C202,M$205:M$216,$C$205:$C$216)))) -> 0 | N202: =IF(MAX(C205:C216)-MIN(C205:C216)<5,AVERAGEIF(C205:C216,">0",N205:N216), IF(FORECAST($C202,N$205:N$216,$C$205:$C$216)<0,0, IF(FORECAST($C202,N$205:N$216,$C$205:$C$216)>100,100, FORECAST($C202,N$205:N$216,$C$205:$C$216)))) -> 59.88176536 | R202: =IF(MAX(C205:C216)-MIN(C205:C216)<5,AVERAGEIF(C205:C216,">0",R205:R216), IF(FORECAST($C202,R$205:R$216,$C$205:$C$216)<0,0, IF(FORECAST($C202,R$205:R$216,$C$205:$C$216)>100,100, FORECAST($C202,R$205:R$216,$C$205:$C$216)))) -> 0.1588709508 | S202: =IF(MAX(C205:C216)-MIN(C205:C216)<5,AVERAGEIF(C205:C216,">0",S205:S216), IF(FORECAST($C202,S$205:S$216,$C$205:$C$216)<0,0, IF(FORECAST($C202,S$205:S$216,$C$205:$C$216)>100,100, FORECAST($C202,S$205:S$216,$C$205:$C$216)))) -> 80.84997951 | W202: =IF(MAX(C205:C216)-MIN(C205:C216)<5,AVERAGEIF(C205:C216,">0",W205:W216), IF(FORECAST($C202,W$205:W$216,$C$205:$C$216)<0,0, IF(FORECAST($C202,W$205:W$216,$C$205:$C$216)>100,100, FORECAST($C202,W$205:W$216,$C$205:$C$216)))) -> 0 | X202: =IF(MAX(C205:C216)-MIN(C205:C216)<5,AVERAGEIF(C205:C216,">0",X205:X216), IF(FORECAST($C202,X$205:X$216,$C$205:$C$216)<0,0, IF(FORECAST($C202,X$205:X$216,$C$205:$C$216)>100,100, FORECAST($C202,X$205:X$216,$C$205:$C$216)))) -> 96.32915739 | AB202: =IF(MAX(C205:C216)-MIN(C205:C216)<5,AVERAGEIF(C205:C216,">0",AB205:AB216), IF(FORECAST($C202,AB$205:AB$216,$C$205:$C$216)<0,0, IF(FORECAST($C202,AB$205:AB$216,$C$205:$C$216)>100,100, FORECAST($C202,AB$205:AB$216,$C$205:$C$216)))) -> 0
B204: Survey | C204: Year | D204: Improved | E204: Not shared | H204: Open defecation | I204: Improved | J204: Not shared | M204: Open defecation | N204: Improved | O204: Not shared | R204: Open defecation | S204: Improved | T204: Not shared | W204: Open defecation | X204: Improved | Y204: Not shared | AB204: Open defecation
B205: MICS00 | C205: 2000 | D205: =IF(ISERROR(INDIRECT(CONCATENATE($B205,"!H122"))),"",INDIRECT(CONCATENATE($B205,"!H122"))) -> 35.65920557 | E205: =IF(ISERROR(INDIRECT(CONCATENATE($B205,"!H129"))),"",INDIRECT(CONCATENATE($B205,"!H129"))) -> N/A | H205: =IF(ISERROR(INDIRECT(CONCATENATE($B205,"!H127"))),"",INDIRECT(CONCATENATE($B205,"!H127"))) -> 14.92411333 | I205: =IF(ISERROR(INDIRECT(CONCATENATE($B205,"!I122"))),"",INDIRECT(CONCATENATE($B205,"!I122"))) -> 42.84564097 | J205: =IF(ISERROR(INDIRECT(CONCATENATE($B205,"!I129"))),"",INDIRECT(CONCATENATE($B205,"!I129"))) -> N/A | M205: =IF(ISERROR(INDIRECT(CONCATENATE($B205,"!I127"))),"",INDIRECT(CONCATENATE($B205,"!I127"))) -> 4.455384674 | N205: =IF(ISERROR(INDIRECT(CONCATENATE($B205,"!J122"))),"",INDIRECT(CONCATENATE($B205,"!J122"))) -> 56.46562792 | O205: =IF(ISERROR(INDIRECT(CONCATENATE($B205,"!J129"))),"",INDIRECT(CONCATENATE($B205,"!J129"))) -> N/A | R205: =IF(ISERROR(INDIRECT(CONCATENATE($B205,"!J127"))),"",INDIRECT(CONCATENATE($B205,"!J127"))) -> 0.5650365324 | S205: =IF(ISERROR(INDIRECT(CONCATENATE($B205,"!K122"))),"",INDIRECT(CONCATENATE($B205,"!K122"))) -> 57.81657155 | T205: =IF(ISERROR(INDIRECT(CONCATENATE($B205,"!K129"))),"",INDIRECT(CONCATENATE($B205,"!K129"))) -> N/A | W205: =IF(ISERROR(INDIRECT(CONCATENATE($B205,"!K127"))),"",INDIRECT(CONCATENATE($B205,"!K127"))) -> 1.958665907 | X205: =IF(ISERROR(INDIRECT(CONCATENATE($B205,"!L122"))),"",INDIRECT(CONCATENATE($B205,"!L122"))) -> 65.4897333 | Y205: =IF(ISERROR(INDIRECT(CONCATENATE($B205,"!L129"))),"",INDIRECT(CONCATENATE($B205,"!L129"))) -> N/A | AB205: =IF(ISERROR(INDIRECT(CONCATENATE($B205,"!L2127"))),"",INDIRECT(CONCATENATE($B205,"!L127"))) -> 1.030479711
B206: MICS06 | C206: 2006 | D206: 36.84772587 | E206: 46.5877072 | H206: 11.01753567 | I206: 44.78696044 | J206: 24.40529602 | M206: 0.9793677789 | N206: 48.4648248 | O206: 21.7314994 | R206: 0.2087994769 | S206: 62.70000396 | T206: 41.47492609 | W206: 0.196554522 | X206: 87.1940301 | Y206: 76.03865251 | AB206: 0
B207: MICS10 | C207: 2010 | D207: 40.37711192 | E207: 49.77362855 | H207: 9.362182046 | I207: 51.80252025 | J207: 38.90908023 | M207: 1.447700171 | N207: 57.79003995 | O207: 33.93136286 | R207: 0.385787647 | S207: 64.90255681 | T207: 35.81450397 | W207: 0.06473281522 | X207: 82.58554595 | Y207: 65.08708237 | AB207: 0.09598707461
B208: MICS14 | C208: 2014 | D208: 46.79521132 | E208: 44.0631739 | H208: 5.538727514 | I208: 63.86013939 | J208: 24.4144046 | M208: 2.023128758 | N208: 67.43705616 | O208: 35.25866248 | R208: 0.4469847836 | S208: 77.8185117 | T208: 47.57086878 | W208: 0.4114758753 | X208: 92.16074137 | Y208: 81.96186753 | AB208: 0.1788610862
B209: MICS19 | C209: 2019 | D209: 18.71051697 | E209: 61.70494188 | H209: 2.246444051 | I209: 41.03509038 | J209: 28.77758953 | M209: 0.07209944122 | N209: 54.71583576 | O209: 37.3967948 | R209: 0.07381794498 | S209: 78.77516055 | T209: 52.76053502 | W209: 0 | X209: 90.70949712 | Y209: 77.68808505 | AB209: 0
B218: =CONCATENATE("Urban use of sanitation facilities, ",C199,"–",C200) -> Urban use of sanitation facilities, 2000–2020 | S218: Data points used for regression
A297: RURAL | D297: Poorest | I297: Poor | N297: Middle | S297: Rich | X297: Richest
D298: Improved | E298: Basic | F298: Limited | G298: Unimproved | H298: Open defecation | I298: Improved | J298: Basic | K298: Limited | L298: Unimproved | M298: Open defecation | N298: Improved | O298: Basic | P298: Limited | Q298: Unimproved | R298: Open defecation | S298: Improved | T298: Basic | U298: Limited | V298: Unimproved | W298: Open defecation | X298: Improved | Y298: Basic | Z298: Limited | AA298: Unimproved | AB298: Open defecation
A299: Forecast period: | C299: 2000 | D299: =IF((D301+H301)>100,D301*100/(D301+H301),D301) -> 6.899674679 | E299: =D299*AVERAGEIF(E305:E316,">0")/100 -> 3.836237757 | F299: =D299*(100-AVERAGEIF(E305:E316,">0"))/100 -> 3.063436922 | G299: =100-(E299+F299+H299) -> 29.03781993 | H299: =IF((D301+H301)>100,H301*100/(D301+H301),H301) -> 64.06250539 | I299: =IF((I301+M301)>100,I301*100/(I301+M301),I301) -> 7.589104873 | J299: =I299*AVERAGEIF(J305:J316,">0")/100 -> 5.066158278 | K299: =I299*(100-AVERAGEIF(J305:J316,">0"))/100 -> 2.522946595 | L299: =100-(J299+K299+M299) -> 29.62771677 | M299: =IF((I301+M301)>100,M301*100/(I301+M301),M301) -> 62.78317836 | N299: =IF((N301+R301)>100,N301*100/(N301+R301),N301) -> 7.964493383 | O299: =N299*AVERAGEIF(O305:O316,">0")/100 -> 5.365664149 | P299: =N299*(100-AVERAGEIF(O305:O316,">0"))/100 -> 2.598829235 | Q299: =100-(O299+P299+R299) -> 33.3714451 | R299: =IF((N301+R301)>100,R301*100/(N301+R301),R301) -> 58.66406152 | S299: =IF((S301+W301)>100,S301*100/(S301+W301),S301) -> 9.023864367 | T299: =S299*AVERAGEIF(T305:T316,">0")/100 -> 6.273445949 | U299: =S299*(100-AVERAGEIF(T305:T316,">0"))/100 -> 2.750418418 | V299: =100-(T299+U299+W299) -> 35.17409102 | W299: =IF((S301+W301)>100,W301*100/(S301+W301),W301) -> 55.80204461 | X299: =IF((X301+AB301)>100,X301*100/(X301+AB301),X301) -> 10.61300541 | Y299: =X299*AVERAGEIF(Y305:Y316,">0")/100 -> 7.319336801 | Z299: =X299*(100-AVERAGEIF(Y305:Y316,">0"))/100 -> 3.293668611 | AA299: =100-(Y299+Z299+AB299) -> 47.40702737 | AB299: =IF((X301+AB301)>100,AB301*100/(X301+AB301),AB301) -> 41.97996722
C300: 2020 | D300: =IF((D302+H302)>100,D302*100/(D302+H302),D302) -> 4.098352344 | E300: =D300*AVERAGEIF(E305:E316,">0")/100 -> 2.278694973 | F300: =D300*(100-AVERAGEIF(E305:E316,">0"))/100 -> 1.819657371 | G300: =100-(E300+F300+H300) -> 50.57895182 | H300: =IF((D302+H302)>100,H302*100/(D302+H302),H302) -> 45.32269584 | I300: =IF((I302+M302)>100,I302*100/(I302+M302),I302) -> 6.229026889 | J300: =I300*AVERAGEIF(J305:J316,">0")/100 -> 4.158229023 | K300: =I300*(100-AVERAGEIF(J305:J316,">0"))/100 -> 2.070797867 | L300: =100-(J300+K300+M300) -> 67.92647105 | M300: =IF((I302+M302)>100,M302*100/(I302+M302),M302) -> 25.84450206 | N300: =IF((N302+R302)>100,N302*100/(N302+R302),N302) -> 7.393259343 | O300: =N300*AVERAGEIF(O305:O316,">0")/100 -> 4.980824855 | P300: =N300*(100-AVERAGEIF(O305:O316,">0"))/100 -> 2.412434488 | Q300: =100-(O300+P300+R300) -> 82.90261101 | R300: =IF((N302+R302)>100,R302*100/(N302+R302),R302) -> 9.70412965 | S300: =IF((S302+W302)>100,S302*100/(S302+W302),S302) -> 11.62896922 | T300: =S300*AVERAGEIF(T305:T316,">0")/100 -> 8.084530849 | U300: =S300*(100-AVERAGEIF(T305:T316,">0"))/100 -> 3.544438372 | V300: =100-(T300+U300+W300) -> 87.85605792 | W300: =IF((S302+W302)>100,W302*100/(S302+W302),W302) -> 0.5149728571 | X300: =IF((X302+AB302)>100,X302*100/(X302+AB302),X302) -> 25.09732991 | Y300: =X300*AVERAGEIF(Y305:Y316,">0")/100 -> 17.30855712 | Z300: =X300*(100-AVERAGEIF(Y305:Y316,">0"))/100 -> 7.788772787 | AA300: =100-(Y300+Z300+AB300) -> 74.90267009 | AB300: =IF((X302+AB302)>100,AB302*100/(X302+AB302),AB302) -> 0
A301: Regression period: | C301: =MinRegYear(C299,C305:C316) -> 2000 | D301: =IF(MAX(C305:C316)-MIN(C305:C316)<5,AVERAGEIF(C305:C316,">0",D305:D316), IF(FORECAST($C301,D$305:D$316,$C$305:$C$316)<0,0, IF(FORECAST($C301,D$305:D$316,$C$305:$C$316)>100,100, FORECAST($C301,D$305:D$316,$C$305:$C$316)))) -> 6.899674679 | H301: =IF(MAX(C305:C316)-MIN(C305:C316)<5,AVERAGEIF(C305:C316,">0",H305:H316), IF(FORECAST($C301,H$305:H$316,$C$305:$C$316)<0,0, IF(FORECAST($C301,H$305:H$316,$C$305:$C$316)>100,100, FORECAST($C301,H$305:H$316,$C$305:$C$316)))) -> 64.06250539 | I301: =IF(MAX(C305:C316)-MIN(C305:C316)<5,AVERAGEIF(C305:C316,">0",I305:I316), IF(FORECAST($C301,I$305:I$316,$C$305:$C$316)<0,0, IF(FORECAST($C301,I$305:I$316,$C$305:$C$316)>100,100, FORECAST($C301,I$305:I$316,$C$305:$C$316)))) -> 7.589104873 | M301: =IF(MAX(C305:C316)-MIN(C305:C316)<5,AVERAGEIF(C305:C316,">0",M305:M316), IF(FORECAST($C301,M$305:M$316,$C$305:$C$316)<0,0, IF(FORECAST($C301,M$305:M$316,$C$305:$C$316)>100,100, FORECAST($C301,M$305:M$316,$C$305:$C$316)))) -> 62.78317836 | N301: =IF(MAX(C305:C316)-MIN(C305:C316)<5,AVERAGEIF(C305:C316,">0",N305:N316), IF(FORECAST($C301,N$305:N$316,$C$305:$C$316)<0,0, IF(FORECAST($C301,N$305:N$316,$C$305:$C$316)>100,100, FORECAST($C301,N$305:N$316,$C$305:$C$316)))) -> 7.964493383 | R301: =IF(MAX(C305:C316)-MIN(C305:C316)<5,AVERAGEIF(C305:C316,">0",R305:R316), IF(FORECAST($C301,R$305:R$316,$C$305:$C$316)<0,0, IF(FORECAST($C301,R$305:R$316,$C$305:$C$316)>100,100, FORECAST($C301,R$305:R$316,$C$305:$C$316)))) -> 58.66406152 | S301: =IF(MAX(C305:C316)-MIN(C305:C316)<5,AVERAGEIF(C305:C316,">0",S305:S316), IF(FORECAST($C301,S$305:S$316,$C$305:$C$316)<0,0, IF(FORECAST($C301,S$305:S$316,$C$305:$C$316)>100,100, FORECAST($C301,S$305:S$316,$C$305:$C$316)))) -> 9.023864367 | W301: =IF(MAX(C305:C316)-MIN(C305:C316)<5,AVERAGEIF(C305:C316,">0",W305:W316), IF(FORECAST($C301,W$305:W$316,$C$305:$C$316)<0,0, IF(FORECAST($C301,W$305:W$316,$C$305:$C$316)>100,100, FORECAST($C301,W$305:W$316,$C$305:$C$316)))) -> 55.80204461 | X301: =IF(MAX(C305:C316)-MIN(C305:C316)<5,AVERAGEIF(C305:C316,">0",X305:X316), IF(FORECAST($C301,X$305:X$316,$C$305:$C$316)<0,0, IF(FORECAST($C301,X$305:X$316,$C$305:$C$316)>100,100, FORECAST($C301,X$305:X$316,$C$305:$C$316)))) -> 10.61300541 | AB301: =IF(MAX(C305:C316)-MIN(C305:C316)<5,AVERAGEIF(C305:C316,">0",AB305:AB316), IF(FORECAST($C301,AB$305:AB$316,$C$305:$C$316)<0,0, IF(FORECAST($C301,AB$305:AB$316,$C$305:$C$316)>100,100, FORECAST($C301,AB$305:AB$316,$C$305:$C$316)))) -> 41.97996722
C302: =MaxRegYear(C300,C305:C316) -> 2020 | D302: =IF(MAX(C305:C316)-MIN(C305:C316)<5,AVERAGEIF(C305:C316,">0",D305:D316), IF(FORECAST($C302,D$305:D$316,$C$305:$C$316)<0,0, IF(FORECAST($C302,D$305:D$316,$C$305:$C$316)>100,100, FORECAST($C302,D$305:D$316,$C$305:$C$316)))) -> 4.098352344 | H302: =IF(MAX(C305:C316)-MIN(C305:C316)<5,AVERAGEIF(C305:C316,">0",H305:H316), IF(FORECAST($C302,H$305:H$316,$C$305:$C$316)<0,0, IF(FORECAST($C302,H$305:H$316,$C$305:$C$316)>100,100, FORECAST($C302,H$305:H$316,$C$305:$C$316)))) -> 45.32269584 | I302: =IF(MAX(C305:C316)-MIN(C305:C316)<5,AVERAGEIF(C305:C316,">0",I305:I316), IF(FORECAST($C302,I$305:I$316,$C$305:$C$316)<0,0, IF(FORECAST($C302,I$305:I$316,$C$305:$C$316)>100,100, FORECAST($C302,I$305:I$316,$C$305:$C$316)))) -> 6.229026889 | M302: =IF(MAX(C305:C316)-MIN(C305:C316)<5,AVERAGEIF(C305:C316,">0",M305:M316), IF(FORECAST($C302,M$305:M$316,$C$305:$C$316)<0,0, IF(FORECAST($C302,M$305:M$316,$C$305:$C$316)>100,100, FORECAST($C302,M$305:M$316,$C$305:$C$316)))) -> 25.84450206 | N302: =IF(MAX(C305:C316)-MIN(C305:C316)<5,AVERAGEIF(C305:C316,">0",N305:N316), IF(FORECAST($C302,N$305:N$316,$C$305:$C$316)<0,0, IF(FORECAST($C302,N$305:N$316,$C$305:$C$316)>100,100, FORECAST($C302,N$305:N$316,$C$305:$C$316)))) -> 7.393259343 | R302: =IF(MAX(C305:C316)-MIN(C305:C316)<5,AVERAGEIF(C305:C316,">0",R305:R316), IF(FORECAST($C302,R$305:R$316,$C$305:$C$316)<0,0, IF(FORECAST($C302,R$305:R$316,$C$305:$C$316)>100,100, FORECAST($C302,R$305:R$316,$C$305:$C$316)))) -> 9.70412965 | S302: =IF(MAX(C305:C316)-MIN(C305:C316)<5,AVERAGEIF(C305:C316,">0",S305:S316), IF(FORECAST($C302,S$305:S$316,$C$305:$C$316)<0,0, IF(FORECAST($C302,S$305:S$316,$C$305:$C$316)>100,100, FORECAST($C302,S$305:S$316,$C$305:$C$316)))) -> 11.62896922 | W302: =IF(MAX(C305:C316)-MIN(C305:C316)<5,AVERAGEIF(C305:C316,">0",W305:W316), IF(FORECAST($C302,W$305:W$316,$C$305:$C$316)<0,0, IF(FORECAST($C302,W$305:W$316,$C$305:$C$316)>100,100, FORECAST($C302,W$305:W$316,$C$305:$C$316)))) -> 0.5149728571 | X302: =IF(MAX(C305:C316)-MIN(C305:C316)<5,AVERAGEIF(C305:C316,">0",X305:X316), IF(FORECAST($C302,X$305:X$316,$C$305:$C$316)<0,0, IF(FORECAST($C302,X$305:X$316,$C$305:$C$316)>100,100, FORECAST($C302,X$305:X$316,$C$305:$C$316)))) -> 25.09732991 | AB302: =IF(MAX(C305:C316)-MIN(C305:C316)<5,AVERAGEIF(C305:C316,">0",AB305:AB316), IF(FORECAST($C302,AB$305:AB$316,$C$305:$C$316)<0,0, IF(FORECAST($C302,AB$305:AB$316,$C$305:$C$316)>100,100, FORECAST($C302,AB$305:AB$316,$C$305:$C$316)))) -> 0
B304: Survey | C304: Year | D304: Improved | E304: Not shared | H304: Open defecation | I304: Improved | J304: Not shared | M304: Open defecation | N304: Improved | O304: Not shared | R304: Open defecation | S304: Improved | T304: Not shared | W304: Open defecation | X304: Improved | Y304: Not shared | AB304: Open defecation
B305: MICS00 | C305: 2000 | D305: =IF(ISERROR(INDIRECT(CONCATENATE($B305,"!M122"))),"",INDIRECT(CONCATENATE($B305,"!M122"))) -> 5.877981694 | E305: =IF(ISERROR(INDIRECT(CONCATENATE($B305,"!M129"))),"",INDIRECT(CONCATENATE($B305,"!M129"))) -> N/A | H305: =IF(ISERROR(INDIRECT(CONCATENATE($B305,"!M127"))),"",INDIRECT(CONCATENATE($B305,"!M127"))) -> 57.13064652 | I305: =IF(ISERROR(INDIRECT(CONCATENATE($B305,"!N122"))),"",INDIRECT(CONCATENATE($B305,"!N122"))) -> 5.618594986 | J305: =IF(ISERROR(INDIRECT(CONCATENATE($B305,"!N129"))),"",INDIRECT(CONCATENATE($B305,"!N129"))) -> N/A | M305: =IF(ISERROR(INDIRECT(CONCATENATE($B305,"!N127"))),"",INDIRECT(CONCATENATE($B305,"!N127"))) -> 59.53056776 | N305: =IF(ISERROR(INDIRECT(CONCATENATE($B305,"!O122"))),"",INDIRECT(CONCATENATE($B305,"!O122"))) -> 6.391132378 | O305: =IF(ISERROR(INDIRECT(CONCATENATE($B305,"!O129"))),"",INDIRECT(CONCATENATE($B305,"!O129"))) -> N/A | R305: =IF(ISERROR(INDIRECT(CONCATENATE($B305,"!O127"))),"",INDIRECT(CONCATENATE($B305,"!O127"))) -> 52.8267729 | S305: =IF(ISERROR(INDIRECT(CONCATENATE($B305,"!P122"))),"",INDIRECT(CONCATENATE($B305,"!P122"))) -> 6.416049254 | T305: =IF(ISERROR(INDIRECT(CONCATENATE($B305,"!P129"))),"",INDIRECT(CONCATENATE($B305,"!P129"))) -> N/A | W305: =IF(ISERROR(INDIRECT(CONCATENATE($B305,"!P127"))),"",INDIRECT(CONCATENATE($B305,"!P127"))) -> 58.11558305 | X305: =IF(ISERROR(INDIRECT(CONCATENATE($B305,"!Q122"))),"",INDIRECT(CONCATENATE($B305,"!Q122"))) -> 8.55978978 | Y305: =IF(ISERROR(INDIRECT(CONCATENATE($B305,"!Q129"))),"",INDIRECT(CONCATENATE($B305,"!Q129"))) -> N/A | AB305: =IF(ISERROR(INDIRECT(CONCATENATE($B305,"!Q2127"))),"",INDIRECT(CONCATENATE($B305,"!Q127"))) -> 49.11733626
B306: MICS06 | C306: 2006 | D306: 6.589597363 | E306: 73.57655748 | H306: 56.4542843 | I306: 6.889144813 | J306: 74.05971137 | M306: 54.33475171 | N306: 6.104443703 | O306: 70.37627489 | R306: 54.23113057 | S306: 8.710866494 | T306: 69.157373 | W306: 43.29686148 | X306: 14.29734037 | Y306: 68.88869326 | AB306: 25.90174261
B307: MICS10 | C307: 2010 | D307: 5.914302819 | E307: 53.88502561 | H307: 66.39357901 | I307: 10.54069983 | J307: 64.55339865 | M307: 42.71129826 | N307: 10.58710996 | O307: 68.60100112 | R307: 33.10428348 | S307: 15.41505508 | T307: 68.52301106 | W307: 19.20855527 | X307: 21.78691668 | Y307: 69.62229289 | AB307: 7.940717695
B308: MICS14 | C308: 2014 | D308: 6.694831233 | E308: 55.48010418 | H308: 61.38826469 | I308: 8.347082082 | J308: 61.06401686 | M308: 45.32434249 | N308: 12.69914752 | O308: 64.41039612 | R308: 21.85434134 | S308: 14.44336253 | T308: 61.87864506 | W308: 13.80912475 | X308: 23.19560595 | Y308: 63.38022742 | AB308: 8.740505796
B309: MICS19 | C309: 2019 | D309: 2.558420564 | E309: 39.45939312 | H309: 33.03321903 | I309: 3.217811598 | J309: 67.34557806 | M309: 21.51517463 | N309: 2.641109959 | O309: 66.09157234 | R309: 11.35194622 | S309: 6.516495365 | T309: 78.52342842 | W309: 9.12677272 | X309: 20.7119693 | Y309: 73.97171184 | AB309: 5.796527091
B318: =CONCATENATE("Rural use of sanitation facilities, ",C299,"–",C300) -> Rural use of sanitation facilities, 2000–2020 | S318: Data points used for regression

Sheet Hygiene
B4: Access to hygiene facilities by wealth quintile (%)
B5: =IF(ISERROR(INDIRECT(CONCATENATE($E$32,"!A2"))),"",INDIRECT(CONCATENATE($E$32,"!A2"))) -> Guinea Bissau
B7: =CONCATENATE("National ",IF(ISERROR(INDIRECT(CONCATENATE($E$32,"!A2"))),"",INDIRECT(CONCATENATE($E$32,"!A210")))) -> National Access to hygiene facilities | K7: =CONCATENATE("Urban ",IF(ISERROR(INDIRECT(CONCATENATE($E$32,"!A2"))),"",INDIRECT(CONCATENATE($E$32,"!A210")))) -> Urban Access to hygiene facilities | S7: =CONCATENATE("Rural ",IF(ISERROR(INDIRECT(CONCATENATE($E$32,"!A2"))),"",INDIRECT(CONCATENATE($E$32,"!A210")))) -> Rural Access to hygiene facilities
E32: =INDEX(B88:B100,A88) -> MICS19 | G32: =IF(ISERROR(INDIRECT(CONCATENATE($E$32,"!A2"))),"",INDIRECT(CONCATENATE($E$32,"!A2"))) -> Guinea Bissau | K32: Poorest | N32: Poor | Q32: Middle | T32: Rich | W32: Richest
K33: Basic | L33: Limited | M33: No facility | N33: Basic | O33: Limited | P33: No facility | Q33: Basic | R33: Limited | S33: No facility | T33: Basic | U33: Limited | V33: No facility | W33: Basic | X33: Limited | Y33: No facility
B34: >>> Select Survey : | G34: NATIONAL | J34: =IF(ISERROR(INDIRECT(CONCATENATE(#REF!,"!A2"))),"",INDIRECT(CONCATENATE(#REF!,"!A210"))) ->  | K34: =IF(ISERROR(INDIRECT(CONCATENATE($E$32,"!C222"))),"",INDIRECT(CONCATENATE($E$32,"!C222"))) -> 9.83173771 | L34: =IF(ISERROR(INDIRECT(CONCATENATE($E$32,"!C223"))),"",INDIRECT(CONCATENATE($E$32,"!C223"))) -> 3.668489403 | M34: =IF(ISERROR(INDIRECT(CONCATENATE($E$32,"!C224"))),"",INDIRECT(CONCATENATE($E$32,"!C224"))) -> 86.49977289 | N34: =IF(ISERROR(INDIRECT(CONCATENATE($E$32,"!D222"))),"",INDIRECT(CONCATENATE($E$32,"!D222"))) -> 12.47019382 | O34: =IF(ISERROR(INDIRECT(CONCATENATE($E$32,"!D223"))),"",INDIRECT(CONCATENATE($E$32,"!D223"))) -> 3.986718588 | P34: =IF(ISERROR(INDIRECT(CONCATENATE($E$32,"!D224"))),"",INDIRECT(CONCATENATE($E$32,"!D224"))) -> 83.54308759 | Q34: =IF(ISERROR(INDIRECT(CONCATENATE($E$32,"!E222"))),"",INDIRECT(CONCATENATE($E$32,"!E222"))) -> 19.45637355 | R34: =IF(ISERROR(INDIRECT(CONCATENATE($E$32,"!E223"))),"",INDIRECT(CONCATENATE($E$32,"!E223"))) -> 3.3111104 | S34: =IF(ISERROR(INDIRECT(CONCATENATE($E$32,"!E224"))),"",INDIRECT(CONCATENATE($E$32,"!E224"))) -> 77.23251605 | T34: =IF(ISERROR(INDIRECT(CONCATENATE($E$32,"!F222"))),"",INDIRECT(CONCATENATE($E$32,"!F222"))) -> 16.33165176 | U34: =IF(ISERROR(INDIRECT(CONCATENATE($E$32,"!F223"))),"",INDIRECT(CONCATENATE($E$32,"!F223"))) -> 3.347376886 | V34: =IF(ISERROR(INDIRECT(CONCATENATE($E$32,"!F224"))),"",INDIRECT(CONCATENATE($E$32,"!F224"))) -> 80.32097135 | W34: =IF(ISERROR(INDIRECT(CONCATENATE($E$32,"!G222"))),"",INDIRECT(CONCATENATE($E$32,"!G222"))) -> 22.21867866 | X34: =IF(ISERROR(INDIRECT(CONCATENATE($E$32,"!G223"))),"",INDIRECT(CONCATENATE($E$32,"!G223"))) -> 3.759834034 | Y34: =IF(ISERROR(INDIRECT(CONCATENATE($E$32,"!G224"))),"",INDIRECT(CONCATENATE($E$32,"!G224"))) -> 74.02148731
G37: URBAN | J37: =IF(ISERROR(INDIRECT(CONCATENATE(#REF!,"!A2"))),"",INDIRECT(CONCATENATE(#REF!,"!A210"))) ->  | K37: =IF(ISERROR(INDIRECT(CONCATENATE($E$32,"!H222"))),"",INDIRECT(CONCATENATE($E$32,"!H222"))) -> 18.73866655 | L37: =IF(ISERROR(INDIRECT(CONCATENATE($E$32,"!H223"))),"",INDIRECT(CONCATENATE($E$32,"!H223"))) -> 2.581815402 | M37: =IF(ISERROR(INDIRECT(CONCATENATE($E$32,"!H224"))),"",INDIRECT(CONCATENATE($E$32,"!H224"))) -> 78.67951805 | N37: =IF(ISERROR(INDIRECT(CONCATENATE($E$32,"!I222"))),"",INDIRECT(CONCATENATE($E$32,"!I222"))) -> 23.53452923 | O37: =IF(ISERROR(INDIRECT(CONCATENATE($E$32,"!I223"))),"",INDIRECT(CONCATENATE($E$32,"!I223"))) -> 4.893024129 | P37: =IF(ISERROR(INDIRECT(CONCATENATE($E$32,"!I224"))),"",INDIRECT(CONCATENATE($E$32,"!I224"))) -> 71.57244665 | Q37: =IF(ISERROR(INDIRECT(CONCATENATE($E$32,"!J222"))),"",INDIRECT(CONCATENATE($E$32,"!J222"))) -> 14.02817254 | R37: =IF(ISERROR(INDIRECT(CONCATENATE($E$32,"!J223"))),"",INDIRECT(CONCATENATE($E$32,"!J223"))) -> 4.819641991 | S37: =IF(ISERROR(INDIRECT(CONCATENATE($E$32,"!J224"))),"",INDIRECT(CONCATENATE($E$32,"!J224"))) -> 81.15218547 | T37: =IF(ISERROR(INDIRECT(CONCATENATE($E$32,"!K222"))),"",INDIRECT(CONCATENATE($E$32,"!K222"))) -> 21.03837558 | U37: =IF(ISERROR(INDIRECT(CONCATENATE($E$32,"!K223"))),"",INDIRECT(CONCATENATE($E$32,"!K223"))) -> 3.613748742 | V37: =IF(ISERROR(INDIRECT(CONCATENATE($E$32,"!K224"))),"",INDIRECT(CONCATENATE($E$32,"!K224"))) -> 75.34787567 | W37: =IF(ISERROR(INDIRECT(CONCATENATE($E$32,"!L222"))),"",INDIRECT(CONCATENATE($E$32,"!L222"))) -> 30.63822914 | X37: =IF(ISERROR(INDIRECT(CONCATENATE($E$32,"!L223"))),"",INDIRECT(CONCATENATE($E$32,"!L223"))) -> 3.869028084 | Y37: =IF(ISERROR(INDIRECT(CONCATENATE($E$32,"!L224"))),"",INDIRECT(CONCATENATE($E$32,"!L224"))) -> 65.49274277
G40: RURAL | J40: =IF(ISERROR(INDIRECT(CONCATENATE(#REF!,"!A2"))),"",INDIRECT(CONCATENATE(#REF!,"!A210"))) ->  | K40: =IF(ISERROR(INDIRECT(CONCATENATE($E$32,"!M222"))),"",INDIRECT(CONCATENATE($E$32,"!M222"))) -> 6.79877128 | L40: =IF(ISERROR(INDIRECT(CONCATENATE($E$32,"!M223"))),"",INDIRECT(CONCATENATE($E$32,"!M223"))) -> 4.181055014 | M40: =IF(ISERROR(INDIRECT(CONCATENATE($E$32,"!M224"))),"",INDIRECT(CONCATENATE($E$32,"!M224"))) -> 89.02017371 | N40: =IF(ISERROR(INDIRECT(CONCATENATE($E$32,"!N222"))),"",INDIRECT(CONCATENATE($E$32,"!N222"))) -> 10.04080696 | O40: =IF(ISERROR(INDIRECT(CONCATENATE($E$32,"!N223"))),"",INDIRECT(CONCATENATE($E$32,"!N223"))) -> 2.997570747 | P40: =IF(ISERROR(INDIRECT(CONCATENATE($E$32,"!N224"))),"",INDIRECT(CONCATENATE($E$32,"!N224"))) -> 86.96162229 | Q40: =IF(ISERROR(INDIRECT(CONCATENATE($E$32,"!O222"))),"",INDIRECT(CONCATENATE($E$32,"!O222"))) -> 17.33831141 | R40: =IF(ISERROR(INDIRECT(CONCATENATE($E$32,"!O223"))),"",INDIRECT(CONCATENATE($E$32,"!O223"))) -> 4.701697855 | S40: =IF(ISERROR(INDIRECT(CONCATENATE($E$32,"!O224"))),"",INDIRECT(CONCATENATE($E$32,"!O224"))) -> 77.95999074 | T40: =IF(ISERROR(INDIRECT(CONCATENATE($E$32,"!P222"))),"",INDIRECT(CONCATENATE($E$32,"!P222"))) -> 17.10222737 | U40: =IF(ISERROR(INDIRECT(CONCATENATE($E$32,"!P223"))),"",INDIRECT(CONCATENATE($E$32,"!P223"))) -> 3.60920259 | V40: =IF(ISERROR(INDIRECT(CONCATENATE($E$32,"!P224"))),"",INDIRECT(CONCATENATE($E$32,"!P224"))) -> 79.28857004 | W40: =IF(ISERROR(INDIRECT(CONCATENATE($E$32,"!Q222"))),"",INDIRECT(CONCATENATE($E$32,"!Q222"))) -> 13.70073897 | X40: =IF(ISERROR(INDIRECT(CONCATENATE($E$32,"!Q223"))),"",INDIRECT(CONCATENATE($E$32,"!Q223"))) -> 1.637472014 | Y40: =IF(ISERROR(INDIRECT(CONCATENATE($E$32,"!Q224"))),"",INDIRECT(CONCATENATE($E$32,"!Q224"))) -> 84.66178902
A88: 5 | B88: MICS00
B89: MICS06
B90: MICS10
B91: MICS14
B92: MICS19
B93: Input
B94: Template

Sheet MICS00
A2: =A1026 -> Guinea-Bissau
A3: =A1034 -> 2000
A4: Use of drinking water sources
A5: by wealth quintile and sub-national region
A6: Notes:
A7: WHO/UNICEF JMP customised wealth index excludes water,
A8: sanitation and hygiene assets.
A9: Survey used for analysis: | B9: =A1025 -> MICS00
A10: =B1028 -> 
A11: =B1027 -> 
A14: Use of drinking water sources | C14: NATIONAL wealth index quintile | H14: URBAN wealth index quintile | M14: RURAL wealth index quintile | R14: SUB-REGIONS: | BA14: Raw numbers of respondents: | BB14: Use of drinking water sources | BC14: NATIONAL wealth index quintile | BH14: URBAN wealth index quintile | BM14: RURAL wealth index quintile | BR14: SUB-REGIONS:
A15: Weighted percentage (used in graphs) | C15: Poorest | D15: Poor | E15: Middle | F15: Rich | G15: Richest | H15: Poorest | I15: Poor | J15: Middle | K15: Rich | L15: Richest | M15: Poorest | N15: Poor | O15: Middle | P15: Rich | Q15: Richest | R15: Bafatá | S15: Biombo | T15: Bolama/Bijagós | U15: Cacheu | V15: Gabú | W15: Oio | X15: Quinará | Y15: SAB | Z15: Tombali | BA15: Water data, raw numbers (weighted) | BC15: Poorest | BD15: Poor | BE15: Middle | BF15: Rich | BG15: Richest | BH15: Poorest | BI15: Poor | BJ15: Middle | BK15: Rich | BL15: Richest | BM15: Poorest | BN15: Poor | BO15: Middle | BP15: Rich | BQ15: Richest | BR15: Bafatá | BS15: Biombo | BT15: Bolama/Bijagós | BU15: Cacheu | BV15: Gabú | BW15: Oio | BX15: Quinará | BY15: SAB | BZ15: Tombali
A16: Water | B16: Improved | C16: 41.64339643 | D16: 52.65808139 | E16: 54.1590558 | F16: 64.13820106 | G16: 88.35467098 | H16: 53.16955291 | I16: 79.69614758 | J16: 84.10137406 | K16: 87.97771509 | L16: 92.16244358 | M16: 40.9425669 | N16: 47.20160942 | O16: 53.09039484 | P16: 52.63861296 | Q16: 52.74983358 | R16: 55.34817805 | S16: 62.69961403 | T16: 54.67377808 | U16: 52.0874413 | V16: 45.42797895 | W16: 39.29920483 | X16: 62.02287822 | Y16: 92.28513422 | Z16: 47.49365517 | BA16: Water | BB16: Improved | BC16: N/A | BD16: N/A | BE16: N/A | BF16: N/A | BG16: N/A | BH16: N/A | BI16: N/A | BJ16: N/A | BK16: N/A | BL16: N/A | BM16: N/A | BN16: N/A | BO16: N/A | BP16: N/A | BQ16: N/A | BR16: N/A | BS16: N/A | BT16: N/A | BU16: N/A | BV16: N/A | BW16: N/A | BX16: N/A | BY16: N/A | BZ16: N/A
B17: Not Improved | C17: 58.35660357 | D17: 47.34191861 | E17: 45.8409442 | F17: 35.86179894 | G17: 11.64532902 | H17: 46.83044709 | I17: 20.30385242 | J17: 15.89862594 | K17: 12.02228491 | L17: 7.837556416 | M17: 59.0574331 | N17: 52.79839058 | O17: 46.90960516 | P17: 47.36138704 | Q17: 47.25016642 | R17: 44.65182195 | S17: 37.30038597 | T17: 45.32622192 | U17: 47.9125587 | V17: 54.57202105 | W17: 60.70079517 | X17: 37.97712178 | Y17: 7.714865779 | Z17: 52.50634483 | BB17: Not Improved | BC17: N/A | BD17: N/A | BE17: N/A | BF17: N/A | BG17: N/A | BH17: N/A | BI17: N/A | BJ17: N/A | BK17: N/A | BL17: N/A | BM17: N/A | BN17: N/A | BO17: N/A | BP17: N/A | BQ17: N/A | BR17: N/A | BS17: N/A | BT17: N/A | BU17: N/A | BV17: N/A | BW17: N/A | BX17: N/A | BY17: N/A | BZ17: N/A
A18: Water ladder | B18: Basic | C18: =C16*C23/100 -> 39.93075261 | D18: =D16*D23/100 -> 51.17254367 | E18: =E16*E23/100 -> 51.59325768 | F18: 61.268628 | G18: 83.80754174 | H18: 50.34685305 | I18: 76.40303348 | J18: 79.79166373 | K18: 83.04609774 | L18: 86.88336361 | M18: 39.0673041 | N18: 45.36019284 | O18: 51.96905718 | P18: 50.53177887 | Q18: 50.71222156 | R18: 53.7901003 | S18: 62.69961403 | T18: 53.01057096 | U18: 47.19407368 | V18: 43.18780941 | W18: 38.50232674 | X18: 61.58650351 | Y18: 87.72473151 | Z18: 44.84442508 | BA18: Water ladder | BB18: Basic | BC18: N/A | BD18: N/A | BE18: N/A | BF18: N/A | BG18: N/A | BH18: N/A | BI18: N/A | BJ18: N/A | BK18: N/A | BL18: N/A | BM18: N/A | BN18: N/A | BO18: N/A | BP18: N/A | BQ18: N/A | BR18: N/A | BS18: N/A | BT18: N/A | BU18: N/A | BV18: N/A | BW18: N/A | BX18: N/A | BY18: N/A | BZ18: N/A
B19: Limited | C19: =C16*C22/100 -> 1.712643822 | D19: =D16*D22/100 -> 1.485537716 | E19: =E16*E22/100 -> 2.565798118 | F19: 2.869573058 | G19: 4.547129244 | H19: 2.822699862 | I19: 3.293114098 | J19: 4.309710331 | K19: 4.931617358 | L19: 5.279079969 | M19: 1.8752628 | N19: 1.841416577 | O19: 1.121337654 | P19: 2.106834083 | Q19: 2.037612018 | R19: 1.558077754 | S19: 0 | T19: 1.663207126 | U19: 4.893367617 | V19: 2.240169539 | W19: 0.7968780954 | X19: 0.4363747158 | Y19: 4.560402709 | Z19: 2.649230089 | BB19: Limited | BC19: N/A | BD19: N/A | BE19: N/A | BF19: N/A | BG19: N/A | BH19: N/A | BI19: N/A | BJ19: N/A | BK19: N/A | BL19: N/A | BM19: N/A | BN19: N/A | BO19: N/A | BP19: N/A | BQ19: N/A | BR19: N/A | BS19: N/A | BT19: N/A | BU19: N/A | BV19: N/A | BW19: N/A | BX19: N/A | BY19: N/A | BZ19: N/A
B20: Unimproved | C20: =100-C18-C19-C21 -> 54.53779055 | D20: =100-D18-D19-D21 -> 43.6840224 | E20: =100-E18-E19-E21 -> 42.41511392 | F20: 32.9670715 | G20: 10.92418439 | H20: 44.48315813 | I20: 19.70248584 | J20: 15.15007013 | K20: 11.57185148 | L20: 7.000448292 | M20: 54.46661256 | N20: 48.68461104 | O20: 44.36610111 | P20: 43.15949639 | Q20: 42.8087525 | R20: 38.68770389 | S20: 31.45259035 | T20: 27.32248839 | U20: 46.45663739 | V20: 53.384084 | W20: 58.40971772 | X20: 32.59605449 | Y20: 7.23420659 | Z20: 50.71189717 | BB20: Unimproved | BC20: N/A | BD20: N/A | BE20: N/A | BF20: N/A | BG20: N/A | BH20: N/A | BI20: N/A | BJ20: N/A | BK20: N/A | BL20: N/A | BM20: N/A | BN20: N/A | BO20: N/A | BP20: N/A | BQ20: N/A | BR20: N/A | BS20: N/A | BT20: N/A | BU20: N/A | BV20: N/A | BW20: N/A | BX20: N/A | BY20: N/A | BZ20: N/A
B21: Surface water | C21: 3.818813019 | D21: 3.657896217 | E21: 3.425830284 | F21: 2.894727441 | G21: 0.7211446239 | H21: 2.347288961 | I21: 0.6013665757 | J21: 0.7485558026 | K21: 0.4504334261 | L21: 0.8371081241 | M21: 4.59082054 | N21: 4.113779539 | O21: 2.543504058 | P21: 4.201890653 | Q21: 4.441413922 | R21: 5.96411806 | S21: 5.847795616 | T21: 18.00373353 | U21: 1.455921308 | V21: 1.187937044 | W21: 2.291077443 | X21: 5.381067284 | Y21: 0.4806591897 | Z21: 1.79444766 | BB21: Surface water | BC21: N/A | BD21: N/A | BE21: N/A | BF21: N/A | BG21: N/A | BH21: N/A | BI21: N/A | BJ21: N/A | BK21: N/A | BL21: N/A | BM21: N/A | BN21: N/A | BO21: N/A | BP21: N/A | BQ21: N/A | BR21: N/A | BS21: N/A | BT21: N/A | BU21: N/A | BV21: N/A | BW21: N/A | BX21: N/A | BY21: N/A | BZ21: N/A
A22: Improved water point at more than 30 minutes | B22: Yes | C22: 4.112642024 | D22: 2.821101104 | E22: 4.737523725 | F22: 4.474046684 | G22: 5.146450316 | H22: 5.308865145 | I22: 4.13208693 | J22: 5.124423208 | K22: 5.605530165 | L22: 5.728016494 | M22: 4.580227725 | N22: 3.901173285 | O22: 2.112129053 | P22: 4.002449845 | Q22: 3.862783786 | R22: 2.815047954 | S22: 0 | T22: 3.042056328 | U22: 9.39452485 | V22: 4.931255122 | W22: 2.02772066 | X22: 0.7035705667 | Y22: 4.941643904 | Z22: 5.578071595 | BA22: Improved water point at more than 30 minutes | BB22: Yes | BC22: N/A | BD22: N/A | BE22: N/A | BF22: N/A | BG22: N/A | BH22: N/A | BI22: N/A | BJ22: N/A | BK22: N/A | BL22: N/A | BM22: N/A | BN22: N/A | BO22: N/A | BP22: N/A | BQ22: N/A | BR22: N/A | BS22: N/A | BT22: N/A | BU22: N/A | BV22: N/A | BW22: N/A | BX22: N/A | BY22: N/A | BZ22: N/A
B23: No | C23: 95.88735798 | D23: 97.1788989 | E23: 95.26247627 | F23: 95.52595332 | G23: 94.85354968 | H23: 94.69113486 | I23: 95.86791307 | J23: 94.87557679 | K23: 94.39446984 | L23: 94.27198351 | M23: 95.41977228 | N23: 96.09882672 | O23: 97.88787095 | P23: 95.99755016 | Q23: 96.13721621 | R23: 97.18495205 | S23: 100 | T23: 96.95794367 | U23: 90.60547515 | V23: 95.06874488 | W23: 97.97227934 | X23: 99.29642943 | Y23: 95.0583561 | Z23: 94.4219284 | BB23: No | BC23: N/A | BD23: N/A | BE23: N/A | BF23: N/A | BG23: N/A | BH23: N/A | BI23: N/A | BJ23: N/A | BK23: N/A | BL23: N/A | BM23: N/A | BN23: N/A | BO23: N/A | BP23: N/A | BQ23: N/A | BR23: N/A | BS23: N/A | BT23: N/A | BU23: N/A | BV23: N/A | BW23: N/A | BX23: N/A | BY23: N/A | BZ23: N/A
A24: Manually calculated ratios | B24: Improved wells
B25: Improved springs
B26: Other
C27: NATIONAL wealth index quintile | H27: URBAN wealth index quintile | M27: RURAL wealth index quintile | R27: SUB-REGIONS: | BA27: Raw numbers of respondents: | BB27: Use of drinking water sources | BC27: NATIONAL wealth index quintile | BH27: URBAN wealth index quintile | BM27: RURAL wealth index quintile | BR27: SUB-REGIONS:
A28: Percentage based on weighted population | C28: Poorest | D28: Poor | E28: Middle | F28: Rich | G28: Richest | H28: Poorest | I28: Poor | J28: Middle | K28: Rich | L28: Richest | M28: Poorest | N28: Poor | O28: Middle | P28: Rich | Q28: Richest | R28: Bafatá | S28: Biombo | T28: Bolama/Bijagós | U28: Cacheu | V28: Gabú | W28: Oio | X28: Quinará | Y28: SAB | Z28: Tombali | BA28: Water data, raw numbers (weighted) | BC28: Poorest | BD28: Poor | BE28: Middle | BF28: Rich | BG28: Richest | BH28: Poorest | BI28: Poor | BJ28: Middle | BK28: Rich | BL28: Richest | BM28: Poorest | BN28: Poor | BO28: Middle | BP28: Rich | BQ28: Richest | BR28: Bafatá | BS28: Biombo | BT28: Bolama/Bijagós | BU28: Cacheu | BV28: Gabú | BW28: Oio | BX28: Quinará | BY28: SAB | BZ28: Tombali
A29: Piped water | B29: Yes | C29: 7.027184497 | D29: 5.23514792 | E29: 5.033910015 | F29: 18.29436699 | G29: 55.65314644 | H29: 6.515396189 | I29: 30.90789386 | J29: 44.95285457 | K29: 53.49760301 | L29: 65.58315864 | M29: 7.972545176 | N29: 3.158349091 | O29: 7.010077604 | P29: 4.694348272 | Q29: 6.24050685 | R29: 14.9820716 | S29: 0.2191987281 | T29: 1.061812663 | U29: 6.559568569 | V29: 11.16475712 | W29: 1.404815401 | X29: 2.012600113 | Y29: 56.35010151 | Z29: 3.14675825 | BA29: Piped water | BB29: Yes | BC29: N/A | BD29: N/A | BE29: N/A | BF29: N/A | BG29: N/A | BH29: N/A | BI29: N/A | BJ29: N/A | BK29: N/A | BL29: N/A | BM29: N/A | BN29: N/A | BO29: N/A | BP29: N/A | BQ29: N/A | BR29: N/A | BS29: N/A | BT29: N/A | BU29: N/A | BV29: N/A | BW29: N/A | BX29: N/A | BY29: N/A | BZ29: N/A
B30: No | C30: 92.9728155 | D30: 94.76485208 | E30: 94.96608998 | F30: 81.70563301 | G30: 44.34685356 | H30: 93.48460381 | I30: 69.09210614 | J30: 55.04714543 | K30: 46.50239699 | L30: 34.41684136 | M30: 92.02745482 | N30: 96.84165091 | O30: 92.9899224 | P30: 95.30565173 | Q30: 93.75949315 | R30: 85.0179284 | S30: 99.78080127 | T30: 98.93818734 | U30: 93.44043143 | V30: 88.83524288 | W30: 98.5951846 | X30: 97.98739989 | Y30: 43.64989849 | Z30: 96.85324175 | BB30: No | BC30: N/A | BD30: N/A | BE30: N/A | BF30: N/A | BG30: N/A | BH30: N/A | BI30: N/A | BJ30: N/A | BK30: N/A | BL30: N/A | BM30: N/A | BN30: N/A | BO30: N/A | BP30: N/A | BQ30: N/A | BR30: N/A | BS30: N/A | BT30: N/A | BU30: N/A | BV30: N/A | BW30: N/A | BX30: N/A | BY30: N/A | BZ30: N/A
A31: Piped water on premises | B31: Yes | C31: 0.5802998192 | D31: 0 | E31: 0.4151258891 | F31: 4.339126693 | G31: 21.97476047 | H31: 0.8262512802 | I31: 8.168467533 | J31: 13.45349135 | K31: 17.78605908 | L31: 32.91904767 | M31: 0.9090170694 | N31: 0 | O31: 0 | P31: 0.5419280391 | Q31: 0 | R31: 0.5029153574 | S31: 0.2191987281 | T31: 1.061812663 | U31: 0.312112147 | V31: 0.3849237611 | W31: 0.695322003 | X31: 0.5622430853 | Y31: 20.86623054 | Z31: 0.1478969302 | BA31: Piped water on premises | BB31: Yes | BC31: N/A | BD31: N/A | BE31: N/A | BF31: N/A | BG31: N/A | BH31: N/A | BI31: N/A | BJ31: N/A | BK31: N/A | BL31: N/A | BM31: N/A | BN31: N/A | BO31: N/A | BP31: N/A | BQ31: N/A | BR31: N/A | BS31: N/A | BT31: N/A | BU31: N/A | BV31: N/A | BW31: N/A | BX31: N/A | BY31: N/A | BZ31: N/A
B32: No | C32: 99.41970018 | D32: 100 | E32: 99.58487411 | F32: 95.66087331 | G32: 78.02523953 | H32: 99.17374872 | I32: 91.83153247 | J32: 86.54650865 | K32: 82.21394092 | L32: 67.08095233 | M32: 99.09098293 | N32: 100 | O32: 100 | P32: 99.45807196 | Q32: 100 | R32: 99.49708464 | S32: 99.78080127 | T32: 98.93818734 | U32: 99.68788785 | V32: 99.61507624 | W32: 99.304678 | X32: 99.43775691 | Y32: 79.13376946 | Z32: 99.85210307 | BB32: No | BC32: N/A | BD32: N/A | BE32: N/A | BF32: N/A | BG32: N/A | BH32: N/A | BI32: N/A | BJ32: N/A | BK32: N/A | BL32: N/A | BM32: N/A | BN32: N/A | BO32: N/A | BP32: N/A | BQ32: N/A | BR32: N/A | BS32: N/A | BT32: N/A | BU32: N/A | BV32: N/A | BW32: N/A | BX32: N/A | BY32: N/A | BZ32: N/A
A33: Piped water into dwelling | B33: Yes | C33: N/A | D33: N/A | E33: N/A | F33: N/A | G33: N/A | H33: N/A | I33: N/A | J33: N/A | K33: N/A | L33: N/A | M33: N/A | N33: N/A | O33: N/A | P33: N/A | Q33: N/A | R33: N/A | S33: N/A | T33: N/A | U33: N/A | V33: N/A | W33: N/A | X33: N/A | Y33: N/A | Z33: N/A | BA33: Piped water into dwelling | BB33: Yes | BC33: N/A | BD33: N/A | BE33: N/A | BF33: N/A | BG33: N/A | BH33: N/A | BI33: N/A | BJ33: N/A | BK33: N/A | BL33: N/A | BM33: N/A | BN33: N/A | BO33: N/A | BP33: N/A | BQ33: N/A | BR33: N/A | BS33: N/A | BT33: N/A | BU33: N/A | BV33: N/A | BW33: N/A | BX33: N/A | BY33: N/A | BZ33: N/A
B34: No | C34: N/A | D34: N/A | E34: N/A | F34: N/A | G34: N/A | H34: N/A | I34: N/A | J34: N/A | K34: N/A | L34: N/A | M34: N/A | N34: N/A | O34: N/A | P34: N/A | Q34: N/A | R34: N/A | S34: N/A | T34: N/A | U34: N/A | V34: N/A | W34: N/A | X34: N/A | Y34: N/A | Z34: N/A | BB34: No | BC34: N/A | BD34: N/A | BE34: N/A | BF34: N/A | BG34: N/A | BH34: N/A | BI34: N/A | BJ34: N/A | BK34: N/A | BL34: N/A | BM34: N/A | BN34: N/A | BO34: N/A | BP34: N/A | BQ34: N/A | BR34: N/A | BS34: N/A | BT34: N/A | BU34: N/A | BV34: N/A | BW34: N/A | BX34: N/A | BY34: N/A | BZ34: N/A
A35: Water source on premises | B35: Yes | C35: 15.877437 | D35: 17.28225047 | E35: 15.26210443 | F35: 22.96581749 | G35: 38.58860431 | H35: 23.76764889 | I35: 27.50899195 | J35: 31.37897141 | K35: 35.47522268 | L35: 47.57998978 | M35: 13.72221041 | N35: 16.56218031 | O35: 18.72317149 | P35: 14.99176819 | Q35: 14.50975772 | R35: 7.970337622 | S35: 14.87628803 | T35: 7.03975869 | U35: 21.75089266 | V35: 22.44347287 | W35: 18.2684443 | X35: 11.96085074 | Y35: 36.75840289 | Z35: 23.59339114 | BA35: Water source on premises | BB35: Yes | BC35: N/A | BD35: N/A | BE35: N/A | BF35: N/A | BG35: N/A | BH35: N/A | BI35: N/A | BJ35: N/A | BK35: N/A | BL35: N/A | BM35: N/A | BN35: N/A | BO35: N/A | BP35: N/A | BQ35: N/A | BR35: N/A | BS35: N/A | BT35: N/A | BU35: N/A | BV35: N/A | BW35: N/A | BX35: N/A | BY35: N/A | BZ35: N/A
B36: No | C36: 84.122563 | D36: 82.71774953 | E36: 84.73789557 | F36: 77.03418251 | G36: 61.41139569 | H36: 76.23235111 | I36: 72.49100805 | J36: 68.62102859 | K36: 64.52477732 | L36: 52.42001022 | M36: 86.27778959 | N36: 83.43781969 | O36: 81.27682851 | P36: 85.00823181 | Q36: 85.49024228 | R36: 92.02966238 | S36: 85.12371197 | T36: 92.96024131 | U36: 78.24910734 | V36: 77.55652713 | W36: 81.7315557 | X36: 88.03914926 | Y36: 63.24159711 | Z36: 76.40660886 | BB36: No | BC36: N/A | BD36: N/A | BE36: N/A | BF36: N/A | BG36: N/A | BH36: N/A | BI36: N/A | BJ36: N/A | BK36: N/A | BL36: N/A | BM36: N/A | BN36: N/A | BO36: N/A | BP36: N/A | BQ36: N/A | BR36: N/A | BS36: N/A | BT36: N/A | BU36: N/A | BV36: N/A | BW36: N/A | BX36: N/A | BY36: N/A | BZ36: N/A
A37: Improved Water source on premises | B37: Yes | C37: 8.98018743 | D37: 13.48212766 | E37: 11.85701231 | F37: 22.46275436 | G37: 40.31290397 | H37: 15.67309476 | I37: 27.67180654 | J37: 33.54652114 | K37: 35.96593493 | L37: 50.07513345 | M37: 8.112311187 | N37: 11.34495297 | O37: 14.15849572 | P37: 11.04146754 | Q37: 11.8560592 | R37: 4.701781894 | S37: 13.72023777 | T37: 5.049427754 | U37: 17.02907669 | V37: 18.45541537 | W37: 15.9906754 | X37: 7.299758135 | Y37: 37.82693718 | Z37: 15.67928104 | BA37: Improved water source on premises | BB37: Yes | BC37: N/A | BD37: N/A | BE37: N/A | BF37: N/A | BG37: N/A | BH37: N/A | BI37: N/A | BJ37: N/A | BK37: N/A | BL37: N/A | BM37: N/A | BN37: N/A | BO37: N/A | BP37: N/A | BQ37: N/A | BR37: N/A | BS37: N/A | BT37: N/A | BU37: N/A | BV37: N/A | BW37: N/A | BX37: N/A | BY37: N/A | BZ37: N/A
B38: No | C38: 91.01981257 | D38: 86.51787234 | E38: 88.14298769 | F38: 77.53724564 | G38: 59.68709603 | H38: 84.32690524 | I38: 72.32819346 | J38: 66.45347886 | K38: 64.03406507 | L38: 49.92486655 | M38: 91.88768881 | N38: 88.65504703 | O38: 85.84150428 | P38: 88.95853246 | Q38: 88.1439408 | R38: 95.29821811 | S38: 86.27976223 | T38: 94.95057225 | U38: 82.97092331 | V38: 81.54458463 | W38: 84.0093246 | X38: 92.70024187 | Y38: 62.17306282 | Z38: 84.32071896 | BB38: No | BC38: N/A | BD38: N/A | BE38: N/A | BF38: N/A | BG38: N/A | BH38: N/A | BI38: N/A | BJ38: N/A | BK38: N/A | BL38: N/A | BM38: N/A | BN38: N/A | BO38: N/A | BP38: N/A | BQ38: N/A | BR38: N/A | BS38: N/A | BT38: N/A | BU38: N/A | BV38: N/A | BW38: N/A | BX38: N/A | BY38: N/A | BZ38: N/A
A39: Piped water on premises available when needed | B39: Yes | C39: N/A | D39: N/A | E39: N/A | F39: N/A | G39: N/A | H39: N/A | I39: N/A | J39: N/A | K39: N/A | L39: N/A | M39: N/A | N39: N/A | O39: N/A | P39: N/A | Q39: N/A | R39: N/A | S39: N/A | T39: N/A | U39: N/A | V39: N/A | W39: N/A | X39: N/A | Y39: N/A | Z39: N/A | BA39: Piped water on premises available when needed | BB39: Yes | BC39: N/A | BD39: N/A | BE39: N/A | BF39: N/A | BG39: N/A | BH39: N/A | BI39: N/A | BJ39: N/A | BK39: N/A | BL39: N/A | BM39: N/A | BN39: N/A | BO39: N/A | BP39: N/A | BQ39: N/A | BR39: N/A | BS39: N/A | BT39: N/A | BU39: N/A | BV39: N/A | BW39: N/A | BX39: N/A | BY39: N/A | BZ39: N/A
B40: No | C40: N/A | D40: N/A | E40: N/A | F40: N/A | G40: N/A | H40: N/A | I40: N/A | J40: N/A | K40: N/A | L40: N/A | M40: N/A | N40: N/A | O40: N/A | P40: N/A | Q40: N/A | R40: N/A | S40: N/A | T40: N/A | U40: N/A | V40: N/A | W40: N/A | X40: N/A | Y40: N/A | Z40: N/A | BB40: No | BC40: N/A | BD40: N/A | BE40: N/A | BF40: N/A | BG40: N/A | BH40: N/A | BI40: N/A | BJ40: N/A | BK40: N/A | BL40: N/A | BM40: N/A | BN40: N/A | BO40: N/A | BP40: N/A | BQ40: N/A | BR40: N/A | BS40: N/A | BT40: N/A | BU40: N/A | BV40: N/A | BW40: N/A | BX40: N/A | BY40: N/A | BZ40: N/A
A41: Water point at more than 30 minutes | B41: Yes | C41: 5.192435259 | D41: 4.811056707 | E41: 8.544142476 | F41: 5.85614779 | G41: 5.830880384 | H41: 5.655347843 | I41: 5.346763122 | J41: 5.235003708 | K41: 6.214202802 | L41: 7.252321559 | M41: 6.396514549 | N41: 4.257311851 | O41: 4.101096356 | P41: 8.196117212 | Q41: 7.585019489 | R41: 6.359716971 | S41: 1.712409966 | T41: 11.41629153 | U41: 11.02103813 | V41: 3.558707044 | W41: 3.141332939 | X41: 7.400360664 | Y41: 5.706740154 | Z41: 7.666259504 | BA41: Water point at more than 30 minutes | BB41: Yes | BC41: N/A | BD41: N/A | BE41: N/A | BF41: N/A | BG41: N/A | BH41: N/A | BI41: N/A | BJ41: N/A | BK41: N/A | BL41: N/A | BM41: N/A | BN41: N/A | BO41: N/A | BP41: N/A | BQ41: N/A | BR41: N/A | BS41: N/A | BT41: N/A | BU41: N/A | BV41: N/A | BW41: N/A | BX41: N/A | BY41: N/A | BZ41: N/A
B42: No | C42: 94.80756474 | D42: 95.18894329 | E42: 91.45585752 | F42: 94.14385221 | G42: 94.16911962 | H42: 94.34465216 | I42: 94.65323688 | J42: 94.76499629 | K42: 93.7857972 | L42: 92.74767844 | M42: 93.60348545 | N42: 95.74268815 | O42: 95.89890364 | P42: 91.80388279 | Q42: 92.41498051 | R42: 93.64028303 | S42: 98.28759003 | T42: 88.58370847 | U42: 88.97896187 | V42: 96.44129296 | W42: 96.85866706 | X42: 92.59963934 | Y42: 94.29325985 | Z42: 92.3337405 | BB42: No | BC42: N/A | BD42: N/A | BE42: N/A | BF42: N/A | BG42: N/A | BH42: N/A | BI42: N/A | BJ42: N/A | BK42: N/A | BL42: N/A | BM42: N/A | BN42: N/A | BO42: N/A | BP42: N/A | BQ42: N/A | BR42: N/A | BS42: N/A | BT42: N/A | BU42: N/A | BV42: N/A | BW42: N/A | BX42: N/A | BY42: N/A | BZ42: N/A
A43: Water source available when needed | B43: Yes | C43: N/A | D43: N/A | E43: N/A | F43: N/A | G43: N/A | H43: N/A | I43: N/A | J43: N/A | K43: N/A | L43: N/A | M43: N/A | N43: N/A | O43: N/A | P43: N/A | Q43: N/A | R43: N/A | S43: N/A | T43: N/A | U43: N/A | V43: N/A | W43: N/A | X43: N/A | Y43: N/A | Z43: N/A | BA43: Water source available when needed | BB43: Yes | BC43: N/A | BD43: N/A | BE43: N/A | BF43: N/A | BG43: N/A | BH43: N/A | BI43: N/A | BJ43: N/A | BK43: N/A | BL43: N/A | BM43: N/A | BN43: N/A | BO43: N/A | BP43: N/A | BQ43: N/A | BR43: N/A | BS43: N/A | BT43: N/A | BU43: N/A | BV43: N/A | BW43: N/A | BX43: N/A | BY43: N/A | BZ43: N/A
B44: No | C44: N/A | D44: N/A | E44: N/A | F44: N/A | G44: N/A | H44: N/A | I44: N/A | J44: N/A | K44: N/A | L44: N/A | M44: N/A | N44: N/A | O44: N/A | P44: N/A | Q44: N/A | R44: N/A | S44: N/A | T44: N/A | U44: N/A | V44: N/A | W44: N/A | X44: N/A | Y44: N/A | Z44: N/A | BB44: No | BC44: N/A | BD44: N/A | BE44: N/A | BF44: N/A | BG44: N/A | BH44: N/A | BI44: N/A | BJ44: N/A | BK44: N/A | BL44: N/A | BM44: N/A | BN44: N/A | BO44: N/A | BP44: N/A | BQ44: N/A | BR44: N/A | BS44: N/A | BT44: N/A | BU44: N/A | BV44: N/A | BW44: N/A | BX44: N/A | BY44: N/A | BZ44: N/A
A45: Improved water source available when needed | B45: Yes | C45: N/A | D45: N/A | E45: N/A | F45: N/A | G45: N/A | H45: N/A | I45: N/A | J45: N/A | K45: N/A | L45: N/A | M45: N/A | N45: N/A | O45: N/A | P45: N/A | Q45: N/A | R45: N/A | S45: N/A | T45: N/A | U45: N/A | V45: N/A | W45: N/A | X45: N/A | Y45: N/A | Z45: N/A | BA45: Improved water source available when needed | BB45: Yes | BC45: N/A | BD45: N/A | BE45: N/A | BF45: N/A | BG45: N/A | BH45: N/A | BI45: N/A | BJ45: N/A | BK45: N/A | BL45: N/A | BM45: N/A | BN45: N/A | BO45: N/A | BP45: N/A | BQ45: N/A | BR45: N/A | BS45: N/A | BT45: N/A | BU45: N/A | BV45: N/A | BW45: N/A | BX45: N/A | BY45: N/A | BZ45: N/A
B46: No | C46: N/A | D46: N/A | E46: N/A | F46: N/A | G46: N/A | H46: N/A | I46: N/A | J46: N/A | K46: N/A | L46: N/A | M46: N/A | N46: N/A | O46: N/A | P46: N/A | Q46: N/A | R46: N/A | S46: N/A | T46: N/A | U46: N/A | V46: N/A | W46: N/A | X46: N/A | Y46: N/A | Z46: N/A | BB46: No | BC46: N/A | BD46: N/A | BE46: N/A | BF46: N/A | BG46: N/A | BH46: N/A | BI46: N/A | BJ46: N/A | BK46: N/A | BL46: N/A | BM46: N/A | BN46: N/A | BO46: N/A | BP46: N/A | BQ46: N/A | BR46: N/A | BS46: N/A | BT46: N/A | BU46: N/A | BV46: N/A | BW46: N/A | BX46: N/A | BY46: N/A | BZ46: N/A
A47: Microbiological quality at point of collection | B47: Not contaminated (No E. coli in 100 mL) | C47: N/A | D47: N/A | E47: N/A | F47: N/A | G47: N/A | H47: N/A | I47: N/A | J47: N/A | K47: N/A | L47: N/A | M47: N/A | N47: N/A | O47: N/A | P47: N/A | Q47: N/A | R47: N/A | S47: N/A | T47: N/A | U47: N/A | V47: N/A | W47: N/A | X47: N/A | Y47: N/A | Z47: N/A | BA47: Microbiological quality at point of collection | BB47: Not contaminated (No E. coli in 100 mL) | BC47: N/A | BD47: N/A | BE47: N/A | BF47: N/A | BG47: N/A | BH47: N/A | BI47: N/A | BJ47: N/A | BK47: N/A | BL47: N/A | BM47: N/A | BN47: N/A | BO47: N/A | BP47: N/A | BQ47: N/A | BR47: N/A | BS47: N/A | BT47: N/A | BU47: N/A | BV47: N/A | BW47: N/A | BX47: N/A | BY47: N/A | BZ47: N/A
B48: Contaminated (E. coli detected in 100 mL) | C48: N/A | D48: N/A | E48: N/A | F48: N/A | G48: N/A | H48: N/A | I48: N/A | J48: N/A | K48: N/A | L48: N/A | M48: N/A | N48: N/A | O48: N/A | P48: N/A | Q48: N/A | R48: N/A | S48: N/A | T48: N/A | U48: N/A | V48: N/A | W48: N/A | X48: N/A | Y48: N/A | Z48: N/A | BB48: Contaminated (E. coli detected in 100 mL) | BC48: N/A | BD48: N/A | BE48: N/A | BF48: N/A | BG48: N/A | BH48: N/A | BI48: N/A | BJ48: N/A | BK48: N/A | BL48: N/A | BM48: N/A | BN48: N/A | BO48: N/A | BP48: N/A | BQ48: N/A | BR48: N/A | BS48: N/A | BT48: N/A | BU48: N/A | BV48: N/A | BW48: N/A | BX48: N/A | BY48: N/A | BZ48: N/A
B49: Highly contaminated (>100 CFU/100 mL) | C49: N/A | D49: N/A | E49: N/A | F49: N/A | G49: N/A | H49: N/A | I49: N/A | J49: N/A | K49: N/A | L49: N/A | M49: N/A | N49: N/A | O49: N/A | P49: N/A | Q49: N/A | R49: N/A | S49: N/A | T49: N/A | U49: N/A | V49: N/A | W49: N/A | X49: N/A | Y49: N/A | Z49: N/A | BB49: Highly contaminated (>100 CFU/100 mL) | BC49: N/A | BD49: N/A | BE49: N/A | BF49: N/A | BG49: N/A | BH49: N/A | BI49: N/A | BJ49: N/A | BK49: N/A | BL49: N/A | BM49: N/A | BN49: N/A | BO49: N/A | BP49: N/A | BQ49: N/A | BR49: N/A | BS49: N/A | BT49: N/A | BU49: N/A | BV49: N/A | BW49: N/A | BX49: N/A | BY49: N/A | BZ49: N/A
A50: Microbiological quality of improved water sources at point of collection | B50: Not contaminated (No E. coli in 100 mL) | C50: N/A | D50: N/A | E50: N/A | F50: N/A | G50: N/A | H50: N/A | I50: N/A | J50: N/A | K50: N/A | L50: N/A | M50: N/A | N50: N/A | O50: N/A | P50: N/A | Q50: N/A | R50: N/A | S50: N/A | T50: N/A | U50: N/A | V50: N/A | W50: N/A | X50: N/A | Y50: N/A | Z50: N/A | BA50: Microbiological quality of improved water sources at point of collection | BB50: Not contaminated (No E. coli in 100 mL) | BC50: N/A | BD50: N/A | BE50: N/A | BF50: N/A | BG50: N/A | BH50: N/A | BI50: N/A | BJ50: N/A | BK50: N/A | BL50: N/A | BM50: N/A | BN50: N/A | BO50: N/A | BP50: N/A | BQ50: N/A | BR50: N/A | BS50: N/A | BT50: N/A | BU50: N/A | BV50: N/A | BW50: N/A | BX50: N/A | BY50: N/A | BZ50: N/A
B51: Contaminated (E. coli detected in 100 mL) | C51: N/A | D51: N/A | E51: N/A | F51: N/A | G51: N/A | H51: N/A | I51: N/A | J51: N/A | K51: N/A | L51: N/A | M51: N/A | N51: N/A | O51: N/A | P51: N/A | Q51: N/A | R51: N/A | S51: N/A | T51: N/A | U51: N/A | V51: N/A | W51: N/A | X51: N/A | Y51: N/A | Z51: N/A | BB51: Contaminated (E. coli detected in 100 mL) | BC51: N/A | BD51: N/A | BE51: N/A | BF51: N/A | BG51: N/A | BH51: N/A | BI51: N/A | BJ51: N/A | BK51: N/A | BL51: N/A | BM51: N/A | BN51: N/A | BO51: N/A | BP51: N/A | BQ51: N/A | BR51: N/A | BS51: N/A | BT51: N/A | BU51: N/A | BV51: N/A | BW51: N/A | BX51: N/A | BY51: N/A | BZ51: N/A
B52: Highly contaminated (>100 CFU/100 mL) | C52: N/A | D52: N/A | E52: N/A | F52: N/A | G52: N/A | H52: N/A | I52: N/A | J52: N/A | K52: N/A | L52: N/A | M52: N/A | N52: N/A | O52: N/A | P52: N/A | Q52: N/A | R52: N/A | S52: N/A | T52: N/A | U52: N/A | V52: N/A | W52: N/A | X52: N/A | Y52: N/A | Z52: N/A | BB52: Highly contaminated (>100 CFU/100 mL) | BC52: N/A | BD52: N/A | BE52: N/A | BF52: N/A | BG52: N/A | BH52: N/A | BI52: N/A | BJ52: N/A | BK52: N/A | BL52: N/A | BM52: N/A | BN52: N/A | BO52: N/A | BP52: N/A | BQ52: N/A | BR52: N/A | BS52: N/A | BT52: N/A | BU52: N/A | BV52: N/A | BW52: N/A | BX52: N/A | BY52: N/A | BZ52: N/A
A53: Microbiological quality of piped on premises at point of collection | B53: Not contaminated (No E. coli in 100 mL) | C53: N/A | D53: N/A | E53: N/A | F53: N/A | G53: N/A | H53: N/A | I53: N/A | J53: N/A | K53: N/A | L53: N/A | M53: N/A | N53: N/A | O53: N/A | P53: N/A | Q53: N/A | R53: N/A | S53: N/A | T53: N/A | U53: N/A | V53: N/A | W53: N/A | X53: N/A | Y53: N/A | Z53: N/A | BA53: Microbiological quality of piped on premises at point of collection | BB53: Not contaminated (No E. coli in 100 mL) | BC53: N/A | BD53: N/A | BE53: N/A | BF53: N/A | BG53: N/A | BH53: N/A | BI53: N/A | BJ53: N/A | BK53: N/A | BL53: N/A | BM53: N/A | BN53: N/A | BO53: N/A | BP53: N/A | BQ53: N/A | BR53: N/A | BS53: N/A | BT53: N/A | BU53: N/A | BV53: N/A | BW53: N/A | BX53: N/A | BY53: N/A | BZ53: N/A
B54: Contaminated (E. coli detected in 100 mL) | C54: N/A | D54: N/A | E54: N/A | F54: N/A | G54: N/A | H54: N/A | I54: N/A | J54: N/A | K54: N/A | L54: N/A | M54: N/A | N54: N/A | O54: N/A | P54: N/A | Q54: N/A | R54: N/A | S54: N/A | T54: N/A | U54: N/A | V54: N/A | W54: N/A | X54: N/A | Y54: N/A | Z54: N/A | BB54: Contaminated (E. coli detected in 100 mL) | BC54: N/A | BD54: N/A | BE54: N/A | BF54: N/A | BG54: N/A | BH54: N/A | BI54: N/A | BJ54: N/A | BK54: N/A | BL54: N/A | BM54: N/A | BN54: N/A | BO54: N/A | BP54: N/A | BQ54: N/A | BR54: N/A | BS54: N/A | BT54: N/A | BU54: N/A | BV54: N/A | BW54: N/A | BX54: N/A | BY54: N/A | BZ54: N/A
B55: Highly contaminated (>100 CFU/100 mL) | C55: N/A | D55: N/A | E55: N/A | F55: N/A | G55: N/A | H55: N/A | I55: N/A | J55: N/A | K55: N/A | L55: N/A | M55: N/A | N55: N/A | O55: N/A | P55: N/A | Q55: N/A | R55: N/A | S55: N/A | T55: N/A | U55: N/A | V55: N/A | W55: N/A | X55: N/A | Y55: N/A | Z55: N/A | BB55: Highly contaminated (>100 CFU/100 mL) | BC55: N/A | BD55: N/A | BE55: N/A | BF55: N/A | BG55: N/A | BH55: N/A | BI55: N/A | BJ55: N/A | BK55: N/A | BL55: N/A | BM55: N/A | BN55: N/A | BO55: N/A | BP55: N/A | BQ55: N/A | BR55: N/A | BS55: N/A | BT55: N/A | BU55: N/A | BV55: N/A | BW55: N/A | BX55: N/A | BY55: N/A | BZ55: N/A
C56: NATIONAL wealth index quintile | H56: URBAN wealth index quintile | M56: RURAL wealth index quintile | R56: SUB-REGIONS: | BA56: Raw numbers of respondents: | BB56: Use of drinking water sources | BC56: NATIONAL wealth index quintile | BH56: URBAN wealth index quintile | BM56: RURAL wealth index quintile | BR56: SUB-REGIONS:
A57: Percentage based on weighted population | C57: Poorest | D57: Poor | E57: Middle | F57: Rich | G57: Richest | H57: Poorest | I57: Poor | J57: Middle | K57: Rich | L57: Richest | M57: Poorest | N57: Poor | O57: Middle | P57: Rich | Q57: Richest | R57: Bafatá | S57: Biombo | T57: Bolama/Bijagós | U57: Cacheu | V57: Gabú | W57: Oio | X57: Quinará | Y57: SAB | Z57: Tombali | BA57: Water data, raw numbers (weighted) | BC57: Poorest | BD57: Poor | BE57: Middle | BF57: Rich | BG57: Richest | BH57: Poorest | BI57: Poor | BJ57: Middle | BK57: Rich | BL57: Richest | BM57: Poorest | BN57: Poor | BO57: Middle | BP57: Rich | BQ57: Richest | BR57: Bafatá | BS57: Biombo | BT57: Bolama/Bijagós | BU57: Cacheu | BV57: Gabú | BW57: Oio | BX57: Quinará | BY57: SAB | BZ57: Tombali
A58: Fonte principal de abastecimento de água | B58: Água canalizada dentro da casa | C58: 0.2946785129 | D58: 0 | E58: 0 | F58: 2.245596921 | G58: 14.02682827 | H58: 0.1891281115 | I58: 3.624230165 | J58: 8.324871577 | K58: 9.449299429 | L58: 23.50314035 | M58: 0.4616024155 | N58: 0 | O58: 0 | P58: 0 | Q58: 0 | R58: 0.5029153574 | S58: 0 | T58: 0 | U58: 0.312112147 | V58: 0 | W58: 0 | X58: 0.2811215426 | Y58: 13.06113242 | Z58: 0
B59: Água canalizada fora da casa | C59: 0.4977959328 | D59: 0.2444977671 | E59: 0.5776819598 | F59: 9.619667034 | G59: 29.54366543 | H59: 2.315655669 | I59: 19.06502548 | J59: 28.21415752 | K59: 30.42139819 | L59: 28.88728759 | M59: 0 | N59: 0.7819615313 | O59: 0.2791989796 | P59: 0.3172993422 | Q59: 0.4830297856 | R59: 0.0899923249 | S59: 0 | T59: 0 | U59: 0.6586866807 | V59: 1.298032204 | W59: 0.6432722553 | X59: 0 | Y59: 31.47981051 | Z59: 0.5070751892
B60: Água canalizada no quintal | C60: 0.2856213063 | D60: 0 | E60: 0.4151258891 | F60: 2.093529772 | G60: 7.947932198 | H60: 0.6371231687 | I60: 4.544237368 | J60: 5.128619772 | K60: 8.33675965 | L60: 9.415907324 | M60: 0.4474146539 | N60: 0 | O60: 0 | P60: 0.5419280391 | Q60: 0 | R60: 0 | S60: 0.2191987281 | T60: 1.061812663 | U60: 0 | V60: 0.3849237611 | W60: 0.695322003 | X60: 0.2811215426 | Y60: 7.805098128 | Z60: 0.1478969302
B61: Fontenário | C61: 5.949088745 | D61: 4.990650153 | E61: 4.041102166 | F61: 4.335573263 | G61: 4.134720544 | H61: 3.37348924 | I61: 3.674400849 | J61: 3.285205708 | K61: 5.290145741 | L61: 3.776823373 | M61: 7.063528107 | N61: 2.37638756 | O61: 6.730878624 | P61: 3.835120891 | Q61: 5.757477064 | R61: 14.38916392 | S61: 0 | T61: 0 | U61: 5.588769741 | V61: 9.481801154 | W61: 0.06622114314 | X61: 1.450357028 | Y61: 4.004060456 | Z61: 2.491786131
B62: Furo | C62: 17.27814608 | D62: 18.57091997 | E62: 18.85607033 | F62: 8.850207074 | G62: 0.9281012921 | H62: 14.47984856 | I62: 2.887851806 | J62: 0.6382048999 | K62: 1.097382729 | L62: 1.077806719 | M62: 18.19037462 | N62: 17.63627258 | O62: 17.75340222 | P62: 18.27786417 | Q62: 17.67601171 | R62: 19.75990019 | S62: 11.27871366 | T62: 25.30294866 | U62: 9.177024497 | V62: 16.55796352 | W62: 19.73395551 | X62: 26.37032764 | Y62: 0.5639521769 | Z62: 15.14904382
B63: Poço ou fonte de água protegida | C63: 17.33806585 | D63: 28.76092162 | E63: 30.26907546 | F63: 36.80464331 | G63: 31.77342325 | H63: 31.88253591 | I63: 45.67150317 | J63: 38.51031459 | K63: 33.38272935 | L63: 25.50147823 | M63: 14.77964711 | N63: 26.26405856 | O63: 28.32691501 | P63: 29.66640051 | Q63: 28.83331502 | R63: 20.4262216 | S63: 51.20170164 | T63: 28.30901675 | U63: 36.22413347 | V63: 17.70525831 | W63: 18.16043392 | X63: 33.63995047 | Y63: 35.30340627 | Z63: 29.1978531
B64: Poço ou fonte não protegido | C64: 54.43807331 | D64: 43.66059764 | E64: 42.16552927 | F64: 32.54779337 | G64: 10.93452637 | H64: 44.04835339 | I64: 18.73778541 | J64: 15.15542765 | K64: 11.57519319 | L64: 7.023117456 | M64: 54.48499046 | N64: 48.52466022 | O64: 44.38012431 | P64: 42.8519043 | Q64: 42.78129128 | R64: 38.33408046 | S64: 30.78435331 | T64: 27.32248839 | U64: 46.45890944 | V64: 53.38864328 | W64: 58.28372344 | X64: 32.55893949 | Y64: 7.004286037 | Z64: 50.72649759
B65: Água da chuva | C65: 0 | D65: 0.0910918855 | E65: 0 | F65: 0 | G65: 0 | H65: 0 | I65: 0 | J65: 0 | K65: 0 | L65: 0 | M65: 0 | N65: 0.1429291919 | O65: 0 | P65: 0 | Q65: 0 | R65: 0 | S65: 0 | T65: 0 | U65: 0.1267147632 | V65: 0 | W65: 0 | X65: 0 | Y65: 0 | Z65: 0
B66: Lagoa, rio, ribeiro | C66: 3.798268659 | D66: 3.637329288 | E66: 3.425830284 | F66: 2.881840217 | G66: 0.7108026455 | H66: 2.34443532 | I66: 0.5951478904 | J66: 0.7431982918 | K66: 0.4470917184 | L66: 0.8144389604 | M66: 4.572442642 | N66: 4.084817712 | O66: 2.529480851 | P66: 4.201890653 | Q66: 4.441413922 | R66: 5.942773466 | S66: 5.847795616 | T66: 18.00373353 | U66: 1.453649254 | V66: 1.183377763 | W66: 2.284629438 | X66: 5.346212699 | Y66: 0.4737198286 | Z66: 1.779847236
B67: Camião cisterna | C67: 0 | D67: 0 | E67: 0 | F67: 0.1889836867 | G67: 0 | H67: 0.2917722492 | I67: 0.2288987473 | J67: 0 | K67: 0 | L67: 0 | M67: 0 | N67: 0 | O67: 0 | P67: 0 | Q67: 0 | R67: 0.1799846498 | S67: 0 | T67: 0 | U67: 0 | V67: 0 | W67: 0 | X67: 0 | Y67: 0.06767426122 | Z67: 0
B68: Outras | C68: 0 | D68: 0 | E68: 0 | F68: 0.3591450732 | G68: 0 | H68: 0.1702004787 | I68: 0.8183199552 | J68: 0 | K68: 0 | L68: 0 | M68: 0 | N68: 0 | O68: 0 | P68: 0 | Q68: 0 | R68: 0.2099820914 | S68: 0 | T68: 0 | U68: 0 | V68: 0 | W68: 0 | X68: 0 | Y68: 0.1917437401 | Z68: 0
B69: Não resposta | C69: 0.1202616026 | D69: 0.04399168483 | E69: 0.2495846505 | F69: 0.07302028411 | G69: 0 | H69: 0.2674578951 | I69: 0.1525991649 | J69: 0 | K69: 0 | L69: 0 | M69: 0 | N69: 0.1889126462 | O69: 0 | P69: 0.3075920875 | Q69: 0.02746122664 | R69: 0.164985929 | S69: 0.6682370389 | T69: 0 | U69: 0 | V69: 0 | W69: 0.1324422863 | X69: 0.07196958409 | Y69: 0.04511617415 | Z69: 0
A108: =A1026 -> Guinea-Bissau
A109: =A1034 -> 2000
A110: Use of sanitation facilities
A111: by wealth quintile and sub-national region
A112: Notes:
A113: WHO/UNICEF JMP customised wealth index excludes water,
A114: sanitation and hygiene assets.
A115: Survey used for analysis: | B115: =A1025 -> MICS00
A116: =B1030 -> Ratio of Improved latrines based on: | B116: JMP QUIBB02
A117: =B1029 -> Ratio of Shared improved based on: | B117: MICS06 Shared among sanitation
A120: Use of sanitation facilities | C120: NATIONAL wealth index quintile | H120: URBAN wealth index quintile | M120: RURAL wealth index quintile | R120: SUB-REGIONS: | BA120: Raw numbers of respondents: | BB120: Use of sanitation facilities | BC120: NATIONAL wealth index quintile | BH120: URBAN wealth index quintile | BM120: RURAL wealth index quintile | BR120: SUB-REGIONS:
A121: Weighted percentage (used in graphs) | C121: Poorest | D121: Poor | E121: Middle | F121: Rich | G121: Richest | H121: Poorest | I121: Poor | J121: Middle | K121: Rich | L121: Richest | M121: Poorest | N121: Poor | O121: Middle | P121: Rich | Q121: Richest | R121: Bafatá | S121: Biombo | T121: Bolama/Bijagós | U121: Cacheu | V121: Gabú | W121: Oio | X121: Quinará | Y121: SAB | Z121: Tombali | BA121: Sanitation data, raw numbers (weighted) | BC121: Poorest | BD121: Poor | BE121: Middle | BF121: Rich | BG121: Richest | BH121: Poorest | BI121: Poor | BJ121: Middle | BK121: Rich | BL121: Richest | BM121: Poorest | BN121: Poor | BO121: Middle | BP121: Rich | BQ121: Richest | BR121: Bafatá | BS121: Biombo | BT121: Bolama/Bijagós | BU121: Cacheu | BV121: Gabú | BW121: Oio | BX121: Quinará | BY121: SAB | BZ121: Tombali
A122: Sanitation | B122: Improved | C122: =C153+C154+C155+C156*0.25 -> 11.23622358 | D122: =D153+D154+D155+D156*0.25 -> 11.57128724 | E122: 13.04180234 | F122: 24.8512704 | G122: 50.59287435 | H122: =H153+H154+H155+H156*0.4 -> 35.65920557 | I122: =I153+I154+I155+I156*0.4 -> 42.84564097 | J122: 56.46562792 | K122: 57.81657155 | L122: 65.4897333 | M122: =M153+M154+M155+M156*0.13 -> 5.877981694 | N122: =N153+N154+N155+N156*0.13 -> 5.618594986 | O122: 6.391132378 | P122: 6.416049254 | Q122: 8.55978978 | R122: =R153+R154+R155+R156*0.5 -> 44.30118485 | S122: 6.992215995 | T122: 25.66723004 | U122: 18.285936 | V122: 44.57277416 | W122: 18.25389931 | X122: 27.04380695 | Y122: 64.3525829 | Z122: 25.02253759 | BA122: Sanitation | BB122: Improved | BC122: N/A | BD122: N/A | BE122: N/A | BF122: N/A | BG122: N/A | BH122: N/A | BI122: N/A | BJ122: N/A | BK122: N/A | BL122: N/A | BM122: N/A | BN122: N/A | BO122: N/A | BP122: N/A | BQ122: N/A | BR122: N/A | BS122: N/A | BT122: N/A | BU122: N/A | BV122: N/A | BW122: N/A | BX122: N/A | BY122: N/A | BZ122: N/A
B123: Not Improved | C123: =100-C122 -> 88.76377642 | D123: =100-D122 -> 88.42871276 | E123: 86.95819766 | F123: 75.1487296 | G123: 49.40712565 | H123: 64.34079443 | I123: 57.15435903 | J123: 43.53437208 | K123: 42.18342845 | L123: 34.5102667 | M123: 94.12201831 | N123: 94.38140501 | O123: 93.60886762 | P123: 93.58395075 | Q123: 91.44021022 | R123: 55.69881515 | S123: 93.007784 | T123: 74.33276996 | U123: 81.714064 | V123: 55.42722584 | W123: 81.74610069 | X123: 72.95619305 | Y123: 35.6474171 | Z123: 74.97746241 | BB123: Not Improved | BC123: N/A | BD123: N/A | BE123: N/A | BF123: N/A | BG123: N/A | BH123: N/A | BI123: N/A | BJ123: N/A | BK123: N/A | BL123: N/A | BM123: N/A | BN123: N/A | BO123: N/A | BP123: N/A | BQ123: N/A | BR123: N/A | BS123: N/A | BT123: N/A | BU123: N/A | BV123: N/A | BW123: N/A | BX123: N/A | BY123: N/A | BZ123: N/A
A124: Sanitation ladder | B124: Basic | C124: 7.769835607 | D124: 8.058942988 | E124: 9.076626578 | F124: 10.22600867 | G124: 24.58686188 | H124: 16.46711832 | I124: 10.3707114 | J124: 12.14685554 | K124: 23.78762636 | L124: 49.79751073 | M124: 4.284013324 | N124: 4.108303217 | O124: 4.425504173 | P124: 4.410555961 | Q124: 5.845310698 | R124: 33.24052711 | S124: 3.441169596 | T124: 11.42402402 | U124: 11.6897521 | V124: 36.07356124 | W124: 10.71480334 | X124: 18.85885965 | Y124: 22.40425228 | Z124: 14.68480182 | BA124: Sanitation ladder | BB124: Basic | BC124: N/A | BD124: N/A | BE124: N/A | BF124: N/A | BG124: N/A | BH124: N/A | BI124: N/A | BJ124: N/A | BK124: N/A | BL124: N/A | BM124: N/A | BN124: N/A | BO124: N/A | BP124: N/A | BQ124: N/A | BR124: N/A | BS124: N/A | BT124: N/A | BU124: N/A | BV124: N/A | BW124: N/A | BX124: N/A | BY124: N/A | BZ124: N/A
B125: Limited | C125: 3.342852447 | D125: 3.359535922 | E125: 3.838922627 | F125: 14.37993963 | G125: 25.83307286 | H125: 18.87936965 | I125: 32.12298092 | J125: 43.74830069 | K125: 33.56660813 | L125: 15.69222256 | M125: 1.5385115 | N125: 1.438981725 | O125: 1.862842547 | P125: 1.967008382 | Q125: 2.639841831 | R125: 10.4834548 | S125: 3.503019744 | T125: 13.85233497 | U125: 6.288869482 | V125: 8.334073446 | W125: 7.421934736 | X125: 8.094303417 | Y125: 41.48501328 | Z125: 10.27622526 | BB125: Limited | BC125: N/A | BD125: N/A | BE125: N/A | BF125: N/A | BG125: N/A | BH125: N/A | BI125: N/A | BJ125: N/A | BK125: N/A | BL125: N/A | BM125: N/A | BN125: N/A | BO125: N/A | BP125: N/A | BQ125: N/A | BR125: N/A | BS125: N/A | BT125: N/A | BU125: N/A | BV125: N/A | BW125: N/A | BX125: N/A | BY125: N/A | BZ125: N/A
B126: Unimproved | C126: =100-C124-C125-C127 -> 32.92421745 | D126: =100-D124-D125-D127 -> 33.89071399 | E126: 34.41170074 | F126: 55.06577243 | G126: 48.23398012 | H126: 49.72939869 | I126: 53.05092301 | J126: 43.53980724 | K126: 40.6870996 | L126: 33.47978699 | M126: 37.04682866 | N126: 34.9221473 | O126: 40.88488038 | P126: 35.50685261 | Q126: 42.39751121 | R126: 44.05123966 | S126: 7.168675412 | T126: 25.51699758 | U126: 15.8282415 | V126: 43.26481127 | W126: 17.84324685 | X126: 23.88612833 | Y126: 34.44143599 | Z126: 22.58584434 | BB126: Unimproved | BC126: N/A | BD126: N/A | BE126: N/A | BF126: N/A | BG126: N/A | BH126: N/A | BI126: N/A | BJ126: N/A | BK126: N/A | BL126: N/A | BM126: N/A | BN126: N/A | BO126: N/A | BP126: N/A | BQ126: N/A | BR126: N/A | BS126: N/A | BT126: N/A | BU126: N/A | BV126: N/A | BW126: N/A | BX126: N/A | BY126: N/A | BZ126: N/A
B127: Open defecation | C127: =C157+C159 -> 55.96309449 | D127: =D157+D159 -> 54.6908071 | E127: 52.67275005 | F127: 20.32827926 | G127: 1.346085143 | H127: 14.92411333 | I127: 4.455384674 | J127: 0.5650365324 | K127: 1.958665907 | L127: 1.030479711 | M127: 57.13064652 | N127: 59.53056776 | O127: 52.8267729 | P127: 58.11558305 | Q127: 49.11733626 | R127: 12.22477844 | S127: 85.88713525 | T127: 49.20664343 | U127: 66.19313691 | V127: 12.32755404 | W127: 64.02001508 | X127: 49.16070861 | Y127: 1.669298443 | Z127: 52.45312858 | BB127: Open defecation | BC127: N/A | BD127: N/A | BE127: N/A | BF127: N/A | BG127: N/A | BH127: N/A | BI127: N/A | BJ127: N/A | BK127: N/A | BL127: N/A | BM127: N/A | BN127: N/A | BO127: N/A | BP127: N/A | BQ127: N/A | BR127: N/A | BS127: N/A | BT127: N/A | BU127: N/A | BV127: N/A | BW127: N/A | BX127: N/A | BY127: N/A | BZ127: N/A
A128: Shared among Improved Sanitation | B128: Yes | C128: N/A | D128: N/A | E128: N/A | F128: N/A | G128: N/A | H128: N/A | I128: N/A | J128: N/A | K128: N/A | L128: N/A | M128: N/A | N128: N/A | O128: N/A | P128: N/A | Q128: N/A | R128: N/A | S128: N/A | T128: N/A | U128: N/A | V128: N/A | W128: N/A | X128: N/A | Y128: N/A | Z128: N/A | BA128: Shared among improved sanitation facilities | BB128: Yes | BC128: N/A | BD128: N/A | BE128: N/A | BF128: N/A | BG128: N/A | BH128: N/A | BI128: N/A | BJ128: N/A | BK128: N/A | BL128: N/A | BM128: N/A | BN128: N/A | BO128: N/A | BP128: N/A | BQ128: N/A | BR128: N/A | BS128: N/A | BT128: N/A | BU128: N/A | BV128: N/A | BW128: N/A | BX128: N/A | BY128: N/A | BZ128: N/A
B129: No | C129: N/A | D129: N/A | E129: N/A | F129: N/A | G129: N/A | H129: N/A | I129: N/A | J129: N/A | K129: N/A | L129: N/A | M129: N/A | N129: N/A | O129: N/A | P129: N/A | Q129: N/A | R129: N/A | S129: N/A | T129: N/A | U129: N/A | V129: N/A | W129: N/A | X129: N/A | Y129: N/A | Z129: N/A | BB129: No | BC129: N/A | BD129: N/A | BE129: N/A | BF129: N/A | BG129: N/A | BH129: N/A | BI129: N/A | BJ129: N/A | BK129: N/A | BL129: N/A | BM129: N/A | BN129: N/A | BO129: N/A | BP129: N/A | BQ129: N/A | BR129: N/A | BS129: N/A | BT129: N/A | BU129: N/A | BV129: N/A | BW129: N/A | BX129: N/A | BY129: N/A | BZ129: N/A
A130: Manually calculated ratios | B130: Improved latrines
B131: Other
B132: Other
C133: NATIONAL wealth index quintile | H133: URBAN wealth index quintile | M133: RURAL wealth index quintile | R133: SUB-REGIONS: | BA133: Raw numbers of respondents: | BB133: Use of sanitation facilities | BC133: NATIONAL wealth index quintile | BH133: URBAN wealth index quintile | BM133: RURAL wealth index quintile | BR133: SUB-REGIONS:
A134: Percentage based on weighted population | C134: Poorest | D134: Poor | E134: Middle | F134: Rich | G134: Richest | H134: Poorest | I134: Poor | J134: Middle | K134: Rich | L134: Richest | M134: Poorest | N134: Poor | O134: Middle | P134: Rich | Q134: Richest | R134: Bafatá | S134: Biombo | T134: Bolama/Bijagós | U134: Cacheu | V134: Gabú | W134: Oio | X134: Quinará | Y134: SAB | Z134: Tombali | BA134: Sanitation data, raw numbers (weighted) | BC134: Poorest | BD134: Poor | BE134: Middle | BF134: Rich | BG134: Richest | BH134: Poorest | BI134: Poor | BJ134: Middle | BK134: Rich | BL134: Richest | BM134: Poorest | BN134: Poor | BO134: Middle | BP134: Rich | BQ134: Richest | BR134: Bafatá | BS134: Biombo | BT134: Bolama/Bijagós | BU134: Cacheu | BV134: Gabú | BW134: Oio | BX134: Quinará | BY134: SAB | BZ134: Tombali
A135: Sanitation type | B135: Sewer connection | C135: N/A | D135: N/A | E135: N/A | F135: N/A | G135: N/A | H135: N/A | I135: N/A | J135: N/A | K135: N/A | L135: N/A | M135: N/A | N135: N/A | O135: N/A | P135: N/A | Q135: N/A | R135: N/A | S135: N/A | T135: N/A | U135: N/A | V135: N/A | W135: N/A | X135: N/A | Y135: N/A | Z135: N/A | BA135: Sanitation type | BB135: Sewer connection | BC135: N/A | BD135: N/A | BE135: N/A | BF135: N/A | BG135: N/A | BH135: N/A | BI135: N/A | BJ135: N/A | BK135: N/A | BL135: N/A | BM135: N/A | BN135: N/A | BO135: N/A | BP135: N/A | BQ135: N/A | BR135: N/A | BS135: N/A | BT135: N/A | BU135: N/A | BV135: N/A | BW135: N/A | BX135: N/A | BY135: N/A | BZ135: N/A
B136: Septic tank connection | C136: N/A | D136: N/A | E136: N/A | F136: N/A | G136: N/A | H136: N/A | I136: N/A | J136: N/A | K136: N/A | L136: N/A | M136: N/A | N136: N/A | O136: N/A | P136: N/A | Q136: N/A | R136: N/A | S136: N/A | T136: N/A | U136: N/A | V136: N/A | W136: N/A | X136: N/A | Y136: N/A | Z136: N/A | BB136: Septic tank connection | BC136: N/A | BD136: N/A | BE136: N/A | BF136: N/A | BG136: N/A | BH136: N/A | BI136: N/A | BJ136: N/A | BK136: N/A | BL136: N/A | BM136: N/A | BN136: N/A | BO136: N/A | BP136: N/A | BQ136: N/A | BR136: N/A | BS136: N/A | BT136: N/A | BU136: N/A | BV136: N/A | BW136: N/A | BX136: N/A | BY136: N/A | BZ136: N/A
B137: Improved latrines | C137: N/A | D137: N/A | E137: N/A | F137: N/A | G137: N/A | H137: N/A | I137: N/A | J137: N/A | K137: N/A | L137: N/A | M137: N/A | N137: N/A | O137: N/A | P137: N/A | Q137: N/A | R137: N/A | S137: N/A | T137: N/A | U137: N/A | V137: N/A | W137: N/A | X137: N/A | Y137: N/A | Z137: N/A | BB137: Improved latrines | BC137: N/A | BD137: N/A | BE137: N/A | BF137: N/A | BG137: N/A | BH137: N/A | BI137: N/A | BJ137: N/A | BK137: N/A | BL137: N/A | BM137: N/A | BN137: N/A | BO137: N/A | BP137: N/A | BQ137: N/A | BR137: N/A | BS137: N/A | BT137: N/A | BU137: N/A | BV137: N/A | BW137: N/A | BX137: N/A | BY137: N/A | BZ137: N/A
B138: Unimproved facilities | C138: N/A | D138: N/A | E138: N/A | F138: N/A | G138: N/A | H138: N/A | I138: N/A | J138: N/A | K138: N/A | L138: N/A | M138: N/A | N138: N/A | O138: N/A | P138: N/A | Q138: N/A | R138: N/A | S138: N/A | T138: N/A | U138: N/A | V138: N/A | W138: N/A | X138: N/A | Y138: N/A | Z138: N/A | BB138: Unimproved facilities | BC138: N/A | BD138: N/A | BE138: N/A | BF138: N/A | BG138: N/A | BH138: N/A | BI138: N/A | BJ138: N/A | BK138: N/A | BL138: N/A | BM138: N/A | BN138: N/A | BO138: N/A | BP138: N/A | BQ138: N/A | BR138: N/A | BS138: N/A | BT138: N/A | BU138: N/A | BV138: N/A | BW138: N/A | BX138: N/A | BY138: N/A | BZ138: N/A
B139: Open defecation | C139: N/A | D139: N/A | E139: N/A | F139: N/A | G139: N/A | H139: N/A | I139: N/A | J139: N/A | K139: N/A | L139: N/A | M139: N/A | N139: N/A | O139: N/A | P139: N/A | Q139: N/A | R139: N/A | S139: N/A | T139: N/A | U139: N/A | V139: N/A | W139: N/A | X139: N/A | Y139: N/A | Z139: N/A | BB139: Open defecation | BC139: N/A | BD139: N/A | BE139: N/A | BF139: N/A | BG139: N/A | BH139: N/A | BI139: N/A | BJ139: N/A | BK139: N/A | BL139: N/A | BM139: N/A | BN139: N/A | BO139: N/A | BP139: N/A | BQ139: N/A | BR139: N/A | BS139: N/A | BT139: N/A | BU139: N/A | BV139: N/A | BW139: N/A | BX139: N/A | BY139: N/A | BZ139: N/A
A140: Septic tank emptying practices | B140: Not emptied/treated and disposed in situ | C140: N/A | D140: N/A | E140: N/A | F140: N/A | G140: N/A | H140: N/A | I140: N/A | J140: N/A | K140: N/A | L140: N/A | M140: N/A | N140: N/A | O140: N/A | P140: N/A | Q140: N/A | R140: N/A | S140: N/A | T140: N/A | U140: N/A | V140: N/A | W140: N/A | X140: N/A | Y140: N/A | Z140: N/A | BA140: Septic tank emptying practices | BB140: Not emptied/treated and disposed in situ | BC140: N/A | BD140: N/A | BE140: N/A | BF140: N/A | BG140: N/A | BH140: N/A | BI140: N/A | BJ140: N/A | BK140: N/A | BL140: N/A | BM140: N/A | BN140: N/A | BO140: N/A | BP140: N/A | BQ140: N/A | BR140: N/A | BS140: N/A | BT140: N/A | BU140: N/A | BV140: N/A | BW140: N/A | BX140: N/A | BY140: N/A | BZ140: N/A
B141: Emptied and buried on site | C141: N/A | D141: N/A | E141: N/A | F141: N/A | G141: N/A | H141: N/A | I141: N/A | J141: N/A | K141: N/A | L141: N/A | M141: N/A | N141: N/A | O141: N/A | P141: N/A | Q141: N/A | R141: N/A | S141: N/A | T141: N/A | U141: N/A | V141: N/A | W141: N/A | X141: N/A | Y141: N/A | Z141: N/A | BB141: Emptied and buried on site | BC141: N/A | BD141: N/A | BE141: N/A | BF141: N/A | BG141: N/A | BH141: N/A | BI141: N/A | BJ141: N/A | BK141: N/A | BL141: N/A | BM141: N/A | BN141: N/A | BO141: N/A | BP141: N/A | BQ141: N/A | BR141: N/A | BS141: N/A | BT141: N/A | BU141: N/A | BV141: N/A | BW141: N/A | BX141: N/A | BY141: N/A | BZ141: N/A
B142: Emptied and discharged locally | C142: N/A | D142: N/A | E142: N/A | F142: N/A | G142: N/A | H142: N/A | I142: N/A | J142: N/A | K142: N/A | L142: N/A | M142: N/A | N142: N/A | O142: N/A | P142: N/A | Q142: N/A | R142: N/A | S142: N/A | T142: N/A | U142: N/A | V142: N/A | W142: N/A | X142: N/A | Y142: N/A | Z142: N/A | BB142: Emptied and discharged locally | BC142: N/A | BD142: N/A | BE142: N/A | BF142: N/A | BG142: N/A | BH142: N/A | BI142: N/A | BJ142: N/A | BK142: N/A | BL142: N/A | BM142: N/A | BN142: N/A | BO142: N/A | BP142: N/A | BQ142: N/A | BR142: N/A | BS142: N/A | BT142: N/A | BU142: N/A | BV142: N/A | BW142: N/A | BX142: N/A | BY142: N/A | BZ142: N/A
B143: Emptied and removed offsite | C143: N/A | D143: N/A | E143: N/A | F143: N/A | G143: N/A | H143: N/A | I143: N/A | J143: N/A | K143: N/A | L143: N/A | M143: N/A | N143: N/A | O143: N/A | P143: N/A | Q143: N/A | R143: N/A | S143: N/A | T143: N/A | U143: N/A | V143: N/A | W143: N/A | X143: N/A | Y143: N/A | Z143: N/A | BB143: Emptied and removed offsite | BC143: N/A | BD143: N/A | BE143: N/A | BF143: N/A | BG143: N/A | BH143: N/A | BI143: N/A | BJ143: N/A | BK143: N/A | BL143: N/A | BM143: N/A | BN143: N/A | BO143: N/A | BP143: N/A | BQ143: N/A | BR143: N/A | BS143: N/A | BT143: N/A | BU143: N/A | BV143: N/A | BW143: N/A | BX143: N/A | BY143: N/A | BZ143: N/A
A144: Latrine emptying practices | B144: Not emptied/treated and disposed in situ | C144: N/A | D144: N/A | E144: N/A | F144: N/A | G144: N/A | H144: N/A | I144: N/A | J144: N/A | K144: N/A | L144: N/A | M144: N/A | N144: N/A | O144: N/A | P144: N/A | Q144: N/A | R144: N/A | S144: N/A | T144: N/A | U144: N/A | V144: N/A | W144: N/A | X144: N/A | Y144: N/A | Z144: N/A | BA144: Latrine emptying practices | BB144: Not emptied/treated and disposed in situ | BC144: N/A | BD144: N/A | BE144: N/A | BF144: N/A | BG144: N/A | BH144: N/A | BI144: N/A | BJ144: N/A | BK144: N/A | BL144: N/A | BM144: N/A | BN144: N/A | BO144: N/A | BP144: N/A | BQ144: N/A | BR144: N/A | BS144: N/A | BT144: N/A | BU144: N/A | BV144: N/A | BW144: N/A | BX144: N/A | BY144: N/A | BZ144: N/A
B145: Emptied and buried on site | C145: N/A | D145: N/A | E145: N/A | F145: N/A | G145: N/A | H145: N/A | I145: N/A | J145: N/A | K145: N/A | L145: N/A | M145: N/A | N145: N/A | O145: N/A | P145: N/A | Q145: N/A | R145: N/A | S145: N/A | T145: N/A | U145: N/A | V145: N/A | W145: N/A | X145: N/A | Y145: N/A | Z145: N/A | BB145: Emptied and buried on site | BC145: N/A | BD145: N/A | BE145: N/A | BF145: N/A | BG145: N/A | BH145: N/A | BI145: N/A | BJ145: N/A | BK145: N/A | BL145: N/A | BM145: N/A | BN145: N/A | BO145: N/A | BP145: N/A | BQ145: N/A | BR145: N/A | BS145: N/A | BT145: N/A | BU145: N/A | BV145: N/A | BW145: N/A | BX145: N/A | BY145: N/A | BZ145: N/A
B146: Emptied and discharged locally | C146: N/A | D146: N/A | E146: N/A | F146: N/A | G146: N/A | H146: N/A | I146: N/A | J146: N/A | K146: N/A | L146: N/A | M146: N/A | N146: N/A | O146: N/A | P146: N/A | Q146: N/A | R146: N/A | S146: N/A | T146: N/A | U146: N/A | V146: N/A | W146: N/A | X146: N/A | Y146: N/A | Z146: N/A | BB146: Emptied and discharged locally | BC146: N/A | BD146: N/A | BE146: N/A | BF146: N/A | BG146: N/A | BH146: N/A | BI146: N/A | BJ146: N/A | BK146: N/A | BL146: N/A | BM146: N/A | BN146: N/A | BO146: N/A | BP146: N/A | BQ146: N/A | BR146: N/A | BS146: N/A | BT146: N/A | BU146: N/A | BV146: N/A | BW146: N/A | BX146: N/A | BY146: N/A | BZ146: N/A
B147: Emptied and removed offsite | C147: N/A | D147: N/A | E147: N/A | F147: N/A | G147: N/A | H147: N/A | I147: N/A | J147: N/A | K147: N/A | L147: N/A | M147: N/A | N147: N/A | O147: N/A | P147: N/A | Q147: N/A | R147: N/A | S147: N/A | T147: N/A | U147: N/A | V147: N/A | W147: N/A | X147: N/A | Y147: N/A | Z147: N/A | BB147: Emptied and removed offsite | BC147: N/A | BD147: N/A | BE147: N/A | BF147: N/A | BG147: N/A | BH147: N/A | BI147: N/A | BJ147: N/A | BK147: N/A | BL147: N/A | BM147: N/A | BN147: N/A | BO147: N/A | BP147: N/A | BQ147: N/A | BR147: N/A | BS147: N/A | BT147: N/A | BU147: N/A | BV147: N/A | BW147: N/A | BX147: N/A | BY147: N/A | BZ147: N/A
A148: Shared among improved sanitation facilities | B148: Yes | C148: N/A | D148: N/A | E148: N/A | F148: N/A | G148: N/A | H148: N/A | I148: N/A | J148: N/A | K148: N/A | L148: N/A | M148: N/A | N148: N/A | O148: N/A | P148: N/A | Q148: N/A | R148: N/A | S148: N/A | T148: N/A | U148: N/A | V148: N/A | W148: N/A | X148: N/A | Y148: N/A | Z148: N/A | BA148: Shared among improved sanitation facilities | BB148: Yes | BC148: N/A | BD148: N/A | BE148: N/A | BF148: N/A | BG148: N/A | BH148: N/A | BI148: N/A | BJ148: N/A | BK148: N/A | BL148: N/A | BM148: N/A | BN148: N/A | BO148: N/A | BP148: N/A | BQ148: N/A | BR148: N/A | BS148: N/A | BT148: N/A | BU148: N/A | BV148: N/A | BW148: N/A | BX148: N/A | BY148: N/A | BZ148: N/A
B149: No | C149: N/A | D149: N/A | E149: N/A | F149: N/A | G149: N/A | H149: N/A | I149: N/A | J149: N/A | K149: N/A | L149: N/A | M149: N/A | N149: N/A | O149: N/A | P149: N/A | Q149: N/A | R149: N/A | S149: N/A | T149: N/A | U149: N/A | V149: N/A | W149: N/A | X149: N/A | Y149: N/A | Z149: N/A | BB149: No | BC149: N/A | BD149: N/A | BE149: N/A | BF149: N/A | BG149: N/A | BH149: N/A | BI149: N/A | BJ149: N/A | BK149: N/A | BL149: N/A | BM149: N/A | BN149: N/A | BO149: N/A | BP149: N/A | BQ149: N/A | BR149: N/A | BS149: N/A | BT149: N/A | BU149: N/A | BV149: N/A | BW149: N/A | BX149: N/A | BY149: N/A | BZ149: N/A
B150: DK/missing | C150: N/A | D150: N/A | E150: N/A | F150: N/A | G150: N/A | H150: N/A | I150: N/A | J150: N/A | K150: N/A | L150: N/A | M150: N/A | N150: N/A | O150: N/A | P150: N/A | Q150: N/A | R150: N/A | S150: N/A | T150: N/A | U150: N/A | V150: N/A | W150: N/A | X150: N/A | Y150: N/A | Z150: N/A | BB150: DK/missing | BC150: N/A | BD150: N/A | BE150: N/A | BF150: N/A | BG150: N/A | BH150: N/A | BI150: N/A | BJ150: N/A | BK150: N/A | BL150: N/A | BM150: N/A | BN150: N/A | BO150: N/A | BP150: N/A | BQ150: N/A | BR150: N/A | BS150: N/A | BT150: N/A | BU150: N/A | BV150: N/A | BW150: N/A | BX150: N/A | BY150: N/A | BZ150: N/A
A151: Shared among all sanitation facilities | B151: Yes | C151: N/A | D151: N/A | E151: N/A | F151: N/A | G151: N/A | H151: N/A | I151: N/A | J151: N/A | K151: N/A | L151: N/A | M151: N/A | N151: N/A | O151: N/A | P151: N/A | Q151: N/A | R151: N/A | S151: N/A | T151: N/A | U151: N/A | V151: N/A | W151: N/A | X151: N/A | Y151: N/A | Z151: N/A | BA151: Shared among all sanitation facilities | BB151: Yes | BC151: N/A | BD151: N/A | BE151: N/A | BF151: N/A | BG151: N/A | BH151: N/A | BI151: N/A | BJ151: N/A | BK151: N/A | BL151: N/A | BM151: N/A | BN151: N/A | BO151: N/A | BP151: N/A | BQ151: N/A | BR151: N/A | BS151: N/A | BT151: N/A | BU151: N/A | BV151: N/A | BW151: N/A | BX151: N/A | BY151: N/A | BZ151: N/A
B152: No | C152: N/A | D152: N/A | E152: N/A | F152: N/A | G152: N/A | H152: N/A | I152: N/A | J152: N/A | K152: N/A | L152: N/A | M152: N/A | N152: N/A | O152: N/A | P152: N/A | Q152: N/A | R152: N/A | S152: N/A | T152: N/A | U152: N/A | V152: N/A | W152: N/A | X152: N/A | Y152: N/A | Z152: N/A | BB152: No | BC152: N/A | BD152: N/A | BE152: N/A | BF152: N/A | BG152: N/A | BH152: N/A | BI152: N/A | BJ152: N/A | BK152: N/A | BL152: N/A | BM152: N/A | BN152: N/A | BO152: N/A | BP152: N/A | BQ152: N/A | BR152: N/A | BS152: N/A | BT152: N/A | BU152: N/A | BV152: N/A | BW152: N/A | BX152: N/A | BY152: N/A | BZ152: N/A
A153: Onde a família faz necessidades | B153: Sistema de esgoto ou fossa séptica | C153: 0.09019620198 | D153: 0.1297595023 | E153: 0.7769239099 | F153: 4.494422442 | G153: 23.6194076 | H153: 0.6098312133 | I153: 6.981411792 | J153: 16.00936842 | K153: 19.79667277 | L153: 34.01659026 | M153: 0.1412888381 | N153: 0.2036012395 | O153: 0 | P153: 1.021101887 | Q153: 0.5014250711 | R153: 0.2828898885 | S153: 0 | T153: 0.9202376416 | U153: 0.7095934336 | V153: 0.4477645591 | W153: 0.09933171471 | X153: 1.936421977 | Y153: 22.36634333 | Z153: 0.3559694472 | BA153: Onde a família faz necessidades | BB153: Sistema de esgoto ou fossa séptica | BC153: 6.323688 | BD153: 9.087168 | BE153: 54.337372 | BF153: 314.137733 | BG153: 1660.088935 | BH153: 15.453857 | BI153: 177.362319 | BJ153: 411.907025 | BK153: 491.380851 | BL153: 864.381482 | BM153: 6.323688 | BN153: 9.087168 | BO153: 0 | BP153: 45.674571 | BQ153: 22.403935 | BR153: 11.621259 | BS153: 0 | BT153: 10.818275 | BU153: 35.72329 | BV153: 15.902544 | BW153: 6.323688 | BX153: 33.01332 | BY153: 1921.909719 | BZ153: 8.662801
B154: Latrina com descarga de água | C154: 0.2001004762 | D154: 0.2431877159 | E154: 0.2897698449 | F154: 0.7510663742 | G154: 5.844226322 | H154: 0.4175731794 | I154: 0.7559168062 | J154: 6.434512736 | K154: 4.646556331 | L154: 5.402852245 | M154: 0 | N154: 0.3143273468 | O154: 0.2972561555 | P154: 0.0950763324 | Q154: 0.784105797 | R154: 0.2849756955 | S154: 0 | T154: 1.061812663 | U154: 0.8180785691 | V154: 0.7137328459 | W154: 0.2152187152 | X154: 0.2186500887 | Y154: 4.398826979 | Z154: 1.168887602 | BB154: Latrina com descarga de água | BC154: 14.029116 | BD154: 17.030642 | BE154: 20.266247 | BF154: 52.495797 | BG154: 410.761168 | BH154: 10.581807 | BI154: 19.204018 | BJ154: 165.554376 | BK154: 115.333967 | BL154: 137.28964 | BM154: 0 | BN154: 14.029116 | BO154: 13.30296 | BP154: 4.252828 | BQ154: 35.034258 | BR154: 11.706945 | BS154: 0 | BT154: 12.482625 | BU154: 41.184792 | BV154: 25.348518 | BW154: 13.701324 | BX154: 3.727682 | BY154: 377.98527 | BZ154: 28.445814
B155: Latrina melhorada | C155: 0.1473392565 | D155: 0 | E155: 0.6062397983 | F155: 1.468451993 | G155: 5.141069054 | H155: 1.687347117 | I155: 0.7248460331 | J155: 5.551312204 | K155: 6.556834085 | L155: 3.750432797 | M155: 0.2308012077 | N155: 0 | O155: 0 | P155: 0 | Q155: 0.9919818723 | R155: 0.4164436077 | S155: 0.9650460294 | T155: 1.132600174 | U155: 1.273349845 | V155: 0.3116049495 | W155: 0.213263273 | X155: 1.093250444 | Y155: 3.902549064 | Z155: 0.9733467052 | BB155: Latrina melhorada | BC155: 10.330008 | BD155: 0 | BE155: 42.399876 | BF155: 102.637477 | BG155: 361.339793 | BH155: 42.759407 | BI155: 18.414667 | BJ155: 142.8304 | BK155: 162.749708 | BL155: 95.300694 | BM155: 10.330008 | BN155: 0 | BO155: 0 | BP155: 0 | BQ155: 44.32227 | BR155: 17.107713 | BS155: 19.870008 | BT155: 13.3148 | BU155: 64.10466 | BV155: 11.066779 | BW155: 13.576836 | BX155: 18.63841 | BY155: 335.340778 | BZ155: 23.68717
B156: Latrina tradicional ou cerco | C156: 43.19435059 | D156: 44.79336007 | E156: 45.47547513 | F156: 72.54931836 | G156: 63.95268552 | H156: 82.36113516 | I156: 85.95866585 | J156: 71.1760864 | K156: 67.04127091 | L156: 55.79964499 | M156: 42.35301268 | N156: 39.23589539 | O156: 46.87597094 | P156: 40.76823873 | Q156: 48.325208 | R156: 86.63375132 | S156: 12.05433993 | T156: 45.10515912 | U156: 30.9698283 | V156: 86.1993436 | W156: 35.45217122 | X156: 47.59096889 | Y156: 67.36972705 | Z156: 45.04866767 | BB156: Latrina tradicional ou cerco | BC156: 3028.371378 | BD156: 3136.916997 | BE156: 3180.514562 | BF156: 5070.835841 | BG156: 4494.911448 | BH156: 2087.130303 | BI156: 2183.774395 | BJ156: 1831.298352 | BK156: 1664.057245 | BL156: 1417.901661 | BM156: 1895.600825 | BN156: 1751.183705 | BO156: 2097.817505 | BP156: 1823.590612 | BQ156: 2159.195623 | BR156: 3558.958107 | BS156: 248.19524 | BT156: 530.254353 | BU156: 1559.124007 | BV156: 3061.405434 | BW156: 2256.96768 | BX156: 811.360284 | BY156: 5788.989789 | BZ156: 1096.295332
B157: No mato ou ar livre | C157: 55.70323968 | D157: 54.11389183 | E157: 50.65089823 | F157: 19.6443125 | G157: 1.111663969 | H157: 13.70786538 | I157: 4.169926602 | J157: 0.5650365324 | K157: 1.607245681 | L157: 0.725349239 | M157: 57.05450926 | N157: 59.19872592 | O157: 51.92398861 | P157: 55.47721482 | Q157: 48.37600225 | R157: 12.22477844 | S157: 85.88713525 | T157: 49.20664343 | U157: 61.52982664 | V157: 12.2316045 | W157: 63.88757279 | X157: 49.08873902 | Y157: 1.477554703 | Z157: 52.45312858 | BB157: No mato ou ar livre | BC157: 3905.374069 | BD157: 3789.641741 | BE157: 3542.479082 | BF157: 1373.039556 | BG157: 78.133249 | BH157: 347.373809 | BI157: 105.936718 | BJ157: 14.537895 | BK157: 39.894065 | BL157: 18.431549 | BM157: 2553.59815 | BN157: 2642.168432 | BO157: 2323.728982 | BP157: 2481.53296 | BQ157: 2161.465137 | BR157: 502.200051 | BS157: 1768.390328 | BT157: 578.47123 | BU157: 3097.615813 | BV157: 434.410506 | BW157: 4067.231484 | BX157: 836.895196 | BY157: 126.964283 | BZ157: 1276.488806
B158: Valas a céu aberto | C158: 0.09208703529 | D158: 0 | E158: 0 | F158: 0.2634618001 | G158: 0 | H158: 0 | I158: 0.7248460331 | J158: 0 | K158: 0 | L158: 0 | M158: 0.1442507548 | N158: 0 | O158: 0 | P158: 0 | Q158: 0 | R158: 0.1571610492 | S158: 0 | T158: 0 | U158: 0 | V158: 0 | W158: 0 | X158: 0 | Y158: 0.2143018272 | Z158: 0 | BB158: Valas a céu aberto | BC158: 6.456255 | BD158: 0 | BE158: 0 | BF158: 18.414667 | BG158: 0 | BH158: 0 | BI158: 18.414667 | BJ158: 0 | BK158: 0 | BL158: 0 | BM158: 6.456255 | BN158: 0 | BO158: 0 | BP158: 0 | BQ158: 0 | BR158: 6.456255 | BS158: 0 | BT158: 0 | BU158: 0 | BV158: 0 | BW158: 0 | BX158: 0 | BY158: 18.414667 | BZ158: 0
B159: Rios, ribeiros e linha de água | C159: 0.2598548139 | D159: 0.5769152748 | E159: 2.021851829 | F159: 0.6839667697 | G159: 0.2344211737 | H159: 1.216247948 | I159: 0.2854580713 | J159: 0 | K159: 0.3514202267 | L159: 0.3051304717 | M159: 0.07613726011 | N159: 0.3318418381 | O159: 0.9027842947 | P159: 2.638368224 | Q159: 0.7413340069 | R159: 0 | S159: 0 | T159: 0 | U159: 4.663310274 | V159: 0.09594954838 | W159: 0.1324422863 | X159: 0.07196958409 | Y159: 0.1917437401 | Z159: 0 | BB159: Rios, ribeiros e linha de água | BC159: 18.218514 | BD159: 40.401866 | BE159: 141.406531 | BF159: 47.805869 | BG159: 16.476281 | BH159: 30.821187 | BI159: 7.252044 | BJ159: 0 | BK159: 8.722737 | BL159: 7.753544 | BM159: 3.407688 | BN159: 14.810826 | BO159: 40.401866 | BP159: 118.015977 | BQ159: 33.123192 | BR159: 0 | BS159: 0 | BT159: 0 | BU159: 234.766526 | BV159: 3.407688 | BW159: 8.431584 | BX159: 1.226982 | BY159: 16.476281 | BZ159: 0
B160: Outro | C160: 0.3128319504 | D160: 0.1428856035 | E160: 0.1788412635 | F160: 0.1449997644 | G160: 0.09652636564 | H160: 0 | I160: 0.3989288162 | J160: 0.2636837151 | K160: 0 | L160: 0 | M160: 0 | N160: 0.7156082694 | O160: 0 | P160: 0 | Q160: 0.2799430006 | R160: 0 | S160: 1.093478791 | T160: 2.573546978 | U160: 0.03601294004 | V160: 0 | W160: 0 | X160: 0 | Y160: 0.07895330476 | Z160: 0 | BB160: Outro | BC160: 21.93276 | BD160: 10.0064 | BE160: 12.508 | BF160: 10.134761 | BG160: 6.784351 | BH160: 0 | BI160: 10.134761 | BJ160: 6.784351 | BK160: 0 | BL160: 0 | BM160: 0 | BN160: 31.93916 | BO160: 0 | BP160: 0 | BQ160: 12.508 | BR160: 0 | BS160: 22.5144 | BT160: 30.25451 | BU160: 1.813011 | BV160: 0 | BW160: 0 | BX160: 0 | BY160: 6.784351 | BZ160: 0
BB161: Total | BC161: 7011.035788 | BD161: 7003.084814 | BE161: 6993.91167 | BF161: 6989.501701 | BG161: 7028.495225 | BH161: 2534.12037 | BI161: 2540.493589 | BJ161: 2572.912399 | BK161: 2482.138573 | BL161: 2541.05857 | BM161: 4475.716614 | BN161: 4463.218407 | BO161: 4475.251313 | BP161: 4473.066948 | BQ161: 4468.052415 | BR161: 4108.05033 | BS161: 2058.969976 | BT161: 1175.595793 | BU161: 5034.332099 | BV161: 3551.541469 | BW161: 6366.232596 | BX161: 1704.861874 | BY161: 8592.865138 | BZ161: 2433.579923
A208: =A1026 -> Guinea-Bissau
A209: =A1034 -> 2000
A210: Access to hygiene facilities
A211: by wealth quintile and sub-national region
A212: Notes:
A213: WHO/UNICEF JMP customised wealth index excludes water,
A214: sanitation and hygiene assets.
A215: Survey used for analysis: | B215: =A1025 -> MICS00
A220: Access to handwashing | C220: NATIONAL wealth index quintile | H220: URBAN wealth index quintile | M220: RURAL wealth index quintile | R220: SUB-REGIONS: | BA220: Raw numbers of respondents: | BB220: Access to handwashing | BC220: NATIONAL wealth index quintile | BH220: URBAN wealth index quintile | BM220: RURAL wealth index quintile | BR220: SUB-REGIONS:
A221: Weighted percentage (used in graphs) | C221: Poorest | D221: Poor | E221: Middle | F221: Rich | G221: Richest | H221: Poorest | I221: Poor | J221: Middle | K221: Rich | L221: Richest | M221: Poorest | N221: Poor | O221: Middle | P221: Rich | Q221: Richest | R221: Bafatá | S221: Biombo | T221: Bolama/Bijagós | U221: Cacheu | V221: Gabú | W221: Oio | X221: Quinará | Y221: SAB | Z221: Tombali | BA221: Hygiene data, raw numbers (weighted) | BC221: Poorest | BD221: Poor | BE221: Middle | BF221: Rich | BG221: Richest | BH221: Poorest | BI221: Poor | BJ221: Middle | BK221: Rich | BL221: Richest | BM221: Poorest | BN221: Poor | BO221: Middle | BP221: Rich | BQ221: Richest | BR221: Bafatá | BS221: Biombo | BT221: Bolama/Bijagós | BU221: Cacheu | BV221: Gabú | BW221: Oio | BX221: Quinará | BY221: SAB | BZ221: Tombali
A222: Hygiene ladder | B222: Basic | C222: N/A | D222: N/A | E222: N/A | F222: N/A | G222: N/A | H222: N/A | I222: N/A | J222: N/A | K222: N/A | L222: N/A | M222: N/A | N222: N/A | O222: N/A | P222: N/A | Q222: N/A | R222: N/A | S222: N/A | T222: N/A | U222: N/A | V222: N/A | W222: N/A | X222: N/A | Y222: N/A | Z222: N/A | BA222: Hygiene ladder | BB222: Basic | BC222: N/A | BD222: N/A | BE222: N/A | BF222: N/A | BG222: N/A | BH222: N/A | BI222: N/A | BJ222: N/A | BK222: N/A | BL222: N/A | BM222: N/A | BN222: N/A | BO222: N/A | BP222: N/A | BQ222: N/A | BR222: N/A | BS222: N/A | BT222: N/A | BU222: N/A | BV222: N/A | BW222: N/A | BX222: N/A | BY222: N/A | BZ222: N/A
B223: Limited | C223: N/A | D223: N/A | E223: N/A | F223: N/A | G223: N/A | H223: N/A | I223: N/A | J223: N/A | K223: N/A | L223: N/A | M223: N/A | N223: N/A | O223: N/A | P223: N/A | Q223: N/A | R223: N/A | S223: N/A | T223: N/A | U223: N/A | V223: N/A | W223: N/A | X223: N/A | Y223: N/A | Z223: N/A | BB223: Limited | BC223: N/A | BD223: N/A | BE223: N/A | BF223: N/A | BG223: N/A | BH223: N/A | BI223: N/A | BJ223: N/A | BK223: N/A | BL223: N/A | BM223: N/A | BN223: N/A | BO223: N/A | BP223: N/A | BQ223: N/A | BR223: N/A | BS223: N/A | BT223: N/A | BU223: N/A | BV223: N/A | BW223: N/A | BX223: N/A | BY223: N/A | BZ223: N/A
B224: No facility | C224: N/A | D224: N/A | E224: N/A | F224: N/A | G224: N/A | H224: N/A | I224: N/A | J224: N/A | K224: N/A | L224: N/A | M224: N/A | N224: N/A | O224: N/A | P224: N/A | Q224: N/A | R224: N/A | S224: N/A | T224: N/A | U224: N/A | V224: N/A | W224: N/A | X224: N/A | Y224: N/A | Z224: N/A | BB224: No facility | BC224: N/A | BD224: N/A | BE224: N/A | BF224: N/A | BG224: N/A | BH224: N/A | BI224: N/A | BJ224: N/A | BK224: N/A | BL224: N/A | BM224: N/A | BN224: N/A | BO224: N/A | BP224: N/A | BQ224: N/A | BR224: N/A | BS224: N/A | BT224: N/A | BU224: N/A | BV224: N/A | BW224: N/A | BX224: N/A | BY224: N/A | BZ224: N/A
BA225: Observed handwashing place | BB225: Fixed | BC225: N/A | BD225: N/A | BE225: N/A | BF225: N/A | BG225: N/A | BH225: N/A | BI225: N/A | BJ225: N/A | BK225: N/A | BL225: N/A | BM225: N/A | BN225: N/A | BO225: N/A | BP225: N/A | BQ225: N/A | BR225: N/A | BS225: N/A | BT225: N/A | BU225: N/A | BV225: N/A | BW225: N/A | BX225: N/A | BY225: N/A | BZ225: N/A
BB226: Mobile | BC226: N/A | BD226: N/A | BE226: N/A | BF226: N/A | BG226: N/A | BH226: N/A | BI226: N/A | BJ226: N/A | BK226: N/A | BL226: N/A | BM226: N/A | BN226: N/A | BO226: N/A | BP226: N/A | BQ226: N/A | BR226: N/A | BS226: N/A | BT226: N/A | BU226: N/A | BV226: N/A | BW226: N/A | BX226: N/A | BY226: N/A | BZ226: N/A
BA227: Water / Soap | BB227: Water and soap | BC227: N/A | BD227: N/A | BE227: N/A | BF227: N/A | BG227: N/A | BH227: N/A | BI227: N/A | BJ227: N/A | BK227: N/A | BL227: N/A | BM227: N/A | BN227: N/A | BO227: N/A | BP227: N/A | BQ227: N/A | BR227: N/A | BS227: N/A | BT227: N/A | BU227: N/A | BV227: N/A | BW227: N/A | BX227: N/A | BY227: N/A | BZ227: N/A
BB228: Water only | BC228: N/A | BD228: N/A | BE228: N/A | BF228: N/A | BG228: N/A | BH228: N/A | BI228: N/A | BJ228: N/A | BK228: N/A | BL228: N/A | BM228: N/A | BN228: N/A | BO228: N/A | BP228: N/A | BQ228: N/A | BR228: N/A | BS228: N/A | BT228: N/A | BU228: N/A | BV228: N/A | BW228: N/A | BX228: N/A | BY228: N/A | BZ228: N/A
BB229: Soap only | BC229: N/A | BD229: N/A | BE229: N/A | BF229: N/A | BG229: N/A | BH229: N/A | BI229: N/A | BJ229: N/A | BK229: N/A | BL229: N/A | BM229: N/A | BN229: N/A | BO229: N/A | BP229: N/A | BQ229: N/A | BR229: N/A | BS229: N/A | BT229: N/A | BU229: N/A | BV229: N/A | BW229: N/A | BX229: N/A | BY229: N/A | BZ229: N/A
BB230: Neither | BC230: N/A | BD230: N/A | BE230: N/A | BF230: N/A | BG230: N/A | BH230: N/A | BI230: N/A | BJ230: N/A | BK230: N/A | BL230: N/A | BM230: N/A | BN230: N/A | BO230: N/A | BP230: N/A | BQ230: N/A | BR230: N/A | BS230: N/A | BT230: N/A | BU230: N/A | BV230: N/A | BW230: N/A | BX230: N/A | BY230: N/A | BZ230: N/A
BA259: Raw numbers of respondents: | BB259: Menstrual health and hygiene | BC259: NATIONAL wealth index quintile | BH259: URBAN wealth index quintile | BM259: RURAL wealth index quintile | BR259: SUB-REGIONS:
BA260: MHH data, raw numbers (weighted) | BC260: Poorest | BD260: Poor | BE260: Middle | BF260: Rich | BG260: Richest | BH260: Poorest | BI260: Poor | BJ260: Middle | BK260: Rich | BL260: Richest | BM260: Poorest | BN260: Poor | BO260: Middle | BP260: Rich | BQ260: Richest | BR260: Bafatá | BS260: Biombo | BT260: Bolama/Bijagós | BU260: Cacheu | BV260: Gabú | BW260: Oio | BX260: Quinará | BY260: SAB | BZ260: Tombali
BA261: Private place to wash and change | BB261: Yes | BC261: N/A | BD261: N/A | BE261: N/A | BF261: N/A | BG261: N/A | BH261: N/A | BI261: N/A | BJ261: N/A | BK261: N/A | BL261: N/A | BM261: N/A | BN261: N/A | BO261: N/A | BP261: N/A | BQ261: N/A | BR261: N/A | BS261: N/A | BT261: N/A | BU261: N/A | BV261: N/A | BW261: N/A | BX261: N/A | BY261: N/A | BZ261: N/A
BB262: No | BC262: N/A | BD262: N/A | BE262: N/A | BF262: N/A | BG262: N/A | BH262: N/A | BI262: N/A | BJ262: N/A | BK262: N/A | BL262: N/A | BM262: N/A | BN262: N/A | BO262: N/A | BP262: N/A | BQ262: N/A | BR262: N/A | BS262: N/A | BT262: N/A | BU262: N/A | BV262: N/A | BW262: N/A | BX262: N/A | BY262: N/A | BZ262: N/A
BB263: DK/not sure/missing | BC263: N/A | BD263: N/A | BE263: N/A | BF263: N/A | BG263: N/A | BH263: N/A | BI263: N/A | BJ263: N/A | BK263: N/A | BL263: N/A | BM263: N/A | BN263: N/A | BO263: N/A | BP263: N/A | BQ263: N/A | BR263: N/A | BS263: N/A | BT263: N/A | BU263: N/A | BV263: N/A | BW263: N/A | BX263: N/A | BY263: N/A | BZ263: N/A
BA264: Use of menstrual materials | BB264: Materials reusable | BC264: N/A | BD264: N/A | BE264: N/A | BF264: N/A | BG264: N/A | BH264: N/A | BI264: N/A | BJ264: N/A | BK264: N/A | BL264: N/A | BM264: N/A | BN264: N/A | BO264: N/A | BP264: N/A | BQ264: N/A | BR264: N/A | BS264: N/A | BT264: N/A | BU264: N/A | BV264: N/A | BW264: N/A | BX264: N/A | BY264: N/A | BZ264: N/A
BB265: Materials not reusable | BC265: N/A | BD265: N/A | BE265: N/A | BF265: N/A | BG265: N/A | BH265: N/A | BI265: N/A | BJ265: N/A | BK265: N/A | BL265: N/A | BM265: N/A | BN265: N/A | BO265: N/A | BP265: N/A | BQ265: N/A | BR265: N/A | BS265: N/A | BT265: N/A | BU265: N/A | BV265: N/A | BW265: N/A | BX265: N/A | BY265: N/A | BZ265: N/A
BB266: No materials used | BC266: N/A | BD266: N/A | BE266: N/A | BF266: N/A | BG266: N/A | BH266: N/A | BI266: N/A | BJ266: N/A | BK266: N/A | BL266: N/A | BM266: N/A | BN266: N/A | BO266: N/A | BP266: N/A | BQ266: N/A | BR266: N/A | BS266: N/A | BT266: N/A | BU266: N/A | BV266: N/A | BW266: N/A | BX266: N/A | BY266: N/A | BZ266: N/A
BB267: DK/not sure/missing | BC267: N/A | BD267: N/A | BE267: N/A | BF267: N/A | BG267: N/A | BH267: N/A | BI267: N/A | BJ267: N/A | BK267: N/A | BL267: N/A | BM267: N/A | BN267: N/A | BO267: N/A | BP267: N/A | BQ267: N/A | BR267: N/A | BS267: N/A | BT267: N/A | BU267: N/A | BV267: N/A | BW267: N/A | BX267: N/A | BY267: N/A | BZ267: N/A
BA268: Use of menstrual materials with private place to wash and change | BB268: Materials reusable | BC268: N/A | BD268: N/A | BE268: N/A | BF268: N/A | BG268: N/A | BH268: N/A | BI268: N/A | BJ268: N/A | BK268: N/A | BL268: N/A | BM268: N/A | BN268: N/A | BO268: N/A | BP268: N/A | BQ268: N/A | BR268: N/A | BS268: N/A | BT268: N/A | BU268: N/A | BV268: N/A | BW268: N/A | BX268: N/A | BY268: N/A | BZ268: N/A
BB269: Materials not reusable | BC269: N/A | BD269: N/A | BE269: N/A | BF269: N/A | BG269: N/A | BH269: N/A | BI269: N/A | BJ269: N/A | BK269: N/A | BL269: N/A | BM269: N/A | BN269: N/A | BO269: N/A | BP269: N/A | BQ269: N/A | BR269: N/A | BS269: N/A | BT269: N/A | BU269: N/A | BV269: N/A | BW269: N/A | BX269: N/A | BY269: N/A | BZ269: N/A
BB270: No materials used | BC270: N/A | BD270: N/A | BE270: N/A | BF270: N/A | BG270: N/A | BH270: N/A | BI270: N/A | BJ270: N/A | BK270: N/A | BL270: N/A | BM270: N/A | BN270: N/A | BO270: N/A | BP270: N/A | BQ270: N/A | BR270: N/A | BS270: N/A | BT270: N/A | BU270: N/A | BV270: N/A | BW270: N/A | BX270: N/A | BY270: N/A | BZ270: N/A
BA271: Awareness of menstruation before menarche | BB271: Yes | BC271: N/A | BD271: N/A | BE271: N/A | BF271: N/A | BG271: N/A | BH271: N/A | BI271: N/A | BJ271: N/A | BK271: N/A | BL271: N/A | BM271: N/A | BN271: N/A | BO271: N/A | BP271: N/A | BQ271: N/A | BR271: N/A | BS271: N/A | BT271: N/A | BU271: N/A | BV271: N/A | BW271: N/A | BX271: N/A | BY271: N/A | BZ271: N/A
BB272: No | BC272: N/A | BD272: N/A | BE272: N/A | BF272: N/A | BG272: N/A | BH272: N/A | BI272: N/A | BJ272: N/A | BK272: N/A | BL272: N/A | BM272: N/A | BN272: N/A | BO272: N/A | BP272: N/A | BQ272: N/A | BR272: N/A | BS272: N/A | BT272: N/A | BU272: N/A | BV272: N/A | BW272: N/A | BX272: N/A | BY272: N/A | BZ272: N/A
BB273: DK/not sure/missing | BC273: N/A | BD273: N/A | BE273: N/A | BF273: N/A | BG273: N/A | BH273: N/A | BI273: N/A | BJ273: N/A | BK273: N/A | BL273: N/A | BM273: N/A | BN273: N/A | BO273: N/A | BP273: N/A | BQ273: N/A | BR273: N/A | BS273: N/A | BT273: N/A | BU273: N/A | BV273: N/A | BW273: N/A | BX273: N/A | BY273: N/A | BZ273: N/A
BA274: Participation in (all) activities during menstruation | BB274: Yes | BC274: N/A | BD274: N/A | BE274: N/A | BF274: N/A | BG274: N/A | BH274: N/A | BI274: N/A | BJ274: N/A | BK274: N/A | BL274: N/A | BM274: N/A | BN274: N/A | BO274: N/A | BP274: N/A | BQ274: N/A | BR274: N/A | BS274: N/A | BT274: N/A | BU274: N/A | BV274: N/A | BW274: N/A | BX274: N/A | BY274: N/A | BZ274: N/A
BB275: No | BC275: N/A | BD275: N/A | BE275: N/A | BF275: N/A | BG275: N/A | BH275: N/A | BI275: N/A | BJ275: N/A | BK275: N/A | BL275: N/A | BM275: N/A | BN275: N/A | BO275: N/A | BP275: N/A | BQ275: N/A | BR275: N/A | BS275: N/A | BT275: N/A | BU275: N/A | BV275: N/A | BW275: N/A | BX275: N/A | BY275: N/A | BZ275: N/A
BB276: DK/not sure/missing/no such activity | BC276: N/A | BD276: N/A | BE276: N/A | BF276: N/A | BG276: N/A | BH276: N/A | BI276: N/A | BJ276: N/A | BK276: N/A | BL276: N/A | BM276: N/A | BN276: N/A | BO276: N/A | BP276: N/A | BQ276: N/A | BR276: N/A | BS276: N/A | BT276: N/A | BU276: N/A | BV276: N/A | BW276: N/A | BX276: N/A | BY276: N/A | BZ276: N/A
BA277: Participation in specific activities during menstruation | BB277: Did not go to school (amongst those usually attending school) | BC277: N/A | BD277: N/A | BE277: N/A | BF277: N/A | BG277: N/A | BH277: N/A | BI277: N/A | BJ277: N/A | BK277: N/A | BL277: N/A | BM277: N/A | BN277: N/A | BO277: N/A | BP277: N/A | BQ277: N/A | BR277: N/A | BS277: N/A | BT277: N/A | BU277: N/A | BV277: N/A | BW277: N/A | BX277: N/A | BY277: N/A | BZ277: N/A
BB278: Did not go to work (amongst those who usually work) | BC278: N/A | BD278: N/A | BE278: N/A | BF278: N/A | BG278: N/A | BH278: N/A | BI278: N/A | BJ278: N/A | BK278: N/A | BL278: N/A | BM278: N/A | BN278: N/A | BO278: N/A | BP278: N/A | BQ278: N/A | BR278: N/A | BS278: N/A | BT278: N/A | BU278: N/A | BV278: N/A | BW278: N/A | BX278: N/A | BY278: N/A | BZ278: N/A
BB279: Did not participate in social activities | BC279: N/A | BD279: N/A | BE279: N/A | BF279: N/A | BG279: N/A | BH279: N/A | BI279: N/A | BJ279: N/A | BK279: N/A | BL279: N/A | BM279: N/A | BN279: N/A | BO279: N/A | BP279: N/A | BQ279: N/A | BR279: N/A | BS279: N/A | BT279: N/A | BU279: N/A | BV279: N/A | BW279: N/A | BX279: N/A | BY279: N/A | BZ279: N/A
BB280: Did not cook food | BC280: N/A | BD280: N/A | BE280: N/A | BF280: N/A | BG280: N/A | BH280: N/A | BI280: N/A | BJ280: N/A | BK280: N/A | BL280: N/A | BM280: N/A | BN280: N/A | BO280: N/A | BP280: N/A | BQ280: N/A | BR280: N/A | BS280: N/A | BT280: N/A | BU280: N/A | BV280: N/A | BW280: N/A | BX280: N/A | BY280: N/A | BZ280: N/A
BB281: Did not eat with others | BC281: N/A | BD281: N/A | BE281: N/A | BF281: N/A | BG281: N/A | BH281: N/A | BI281: N/A | BJ281: N/A | BK281: N/A | BL281: N/A | BM281: N/A | BN281: N/A | BO281: N/A | BP281: N/A | BQ281: N/A | BR281: N/A | BS281: N/A | BT281: N/A | BU281: N/A | BV281: N/A | BW281: N/A | BX281: N/A | BY281: N/A | BZ281: N/A
BB282: Did not bathe in regular place | BC282: N/A | BD282: N/A | BE282: N/A | BF282: N/A | BG282: N/A | BH282: N/A | BI282: N/A | BJ282: N/A | BK282: N/A | BL282: N/A | BM282: N/A | BN282: N/A | BO282: N/A | BP282: N/A | BQ282: N/A | BR282: N/A | BS282: N/A | BT282: N/A | BU282: N/A | BV282: N/A | BW282: N/A | BX282: N/A | BY282: N/A | BZ282: N/A
BB283: Did not participate in other activities | BC283: N/A | BD283: N/A | BE283: N/A | BF283: N/A | BG283: N/A | BH283: N/A | BI283: N/A | BJ283: N/A | BK283: N/A | BL283: N/A | BM283: N/A | BN283: N/A | BO283: N/A | BP283: N/A | BQ283: N/A | BR283: N/A | BS283: N/A | BT283: N/A | BU283: N/A | BV283: N/A | BW283: N/A | BX283: N/A | BY283: N/A | BZ283: N/A
BB284: DK/not sure/missing/no such activity | BC284: N/A | BD284: N/A | BE284: N/A | BF284: N/A | BG284: N/A | BH284: N/A | BI284: N/A | BJ284: N/A | BK284: N/A | BL284: N/A | BM284: N/A | BN284: N/A | BO284: N/A | BP284: N/A | BQ284: N/A | BR284: N/A | BS284: N/A | BT284: N/A | BU284: N/A | BV284: N/A | BW284: N/A | BX284: N/A | BY284: N/A | BZ284: N/A
BA339: Raw numbers of respondents: | BB339: Basic water, sanitation and hygiene | BC339: NATIONAL wealth index quintile | BH339: URBAN wealth index quintile | BM339: RURAL wealth index quintile | BR339: SUB-REGIONS:
BA340: WatSan data, raw numbers (weighted) | BC340: Poorest | BD340: Poor | BE340: Middle | BF340: Rich | BG340: Richest | BH340: Poorest | BI340: Poor | BJ340: Middle | BK340: Rich | BL340: Richest | BM340: Poorest | BN340: Poor | BO340: Middle | BP340: Rich | BQ340: Richest | BR340: Bafatá | BS340: Biombo | BT340: Bolama/Bijagós | BU340: Cacheu | BV340: Gabú | BW340: Oio | BX340: Quinará | BY340: SAB | BZ340: Tombali
BA341: Use of Basic Water Sanitation and Hygiene | BB341: Yes | BC341: N/A | BD341: N/A | BE341: N/A | BF341: N/A | BG341: N/A | BH341: N/A | BI341: N/A | BJ341: N/A | BK341: N/A | BL341: N/A | BM341: N/A | BN341: N/A | BO341: N/A | BP341: N/A | BQ341: N/A | BR341: N/A | BS341: N/A | BT341: N/A | BU341: N/A | BV341: N/A | BW341: N/A | BX341: N/A | BY341: N/A | BZ341: N/A
BB342: No | BC342: N/A | BD342: N/A | BE342: N/A | BF342: N/A | BG342: N/A | BH342: N/A | BI342: N/A | BJ342: N/A | BK342: N/A | BL342: N/A | BM342: N/A | BN342: N/A | BO342: N/A | BP342: N/A | BQ342: N/A | BR342: N/A | BS342: N/A | BT342: N/A | BU342: N/A | BV342: N/A | BW342: N/A | BX342: N/A | BY342: N/A | BZ342: N/A
BA343: Use of Basic Water and Sanitation | BB343: Yes | BC343: N/A | BD343: N/A | BE343: N/A | BF343: N/A | BG343: N/A | BH343: N/A | BI343: N/A | BJ343: N/A | BK343: N/A | BL343: N/A | BM343: N/A | BN343: N/A | BO343: N/A | BP343: N/A | BQ343: N/A | BR343: N/A | BS343: N/A | BT343: N/A | BU343: N/A | BV343: N/A | BW343: N/A | BX343: N/A | BY343: N/A | BZ343: N/A
BB344: No | BC344: N/A | BD344: N/A | BE344: N/A | BF344: N/A | BG344: N/A | BH344: N/A | BI344: N/A | BJ344: N/A | BK344: N/A | BL344: N/A | BM344: N/A | BN344: N/A | BO344: N/A | BP344: N/A | BQ344: N/A | BR344: N/A | BS344: N/A | BT344: N/A | BU344: N/A | BV344: N/A | BW344: N/A | BX344: N/A | BY344: N/A | BZ344: N/A
BA345: Use of Basic Water and Hygiene | BB345: Yes | BC345: N/A | BD345: N/A | BE345: N/A | BF345: N/A | BG345: N/A | BH345: N/A | BI345: N/A | BJ345: N/A | BK345: N/A | BL345: N/A | BM345: N/A | BN345: N/A | BO345: N/A | BP345: N/A | BQ345: N/A | BR345: N/A | BS345: N/A | BT345: N/A | BU345: N/A | BV345: N/A | BW345: N/A | BX345: N/A | BY345: N/A | BZ345: N/A
BB346: No | BC346: N/A | BD346: N/A | BE346: N/A | BF346: N/A | BG346: N/A | BH346: N/A | BI346: N/A | BJ346: N/A | BK346: N/A | BL346: N/A | BM346: N/A | BN346: N/A | BO346: N/A | BP346: N/A | BQ346: N/A | BR346: N/A | BS346: N/A | BT346: N/A | BU346: N/A | BV346: N/A | BW346: N/A | BX346: N/A | BY346: N/A | BZ346: N/A
BA347: Use of Basic Sanitation and Hygiene | BB347: Yes | BC347: N/A | BD347: N/A | BE347: N/A | BF347: N/A | BG347: N/A | BH347: N/A | BI347: N/A | BJ347: N/A | BK347: N/A | BL347: N/A | BM347: N/A | BN347: N/A | BO347: N/A | BP347: N/A | BQ347: N/A | BR347: N/A | BS347: N/A | BT347: N/A | BU347: N/A | BV347: N/A | BW347: N/A | BX347: N/A | BY347: N/A | BZ347: N/A
BB348: No | BC348: N/A | BD348: N/A | BE348: N/A | BF348: N/A | BG348: N/A | BH348: N/A | BI348: N/A | BJ348: N/A | BK348: N/A | BL348: N/A | BM348: N/A | BN348: N/A | BO348: N/A | BP348: N/A | BQ348: N/A | BR348: N/A | BS348: N/A | BT348: N/A | BU348: N/A | BV348: N/A | BW348: N/A | BX348: N/A | BY348: N/A | BZ348: N/A
BA349: Use of Basic Water | BB349: Yes | BC349: N/A | BD349: N/A | BE349: N/A | BF349: N/A | BG349: N/A | BH349: N/A | BI349: N/A | BJ349: N/A | BK349: N/A | BL349: N/A | BM349: N/A | BN349: N/A | BO349: N/A | BP349: N/A | BQ349: N/A | BR349: N/A | BS349: N/A | BT349: N/A | BU349: N/A | BV349: N/A | BW349: N/A | BX349: N/A | BY349: N/A | BZ349: N/A
BB350: No | BC350: N/A | BD350: N/A | BE350: N/A | BF350: N/A | BG350: N/A | BH350: N/A | BI350: N/A | BJ350: N/A | BK350: N/A | BL350: N/A | BM350: N/A | BN350: N/A | BO350: N/A | BP350: N/A | BQ350: N/A | BR350: N/A | BS350: N/A | BT350: N/A | BU350: N/A | BV350: N/A | BW350: N/A | BX350: N/A | BY350: N/A | BZ350: N/A
BA351: Use of Basic Sanitation | BB351: Yes | BC351: N/A | BD351: N/A | BE351: N/A | BF351: N/A | BG351: N/A | BH351: N/A | BI351: N/A | BJ351: N/A | BK351: N/A | BL351: N/A | BM351: N/A | BN351: N/A | BO351: N/A | BP351: N/A | BQ351: N/A | BR351: N/A | BS351: N/A | BT351: N/A | BU351: N/A | BV351: N/A | BW351: N/A | BX351: N/A | BY351: N/A | BZ351: N/A
BB352: No | BC352: N/A | BD352: N/A | BE352: N/A | BF352: N/A | BG352: N/A | BH352: N/A | BI352: N/A | BJ352: N/A | BK352: N/A | BL352: N/A | BM352: N/A | BN352: N/A | BO352: N/A | BP352: N/A | BQ352: N/A | BR352: N/A | BS352: N/A | BT352: N/A | BU352: N/A | BV352: N/A | BW352: N/A | BX352: N/A | BY352: N/A | BZ352: N/A
BA353: Access to Basic Hygiene | BB353: Yes | BC353: N/A | BD353: N/A | BE353: N/A | BF353: N/A | BG353: N/A | BH353: N/A | BI353: N/A | BJ353: N/A | BK353: N/A | BL353: N/A | BM353: N/A | BN353: N/A | BO353: N/A | BP353: N/A | BQ353: N/A | BR353: N/A | BS353: N/A | BT353: N/A | BU353: N/A | BV353: N/A | BW353: N/A | BX353: N/A | BY353: N/A | BZ353: N/A
BB354: No | BC354: N/A | BD354: N/A | BE354: N/A | BF354: N/A | BG354: N/A | BH354: N/A | BI354: N/A | BJ354: N/A | BK354: N/A | BL354: N/A | BM354: N/A | BN354: N/A | BO354: N/A | BP354: N/A | BQ354: N/A | BR354: N/A | BS354: N/A | BT354: N/A | BU354: N/A | BV354: N/A | BW354: N/A | BX354: N/A | BY354: N/A | BZ354: N/A
C399: INITIAL (national) Wealth Index | H399: URBAN Wealth Index | M399: RURAL Wealth Index
C400: Component Matrix | H400: Component Matrix | M400: Component Matrix
E401: Component | J401: Component | O401: Component
B402: Note: The INITIAL (national) Wealth Index is based on the first component of the Principal Component Analysis (PCA) which has been obtained at national level. The final national-level (NATIONAL) Wealth Index is based on the URBAN and RURAL specific wealth indexes. Regression procedures are used to establish the relationships between the two sets of scores (urban and rural) and the initial (national) wealth factors. This allows best use of the available information for each area and a better precision of the FINAL (NATIONAL) Wealth Index. For dependency reasons, all WASH variables (contained in the generic MICS and DHS scripts) have been excluded from the sets of asset variables used in the PCAs. The PCA can extracts as many components as there are asset variables in the input. Only the first of the components is used to represent the Wealth Index. The scores represent the weights of the asset variables on the Wealth Index (correlations between the variables and the component). The communalities are the proportion of each variable's variance that can be explained by the component. Proportion of explained variance is the part of the model's total variance that is explained by the component. For more information on the procedure used: The DHS Wealth Index, DHS Comparative Reports No. 6, Shea Oscar Rutstein, Kiersten Johnson, ORC Macro International Inc., 2004. The DHS Wealth Index: Approaches for Rural and Urban Areas, Shea O. Rutstein, ORC Macro International Inc., 2008. MICS Methodological Paper No. 4, Review of options for reporting water, sanitation and hygiene coverage by wealth quintile, UNICEF, 2016. | E402: 1 | J402: 1 | O402: 1
C403: Household member owns: asset2d | E403: 0.8875808961 | H403: Household member owns: asset2d | J403: 0.8993618153 | M403: Household member owns: asset2c | O403: 0.7173698564
C404: Household member owns: asset2f | E404: 0.8377487905 | H404: Household member owns: asset2f | J404: 0.8968566885 | M404: Household member owns: asset2e | O404: 0.7173698564
C405: Household member owns: asset2p | E405: 0.8024403348 | H405: Household member owns: asset2e | J405: 0.8707603235 | M405: Household member owns: asset2f | O405: 0.6743473726
C406: Household member owns: asset2e | E406: 0.7689764627 | H406: Household member owns: asset2c | J406: 0.8707603235 | M406: Household member owns: asset2d | O406: 0.6695518574
C407: Household member owns: asset2c | E407: 0.7689764627 | H407: Household member owns: asset2n | J407: 0.7964370245 | M407: Household member owns: asset2p | O407: 0.4891550244
C408: floor3 | E408: 0.755314923 | H408: Household member owns: asset2p | J408: 0.7918071936 | M408: Household member owns: asset2g | O408: 0.4770661575
C409: floor2 | E409: -0.7235662874 | H409: Household member owns: asset2k | J409: 0.7675966353 | M409: Household member owns: asset2h | O409: 0.4321442453
C410: Household member owns: asset2n | E410: 0.6885708559 | H410: Household member owns: asset2g | J410: 0.6777039329 | M410: Household member owns: asset2n | O410: 0.4186208121
C411: Household member owns: asset2k | E411: 0.6811316875 | H411: Household member owns: asset2h | J411: 0.6466059118 | M411: Household member owns: asset2k | O411: 0.3741047109
C412: roof1 | E412: 0.6723874428 | H412: Household member owns: asset2m | J412: 0.5873882749 | M412: Household member owns: asset2l | O412: 0.3678742844
C413: Household member owns: asset2l | E413: 0.6148788289 | H413: Household member owns: asset2l | J413: 0.5214990721 | M413: Household member owns: asset2m | O413: 0.2501653857
C414: roof2 | E414: -0.5931200869 | H414: Household member owns: asset2o | J414: 0.4946968758 | M414: Household member owns: asset2a | O414: 0.2148662951
C415: Household member owns: asset2i | E415: 0.5267019229 | H415: floor3 | J415: 0.4571359387 | M415: Household member owns: asset2j | O415: 0.2115890841
C416: Household member owns: asset2o | E416: 0.5225884407 | H416: roof1 | J416: 0.4431361542 | M416: Household member owns: asset2b | O416: 0.2083677701
C417: Household member owns: asset2g | E417: 0.474210356 | H417: Household member owns: asset2i | J417: 0.4295537353 | M417: wall4 | O417: 0.1923673949
C418: Household member owns: asset2m | E418: 0.447994531 | H418: floor2 | J418: -0.4182901659 | M418: floor3 | O418: 0.1916047133
C419: Household member owns: asset2h | E419: 0.4212661131 | H419: roof2 | J419: -0.3432471687 | M419: floor2 | O419: -0.1912493922
... 139 more rows

Sheet MICS06
A2: =A1026 -> Guinea-Bissau
A3: =A1034 -> 2006
A4: Use of drinking water sources
A5: by wealth quintile and sub-national region
A6: Notes:
A7: WHO/UNICEF JMP customised wealth index excludes water,
A8: sanitation and hygiene assets.
A9: Survey used for analysis: | B9: =A1025 -> MICS06
A10: =B1028 -> 
A11: =B1027 -> 
A14: Use of drinking water sources | C14: NATIONAL wealth index quintile | H14: URBAN wealth index quintile | M14: RURAL wealth index quintile | R14: SUB-REGIONS: | BA14: Raw numbers of respondents: | BB14: Use of drinking water sources | BC14: NATIONAL wealth index quintile | BH14: URBAN wealth index quintile | BM14: RURAL wealth index quintile | BR14: SUB-REGIONS:
A15: Weighted percentage (used in graphs) | C15: Poorest | D15: Poor | E15: Middle | F15: Rich | G15: Richest | H15: Poorest | I15: Poor | J15: Middle | K15: Rich | L15: Richest | M15: Poorest | N15: Poor | O15: Middle | P15: Rich | Q15: Richest | R15: Bafata | S15: Biombo | T15: Bolama | U15: Cacheu | V15: Gabu | W15: Oio | X15: Quinara | Y15: SAB | Z15: Tombali | BA15: Water data, raw numbers (weighted) | BC15: Poorest | BD15: Poor | BE15: Middle | BF15: Rich | BG15: Richest | BH15: Poorest | BI15: Poor | BJ15: Middle | BK15: Rich | BL15: Richest | BM15: Poorest | BN15: Poor | BO15: Middle | BP15: Rich | BQ15: Richest | BR15: Bafata | BS15: Biombo | BT15: Bolama | BU15: Cacheu | BV15: Gabu | BW15: Oio | BX15: Quinara | BY15: SAB | BZ15: Tombali
A16: Water | B16: Improved | C16: 48.03158249 | D16: 42.78074772 | E16: 49.89753218 | F16: 68.88384109 | G16: 89.83867662 | H16: 61.06551916 | I16: 81.93645092 | J16: 88.40479383 | K16: 89.2806295 | L16: 90.68012028 | M16: 49.86848619 | N16: 42.04851976 | O16: 42.24905972 | P16: 52.36383872 | Q16: 51.35097833 | R16: 67.32119511 | S16: 59.79861649 | T16: 47.44414647 | U16: 49.37900959 | V16: 58.62838244 | W16: 23.86523961 | X16: 70.90660943 | Y16: 92.11514788 | Z16: 49.41855236 | BA16: Water | BB16: Improved | BC16: N/A | BD16: N/A | BE16: N/A | BF16: N/A | BG16: N/A | BH16: N/A | BI16: N/A | BJ16: N/A | BK16: N/A | BL16: N/A | BM16: N/A | BN16: N/A | BO16: N/A | BP16: N/A | BQ16: N/A | BR16: N/A | BS16: N/A | BT16: N/A | BU16: N/A | BV16: N/A | BW16: N/A | BX16: N/A | BY16: N/A | BZ16: N/A
B17: Not Improved | C17: 51.96841751 | D17: 57.21925228 | E17: 50.10246782 | F17: 31.11615891 | G17: 10.16132338 | H17: 38.93448084 | I17: 18.06354908 | J17: 11.59520617 | K17: 10.7193705 | L17: 9.319879718 | M17: 50.13151381 | N17: 57.95148024 | O17: 57.75094028 | P17: 47.63616128 | Q17: 48.64902167 | R17: 32.67880489 | S17: 40.20138351 | T17: 52.55585353 | U17: 50.62099041 | V17: 41.37161756 | W17: 76.13476039 | X17: 29.09339057 | Y17: 7.884852116 | Z17: 50.58144764 | BB17: Not Improved | BC17: N/A | BD17: N/A | BE17: N/A | BF17: N/A | BG17: N/A | BH17: N/A | BI17: N/A | BJ17: N/A | BK17: N/A | BL17: N/A | BM17: N/A | BN17: N/A | BO17: N/A | BP17: N/A | BQ17: N/A | BR17: N/A | BS17: N/A | BT17: N/A | BU17: N/A | BV17: N/A | BW17: N/A | BX17: N/A | BY17: N/A | BZ17: N/A
A18: Water ladder | B18: Basic | C18: =C16*C23/100 -> 42.17372304 | D18: =D16*D23/100 -> 37.88636702 | E18: =E16*E23/100 -> 42.70305782 | F18: 62.59862555 | G18: 88.25583342 | H18: 57.11103916 | I18: 77.05656169 | J18: 85.20772051 | K18: 87.79343569 | L18: 89.86319519 | M18: 43.61243753 | N18: 34.8937593 | O18: 38.98160298 | P18: 45.90986901 | Q18: 42.35489173 | R18: 56.27211452 | S18: 52.72309106 | T18: 42.60497671 | U18: 45.2147751 | V18: 49.62730871 | W18: 22.02365262 | X18: 61.94052794 | Y18: 90.01916665 | Z18: 42.73332921 | BA18: Water ladder | BB18: Basic | BC18: N/A | BD18: N/A | BE18: N/A | BF18: N/A | BG18: N/A | BH18: N/A | BI18: N/A | BJ18: N/A | BK18: N/A | BL18: N/A | BM18: N/A | BN18: N/A | BO18: N/A | BP18: N/A | BQ18: N/A | BR18: N/A | BS18: N/A | BT18: N/A | BU18: N/A | BV18: N/A | BW18: N/A | BX18: N/A | BY18: N/A | BZ18: N/A
B19: Limited | C19: =C16*C22/100 -> 5.857859454 | D19: =D16*D22/100 -> 4.894380702 | E19: =E16*E22/100 -> 7.194474363 | F19: 6.285215542 | G19: 1.582843201 | H19: 3.954480001 | I19: 4.879889225 | J19: 3.197073328 | K19: 1.487193807 | L19: 0.8169250898 | M19: 6.256048668 | N19: 7.154760464 | O19: 3.267456733 | P19: 6.453969705 | Q19: 8.996086594 | R19: 11.04908059 | S19: 7.075525429 | T19: 4.839169761 | U19: 4.164234485 | V19: 9.001073728 | W19: 1.841586991 | X19: 8.96608149 | Y19: 2.095981239 | Z19: 6.685223152 | BB19: Limited | BC19: N/A | BD19: N/A | BE19: N/A | BF19: N/A | BG19: N/A | BH19: N/A | BI19: N/A | BJ19: N/A | BK19: N/A | BL19: N/A | BM19: N/A | BN19: N/A | BO19: N/A | BP19: N/A | BQ19: N/A | BR19: N/A | BS19: N/A | BT19: N/A | BU19: N/A | BV19: N/A | BW19: N/A | BX19: N/A | BY19: N/A | BZ19: N/A
B20: Unimproved | C20: =100-C18-C19-C21 -> 51.46536528 | D20: =100-D18-D19-D21 -> 55.40751061 | E20: =100-E18-E19-E21 -> 48.50590731 | F20: 30.45086661 | G20: 10.16132338 | H20: 38.17007647 | I20: 18.06354908 | J20: 11.52709585 | K20: 10.7193705 | L20: 9.319879718 | M20: 49.59664539 | N20: 57.18761307 | O20: 55.4188381 | P20: 45.81737097 | Q20: 47.46722002 | R20: 30.51475162 | S20: 37.83973281 | T20: 47.25650433 | U20: 50.18299073 | V20: 39.79556297 | W20: 75.88036006 | X20: 29.09339057 | Y20: 7.884852116 | Z20: 50.58144764 | BB20: Unimproved | BC20: N/A | BD20: N/A | BE20: N/A | BF20: N/A | BG20: N/A | BH20: N/A | BI20: N/A | BJ20: N/A | BK20: N/A | BL20: N/A | BM20: N/A | BN20: N/A | BO20: N/A | BP20: N/A | BQ20: N/A | BR20: N/A | BS20: N/A | BT20: N/A | BU20: N/A | BV20: N/A | BW20: N/A | BX20: N/A | BY20: N/A | BZ20: N/A
B21: Surface water | C21: 0.5030522238 | D21: 1.811741663 | E21: 1.596560502 | F21: 0.6652923014 | G21: 0 | H21: 0.7644043661 | I21: 0 | J21: 0.0681103112 | K21: 0 | L21: 0 | M21: 0.5348684148 | N21: 0.7638671615 | O21: 2.332102187 | P21: 1.818790317 | Q21: 1.181801653 | R21: 2.164053269 | S21: 2.361650708 | T21: 5.299349199 | U21: 0.4379996831 | V21: 1.576054588 | W21: 0.2544003272 | X21: 0 | Y21: 0 | Z21: 0 | BB21: Surface water | BC21: N/A | BD21: N/A | BE21: N/A | BF21: N/A | BG21: N/A | BH21: N/A | BI21: N/A | BJ21: N/A | BK21: N/A | BL21: N/A | BM21: N/A | BN21: N/A | BO21: N/A | BP21: N/A | BQ21: N/A | BR21: N/A | BS21: N/A | BT21: N/A | BU21: N/A | BV21: N/A | BW21: N/A | BX21: N/A | BY21: N/A | BZ21: N/A
A22: Improved water point at more than 30 minutes | B22: Yes | C22: 12.19584938 | D22: 11.44061514 | E22: 14.41849737 | F22: 9.124368563 | G22: 1.761872793 | H22: 6.475798544 | I22: 5.955700022 | J22: 3.616402673 | K22: 1.665751928 | L22: 0.9008866411 | M22: 12.5450944 | N22: 17.01548712 | O22: 7.733797521 | P22: 12.32524174 | Q22: 17.5188222 | R22: 16.41248432 | S22: 11.83225607 | T22: 10.19971929 | U22: 8.433207794 | V22: 15.35275809 | W22: 7.716608006 | X22: 12.64491641 | Y22: 2.275392579 | Z22: 13.52775999 | BA22: Improved water point at more than 30 minutes | BB22: Yes | BC22: N/A | BD22: N/A | BE22: N/A | BF22: N/A | BG22: N/A | BH22: N/A | BI22: N/A | BJ22: N/A | BK22: N/A | BL22: N/A | BM22: N/A | BN22: N/A | BO22: N/A | BP22: N/A | BQ22: N/A | BR22: N/A | BS22: N/A | BT22: N/A | BU22: N/A | BV22: N/A | BW22: N/A | BX22: N/A | BY22: N/A | BZ22: N/A
B23: No | C23: 87.80415062 | D23: 88.55938486 | E23: 85.58150263 | F23: 90.87563144 | G23: 98.23812721 | H23: 93.52420146 | I23: 94.04429998 | J23: 96.38359733 | K23: 98.33424807 | L23: 99.09911336 | M23: 87.4549056 | N23: 82.98451288 | O23: 92.26620248 | P23: 87.67475826 | Q23: 82.4811778 | R23: 83.58751568 | S23: 88.16774393 | T23: 89.80028071 | U23: 91.56679221 | V23: 84.64724191 | W23: 92.28339199 | X23: 87.35508359 | Y23: 97.72460742 | Z23: 86.47224001 | BB23: No | BC23: N/A | BD23: N/A | BE23: N/A | BF23: N/A | BG23: N/A | BH23: N/A | BI23: N/A | BJ23: N/A | BK23: N/A | BL23: N/A | BM23: N/A | BN23: N/A | BO23: N/A | BP23: N/A | BQ23: N/A | BR23: N/A | BS23: N/A | BT23: N/A | BU23: N/A | BV23: N/A | BW23: N/A | BX23: N/A | BY23: N/A | BZ23: N/A
A24: Manually calculated ratios | B24: Improved wells
B25: Improved springs
B26: Other
C27: NATIONAL wealth index quintile | H27: URBAN wealth index quintile | M27: RURAL wealth index quintile | R27: SUB-REGIONS: | BA27: Raw numbers of respondents: | BB27: Use of drinking water sources | BC27: NATIONAL wealth index quintile | BH27: URBAN wealth index quintile | BM27: RURAL wealth index quintile | BR27: SUB-REGIONS:
A28: Percentage based on weighted population | C28: Poorest | D28: Poor | E28: Middle | F28: Rich | G28: Richest | H28: Poorest | I28: Poor | J28: Middle | K28: Rich | L28: Richest | M28: Poorest | N28: Poor | O28: Middle | P28: Rich | Q28: Richest | R28: Bafata | S28: Biombo | T28: Bolama | U28: Cacheu | V28: Gabu | W28: Oio | X28: Quinara | Y28: SAB | Z28: Tombali | BA28: Water data, raw numbers (weighted) | BC28: Poorest | BD28: Poor | BE28: Middle | BF28: Rich | BG28: Richest | BH28: Poorest | BI28: Poor | BJ28: Middle | BK28: Rich | BL28: Richest | BM28: Poorest | BN28: Poor | BO28: Middle | BP28: Rich | BQ28: Richest | BR28: Bafata | BS28: Biombo | BT28: Bolama | BU28: Cacheu | BV28: Gabu | BW28: Oio | BX28: Quinara | BY28: SAB | BZ28: Tombali
A29: Piped water | B29: Yes | C29: 9.474359749 | D29: 3.722747018 | E29: 4.992317959 | F29: 23.85585306 | G29: 57.82535525 | H29: 17.49071939 | I29: 37.97170186 | J29: 49.98672796 | K29: 52.51923592 | L29: 70.84316389 | M29: 10.17243459 | N29: 4.519994385 | O29: 3.174920435 | P29: 4.631528075 | Q29: 6.436791232 | R29: 9.580581425 | S29: 7.941986236 | T29: 7.647506225 | U29: 6.164823882 | V29: 8.536004402 | W29: 7.769862271 | X29: 0.4722166881 | Y29: 59.65713021 | Z29: 1.981412939 | BA29: Piped water | BB29: Yes | BC29: N/A | BD29: N/A | BE29: N/A | BF29: N/A | BG29: N/A | BH29: N/A | BI29: N/A | BJ29: N/A | BK29: N/A | BL29: N/A | BM29: N/A | BN29: N/A | BO29: N/A | BP29: N/A | BQ29: N/A | BR29: N/A | BS29: N/A | BT29: N/A | BU29: N/A | BV29: N/A | BW29: N/A | BX29: N/A | BY29: N/A | BZ29: N/A
B30: No | C30: 90.52564025 | D30: 96.27725298 | E30: 95.00768204 | F30: 76.14414694 | G30: 42.17464475 | H30: 82.50928061 | I30: 62.02829814 | J30: 50.01327204 | K30: 47.48076408 | L30: 29.15683611 | M30: 89.82756541 | N30: 95.48000561 | O30: 96.82507956 | P30: 95.36847192 | Q30: 93.56320877 | R30: 90.41941858 | S30: 92.05801376 | T30: 92.35249377 | U30: 93.83517612 | V30: 91.4639956 | W30: 92.23013773 | X30: 99.52778331 | Y30: 40.34286979 | Z30: 98.01858706 | BB30: No | BC30: N/A | BD30: N/A | BE30: N/A | BF30: N/A | BG30: N/A | BH30: N/A | BI30: N/A | BJ30: N/A | BK30: N/A | BL30: N/A | BM30: N/A | BN30: N/A | BO30: N/A | BP30: N/A | BQ30: N/A | BR30: N/A | BS30: N/A | BT30: N/A | BU30: N/A | BV30: N/A | BW30: N/A | BX30: N/A | BY30: N/A | BZ30: N/A
A31: Piped water on premises | B31: Yes | C31: 1.230965138 | D31: 0.3773900005 | E31: 0.5780215496 | F31: 11.02239483 | G31: 41.48429795 | H31: 5.277829818 | I31: 20.10328077 | J31: 28.17837793 | K31: 33.56482637 | L31: 61.11703043 | M31: 1.376982733 | N31: 0.3475199296 | O31: 0.2370165418 | P31: 0.6361152631 | Q31: 0.6184791537 | R31: 0 | S31: 0 | T31: 0.8057463101 | U31: 1.326698445 | V31: 0.1507113961 | W31: 2.903538642 | X31: 0 | Y31: 41.86349316 | Z31: 0 | BA31: Piped water on premises | BB31: Yes | BC31: N/A | BD31: N/A | BE31: N/A | BF31: N/A | BG31: N/A | BH31: N/A | BI31: N/A | BJ31: N/A | BK31: N/A | BL31: N/A | BM31: N/A | BN31: N/A | BO31: N/A | BP31: N/A | BQ31: N/A | BR31: N/A | BS31: N/A | BT31: N/A | BU31: N/A | BV31: N/A | BW31: N/A | BX31: N/A | BY31: N/A | BZ31: N/A
B32: No | C32: 98.76903486 | D32: 99.62261 | E32: 99.42197845 | F32: 88.97760517 | G32: 58.51570205 | H32: 94.72217018 | I32: 79.89671923 | J32: 71.82162207 | K32: 66.43517363 | L32: 38.88296957 | M32: 98.62301727 | N32: 99.65248007 | O32: 99.76298346 | P32: 99.36388474 | Q32: 99.38152085 | R32: 100 | S32: 100 | T32: 99.19425369 | U32: 98.67330155 | V32: 99.8492886 | W32: 97.09646136 | X32: 100 | Y32: 58.13650684 | Z32: 100 | BB32: No | BC32: N/A | BD32: N/A | BE32: N/A | BF32: N/A | BG32: N/A | BH32: N/A | BI32: N/A | BJ32: N/A | BK32: N/A | BL32: N/A | BM32: N/A | BN32: N/A | BO32: N/A | BP32: N/A | BQ32: N/A | BR32: N/A | BS32: N/A | BT32: N/A | BU32: N/A | BV32: N/A | BW32: N/A | BX32: N/A | BY32: N/A | BZ32: N/A
A33: Piped water into dwelling | B33: Yes | C33: N/A | D33: N/A | E33: N/A | F33: N/A | G33: N/A | H33: N/A | I33: N/A | J33: N/A | K33: N/A | L33: N/A | M33: N/A | N33: N/A | O33: N/A | P33: N/A | Q33: N/A | R33: N/A | S33: N/A | T33: N/A | U33: N/A | V33: N/A | W33: N/A | X33: N/A | Y33: N/A | Z33: N/A | BA33: Piped water into dwelling | BB33: Yes | BC33: N/A | BD33: N/A | BE33: N/A | BF33: N/A | BG33: N/A | BH33: N/A | BI33: N/A | BJ33: N/A | BK33: N/A | BL33: N/A | BM33: N/A | BN33: N/A | BO33: N/A | BP33: N/A | BQ33: N/A | BR33: N/A | BS33: N/A | BT33: N/A | BU33: N/A | BV33: N/A | BW33: N/A | BX33: N/A | BY33: N/A | BZ33: N/A
B34: No | C34: N/A | D34: N/A | E34: N/A | F34: N/A | G34: N/A | H34: N/A | I34: N/A | J34: N/A | K34: N/A | L34: N/A | M34: N/A | N34: N/A | O34: N/A | P34: N/A | Q34: N/A | R34: N/A | S34: N/A | T34: N/A | U34: N/A | V34: N/A | W34: N/A | X34: N/A | Y34: N/A | Z34: N/A | BB34: No | BC34: N/A | BD34: N/A | BE34: N/A | BF34: N/A | BG34: N/A | BH34: N/A | BI34: N/A | BJ34: N/A | BK34: N/A | BL34: N/A | BM34: N/A | BN34: N/A | BO34: N/A | BP34: N/A | BQ34: N/A | BR34: N/A | BS34: N/A | BT34: N/A | BU34: N/A | BV34: N/A | BW34: N/A | BX34: N/A | BY34: N/A | BZ34: N/A
A35: Water source on premises | B35: Yes | C35: 12.05941661 | D35: 11.90431711 | E35: 12.75449937 | F35: 24.46485023 | G35: 53.38809351 | H35: 20.8301926 | I35: 31.30681641 | J35: 40.56750981 | K35: 46.24977925 | L35: 70.36667912 | M35: 10.99671841 | N35: 11.68833553 | O35: 12.70464062 | P35: 12.47157762 | Q35: 14.57693983 | R35: 7.375114707 | S35: 2.060037863 | T35: 5.107000467 | U35: 19.81486616 | V35: 7.959001623 | W35: 24.68714542 | X35: 6.143908676 | Y35: 52.67087853 | Z35: 6.781194483 | BA35: Water source on premises | BB35: Yes | BC35: N/A | BD35: N/A | BE35: N/A | BF35: N/A | BG35: N/A | BH35: N/A | BI35: N/A | BJ35: N/A | BK35: N/A | BL35: N/A | BM35: N/A | BN35: N/A | BO35: N/A | BP35: N/A | BQ35: N/A | BR35: N/A | BS35: N/A | BT35: N/A | BU35: N/A | BV35: N/A | BW35: N/A | BX35: N/A | BY35: N/A | BZ35: N/A
B36: No | C36: 87.94058339 | D36: 88.09568289 | E36: 87.24550063 | F36: 75.53514977 | G36: 46.61190649 | H36: 79.1698074 | I36: 68.69318359 | J36: 59.43249019 | K36: 53.75022075 | L36: 29.63332088 | M36: 89.00328159 | N36: 88.31166447 | O36: 87.29535938 | P36: 87.52842238 | Q36: 85.42306017 | R36: 92.62488529 | S36: 97.93996214 | T36: 94.89299953 | U36: 80.18513384 | V36: 92.04099838 | W36: 75.31285458 | X36: 93.85609132 | Y36: 47.32912147 | Z36: 93.21880552 | BB36: No | BC36: N/A | BD36: N/A | BE36: N/A | BF36: N/A | BG36: N/A | BH36: N/A | BI36: N/A | BJ36: N/A | BK36: N/A | BL36: N/A | BM36: N/A | BN36: N/A | BO36: N/A | BP36: N/A | BQ36: N/A | BR36: N/A | BS36: N/A | BT36: N/A | BU36: N/A | BV36: N/A | BW36: N/A | BX36: N/A | BY36: N/A | BZ36: N/A
A37: Improved Water source on premises | B37: Yes | C37: 7.87305064 | D37: 8.364747806 | E37: 6.912945345 | F37: 27.62724165 | G37: 56.55382244 | H37: 21.62744611 | I37: 34.89410017 | J37: 43.55324522 | K37: 48.11873605 | L37: 75.33788137 | M37: 6.918735969 | N37: 7.041071866 | O37: 9.244434996 | P37: 6.86175917 | Q37: 11.1107389 | R37: 5.587944708 | S37: 0.6684621573 | T37: 5.790991124 | U37: 16.54136065 | V37: 5.653430091 | W37: 25.71378648 | X37: 6.874529317 | Y37: 55.56067652 | Z37: 9.062651245 | BA37: Improved water source on premises | BB37: Yes | BC37: N/A | BD37: N/A | BE37: N/A | BF37: N/A | BG37: N/A | BH37: N/A | BI37: N/A | BJ37: N/A | BK37: N/A | BL37: N/A | BM37: N/A | BN37: N/A | BO37: N/A | BP37: N/A | BQ37: N/A | BR37: N/A | BS37: N/A | BT37: N/A | BU37: N/A | BV37: N/A | BW37: N/A | BX37: N/A | BY37: N/A | BZ37: N/A
B38: No | C38: 92.12694936 | D38: 91.63525219 | E38: 93.08705465 | F38: 72.37275835 | G38: 43.44617756 | H38: 78.37255389 | I38: 65.10589983 | J38: 56.44675478 | K38: 51.88126395 | L38: 24.66211863 | M38: 93.08126403 | N38: 92.95892813 | O38: 90.755565 | P38: 93.13824083 | Q38: 88.8892611 | R38: 94.41205529 | S38: 99.33153784 | T38: 94.20900888 | U38: 83.45863935 | V38: 94.34656991 | W38: 74.28621352 | X38: 93.12547068 | Y38: 44.43932348 | Z38: 90.93734875 | BB38: No | BC38: N/A | BD38: N/A | BE38: N/A | BF38: N/A | BG38: N/A | BH38: N/A | BI38: N/A | BJ38: N/A | BK38: N/A | BL38: N/A | BM38: N/A | BN38: N/A | BO38: N/A | BP38: N/A | BQ38: N/A | BR38: N/A | BS38: N/A | BT38: N/A | BU38: N/A | BV38: N/A | BW38: N/A | BX38: N/A | BY38: N/A | BZ38: N/A
A39: Piped water on premises available when needed | B39: Yes | C39: N/A | D39: N/A | E39: N/A | F39: N/A | G39: N/A | H39: N/A | I39: N/A | J39: N/A | K39: N/A | L39: N/A | M39: N/A | N39: N/A | O39: N/A | P39: N/A | Q39: N/A | R39: N/A | S39: N/A | T39: N/A | U39: N/A | V39: N/A | W39: N/A | X39: N/A | Y39: N/A | Z39: N/A | BA39: Piped water on premises available when needed | BB39: Yes | BC39: N/A | BD39: N/A | BE39: N/A | BF39: N/A | BG39: N/A | BH39: N/A | BI39: N/A | BJ39: N/A | BK39: N/A | BL39: N/A | BM39: N/A | BN39: N/A | BO39: N/A | BP39: N/A | BQ39: N/A | BR39: N/A | BS39: N/A | BT39: N/A | BU39: N/A | BV39: N/A | BW39: N/A | BX39: N/A | BY39: N/A | BZ39: N/A
B40: No | C40: N/A | D40: N/A | E40: N/A | F40: N/A | G40: N/A | H40: N/A | I40: N/A | J40: N/A | K40: N/A | L40: N/A | M40: N/A | N40: N/A | O40: N/A | P40: N/A | Q40: N/A | R40: N/A | S40: N/A | T40: N/A | U40: N/A | V40: N/A | W40: N/A | X40: N/A | Y40: N/A | Z40: N/A | BB40: No | BC40: N/A | BD40: N/A | BE40: N/A | BF40: N/A | BG40: N/A | BH40: N/A | BI40: N/A | BJ40: N/A | BK40: N/A | BL40: N/A | BM40: N/A | BN40: N/A | BO40: N/A | BP40: N/A | BQ40: N/A | BR40: N/A | BS40: N/A | BT40: N/A | BU40: N/A | BV40: N/A | BW40: N/A | BX40: N/A | BY40: N/A | BZ40: N/A
A41: Water point at more than 30 minutes | B41: Yes | C41: 12.92592927 | D41: 11.88563744 | E41: 15.41827927 | F41: 10.90969259 | G41: 2.549297697 | H41: 10.85948032 | I41: 6.866677898 | J41: 4.640134608 | K41: 2.680771931 | L41: 1.702809923 | M41: 13.64196523 | N41: 13.86127057 | O41: 9.942090849 | P41: 14.66738658 | Q41: 16.37890277 | R41: 19.33383496 | S41: 12.7045972 | T41: 18.24342937 | U41: 9.668299948 | V41: 18.77114972 | W41: 6.523268665 | X41: 12.00075734 | Y41: 2.995422495 | Z41: 17.61780614 | BA41: Water point at more than 30 minutes | BB41: Yes | BC41: N/A | BD41: N/A | BE41: N/A | BF41: N/A | BG41: N/A | BH41: N/A | BI41: N/A | BJ41: N/A | BK41: N/A | BL41: N/A | BM41: N/A | BN41: N/A | BO41: N/A | BP41: N/A | BQ41: N/A | BR41: N/A | BS41: N/A | BT41: N/A | BU41: N/A | BV41: N/A | BW41: N/A | BX41: N/A | BY41: N/A | BZ41: N/A
B42: No | C42: 87.07407073 | D42: 88.11436256 | E42: 84.58172073 | F42: 89.09030741 | G42: 97.4507023 | H42: 89.14051968 | I42: 93.1333221 | J42: 95.35986539 | K42: 97.31922807 | L42: 98.29719008 | M42: 86.35803477 | N42: 86.13872943 | O42: 90.05790915 | P42: 85.33261342 | Q42: 83.62109723 | R42: 80.66616504 | S42: 87.2954028 | T42: 81.75657063 | U42: 90.33170005 | V42: 81.22885028 | W42: 93.47673134 | X42: 87.99924266 | Y42: 97.00457751 | Z42: 82.38219386 | BB42: No | BC42: N/A | BD42: N/A | BE42: N/A | BF42: N/A | BG42: N/A | BH42: N/A | BI42: N/A | BJ42: N/A | BK42: N/A | BL42: N/A | BM42: N/A | BN42: N/A | BO42: N/A | BP42: N/A | BQ42: N/A | BR42: N/A | BS42: N/A | BT42: N/A | BU42: N/A | BV42: N/A | BW42: N/A | BX42: N/A | BY42: N/A | BZ42: N/A
A43: Water source available when needed | B43: Yes | C43: N/A | D43: N/A | E43: N/A | F43: N/A | G43: N/A | H43: N/A | I43: N/A | J43: N/A | K43: N/A | L43: N/A | M43: N/A | N43: N/A | O43: N/A | P43: N/A | Q43: N/A | R43: N/A | S43: N/A | T43: N/A | U43: N/A | V43: N/A | W43: N/A | X43: N/A | Y43: N/A | Z43: N/A | BA43: Water source available when needed | BB43: Yes | BC43: N/A | BD43: N/A | BE43: N/A | BF43: N/A | BG43: N/A | BH43: N/A | BI43: N/A | BJ43: N/A | BK43: N/A | BL43: N/A | BM43: N/A | BN43: N/A | BO43: N/A | BP43: N/A | BQ43: N/A | BR43: N/A | BS43: N/A | BT43: N/A | BU43: N/A | BV43: N/A | BW43: N/A | BX43: N/A | BY43: N/A | BZ43: N/A
B44: No | C44: N/A | D44: N/A | E44: N/A | F44: N/A | G44: N/A | H44: N/A | I44: N/A | J44: N/A | K44: N/A | L44: N/A | M44: N/A | N44: N/A | O44: N/A | P44: N/A | Q44: N/A | R44: N/A | S44: N/A | T44: N/A | U44: N/A | V44: N/A | W44: N/A | X44: N/A | Y44: N/A | Z44: N/A | BB44: No | BC44: N/A | BD44: N/A | BE44: N/A | BF44: N/A | BG44: N/A | BH44: N/A | BI44: N/A | BJ44: N/A | BK44: N/A | BL44: N/A | BM44: N/A | BN44: N/A | BO44: N/A | BP44: N/A | BQ44: N/A | BR44: N/A | BS44: N/A | BT44: N/A | BU44: N/A | BV44: N/A | BW44: N/A | BX44: N/A | BY44: N/A | BZ44: N/A
A45: Improved water source available when needed | B45: Yes | C45: N/A | D45: N/A | E45: N/A | F45: N/A | G45: N/A | H45: N/A | I45: N/A | J45: N/A | K45: N/A | L45: N/A | M45: N/A | N45: N/A | O45: N/A | P45: N/A | Q45: N/A | R45: N/A | S45: N/A | T45: N/A | U45: N/A | V45: N/A | W45: N/A | X45: N/A | Y45: N/A | Z45: N/A | BA45: Improved water source available when needed | BB45: Yes | BC45: N/A | BD45: N/A | BE45: N/A | BF45: N/A | BG45: N/A | BH45: N/A | BI45: N/A | BJ45: N/A | BK45: N/A | BL45: N/A | BM45: N/A | BN45: N/A | BO45: N/A | BP45: N/A | BQ45: N/A | BR45: N/A | BS45: N/A | BT45: N/A | BU45: N/A | BV45: N/A | BW45: N/A | BX45: N/A | BY45: N/A | BZ45: N/A
B46: No | C46: N/A | D46: N/A | E46: N/A | F46: N/A | G46: N/A | H46: N/A | I46: N/A | J46: N/A | K46: N/A | L46: N/A | M46: N/A | N46: N/A | O46: N/A | P46: N/A | Q46: N/A | R46: N/A | S46: N/A | T46: N/A | U46: N/A | V46: N/A | W46: N/A | X46: N/A | Y46: N/A | Z46: N/A | BB46: No | BC46: N/A | BD46: N/A | BE46: N/A | BF46: N/A | BG46: N/A | BH46: N/A | BI46: N/A | BJ46: N/A | BK46: N/A | BL46: N/A | BM46: N/A | BN46: N/A | BO46: N/A | BP46: N/A | BQ46: N/A | BR46: N/A | BS46: N/A | BT46: N/A | BU46: N/A | BV46: N/A | BW46: N/A | BX46: N/A | BY46: N/A | BZ46: N/A
A47: Microbiological quality at point of collection | B47: Not contaminated (No E. coli in 100 mL) | C47: N/A | D47: N/A | E47: N/A | F47: N/A | G47: N/A | H47: N/A | I47: N/A | J47: N/A | K47: N/A | L47: N/A | M47: N/A | N47: N/A | O47: N/A | P47: N/A | Q47: N/A | R47: N/A | S47: N/A | T47: N/A | U47: N/A | V47: N/A | W47: N/A | X47: N/A | Y47: N/A | Z47: N/A | BA47: Microbiological quality at point of collection | BB47: Not contaminated (No E. coli in 100 mL) | BC47: N/A | BD47: N/A | BE47: N/A | BF47: N/A | BG47: N/A | BH47: N/A | BI47: N/A | BJ47: N/A | BK47: N/A | BL47: N/A | BM47: N/A | BN47: N/A | BO47: N/A | BP47: N/A | BQ47: N/A | BR47: N/A | BS47: N/A | BT47: N/A | BU47: N/A | BV47: N/A | BW47: N/A | BX47: N/A | BY47: N/A | BZ47: N/A
B48: Contaminated (E. coli detected in 100 mL) | C48: N/A | D48: N/A | E48: N/A | F48: N/A | G48: N/A | H48: N/A | I48: N/A | J48: N/A | K48: N/A | L48: N/A | M48: N/A | N48: N/A | O48: N/A | P48: N/A | Q48: N/A | R48: N/A | S48: N/A | T48: N/A | U48: N/A | V48: N/A | W48: N/A | X48: N/A | Y48: N/A | Z48: N/A | BB48: Contaminated (E. coli detected in 100 mL) | BC48: N/A | BD48: N/A | BE48: N/A | BF48: N/A | BG48: N/A | BH48: N/A | BI48: N/A | BJ48: N/A | BK48: N/A | BL48: N/A | BM48: N/A | BN48: N/A | BO48: N/A | BP48: N/A | BQ48: N/A | BR48: N/A | BS48: N/A | BT48: N/A | BU48: N/A | BV48: N/A | BW48: N/A | BX48: N/A | BY48: N/A | BZ48: N/A
B49: Highly contaminated (>100 CFU/100 mL) | C49: N/A | D49: N/A | E49: N/A | F49: N/A | G49: N/A | H49: N/A | I49: N/A | J49: N/A | K49: N/A | L49: N/A | M49: N/A | N49: N/A | O49: N/A | P49: N/A | Q49: N/A | R49: N/A | S49: N/A | T49: N/A | U49: N/A | V49: N/A | W49: N/A | X49: N/A | Y49: N/A | Z49: N/A | BB49: Highly contaminated (>100 CFU/100 mL) | BC49: N/A | BD49: N/A | BE49: N/A | BF49: N/A | BG49: N/A | BH49: N/A | BI49: N/A | BJ49: N/A | BK49: N/A | BL49: N/A | BM49: N/A | BN49: N/A | BO49: N/A | BP49: N/A | BQ49: N/A | BR49: N/A | BS49: N/A | BT49: N/A | BU49: N/A | BV49: N/A | BW49: N/A | BX49: N/A | BY49: N/A | BZ49: N/A
A50: Microbiological quality of improved water sources at point of collection | B50: Not contaminated (No E. coli in 100 mL) | C50: N/A | D50: N/A | E50: N/A | F50: N/A | G50: N/A | H50: N/A | I50: N/A | J50: N/A | K50: N/A | L50: N/A | M50: N/A | N50: N/A | O50: N/A | P50: N/A | Q50: N/A | R50: N/A | S50: N/A | T50: N/A | U50: N/A | V50: N/A | W50: N/A | X50: N/A | Y50: N/A | Z50: N/A | BA50: Microbiological quality of improved water sources at point of collection | BB50: Not contaminated (No E. coli in 100 mL) | BC50: N/A | BD50: N/A | BE50: N/A | BF50: N/A | BG50: N/A | BH50: N/A | BI50: N/A | BJ50: N/A | BK50: N/A | BL50: N/A | BM50: N/A | BN50: N/A | BO50: N/A | BP50: N/A | BQ50: N/A | BR50: N/A | BS50: N/A | BT50: N/A | BU50: N/A | BV50: N/A | BW50: N/A | BX50: N/A | BY50: N/A | BZ50: N/A
B51: Contaminated (E. coli detected in 100 mL) | C51: N/A | D51: N/A | E51: N/A | F51: N/A | G51: N/A | H51: N/A | I51: N/A | J51: N/A | K51: N/A | L51: N/A | M51: N/A | N51: N/A | O51: N/A | P51: N/A | Q51: N/A | R51: N/A | S51: N/A | T51: N/A | U51: N/A | V51: N/A | W51: N/A | X51: N/A | Y51: N/A | Z51: N/A | BB51: Contaminated (E. coli detected in 100 mL) | BC51: N/A | BD51: N/A | BE51: N/A | BF51: N/A | BG51: N/A | BH51: N/A | BI51: N/A | BJ51: N/A | BK51: N/A | BL51: N/A | BM51: N/A | BN51: N/A | BO51: N/A | BP51: N/A | BQ51: N/A | BR51: N/A | BS51: N/A | BT51: N/A | BU51: N/A | BV51: N/A | BW51: N/A | BX51: N/A | BY51: N/A | BZ51: N/A
B52: Highly contaminated (>100 CFU/100 mL) | C52: N/A | D52: N/A | E52: N/A | F52: N/A | G52: N/A | H52: N/A | I52: N/A | J52: N/A | K52: N/A | L52: N/A | M52: N/A | N52: N/A | O52: N/A | P52: N/A | Q52: N/A | R52: N/A | S52: N/A | T52: N/A | U52: N/A | V52: N/A | W52: N/A | X52: N/A | Y52: N/A | Z52: N/A | BB52: Highly contaminated (>100 CFU/100 mL) | BC52: N/A | BD52: N/A | BE52: N/A | BF52: N/A | BG52: N/A | BH52: N/A | BI52: N/A | BJ52: N/A | BK52: N/A | BL52: N/A | BM52: N/A | BN52: N/A | BO52: N/A | BP52: N/A | BQ52: N/A | BR52: N/A | BS52: N/A | BT52: N/A | BU52: N/A | BV52: N/A | BW52: N/A | BX52: N/A | BY52: N/A | BZ52: N/A
A53: Microbiological quality of piped on premises at point of collection | B53: Not contaminated (No E. coli in 100 mL) | C53: N/A | D53: N/A | E53: N/A | F53: N/A | G53: N/A | H53: N/A | I53: N/A | J53: N/A | K53: N/A | L53: N/A | M53: N/A | N53: N/A | O53: N/A | P53: N/A | Q53: N/A | R53: N/A | S53: N/A | T53: N/A | U53: N/A | V53: N/A | W53: N/A | X53: N/A | Y53: N/A | Z53: N/A | BA53: Microbiological quality of piped on premises at point of collection | BB53: Not contaminated (No E. coli in 100 mL) | BC53: N/A | BD53: N/A | BE53: N/A | BF53: N/A | BG53: N/A | BH53: N/A | BI53: N/A | BJ53: N/A | BK53: N/A | BL53: N/A | BM53: N/A | BN53: N/A | BO53: N/A | BP53: N/A | BQ53: N/A | BR53: N/A | BS53: N/A | BT53: N/A | BU53: N/A | BV53: N/A | BW53: N/A | BX53: N/A | BY53: N/A | BZ53: N/A
B54: Contaminated (E. coli detected in 100 mL) | C54: N/A | D54: N/A | E54: N/A | F54: N/A | G54: N/A | H54: N/A | I54: N/A | J54: N/A | K54: N/A | L54: N/A | M54: N/A | N54: N/A | O54: N/A | P54: N/A | Q54: N/A | R54: N/A | S54: N/A | T54: N/A | U54: N/A | V54: N/A | W54: N/A | X54: N/A | Y54: N/A | Z54: N/A | BB54: Contaminated (E. coli detected in 100 mL) | BC54: N/A | BD54: N/A | BE54: N/A | BF54: N/A | BG54: N/A | BH54: N/A | BI54: N/A | BJ54: N/A | BK54: N/A | BL54: N/A | BM54: N/A | BN54: N/A | BO54: N/A | BP54: N/A | BQ54: N/A | BR54: N/A | BS54: N/A | BT54: N/A | BU54: N/A | BV54: N/A | BW54: N/A | BX54: N/A | BY54: N/A | BZ54: N/A
B55: Highly contaminated (>100 CFU/100 mL) | C55: N/A | D55: N/A | E55: N/A | F55: N/A | G55: N/A | H55: N/A | I55: N/A | J55: N/A | K55: N/A | L55: N/A | M55: N/A | N55: N/A | O55: N/A | P55: N/A | Q55: N/A | R55: N/A | S55: N/A | T55: N/A | U55: N/A | V55: N/A | W55: N/A | X55: N/A | Y55: N/A | Z55: N/A | BB55: Highly contaminated (>100 CFU/100 mL) | BC55: N/A | BD55: N/A | BE55: N/A | BF55: N/A | BG55: N/A | BH55: N/A | BI55: N/A | BJ55: N/A | BK55: N/A | BL55: N/A | BM55: N/A | BN55: N/A | BO55: N/A | BP55: N/A | BQ55: N/A | BR55: N/A | BS55: N/A | BT55: N/A | BU55: N/A | BV55: N/A | BW55: N/A | BX55: N/A | BY55: N/A | BZ55: N/A
C56: NATIONAL wealth index quintile | H56: URBAN wealth index quintile | M56: RURAL wealth index quintile | R56: SUB-REGIONS: | BA56: Raw numbers of respondents: | BB56: Use of drinking water sources | BC56: NATIONAL wealth index quintile | BH56: URBAN wealth index quintile | BM56: RURAL wealth index quintile | BR56: SUB-REGIONS:
A57: Percentage based on weighted population | C57: Poorest | D57: Poor | E57: Middle | F57: Rich | G57: Richest | H57: Poorest | I57: Poor | J57: Middle | K57: Rich | L57: Richest | M57: Poorest | N57: Poor | O57: Middle | P57: Rich | Q57: Richest | R57: Bafata | S57: Biombo | T57: Bolama | U57: Cacheu | V57: Gabu | W57: Oio | X57: Quinara | Y57: SAB | Z57: Tombali | BA57: Water data, raw numbers (weighted) | BC57: Poorest | BD57: Poor | BE57: Middle | BF57: Rich | BG57: Richest | BH57: Poorest | BI57: Poor | BJ57: Middle | BK57: Rich | BL57: Richest | BM57: Poorest | BN57: Poor | BO57: Middle | BP57: Rich | BQ57: Richest | BR57: Bafata | BS57: Biombo | BT57: Bolama | BU57: Cacheu | BV57: Gabu | BW57: Oio | BX57: Quinara | BY57: SAB | BZ57: Tombali
A58: Principale source d'eau que boivent les membre du menage | B58: Eau de robinet dns le logement | C58: 0.0701300192 | D58: 0 | E58: 0 | F58: 1.087982595 | G58: 13.3506126 | H58: 0.7028483532 | I58: 1.100732265 | J58: 3.527640978 | K58: 6.102627748 | L58: 29.42098247 | M58: 0 | N58: 0 | O58: 0 | P58: 0 | Q58: 0 | R58: 0 | S58: 0 | T58: 0.6766944732 | U58: 0.08163046422 | V58: 0.0649169283 | W58: 0 | X58: 0 | Y58: 11.75246691 | Z58: 0
B59: Dans la cour/parcelle | C59: 1.160835119 | D59: 0.3773900005 | E59: 0.5780215496 | F59: 9.934412237 | G59: 28.0580172 | H59: 4.574981465 | I59: 19.0025485 | J59: 24.65073695 | K59: 27.46219863 | L59: 31.48305337 | M59: 1.376982733 | N59: 0.3475199296 | O59: 0.2370165418 | P59: 0.6361152631 | Q59: 0.6184791537 | R59: 0 | S59: 0 | T59: 0.1290518369 | U59: 1.245067981 | V59: 0.08579446783 | W59: 2.903538642 | X59: 0 | Y59: 30.04880107 | Z59: 0
B60: Robinet public/borne fontaine | C60: 8.243394611 | D60: 3.345357017 | E60: 4.414296409 | F60: 12.83345823 | G60: 16.3410573 | H60: 12.21288958 | I60: 17.86842109 | J60: 21.80835004 | K60: 18.95440954 | L60: 9.726133459 | M60: 8.795451852 | N60: 4.172474456 | O60: 2.937903894 | P60: 3.995412812 | Q60: 5.818312078 | R60: 9.580581425 | S60: 7.941986236 | T60: 6.841759915 | U60: 4.838125437 | V60: 8.385293006 | W60: 4.866323629 | X60: 0.4722166881 | Y60: 17.79363704 | Z60: 1.981412939
B61: Puits a pompe/forage | C61: 19.47472311 | D61: 23.22034566 | E61: 24.37302892 | F61: 14.49144775 | G61: 4.715605977 | H61: 11.73256965 | I61: 8.22586332 | J61: 5.13218566 | K61: 5.099695233 | L61: 3.724932542 | M61: 20.83412347 | N61: 21.07876291 | O61: 25.32098394 | P61: 23.43549721 | Q61: 24.40529049 | R61: 46.15061182 | S61: 7.688163063 | T61: 7.099641659 | U61: 15.1802852 | V61: 35.35108456 | W61: 8.513435794 | X61: 51.52482065 | Y61: 2.369115009 | Z61: 14.72592595
B62: Puits protege | C62: 18.14954042 | D62: 14.79490738 | E62: 19.88977603 | F62: 29.17037619 | G62: 26.17044363 | H62: 31.09522133 | I62: 33.56906846 | J62: 32.44937739 | K62: 29.68430749 | L62: 15.75030131 | M62: 17.48475326 | N62: 15.51462467 | O62: 12.95074682 | P62: 23.4722774 | Q62: 19.87253018 | R62: 11.02724187 | S62: 39.84986277 | T62: 32.22738283 | U62: 25.71505047 | V62: 14.49498793 | W62: 7.230883075 | X62: 18.90957209 | Y62: 29.59293216 | Z62: 31.68482156
B63: Puits non protege | C63: 47.82856415 | D63: 53.83245051 | E63: 47.19698776 | F63: 29.50332085 | G63: 9.569331951 | H63: 36.11390935 | I63: 17.14801486 | J63: 10.55394247 | K63: 10.55526962 | L63: 8.508322163 | M63: 45.66386054 | N63: 54.83653174 | O63: 54.17910602 | P63: 44.18318204 | Q63: 46.83662575 | R63: 28.75630507 | S63: 35.94133478 | T63: 35.48283546 | U63: 49.61836782 | V63: 38.85793155 | W63: 73.78217344 | X63: 28.64700106 | Y63: 6.912521221 | Z63: 49.50156409
B64: Source protegee | C64: 0.9329592104 | D64: 1.042747663 | E64: 0.6424092809 | F64: 1.366164083 | G64: 1.127271764 | H64: 0.7470087901 | I64: 2.169817278 | J64: 0.8365028226 | K64: 1.977390856 | L64: 0.3617225396 | M64: 1.377174873 | N64: 0.9351378006 | O64: 0.8024085218 | P64: 0.8245360304 | Q64: 0.6363664208 | R64: 0.5627600022 | S64: 4.318604419 | T64: 0.4696157555 | U64: 2.31885004 | V64: 0.2463055464 | W64: 0.3510584735 | X64: 0 | Y64: 0.4959705068 | Z64: 1.026391904
B65: Ource non protegee | C65: 3.589258256 | D65: 1.542025056 | E65: 1.308919549 | F65: 0.7894856799 | G65: 0.5338302248 | H65: 1.791074147 | I65: 0.8787807569 | J65: 0.6893364088 | K65: 0 | L65: 0.8115575552 | M65: 3.93388431 | N65: 2.352344739 | O65: 1.185536334 | P65: 1.634188929 | Q65: 0.6305942659 | R65: 1.685372921 | S65: 1.898398025 | T65: 11.78324334 | U65: 0.5649180966 | V65: 0.8906429458 | W65: 2.098186622 | X65: 0.2271971627 | Y65: 0.8413672867 | Z65: 0.9338125912
B66: Eau de surface | C66: 0.5023850245 | D66: 1.809806281 | E66: 1.596560502 | F66: 0.6636657151 | G66: 0 | H66: 0.7644043661 | I66: 0 | J66: 0.06808287853 | K66: 0 | L66: 0 | M66: 0.5337689567 | N66: 0.7626037526 | O66: 2.332102187 | P66: 1.818790317 | Q66: 1.181801653 | R66: 2.159171 | S66: 2.361650708 | T66: 5.289774729 | U66: 0.4377044971 | V66: 1.573398545 | W66: 0.2544003272 | X66: 0 | Y66: 0 | Z66: 0
B67: Eau en bouteille | C67: 0 | D67: 0 | E67: 0 | F67: 0 | G67: 0.07566814689 | H67: 0 | I67: 0 | J67: 0 | K67: 0 | L67: 0.2129945966 | M67: 0 | N67: 0 | O67: 0 | P67: 0 | Q67: 0 | R67: 0 | S67: 0 | T67: 0 | U67: 0 | V67: 0 | W67: 0 | X67: 0 | Y67: 0.0622251837 | Z67: 0
B68: Autre | C68: 0.03148128931 | D68: 0 | E68: 0 | F68: 0 | G68: 0 | H68: 0.08874494873 | I68: 0 | J68: 0 | K68: 0 | L68: 0 | M68: 0 | N68: 0 | O68: 0 | P68: 0 | Q68: 0 | R68: 0 | S68: 0 | T68: 0 | U68: 0 | V68: 0.0496445217 | W68: 0 | X68: 0 | Y68: 0 | Z68: 0
B69: Manquant | C69: 0.01672878975 | D69: 0.03497043135 | E69: 0 | F69: 0.1596866608 | G69: 0.05816120392 | H69: 0.1763480286 | I69: 0.03675346763 | J69: 0.2838444036 | K69: 0.1641008782 | L69: 0 | M69: 0 | N69: 0 | O69: 0.05419574614 | P69: 0 | Q69: 0 | R69: 0.07795590339 | S69: 0 | T69: 0 | U69: 0 | V69: 0 | W69: 0 | X69: 0.2191923535 | Y69: 0.1309636082 | Z69: 0.1460709541
A108: =A1026 -> Guinea-Bissau
A109: =A1034 -> 2006
A110: Use of sanitation facilities
A111: by wealth quintile and sub-national region
A112: Notes:
A113: WHO/UNICEF JMP customised wealth index excludes water,
A114: sanitation and hygiene assets.
A115: Survey used for analysis: | B115: =A1025 -> MICS06
A116: Ratio of Improved latrines based on: | B116: JMP QUIBB02
A117: Ratio of Shared improved based on: | B117: Shared among sanitation
A120: Use of sanitation facilities | C120: NATIONAL wealth index quintile | H120: URBAN wealth index quintile | M120: RURAL wealth index quintile | R120: SUB-REGIONS: | BA120: Raw numbers of respondents: | BB120: Use of sanitation facilities | BC120: NATIONAL wealth index quintile | BH120: URBAN wealth index quintile | BM120: RURAL wealth index quintile | BR120: SUB-REGIONS:
A121: Weighted percentage (used in graphs) | C121: Poorest | D121: Poor | E121: Middle | F121: Rich | G121: Richest | H121: Poorest | I121: Poor | J121: Middle | K121: Rich | L121: Richest | M121: Poorest | N121: Poor | O121: Middle | P121: Rich | Q121: Richest | R121: Bafata | S121: Biombo | T121: Bolama | U121: Cacheu | V121: Gabu | W121: Oio | X121: Quinara | Y121: SAB | Z121: Tombali | BA121: Sanitation data, raw numbers (weighted) | BC121: Poorest | BD121: Poor | BE121: Middle | BF121: Rich | BG121: Richest | BH121: Poorest | BI121: Poor | BJ121: Middle | BK121: Rich | BL121: Richest | BM121: Poorest | BN121: Poor | BO121: Middle | BP121: Rich | BQ121: Richest | BR121: Bafata | BS121: Biombo | BT121: Bolama | BU121: Cacheu | BV121: Gabu | BW121: Oio | BX121: Quinara | BY121: SAB | BZ121: Tombali
A122: Sanitation | B122: Improved | C122: =C153+C154+C155+C157+C158+C156*0.25 -> 12.72182553 | D122: =D153+D154+D155+D157+D158+D156*0.25 -> 11.91292085 | E122: 15.798067 | F122: 28.41825568 | G122: 59.30148245 | H122: =H153+H154+H155+H157+H158+H156*0.4 -> 36.84772587 | I122: =I153+I154+I155+I157+I158+I156*0.4 -> 44.78696044 | J122: 48.4648248 | K122: 62.70000396 | L122: 87.1940301 | M122: =M153+M154+M155+M157+M158+M156*0.13 -> 6.589597363 | N122: =N153+N154+N155+N157+N158+N156*0.13 -> 6.889144813 | O122: 6.104443703 | P122: 8.710866494 | Q122: 14.29734037 | R122: =R153+R154+R155+R157+R158+R156*0.5 -> 39.49519532 | S122: 18.92123256 | T122: 33.22392534 | U122: 29.17478753 | V122: 40.41979359 | W122: 22.63537906 | X122: 33.82251782 | Y122: 67.97374977 | Z122: 31.64520946 | BA122: Sanitation | BB122: Improved | BC122: 100.4026211 | BD122: 64.93615329 | BE122: 156.8004536 | BF122: 624.7024234 | BG122: 3807.255336 | BH122: 86.76432121 | BI122: 253.0451465 | BJ122: 435.1277545 | BK122: 1139.545402 | BL122: 2306.858807 | BM122: 57.32528543 | BN122: 66.72472393 | BO122: 22.73316381 | BP122: 90.41537032 | BQ122: 295.5570125 | BR122: 113.3840665 | BS122: 93.33118849 | BT122: 107.2953686 | BU122: 172.1607024 | BV122: 235.37345 | BW122: 185.6960391 | BX122: 40.62595769 | BY122: 3721.890968 | BZ122: 84.33924633
B123: Not Improved | C123: =100-C122 -> 87.27817447 | D123: =100-D122 -> 88.08707915 | E123: 84.201933 | F123: 71.58174432 | G123: 40.69851755 | H123: 63.15227413 | I123: 55.21303956 | J123: 51.5351752 | K123: 37.29999604 | L123: 12.8059699 | M123: 93.41040264 | N123: 93.11085519 | O123: 93.8955563 | P123: 91.28913351 | Q123: 85.70265963 | R123: 60.50480468 | S123: 81.07876744 | T123: 66.77607466 | U123: 70.82521247 | V123: 59.58020641 | W123: 77.36462094 | X123: 66.17748218 | Y123: 32.02625023 | Z123: 68.35479054 | BB123: Not Improved | BC123: 8159.26725 | BD123: 8198.055353 | BE123: 8107.52867 | BF123: 7645.027092 | BG123: 4448.193438 | BH123: 2843.262239 | BI123: 2670.412058 | BJ123: 2505.173921 | BK123: 1786.37946 | BL123: 625.9597746 | BM123: 5272.015023 | BN123: 5270.085078 | BO123: 5309.057572 | BP123: 5244.176397 | BQ123: 5031.55028 | BR123: 4742.311405 | BS123: 2893.392777 | BT123: 1277.240947 | BU123: 6353.659047 | BV123: 5002.365739 | BW123: 6998.229818 | BX123: 1079.949038 | BY123: 6317.043001 | BZ123: 1893.88003
A124: Sanitation ladder | B124: Basic | C124: =C122*C129/100 -> 8.894921958 | D124: =D122*D129/100 -> 8.407910609 | E124: 11.10236604 | F124: 11.810369 | G124: 28.91787476 | H124: 17.16651064 | I124: 10.93039028 | J124: 10.53213311 | K124: 26.0047803 | L124: 66.30116556 | M124: 4.848398892 | N124: 5.102080765 | O124: 4.296080081 | P124: 6.024206433 | Q124: 9.849250954 | R124: 30.02565304 | S124: 9.376352949 | T124: 15.0160441 | U124: 18.9695318 | V124: 32.8341266 | W124: 13.3725058 | X124: 23.66527873 | Y124: 23.83657137 | Z124: 18.6171678 | BA124: Sanitation ladder | BB124: Basic | BC124: 43.98985942 | BD124: 47.49865196 | BE124: 124.1675266 | BF124: 385.5814196 | BG124: 2901.902981 | BH124: 37.12952258 | BI124: 142.7257354 | BJ124: 137.2710692 | BK124: 711.455206 | BL124: 2071.257021 | BM124: 38.27493053 | BN124: 30.47920998 | BO124: 17.01944199 | BP124: 70.51462178 | BQ124: 247.0136798 | BR124: 109.2366604 | BS124: 76.56876114 | BT124: 59.00722827 | BU124: 160.7886624 | BV124: 178.4622322 | BW124: 147.0216822 | BX124: 36.28049717 | BY124: 2699.377107 | BZ124: 36.3976078
B125: Limited | C125: =C122*C128/100 -> 3.826903572 | D125: =D122*D128/100 -> 3.505010243 | E125: 4.695700966 | F125: 16.60788669 | G125: 30.38360769 | H125: 19.68121524 | I125: 33.85657017 | J125: 37.93269169 | K125: 36.69522366 | L125: 20.89286454 | M125: 1.741198471 | N125: 1.787064049 | O125: 1.808363622 | P125: 2.686660061 | Q125: 4.448089419 | R125: 9.469542271 | S125: 9.544879609 | T125: 18.20788124 | U125: 10.20525573 | V125: 7.585666988 | W125: 9.262873261 | X125: 10.1572391 | Y125: 44.1371784 | Z125: 13.02804166 | BB125: Limited | BC125: 51.14693652 | BD125: 17.43750133 | BE125: 32.63292706 | BF125: 239.1210038 | BG125: 905.3523549 | BH125: 49.63479863 | BI125: 110.3194112 | BJ125: 297.8566853 | BK125: 428.0901965 | BL125: 235.6017853 | BM125: 19.05035489 | BN125: 30.97968875 | BO125: 5.713721829 | BP125: 19.90074853 | BQ125: 48.54333268 | BR125: 4.147406027 | BS125: 16.76242735 | BT125: 43.02231514 | BU125: 11.37203999 | BV125: 56.91121787 | BW125: 38.6743569 | BX125: 4.345460526 | BY125: 1022.513861 | BZ125: 47.94163853
B126: Unimproved | C126: =100-C124-C125-C127 -> 34.95624381 | D126: =100-D124-D125-D127 -> 34.78721009 | E126: 42.9127468 | F126: 63.40204677 | G126: 40.23529499 | H126: 52.13473846 | I126: 54.23367178 | J126: 51.32637573 | K126: 37.10344152 | L126: 12.8059699 | M126: 36.95611833 | N126: 38.77610347 | O126: 39.66442573 | P126: 47.99227202 | Q126: 59.80091701 | R126: 40.00399235 | S126: 16.28663973 | T126: 25.89686712 | U126: 27.49138124 | V126: 36.2334172 | W126: 21.04281773 | X126: 31.57401116 | Y126: 31.34093284 | Z126: 27.77660592 | BB126: Unimproved | BC126: 3837.648507 | BD126: 3793.8917 | BE126: 4695.25443 | BF126: 6968.58823 | BG126: 4409.952336 | BH126: 2520.445517 | BI126: 2641.780661 | BJ126: 2499.034586 | BK126: 1780.628423 | BL126: 625.9597746 | BM126: 2263.374094 | BN126: 2370.342722 | BO126: 2417.567176 | BP126: 2934.465589 | BQ126: 3651.73666 | BR126: 3746.854388 | BS126: 958.2307709 | BT126: 711.2534731 | BU126: 3525.771331 | BV126: 3779.521811 | BW126: 2952.113234 | BX126: 692.1911939 | BY126: 6248.244441 | BZ126: 1091.15456
B127: Open defecation | C127: =C160 -> 52.32193066 | D127: =D160 -> 53.29986906 | E127: 41.2891862 | F127: 8.179697541 | G127: 0.4632225633 | H127: 11.01753567 | I127: 0.9793677789 | J127: 0.2087994769 | K127: 0.196554522 | L127: 0 | M127: 56.4542843 | N127: 54.33475171 | O127: 54.23113057 | P127: 43.29686148 | Q127: 25.90174261 | R127: 20.50081234 | S127: 64.79212772 | T127: 40.87920754 | U127: 43.33383123 | V127: 23.34678921 | W127: 56.32180321 | X127: 34.60347102 | Y127: 0.6853173953 | Z127: 40.57818462 | BB127: Open defecation | BC127: 4321.618743 | BD127: 4404.163654 | BE127: 3412.27424 | BF127: 676.4388618 | BG127: 38.24110142 | BH127: 322.8167213 | BI127: 28.6313979 | BJ127: 6.139334518 | BK127: 5.751037629 | BL127: 0 | BM127: 3008.640929 | BN127: 2899.742355 | BO127: 2891.490396 | BP127: 2309.710808 | BQ127: 1379.81362 | BR127: 995.4570163 | BS127: 1935.162006 | BT127: 565.9874739 | BU127: 2827.887716 | BV127: 1222.843928 | BW127: 4046.116584 | BX127: 387.7578437 | BY127: 68.79856079 | BZ127: 802.7254702
A128: Shared among Sanitation | B128: Yes | C128: 30.08140273 | D128: 29.42192168 | E128: 29.72326276 | F128: 58.44090809 | G128: 51.23583161 | H128: 53.4122928 | I128: 75.59470398 | J128: 78.2685006 | K128: 58.52507391 | L128: 23.96134749 | M128: 26.42344252 | N128: 25.94028863 | O128: 29.62372511 | P128: 30.842627 | Q128: 31.11130674 | R128: 23.97644117 | S128: 50.44533743 | T128: 54.80352203 | U128: 34.97970883 | V128: 18.76720862 | W128: 40.92210356 | X128: 30.03099636 | Y128: 64.93268144 | Z128: 41.1690802 | BA128: Shared among improved sanitation facilities | BB128: Yes | BC128: N/A | BD128: N/A | BE128: N/A | BF128: N/A | BG128: N/A | BH128: N/A | BI128: N/A | BJ128: N/A | BK128: N/A | BL128: N/A | BM128: N/A | BN128: N/A | BO128: N/A | BP128: N/A | BQ128: N/A | BR128: N/A | BS128: N/A | BT128: N/A | BU128: N/A | BV128: N/A | BW128: N/A | BX128: N/A | BY128: N/A | BZ128: N/A
B129: No | C129: 69.91859727 | D129: 70.57807832 | E129: 70.27673724 | F129: 41.55909191 | G129: 48.76416839 | H129: 46.5877072 | I129: 24.40529602 | J129: 21.7314994 | K129: 41.47492609 | L129: 76.03865251 | M129: 73.57655748 | N129: 74.05971137 | O129: 70.37627489 | P129: 69.157373 | Q129: 68.88869326 | R129: 76.02355883 | S129: 49.55466257 | T129: 45.19647797 | U129: 65.02029117 | V129: 81.23279138 | W129: 59.07789644 | X129: 69.96900364 | Y129: 35.06731856 | Z129: 58.8309198 | BB129: No | BC129: N/A | BD129: N/A | BE129: N/A | BF129: N/A | BG129: N/A | BH129: N/A | BI129: N/A | BJ129: N/A | BK129: N/A | BL129: N/A | BM129: N/A | BN129: N/A | BO129: N/A | BP129: N/A | BQ129: N/A | BR129: N/A | BS129: N/A | BT129: N/A | BU129: N/A | BV129: N/A | BW129: N/A | BX129: N/A | BY129: N/A | BZ129: N/A
A130: Manually calculated ratios | B130: Improved latrines
B131: Other
B132: Other
C133: NATIONAL wealth index quintile | H133: URBAN wealth index quintile | M133: RURAL wealth index quintile | R133: SUB-REGIONS: | BA133: Raw numbers of respondents: | BB133: Use of sanitation facilities | BC133: NATIONAL wealth index quintile | BH133: URBAN wealth index quintile | BM133: RURAL wealth index quintile | BR133: SUB-REGIONS:
A134: Percentage based on weighted population | C134: Poorest | D134: Poor | E134: Middle | F134: Rich | G134: Richest | H134: Poorest | I134: Poor | J134: Middle | K134: Rich | L134: Richest | M134: Poorest | N134: Poor | O134: Middle | P134: Rich | Q134: Richest | R134: Bafata | S134: Biombo | T134: Bolama | U134: Cacheu | V134: Gabu | W134: Oio | X134: Quinara | Y134: SAB | Z134: Tombali | BA134: Sanitation data, raw numbers (weighted) | BC134: Poorest | BD134: Poor | BE134: Middle | BF134: Rich | BG134: Richest | BH134: Poorest | BI134: Poor | BJ134: Middle | BK134: Rich | BL134: Richest | BM134: Poorest | BN134: Poor | BO134: Middle | BP134: Rich | BQ134: Richest | BR134: Bafata | BS134: Biombo | BT134: Bolama | BU134: Cacheu | BV134: Gabu | BW134: Oio | BX134: Quinara | BY134: SAB | BZ134: Tombali
A135: Sanitation type | B135: Sewer connection | C135: 0.4069392964 | D135: 0.1619105028 | E135: 0.3981917872 | F135: 1.687855155 | G135: 21.73765659 | H135: 0.2582461704 | I135: 2.089198412 | J135: 3.462956248 | K135: 13.71846018 | L135: 45.2067939 | M135: 0.3851145889 | N135: 0.3541393801 | O135: 0 | P135: 0.5322803844 | Q135: 0.9106590393 | R135: 0.2011161973 | S135: 0.2997486363 | T135: 0.2583227771 | U135: 0.5961392381 | V135: 2.24680328 | W135: 0.3469150986 | X135: 0.2927348058 | Y135: 17.91848888 | Z135: 0.4101332591 | BA135: Sanitation type | BB135: Sewer connection | BC135: N/A | BD135: N/A | BE135: N/A | BF135: N/A | BG135: N/A | BH135: N/A | BI135: N/A | BJ135: N/A | BK135: N/A | BL135: N/A | BM135: N/A | BN135: N/A | BO135: N/A | BP135: N/A | BQ135: N/A | BR135: N/A | BS135: N/A | BT135: N/A | BU135: N/A | BV135: N/A | BW135: N/A | BX135: N/A | BY135: N/A | BZ135: N/A
B136: Septic tank connection | C136: 0.2977258255 | D136: 0.1033958818 | E136: 0 | F136: 1.425268568 | G136: 11.2795633 | H136: 0.7852670907 | I136: 1.089848839 | J136: 2.717405622 | K136: 10.08719809 | L136: 19.15831994 | M136: 0.3330780638 | N136: 0.1600880161 | O136: 0 | P136: 0 | Q136: 1.203137141 | R136: 1.356630701 | S136: 0.3544520467 | T136: 1.263429879 | U136: 0.9580080606 | V136: 0.2337009419 | W136: 0.4345993126 | X136: 0.3898408497 | Y136: 8.679109091 | Z136: 0.3330205099 | BB136: Septic tank connection | BC136: N/A | BD136: N/A | BE136: N/A | BF136: N/A | BG136: N/A | BH136: N/A | BI136: N/A | BJ136: N/A | BK136: N/A | BL136: N/A | BM136: N/A | BN136: N/A | BO136: N/A | BP136: N/A | BQ136: N/A | BR136: N/A | BS136: N/A | BT136: N/A | BU136: N/A | BV136: N/A | BW136: N/A | BX136: N/A | BY136: N/A | BZ136: N/A
B137: Improved latrines | C137: 0.5109115623 | D137: 0.5205609763 | E137: 1.499124393 | F137: 4.440961598 | G137: 13.1008706 | H137: 1.917699528 | I137: 5.476634319 | J137: 8.618383381 | K137: 15.14084432 | L137: 14.29160299 | M137: 0.3574617831 | N137: 0.7360462018 | O137: 0.4263701435 | P137: 1.162607889 | Q137: 3.434374642 | R137: 0.7773267718 | S137: 2.470667553 | T137: 6.22779984 | U137: 1.083999463 | V137: 2.013294372 | W137: 1.803368044 | X137: 2.942880728 | Y137: 10.47696572 | Z137: 3.52023843 | BB137: Improved latrines | BC137: N/A | BD137: N/A | BE137: N/A | BF137: N/A | BG137: N/A | BH137: N/A | BI137: N/A | BJ137: N/A | BK137: N/A | BL137: N/A | BM137: N/A | BN137: N/A | BO137: N/A | BP137: N/A | BQ137: N/A | BR137: N/A | BS137: N/A | BT137: N/A | BU137: N/A | BV137: N/A | BW137: N/A | BX137: N/A | BY137: N/A | BZ137: N/A
B138: Unimproved facilities | C138: 46.46249265 | D138: 45.91426358 | E138: 56.81349762 | F138: 84.26621714 | G138: 53.41868695 | H138: 86.02125154 | I138: 90.36495065 | J138: 84.99245527 | K138: 60.85694289 | L138: 21.34328317 | M138: 42.47006126 | N138: 44.41497469 | O138: 45.34249929 | P138: 55.00825024 | Q138: 68.55008656 | R138: 77.16411399 | S138: 32.08300405 | T138: 51.37123997 | U138: 54.02802201 | V138: 72.1594122 | W138: 41.09331433 | X138: 61.7710726 | Y138: 62.24011892 | Z138: 55.15842318 | BB138: Unimproved facilities | BC138: N/A | BD138: N/A | BE138: N/A | BF138: N/A | BG138: N/A | BH138: N/A | BI138: N/A | BJ138: N/A | BK138: N/A | BL138: N/A | BM138: N/A | BN138: N/A | BO138: N/A | BP138: N/A | BQ138: N/A | BR138: N/A | BS138: N/A | BT138: N/A | BU138: N/A | BV138: N/A | BW138: N/A | BX138: N/A | BY138: N/A | BZ138: N/A
B139: Open defecation | C139: 52.32193066 | D139: 53.29986906 | E139: 41.2891862 | F139: 8.179697541 | G139: 0.4632225633 | H139: 11.01753567 | I139: 0.9793677789 | J139: 0.2087994769 | K139: 0.196554522 | L139: 0 | M139: 56.4542843 | N139: 54.33475171 | O139: 54.23113057 | P139: 43.29686148 | Q139: 25.90174261 | R139: 20.50081234 | S139: 64.79212772 | T139: 40.87920754 | U139: 43.33383123 | V139: 23.34678921 | W139: 56.32180321 | X139: 34.60347102 | Y139: 0.6853173953 | Z139: 40.57818462 | BB139: Open defecation | BC139: N/A | BD139: N/A | BE139: N/A | BF139: N/A | BG139: N/A | BH139: N/A | BI139: N/A | BJ139: N/A | BK139: N/A | BL139: N/A | BM139: N/A | BN139: N/A | BO139: N/A | BP139: N/A | BQ139: N/A | BR139: N/A | BS139: N/A | BT139: N/A | BU139: N/A | BV139: N/A | BW139: N/A | BX139: N/A | BY139: N/A | BZ139: N/A
A140: Septic tank emptying practices | B140: Not emptied/treated and disposed in situ | C140: N/A | D140: N/A | E140: N/A | F140: N/A | G140: N/A | H140: N/A | I140: N/A | J140: N/A | K140: N/A | L140: N/A | M140: N/A | N140: N/A | O140: N/A | P140: N/A | Q140: N/A | R140: N/A | S140: N/A | T140: N/A | U140: N/A | V140: N/A | W140: N/A | X140: N/A | Y140: N/A | Z140: N/A | BA140: Septic tank emptying practices | BB140: Not emptied/treated and disposed in situ | BC140: N/A | BD140: N/A | BE140: N/A | BF140: N/A | BG140: N/A | BH140: N/A | BI140: N/A | BJ140: N/A | BK140: N/A | BL140: N/A | BM140: N/A | BN140: N/A | BO140: N/A | BP140: N/A | BQ140: N/A | BR140: N/A | BS140: N/A | BT140: N/A | BU140: N/A | BV140: N/A | BW140: N/A | BX140: N/A | BY140: N/A | BZ140: N/A
B141: Emptied and buried on site | C141: N/A | D141: N/A | E141: N/A | F141: N/A | G141: N/A | H141: N/A | I141: N/A | J141: N/A | K141: N/A | L141: N/A | M141: N/A | N141: N/A | O141: N/A | P141: N/A | Q141: N/A | R141: N/A | S141: N/A | T141: N/A | U141: N/A | V141: N/A | W141: N/A | X141: N/A | Y141: N/A | Z141: N/A | BB141: Emptied and buried on site | BC141: N/A | BD141: N/A | BE141: N/A | BF141: N/A | BG141: N/A | BH141: N/A | BI141: N/A | BJ141: N/A | BK141: N/A | BL141: N/A | BM141: N/A | BN141: N/A | BO141: N/A | BP141: N/A | BQ141: N/A | BR141: N/A | BS141: N/A | BT141: N/A | BU141: N/A | BV141: N/A | BW141: N/A | BX141: N/A | BY141: N/A | BZ141: N/A
B142: Emptied and discharged locally | C142: N/A | D142: N/A | E142: N/A | F142: N/A | G142: N/A | H142: N/A | I142: N/A | J142: N/A | K142: N/A | L142: N/A | M142: N/A | N142: N/A | O142: N/A | P142: N/A | Q142: N/A | R142: N/A | S142: N/A | T142: N/A | U142: N/A | V142: N/A | W142: N/A | X142: N/A | Y142: N/A | Z142: N/A | BB142: Emptied and discharged locally | BC142: N/A | BD142: N/A | BE142: N/A | BF142: N/A | BG142: N/A | BH142: N/A | BI142: N/A | BJ142: N/A | BK142: N/A | BL142: N/A | BM142: N/A | BN142: N/A | BO142: N/A | BP142: N/A | BQ142: N/A | BR142: N/A | BS142: N/A | BT142: N/A | BU142: N/A | BV142: N/A | BW142: N/A | BX142: N/A | BY142: N/A | BZ142: N/A
B143: Emptied and removed offsite | C143: N/A | D143: N/A | E143: N/A | F143: N/A | G143: N/A | H143: N/A | I143: N/A | J143: N/A | K143: N/A | L143: N/A | M143: N/A | N143: N/A | O143: N/A | P143: N/A | Q143: N/A | R143: N/A | S143: N/A | T143: N/A | U143: N/A | V143: N/A | W143: N/A | X143: N/A | Y143: N/A | Z143: N/A | BB143: Emptied and removed offsite | BC143: N/A | BD143: N/A | BE143: N/A | BF143: N/A | BG143: N/A | BH143: N/A | BI143: N/A | BJ143: N/A | BK143: N/A | BL143: N/A | BM143: N/A | BN143: N/A | BO143: N/A | BP143: N/A | BQ143: N/A | BR143: N/A | BS143: N/A | BT143: N/A | BU143: N/A | BV143: N/A | BW143: N/A | BX143: N/A | BY143: N/A | BZ143: N/A
A144: Latrine emptying practices | B144: Not emptied/treated and disposed in situ | C144: N/A | D144: N/A | E144: N/A | F144: N/A | G144: N/A | H144: N/A | I144: N/A | J144: N/A | K144: N/A | L144: N/A | M144: N/A | N144: N/A | O144: N/A | P144: N/A | Q144: N/A | R144: N/A | S144: N/A | T144: N/A | U144: N/A | V144: N/A | W144: N/A | X144: N/A | Y144: N/A | Z144: N/A | BA144: Latrine emptying practices | BB144: Not emptied/treated and disposed in situ | BC144: N/A | BD144: N/A | BE144: N/A | BF144: N/A | BG144: N/A | BH144: N/A | BI144: N/A | BJ144: N/A | BK144: N/A | BL144: N/A | BM144: N/A | BN144: N/A | BO144: N/A | BP144: N/A | BQ144: N/A | BR144: N/A | BS144: N/A | BT144: N/A | BU144: N/A | BV144: N/A | BW144: N/A | BX144: N/A | BY144: N/A | BZ144: N/A
B145: Emptied and buried on site | C145: N/A | D145: N/A | E145: N/A | F145: N/A | G145: N/A | H145: N/A | I145: N/A | J145: N/A | K145: N/A | L145: N/A | M145: N/A | N145: N/A | O145: N/A | P145: N/A | Q145: N/A | R145: N/A | S145: N/A | T145: N/A | U145: N/A | V145: N/A | W145: N/A | X145: N/A | Y145: N/A | Z145: N/A | BB145: Emptied and buried on site | BC145: N/A | BD145: N/A | BE145: N/A | BF145: N/A | BG145: N/A | BH145: N/A | BI145: N/A | BJ145: N/A | BK145: N/A | BL145: N/A | BM145: N/A | BN145: N/A | BO145: N/A | BP145: N/A | BQ145: N/A | BR145: N/A | BS145: N/A | BT145: N/A | BU145: N/A | BV145: N/A | BW145: N/A | BX145: N/A | BY145: N/A | BZ145: N/A
B146: Emptied and discharged locally | C146: N/A | D146: N/A | E146: N/A | F146: N/A | G146: N/A | H146: N/A | I146: N/A | J146: N/A | K146: N/A | L146: N/A | M146: N/A | N146: N/A | O146: N/A | P146: N/A | Q146: N/A | R146: N/A | S146: N/A | T146: N/A | U146: N/A | V146: N/A | W146: N/A | X146: N/A | Y146: N/A | Z146: N/A | BB146: Emptied and discharged locally | BC146: N/A | BD146: N/A | BE146: N/A | BF146: N/A | BG146: N/A | BH146: N/A | BI146: N/A | BJ146: N/A | BK146: N/A | BL146: N/A | BM146: N/A | BN146: N/A | BO146: N/A | BP146: N/A | BQ146: N/A | BR146: N/A | BS146: N/A | BT146: N/A | BU146: N/A | BV146: N/A | BW146: N/A | BX146: N/A | BY146: N/A | BZ146: N/A
B147: Emptied and removed offsite | C147: N/A | D147: N/A | E147: N/A | F147: N/A | G147: N/A | H147: N/A | I147: N/A | J147: N/A | K147: N/A | L147: N/A | M147: N/A | N147: N/A | O147: N/A | P147: N/A | Q147: N/A | R147: N/A | S147: N/A | T147: N/A | U147: N/A | V147: N/A | W147: N/A | X147: N/A | Y147: N/A | Z147: N/A | BB147: Emptied and removed offsite | BC147: N/A | BD147: N/A | BE147: N/A | BF147: N/A | BG147: N/A | BH147: N/A | BI147: N/A | BJ147: N/A | BK147: N/A | BL147: N/A | BM147: N/A | BN147: N/A | BO147: N/A | BP147: N/A | BQ147: N/A | BR147: N/A | BS147: N/A | BT147: N/A | BU147: N/A | BV147: N/A | BW147: N/A | BX147: N/A | BY147: N/A | BZ147: N/A
A148: Shared among improved sanitation facilities | B148: Yes | C148: 0.6192370557 | D148: 0.2110313355 | E148: 0.3948648048 | F148: 2.891521462 | G148: 10.96672488 | H148: 1.694005075 | I148: 3.773594188 | J148: 10.13014031 | K148: 14.63093608 | L148: 8.033288757 | M148: 0.3574617831 | N148: 0.5804907783 | O148: 0.1071632799 | P148: 0.3730510112 | Q148: 0.9112512667 | R148: 0.08541322353 | S148: 0.5612312201 | T148: 3.10734465 | U148: 0.1742622448 | V148: 1.086560743 | W148: 0.5383457133 | X148: 0.3877884608 | Y148: 10.18548249 | Z148: 2.42347444 | BA148: Shared among improved sanitation facilities | BB148: Yes | BC148: N/A | BD148: N/A | BE148: N/A | BF148: N/A | BG148: N/A | BH148: N/A | BI148: N/A | BJ148: N/A | BK148: N/A | BL148: N/A | BM148: N/A | BN148: N/A | BO148: N/A | BP148: N/A | BQ148: N/A | BR148: N/A | BS148: N/A | BT148: N/A | BU148: N/A | BV148: N/A | BW148: N/A | BX148: N/A | BY148: N/A | BZ148: N/A
B149: No | C149: 0.53258617 | D149: 0.5748360255 | E149: 1.502451375 | F149: 4.662563858 | G149: 35.15136561 | H149: 1.267207714 | I149: 4.882087383 | J149: 4.668604939 | K149: 24.31556651 | L149: 70.62342807 | M149: 0.7181926527 | N149: 0.5711129141 | O149: 0.3192068637 | P149: 1.321837262 | Q149: 4.636919556 | R149: 2.249660447 | S149: 2.563637015 | T149: 4.261876529 | U149: 2.463884517 | V149: 3.407237851 | W149: 2.046536742 | X149: 3.237667922 | Y149: 26.8890812 | Z149: 1.83991776 | BB149: No | BC149: N/A | BD149: N/A | BE149: N/A | BF149: N/A | BG149: N/A | BH149: N/A | BI149: N/A | BJ149: N/A | BK149: N/A | BL149: N/A | BM149: N/A | BN149: N/A | BO149: N/A | BP149: N/A | BQ149: N/A | BR149: N/A | BS149: N/A | BT149: N/A | BU149: N/A | BV149: N/A | BW149: N/A | BX149: N/A | BY149: N/A | BZ149: N/A
B150: DK/missing | C150: 98.84817677 | D150: 99.21413264 | E150: 98.10268382 | F150: 92.44591468 | G150: 53.88190951 | H150: 97.03878721 | I150: 91.34431843 | J150: 85.20125475 | K150: 61.05349741 | L150: 21.34328317 | M150: 98.92434556 | N150: 98.84839631 | O150: 99.57362986 | P150: 98.30511173 | Q150: 94.45182918 | R150: 97.66492633 | S150: 96.87513176 | T150: 92.63077882 | U150: 97.36185324 | V150: 95.50620141 | W150: 97.41511754 | X150: 96.37454362 | Y150: 62.92543631 | Z150: 95.7366078 | BB150: DK/missing | BC150: N/A | BD150: N/A | BE150: N/A | BF150: N/A | BG150: N/A | BH150: N/A | BI150: N/A | BJ150: N/A | BK150: N/A | BL150: N/A | BM150: N/A | BN150: N/A | BO150: N/A | BP150: N/A | BQ150: N/A | BR150: N/A | BS150: N/A | BT150: N/A | BU150: N/A | BV150: N/A | BW150: N/A | BX150: N/A | BY150: N/A | BZ150: N/A
A151: Shared among all sanitation facilities | B151: Yes | C151: 29.75067578 | D151: 29.0333811 | E151: 29.43552224 | F151: 57.86400213 | G151: 51.0606942 | H151: 52.94388742 | I151: 74.9737434 | J151: 77.4777547 | K151: 58.05707123 | L151: 23.96134749 | M151: 26.17414582 | N151: 25.61105985 | O151: 29.1473003 | P151: 30.65762597 | Q151: 30.8400311 | R151: 23.6640506 | S151: 50.09884916 | T151: 53.96895165 | U151: 34.39183798 | V151: 18.69767723 | W151: 40.65944821 | X151: 29.93034018 | Y151: 64.46518758 | Z151: 41.06787819 | BA151: Shared among all sanitation facilities | BB151: Yes | BC151: N/A | BD151: N/A | BE151: N/A | BF151: N/A | BG151: N/A | BH151: N/A | BI151: N/A | BJ151: N/A | BK151: N/A | BL151: N/A | BM151: N/A | BN151: N/A | BO151: N/A | BP151: N/A | BQ151: N/A | BR151: N/A | BS151: N/A | BT151: N/A | BU151: N/A | BV151: N/A | BW151: N/A | BX151: N/A | BY151: N/A | BZ151: N/A
B152: No | C152: 69.14988431 | D152: 69.64603698 | E152: 69.59641271 | F152: 41.14883668 | G152: 48.59747977 | H152: 46.17915082 | I152: 24.20482263 | J152: 21.51194627 | K152: 41.14326693 | L152: 76.03865251 | M152: 72.88238628 | N152: 73.11976084 | O152: 69.24444546 | P152: 68.74255148 | Q152: 68.28801698 | R152: 75.03304306 | S152: 49.21429198 | T152: 44.50820757 | U152: 63.92755669 | V152: 80.93182873 | W152: 58.69870954 | X152: 69.73448553 | Y152: 34.81484545 | Z152: 58.68630139 | BB152: No | BC152: N/A | BD152: N/A | BE152: N/A | BF152: N/A | BG152: N/A | BH152: N/A | BI152: N/A | BJ152: N/A | BK152: N/A | BL152: N/A | BM152: N/A | BN152: N/A | BO152: N/A | BP152: N/A | BQ152: N/A | BR152: N/A | BS152: N/A | BT152: N/A | BU152: N/A | BV152: N/A | BW152: N/A | BX152: N/A | BY152: N/A | BZ152: N/A
A153: Type de toilettes | B153: Chasse branchee a l'egout | C153: 0.4069392964 | D153: 0.1619105028 | E153: 0.3981917872 | F153: 1.687855155 | G153: 21.73765659 | H153: 0.2582461704 | I153: 2.089198412 | J153: 3.462956248 | K153: 13.71846018 | L153: 45.2067939 | M153: 0.3851145889 | N153: 0.3541393801 | O153: 0 | P153: 0.5322803844 | Q153: 0.9106590393 | R153: 0.2011161973 | S153: 0.2997486363 | T153: 0.2583227771 | U153: 0.5961392381 | V153: 2.24680328 | W153: 0.3469150986 | X153: 0.2927348058 | Y153: 17.91848888 | Z153: 0.4101332591 | BA153: Type de toilettes | BB153: Chasse branchee a l'egout | BC153: 33.61184246 | BD153: 13.3786511 | BE153: 32.90787983 | BF153: 139.5810559 | BG153: 1794.541105 | BH153: 7.566681384 | BI153: 61.07682151 | BJ153: 101.8213606 | BK153: 401.3918372 | BL153: 1325.833252 | BM153: 20.52406702 | BN153: 18.89974515 | BO153: 0 | BP153: 28.39498556 | BQ153: 48.51178409 | BR153: 9.765590084 | BS153: 8.952664357 | BT153: 3.576572661 | BU153: 38.90297213 | BV153: 117.6816959 | BW153: 24.92212347 | BX153: 3.280313036 | BY153: 1798.825267 | BZ153: 8.113335191
B154: Chasse branchee a fosse septique | C154: 0.2977258255 | D154: 0.1033958818 | E154: 0 | F154: 1.425268568 | G154: 11.2795633 | H154: 0.7852670907 | I154: 1.089848839 | J154: 2.717405622 | K154: 10.08719809 | L154: 19.15831994 | M154: 0.3330780638 | N154: 0.1600880161 | O154: 0 | P154: 0 | Q154: 1.203137141 | R154: 1.356630701 | S154: 0.3544520467 | T154: 1.263429879 | U154: 0.9580080606 | V154: 0.2337009419 | W154: 0.4345993126 | X154: 0.3898408497 | Y154: 8.679109091 | Z154: 0.3330205099 | BB154: Chasse branchee a fosse septique | BC154: 24.59117031 | BD154: 8.543592934 | BE154: 0 | BF154: 117.8658554 | BG154: 931.1785698 | BH154: 23.00853433 | BI154: 31.86126441 | BJ154: 79.89992302 | BK154: 295.143837 | BL154: 561.8787669 | BM154: 17.75086351 | BN154: 8.543592934 | BO154: 0 | BP154: 0 | BQ154: 64.09240639 | BR154: 65.87385552 | BS154: 10.58650422 | BT154: 17.4926455 | BU154: 62.51787922 | BV154: 12.24064582 | BW154: 31.22129239 | BX154: 4.368459083 | BY154: 871.2900308 | BZ154: 6.587875922
B155: Chasse branchee a latrines | C155: 0.3716688392 | D155: 0.4122620733 | E155: 1.393988279 | F155: 4.276021457 | G155: 13.1008706 | H155: 1.472067846 | I155: 5.402669671 | J155: 8.618383381 | K155: 15.14084432 | L155: 14.29160299 | M155: 0.2488918659 | N155: 0.6818372214 | O155: 0.312792937 | P155: 1.106326719 | Q155: 3.249996813 | R155: 0.7773267718 | S155: 2.279323158 | T155: 5.269829413 | U155: 1.083999463 | V155: 2.013294372 | W155: 1.803368044 | X155: 1.71105123 | Y155: 10.47696572 | Z155: 3.014901846 | BB155: Chasse branchee a latrines | BC155: 30.69861913 | BD155: 34.0651801 | BE155: 115.2037793 | BF155: 353.6154085 | BG155: 1081.535661 | BH155: 43.13197887 | BI155: 157.9447357 | BJ155: 253.4064709 | BK155: 443.0097283 | BL155: 419.1467881 | BM155: 13.26429453 | BN155: 36.38835566 | BO155: 16.67746484 | BP155: 59.0180141 | BQ155: 173.1308172 | BR155: 37.74462086 | BS155: 68.07709102 | BT155: 72.96270199 | BU155: 70.73985105 | BV155: 105.4511083 | BW155: 129.5526232 | BX155: 19.17361224 | BY155: 1051.77567 | BZ155: 59.64136949
B156: Chasse branchee a autre chose | C156: 46.02499538 | D156: 44.50821396 | E156: 55.60300329 | F156: 83.45668145 | G156: 52.73356784 | H156: 84.71628271 | I156: 90.32819718 | J156: 84.16519887 | K156: 59.38375342 | L156: 21.34328317 | M156: 42.41494559 | N156: 43.37593242 | O156: 43.67748892 | P156: 53.96906323 | Q156: 67.30130423 | R156: 74.32024329 | S156: 31.59272865 | T156: 50.94874569 | U156: 53.07328154 | V156: 71.85199 | W156: 40.10099321 | X156: 60.39412288 | Y156: 61.79837216 | Z156: 54.76363453 | BB156: Chasse branchee a autre chose | BC156: 3801.512677 | BD156: 3677.709939 | BE156: 4595.215194 | BF156: 6901.641819 | BG156: 4353.39268 | BH156: 2482.209584 | BI156: 2640.706189 | BJ156: 2474.710752 | BK156: 1737.524006 | BL156: 625.9597746 | BM156: 2260.436793 | BN156: 2314.891013 | BO156: 2328.792308 | BP156: 2879.029204 | BQ156: 3585.212685 | BR156: 3608.764688 | BS156: 943.5875979 | BT156: 705.4038864 | BU156: 3463.466689 | BV156: 3763.419838 | BW156: 2880.82562 | BX156: 676.7614396 | BY156: 6203.897775 | BZ156: 1083.344775
B157: Latrines ameliorees auto aerees (LAA) | C157: 0.07005195667 | D157: 0.108298903 | E157: 0.1051361137 | F157: 0.1649401412 | G157: 0 | H157: 0.2505846822 | I157: 0.07396464848 | J157: 0 | K157: 0 | L157: 0 | M157: 0.1085699172 | N157: 0.05420898041 | O157: 0.1135772066 | P157: 0.05628116987 | Q157: 0.1843778288 | R157: 0 | S157: 0 | T157: 0.9579704275 | U157: 0 | V157: 0 | W157: 0 | X157: 1.231829498 | Y157: 0 | Z157: 0.5053365843 | BB157: Latrines ameliorees auto aerees (LAA) | BC157: 5.786060359 | BD157: 8.948729158 | BE157: 8.688794464 | BF157: 13.64010354 | BG157: 0 | BH157: 7.342197744 | BI157: 2.162324845 | BJ157: 0 | BK157: 0 | BL157: 0 | BM157: 5.786060359 | BN157: 2.89303018 | BO157: 6.055698978 | BP157: 3.002370654 | BQ157: 9.822004761 | BR157: 0 | BS157: 0 | BT157: 13.26344846 | BU157: 0 | BV157: 0 | BW157: 0 | BX157: 13.80357334 | BY157: 0 | BZ157: 9.996665723
B158: Toilettes a compostage | C158: 0.06919076644 | D158: 0 | E158: 0 | F158: 0 | G158: 0 | H158: 0.1950469995 | I158: 0 | J158: 0 | K158: 0 | L158: 0 | M158: 0 | N158: 0 | O158: 0 | P158: 0 | Q158: 0 | R158: 0 | S158: 0.1913443945 | T158: 0 | U158: 0 | V158: 0 | W158: 0 | X158: 0 | Y158: 0 | Z158: 0 | BB158: Toilettes a compostage | BC158: 5.714928889 | BD158: 0 | BE158: 0 | BF158: 0 | BG158: 0 | BH158: 5.714928889 | BI158: 0 | BJ158: 0 | BK158: 0 | BL158: 0 | BM158: 0 | BN158: 0 | BO158: 0 | BP158: 0 | BQ158: 0 | BR158: 0 | BS158: 5.714928889 | BT158: 0 | BU158: 0 | BV158: 0 | BW158: 0 | BX158: 0 | BY158: 0 | BZ158: 0
B159: Toilette suspendues/latrines suspendues | C159: 0 | D159: 0 | E159: 0.03571916266 | F159: 0 | G159: 0 | H159: 0 | I159: 0 | J159: 0 | K159: 0 | L159: 0 | M159: 0 | N159: 0 | O159: 0 | P159: 0.05533598991 | Q159: 0 | R159: 0 | S159: 0 | T159: 0 | U159: 0 | V159: 0 | W159: 0 | X159: 0.2634316467 | Y159: 0 | Z159: 0 | BB159: Toilette suspendues/latrines suspendues | BC159: 0 | BD159: 0 | BE159: 2.951949162 | BF159: 0 | BG159: 0 | BH159: 0 | BI159: 0 | BJ159: 0 | BK159: 0 | BL159: 0 | BM159: 0 | BN159: 0 | BO159: 0 | BP159: 2.951949162 | BQ159: 0 | BR159: 0 | BS159: 0 | BT159: 0 | BU159: 0 | BV159: 0 | BW159: 0 | BX159: 2.951949162 | BY159: 0 | BZ159: 0
B160: Pas de toilettes ou brousse ou champ | C160: 52.32193066 | D160: 53.29986906 | E160: 41.2891862 | F160: 8.179697541 | G160: 0.4632225633 | H160: 11.01753567 | I160: 0.9793677789 | J160: 0.2087994769 | K160: 0.196554522 | L160: 0 | M160: 56.4542843 | N160: 54.33475171 | O160: 54.23113057 | P160: 43.29686148 | Q160: 25.90174261 | R160: 20.50081234 | S160: 64.79212772 | T160: 40.87920754 | U160: 43.33383123 | V160: 23.34678921 | W160: 56.32180321 | X160: 34.60347102 | Y160: 0.6853173953 | Z160: 40.57818462 | BB160: Pas de toilettes ou brousse ou champ | BC160: 4321.618743 | BD160: 4404.163654 | BE160: 3412.27424 | BF160: 676.4388618 | BG160: 38.24110142 | BH160: 322.8167213 | BI160: 28.6313979 | BJ160: 6.139334518 | BK160: 5.751037629 | BL160: 0 | BM160: 3008.640929 | BN160: 2899.742355 | BO160: 2891.490396 | BP160: 2309.710808 | BQ160: 1379.81362 | BR160: 995.4570163 | BS160: 1935.162006 | BT160: 565.9874739 | BU160: 2827.887716 | BV160: 1222.843928 | BW160: 4046.116584 | BX160: 387.7578437 | BY160: 68.79856079 | BZ160: 802.7254702
B161: Autres | C161: 0.3804899423 | D161: 0.9321367407 | E161: 0.3516426497 | F161: 0.4008504728 | G161: 0.3359670242 | H161: 1.144266628 | I161: 0 | J161: 0.3333401012 | K161: 0.6991667345 | L161: 0 | M161: 0.05511566539 | N161: 0.6438841722 | O161: 1.326089623 | P161: 0.2832217544 | Q161: 0.2158112561 | R161: 0.6059685228 | S161: 0.2607106261 | T161: 0.1822062947 | U161: 0.8495768734 | V161: 0.3074222021 | W161: 0.9923211219 | X161: 0.4151911823 | Y161: 0.08219184007 | Z161: 0.1479499119 | BB161: Autres | BC161: 31.42721313 | BD161: 77.02237971 | BE161: 29.06090591 | BF161: 33.14924986 | BG161: 27.73558558 | BH161: 33.52731611 | BI161: 0 | BJ161: 9.80120458 | BK161: 20.45709332 | BL161: 0 | BM161: 2.937301372 | BN161: 34.36287361 | BO161: 70.70432365 | BP161: 15.10872439 | BQ161: 11.49649716 | BR161: 29.42398612 | BS161: 7.786706751 | BT161: 2.522712319 | BU161: 55.44185539 | BV161: 16.10197315 | BW161: 71.28761366 | BX161: 4.652528571 | BY161: 8.251184553 | BZ161: 2.926773676
B162: Manquant | C162: 0.05700732952 | D162: 0.473912874 | E162: 0.823132521 | F162: 0.4086852115 | G162: 0.3491520807 | H162: 0.1607022027 | I162: 0.03675346763 | J162: 0.4939163045 | K162: 0.7740227315 | L162: 0 | M162: 0 | N162: 0.395158093 | O162: 0.3389207413 | P162: 0.7006292641 | Q162: 1.032971076 | R162: 2.237902179 | S162: 0.2295647764 | T162: 0.2402879849 | U162: 0.105163595 | V162: 0 | W162: 0 | X162: 0.6983268894 | Y162: 0.3595549202 | Z162: 0.2468387428 | BB162: Manquant | BC162: 4.70861722 | BD162: 39.15938053 | BE162: 68.02638066 | BF162: 33.79716156 | BG162: 28.82407117 | BH162: 4.70861722 | BI162: 1.074471898 | BJ162: 14.52262938 | BK162: 22.64732354 | BL162: 0 | BM162: 0 | BN162: 21.08883584 | BO162: 18.07054469 | BP162: 37.37571104 | BQ162: 55.02747752 | BR162: 108.6657147 | BS162: 6.856466195 | BT162: 3.326874413 | BU162: 6.862786653 | BV162: 0 | BW162: 0 | BX162: 7.825276508 | BY162: 36.09548102 | BZ162: 4.883011591
BB163: Total | BC163: 8259.669871 | BD163: 8262.991507 | BE163: 8264.329123 | BF163: 8269.729516 | BG163: 8255.448773 | BH163: 2930.02656 | BI163: 2923.457205 | BJ163: 2940.301675 | BK163: 2925.924863 | BL163: 2932.818581 | BM163: 5329.340309 | BN163: 5336.809802 | BO163: 5331.790736 | BP163: 5334.591768 | BQ163: 5327.107292 | BR163: 4855.695471 | BS163: 2986.723966 | BT163: 1384.536316 | BU163: 6525.819749 | BV163: 5237.739189 | BW163: 7183.925857 | BX163: 1120.574995 | BY163: 10038.93397 | BZ163: 1978.219277
A208: =A1026 -> Guinea-Bissau
A209: =A1034 -> 2006
A210: Access to hygiene facilities
A211: by wealth quintile and sub-national region
A212: Notes:
A213: WHO/UNICEF JMP customised wealth index excludes water,
A214: sanitation and hygiene assets.
A215: Survey used for analysis: | B215: =A1025 -> MICS06
A220: Access to handwashing | C220: NATIONAL wealth index quintile | H220: URBAN wealth index quintile | M220: RURAL wealth index quintile | R220: SUB-REGIONS: | BA220: Raw numbers of respondents: | BB220: Access to handwashing | BC220: NATIONAL wealth index quintile | BH220: URBAN wealth index quintile | BM220: RURAL wealth index quintile | BR220: SUB-REGIONS:
A221: Weighted percentage (used in graphs) | C221: Poorest | D221: Poor | E221: Middle | F221: Rich | G221: Richest | H221: Poorest | I221: Poor | J221: Middle | K221: Rich | L221: Richest | M221: Poorest | N221: Poor | O221: Middle | P221: Rich | Q221: Richest | R221: Bafata | S221: Biombo | T221: Bolama | U221: Cacheu | V221: Gabu | W221: Oio | X221: Quinara | Y221: SAB | Z221: Tombali | BA221: Hygiene data, raw numbers (weighted) | BC221: Poorest | BD221: Poor | BE221: Middle | BF221: Rich | BG221: Richest | BH221: Poorest | BI221: Poor | BJ221: Middle | BK221: Rich | BL221: Richest | BM221: Poorest | BN221: Poor | BO221: Middle | BP221: Rich | BQ221: Richest | BR221: Bafata | BS221: Biombo | BT221: Bolama | BU221: Cacheu | BV221: Gabu | BW221: Oio | BX221: Quinara | BY221: SAB | BZ221: Tombali
A222: Hygiene ladder | B222: Basic | C222: N/A | D222: N/A | E222: N/A | F222: N/A | G222: N/A | H222: N/A | I222: N/A | J222: N/A | K222: N/A | L222: N/A | M222: N/A | N222: N/A | O222: N/A | P222: N/A | Q222: N/A | R222: N/A | S222: N/A | T222: N/A | U222: N/A | V222: N/A | W222: N/A | X222: N/A | Y222: N/A | Z222: N/A | BA222: Hygiene ladder | BB222: Basic | BC222: N/A | BD222: N/A | BE222: N/A | BF222: N/A | BG222: N/A | BH222: N/A | BI222: N/A | BJ222: N/A | BK222: N/A | BL222: N/A | BM222: N/A | BN222: N/A | BO222: N/A | BP222: N/A | BQ222: N/A | BR222: N/A | BS222: N/A | BT222: N/A | BU222: N/A | BV222: N/A | BW222: N/A | BX222: N/A | BY222: N/A | BZ222: N/A
B223: Limited | C223: N/A | D223: N/A | E223: N/A | F223: N/A | G223: N/A | H223: N/A | I223: N/A | J223: N/A | K223: N/A | L223: N/A | M223: N/A | N223: N/A | O223: N/A | P223: N/A | Q223: N/A | R223: N/A | S223: N/A | T223: N/A | U223: N/A | V223: N/A | W223: N/A | X223: N/A | Y223: N/A | Z223: N/A | BB223: Limited | BC223: N/A | BD223: N/A | BE223: N/A | BF223: N/A | BG223: N/A | BH223: N/A | BI223: N/A | BJ223: N/A | BK223: N/A | BL223: N/A | BM223: N/A | BN223: N/A | BO223: N/A | BP223: N/A | BQ223: N/A | BR223: N/A | BS223: N/A | BT223: N/A | BU223: N/A | BV223: N/A | BW223: N/A | BX223: N/A | BY223: N/A | BZ223: N/A
B224: No facility | C224: N/A | D224: N/A | E224: N/A | F224: N/A | G224: N/A | H224: N/A | I224: N/A | J224: N/A | K224: N/A | L224: N/A | M224: N/A | N224: N/A | O224: N/A | P224: N/A | Q224: N/A | R224: N/A | S224: N/A | T224: N/A | U224: N/A | V224: N/A | W224: N/A | X224: N/A | Y224: N/A | Z224: N/A | BB224: No facility | BC224: N/A | BD224: N/A | BE224: N/A | BF224: N/A | BG224: N/A | BH224: N/A | BI224: N/A | BJ224: N/A | BK224: N/A | BL224: N/A | BM224: N/A | BN224: N/A | BO224: N/A | BP224: N/A | BQ224: N/A | BR224: N/A | BS224: N/A | BT224: N/A | BU224: N/A | BV224: N/A | BW224: N/A | BX224: N/A | BY224: N/A | BZ224: N/A
BA225: Observed handwashing place | BB225: Fixed | BC225: N/A | BD225: N/A | BE225: N/A | BF225: N/A | BG225: N/A | BH225: N/A | BI225: N/A | BJ225: N/A | BK225: N/A | BL225: N/A | BM225: N/A | BN225: N/A | BO225: N/A | BP225: N/A | BQ225: N/A | BR225: N/A | BS225: N/A | BT225: N/A | BU225: N/A | BV225: N/A | BW225: N/A | BX225: N/A | BY225: N/A | BZ225: N/A
BB226: Mobile | BC226: N/A | BD226: N/A | BE226: N/A | BF226: N/A | BG226: N/A | BH226: N/A | BI226: N/A | BJ226: N/A | BK226: N/A | BL226: N/A | BM226: N/A | BN226: N/A | BO226: N/A | BP226: N/A | BQ226: N/A | BR226: N/A | BS226: N/A | BT226: N/A | BU226: N/A | BV226: N/A | BW226: N/A | BX226: N/A | BY226: N/A | BZ226: N/A
BA227: Water / Soap | BB227: Water and soap | BC227: N/A | BD227: N/A | BE227: N/A | BF227: N/A | BG227: N/A | BH227: N/A | BI227: N/A | BJ227: N/A | BK227: N/A | BL227: N/A | BM227: N/A | BN227: N/A | BO227: N/A | BP227: N/A | BQ227: N/A | BR227: N/A | BS227: N/A | BT227: N/A | BU227: N/A | BV227: N/A | BW227: N/A | BX227: N/A | BY227: N/A | BZ227: N/A
BB228: Water only | BC228: N/A | BD228: N/A | BE228: N/A | BF228: N/A | BG228: N/A | BH228: N/A | BI228: N/A | BJ228: N/A | BK228: N/A | BL228: N/A | BM228: N/A | BN228: N/A | BO228: N/A | BP228: N/A | BQ228: N/A | BR228: N/A | BS228: N/A | BT228: N/A | BU228: N/A | BV228: N/A | BW228: N/A | BX228: N/A | BY228: N/A | BZ228: N/A
BB229: Soap only | BC229: N/A | BD229: N/A | BE229: N/A | BF229: N/A | BG229: N/A | BH229: N/A | BI229: N/A | BJ229: N/A | BK229: N/A | BL229: N/A | BM229: N/A | BN229: N/A | BO229: N/A | BP229: N/A | BQ229: N/A | BR229: N/A | BS229: N/A | BT229: N/A | BU229: N/A | BV229: N/A | BW229: N/A | BX229: N/A | BY229: N/A | BZ229: N/A
BB230: Neither | BC230: N/A | BD230: N/A | BE230: N/A | BF230: N/A | BG230: N/A | BH230: N/A | BI230: N/A | BJ230: N/A | BK230: N/A | BL230: N/A | BM230: N/A | BN230: N/A | BO230: N/A | BP230: N/A | BQ230: N/A | BR230: N/A | BS230: N/A | BT230: N/A | BU230: N/A | BV230: N/A | BW230: N/A | BX230: N/A | BY230: N/A | BZ230: N/A
BA259: Raw numbers of respondents: | BB259: Menstrual health and hygiene | BC259: NATIONAL wealth index quintile | BH259: URBAN wealth index quintile | BM259: RURAL wealth index quintile | BR259: SUB-REGIONS:
BA260: MHH data, raw numbers (weighted) | BC260: Poorest | BD260: Poor | BE260: Middle | BF260: Rich | BG260: Richest | BH260: Poorest | BI260: Poor | BJ260: Middle | BK260: Rich | BL260: Richest | BM260: Poorest | BN260: Poor | BO260: Middle | BP260: Rich | BQ260: Richest | BR260: Bafata | BS260: Biombo | BT260: Bolama | BU260: Cacheu | BV260: Gabu | BW260: Oio | BX260: Quinara | BY260: SAB | BZ260: Tombali
BA261: Private place to wash and change | BB261: Yes | BC261: N/A | BD261: N/A | BE261: N/A | BF261: N/A | BG261: N/A | BH261: N/A | BI261: N/A | BJ261: N/A | BK261: N/A | BL261: N/A | BM261: N/A | BN261: N/A | BO261: N/A | BP261: N/A | BQ261: N/A | BR261: N/A | BS261: N/A | BT261: N/A | BU261: N/A | BV261: N/A | BW261: N/A | BX261: N/A | BY261: N/A | BZ261: N/A
BB262: No | BC262: N/A | BD262: N/A | BE262: N/A | BF262: N/A | BG262: N/A | BH262: N/A | BI262: N/A | BJ262: N/A | BK262: N/A | BL262: N/A | BM262: N/A | BN262: N/A | BO262: N/A | BP262: N/A | BQ262: N/A | BR262: N/A | BS262: N/A | BT262: N/A | BU262: N/A | BV262: N/A | BW262: N/A | BX262: N/A | BY262: N/A | BZ262: N/A
BB263: DK/not sure/missing | BC263: N/A | BD263: N/A | BE263: N/A | BF263: N/A | BG263: N/A | BH263: N/A | BI263: N/A | BJ263: N/A | BK263: N/A | BL263: N/A | BM263: N/A | BN263: N/A | BO263: N/A | BP263: N/A | BQ263: N/A | BR263: N/A | BS263: N/A | BT263: N/A | BU263: N/A | BV263: N/A | BW263: N/A | BX263: N/A | BY263: N/A | BZ263: N/A
BA264: Use of menstrual materials | BB264: Materials reusable | BC264: N/A | BD264: N/A | BE264: N/A | BF264: N/A | BG264: N/A | BH264: N/A | BI264: N/A | BJ264: N/A | BK264: N/A | BL264: N/A | BM264: N/A | BN264: N/A | BO264: N/A | BP264: N/A | BQ264: N/A | BR264: N/A | BS264: N/A | BT264: N/A | BU264: N/A | BV264: N/A | BW264: N/A | BX264: N/A | BY264: N/A | BZ264: N/A
BB265: Materials not reusable | BC265: N/A | BD265: N/A | BE265: N/A | BF265: N/A | BG265: N/A | BH265: N/A | BI265: N/A | BJ265: N/A | BK265: N/A | BL265: N/A | BM265: N/A | BN265: N/A | BO265: N/A | BP265: N/A | BQ265: N/A | BR265: N/A | BS265: N/A | BT265: N/A | BU265: N/A | BV265: N/A | BW265: N/A | BX265: N/A | BY265: N/A | BZ265: N/A
BB266: No materials used | BC266: N/A | BD266: N/A | BE266: N/A | BF266: N/A | BG266: N/A | BH266: N/A | BI266: N/A | BJ266: N/A | BK266: N/A | BL266: N/A | BM266: N/A | BN266: N/A | BO266: N/A | BP266: N/A | BQ266: N/A | BR266: N/A | BS266: N/A | BT266: N/A | BU266: N/A | BV266: N/A | BW266: N/A | BX266: N/A | BY266: N/A | BZ266: N/A
BB267: DK/not sure/missing | BC267: N/A | BD267: N/A | BE267: N/A | BF267: N/A | BG267: N/A | BH267: N/A | BI267: N/A | BJ267: N/A | BK267: N/A | BL267: N/A | BM267: N/A | BN267: N/A | BO267: N/A | BP267: N/A | BQ267: N/A | BR267: N/A | BS267: N/A | BT267: N/A | BU267: N/A | BV267: N/A | BW267: N/A | BX267: N/A | BY267: N/A | BZ267: N/A
BA268: Use of menstrual materials with private place to wash and change | BB268: Materials reusable | BC268: N/A | BD268: N/A | BE268: N/A | BF268: N/A | BG268: N/A | BH268: N/A | BI268: N/A | BJ268: N/A | BK268: N/A | BL268: N/A | BM268: N/A | BN268: N/A | BO268: N/A | BP268: N/A | BQ268: N/A | BR268: N/A | BS268: N/A | BT268: N/A | BU268: N/A | BV268: N/A | BW268: N/A | BX268: N/A | BY268: N/A | BZ268: N/A
BB269: Materials not reusable | BC269: N/A | BD269: N/A | BE269: N/A | BF269: N/A | BG269: N/A | BH269: N/A | BI269: N/A | BJ269: N/A | BK269: N/A | BL269: N/A | BM269: N/A | BN269: N/A | BO269: N/A | BP269: N/A | BQ269: N/A | BR269: N/A | BS269: N/A | BT269: N/A | BU269: N/A | BV269: N/A | BW269: N/A | BX269: N/A | BY269: N/A | BZ269: N/A
BB270: No materials used | BC270: N/A | BD270: N/A | BE270: N/A | BF270: N/A | BG270: N/A | BH270: N/A | BI270: N/A | BJ270: N/A | BK270: N/A | BL270: N/A | BM270: N/A | BN270: N/A | BO270: N/A | BP270: N/A | BQ270: N/A | BR270: N/A | BS270: N/A | BT270: N/A | BU270: N/A | BV270: N/A | BW270: N/A | BX270: N/A | BY270: N/A | BZ270: N/A
BA271: Awareness of menstruation before menarche | BB271: Yes | BC271: N/A | BD271: N/A | BE271: N/A | BF271: N/A | BG271: N/A | BH271: N/A | BI271: N/A | BJ271: N/A | BK271: N/A | BL271: N/A | BM271: N/A | BN271: N/A | BO271: N/A | BP271: N/A | BQ271: N/A | BR271: N/A | BS271: N/A | BT271: N/A | BU271: N/A | BV271: N/A | BW271: N/A | BX271: N/A | BY271: N/A | BZ271: N/A
BB272: No | BC272: N/A | BD272: N/A | BE272: N/A | BF272: N/A | BG272: N/A | BH272: N/A | BI272: N/A | BJ272: N/A | BK272: N/A | BL272: N/A | BM272: N/A | BN272: N/A | BO272: N/A | BP272: N/A | BQ272: N/A | BR272: N/A | BS272: N/A | BT272: N/A | BU272: N/A | BV272: N/A | BW272: N/A | BX272: N/A | BY272: N/A | BZ272: N/A
BB273: DK/not sure/missing | BC273: N/A | BD273: N/A | BE273: N/A | BF273: N/A | BG273: N/A | BH273: N/A | BI273: N/A | BJ273: N/A | BK273: N/A | BL273: N/A | BM273: N/A | BN273: N/A | BO273: N/A | BP273: N/A | BQ273: N/A | BR273: N/A | BS273: N/A | BT273: N/A | BU273: N/A | BV273: N/A | BW273: N/A | BX273: N/A | BY273: N/A | BZ273: N/A
BA274: Participation in (all) activities during menstruation | BB274: Yes | BC274: N/A | BD274: N/A | BE274: N/A | BF274: N/A | BG274: N/A | BH274: N/A | BI274: N/A | BJ274: N/A | BK274: N/A | BL274: N/A | BM274: N/A | BN274: N/A | BO274: N/A | BP274: N/A | BQ274: N/A | BR274: N/A | BS274: N/A | BT274: N/A | BU274: N/A | BV274: N/A | BW274: N/A | BX274: N/A | BY274: N/A | BZ274: N/A
BB275: No | BC275: N/A | BD275: N/A | BE275: N/A | BF275: N/A | BG275: N/A | BH275: N/A | BI275: N/A | BJ275: N/A | BK275: N/A | BL275: N/A | BM275: N/A | BN275: N/A | BO275: N/A | BP275: N/A | BQ275: N/A | BR275: N/A | BS275: N/A | BT275: N/A | BU275: N/A | BV275: N/A | BW275: N/A | BX275: N/A | BY275: N/A | BZ275: N/A
BB276: DK/not sure/missing/no such activity | BC276: N/A | BD276: N/A | BE276: N/A | BF276: N/A | BG276: N/A | BH276: N/A | BI276: N/A | BJ276: N/A | BK276: N/A | BL276: N/A | BM276: N/A | BN276: N/A | BO276: N/A | BP276: N/A | BQ276: N/A | BR276: N/A | BS276: N/A | BT276: N/A | BU276: N/A | BV276: N/A | BW276: N/A | BX276: N/A | BY276: N/A | BZ276: N/A
BA277: Participation in specific activities during menstruation | BB277: Did not go to school (amongst those usually attending school) | BC277: N/A | BD277: N/A | BE277: N/A | BF277: N/A | BG277: N/A | BH277: N/A | BI277: N/A | BJ277: N/A | BK277: N/A | BL277: N/A | BM277: N/A | BN277: N/A | BO277: N/A | BP277: N/A | BQ277: N/A | BR277: N/A | BS277: N/A | BT277: N/A | BU277: N/A | BV277: N/A | BW277: N/A | BX277: N/A | BY277: N/A | BZ277: N/A
BB278: Did not go to work (amongst those who usually work) | BC278: N/A | BD278: N/A | BE278: N/A | BF278: N/A | BG278: N/A | BH278: N/A | BI278: N/A | BJ278: N/A | BK278: N/A | BL278: N/A | BM278: N/A | BN278: N/A | BO278: N/A | BP278: N/A | BQ278: N/A | BR278: N/A | BS278: N/A | BT278: N/A | BU278: N/A | BV278: N/A | BW278: N/A | BX278: N/A | BY278: N/A | BZ278: N/A
BB279: Did not participate in social activities | BC279: N/A | BD279: N/A | BE279: N/A | BF279: N/A | BG279: N/A | BH279: N/A | BI279: N/A | BJ279: N/A | BK279: N/A | BL279: N/A | BM279: N/A | BN279: N/A | BO279: N/A | BP279: N/A | BQ279: N/A | BR279: N/A | BS279: N/A | BT279: N/A | BU279: N/A | BV279: N/A | BW279: N/A | BX279: N/A | BY279: N/A | BZ279: N/A
BB280: Did not cook food | BC280: N/A | BD280: N/A | BE280: N/A | BF280: N/A | BG280: N/A | BH280: N/A | BI280: N/A | BJ280: N/A | BK280: N/A | BL280: N/A | BM280: N/A | BN280: N/A | BO280: N/A | BP280: N/A | BQ280: N/A | BR280: N/A | BS280: N/A | BT280: N/A | BU280: N/A | BV280: N/A | BW280: N/A | BX280: N/A | BY280: N/A | BZ280: N/A
BB281: Did not eat with others | BC281: N/A | BD281: N/A | BE281: N/A | BF281: N/A | BG281: N/A | BH281: N/A | BI281: N/A | BJ281: N/A | BK281: N/A | BL281: N/A | BM281: N/A | BN281: N/A | BO281: N/A | BP281: N/A | BQ281: N/A | BR281: N/A | BS281: N/A | BT281: N/A | BU281: N/A | BV281: N/A | BW281: N/A | BX281: N/A | BY281: N/A | BZ281: N/A
BB282: Did not bathe in regular place | BC282: N/A | BD282: N/A | BE282: N/A | BF282: N/A | BG282: N/A | BH282: N/A | BI282: N/A | BJ282: N/A | BK282: N/A | BL282: N/A | BM282: N/A | BN282: N/A | BO282: N/A | BP282: N/A | BQ282: N/A | BR282: N/A | BS282: N/A | BT282: N/A | BU282: N/A | BV282: N/A | BW282: N/A | BX282: N/A | BY282: N/A | BZ282: N/A
BB283: Did not participate in other activities | BC283: N/A | BD283: N/A | BE283: N/A | BF283: N/A | BG283: N/A | BH283: N/A | BI283: N/A | BJ283: N/A | BK283: N/A | BL283: N/A | BM283: N/A | BN283: N/A | BO283: N/A | BP283: N/A | BQ283: N/A | BR283: N/A | BS283: N/A | BT283: N/A | BU283: N/A | BV283: N/A | BW283: N/A | BX283: N/A | BY283: N/A | BZ283: N/A
BB284: DK/not sure/missing/no such activity | BC284: N/A | BD284: N/A | BE284: N/A | BF284: N/A | BG284: N/A | BH284: N/A | BI284: N/A | BJ284: N/A | BK284: N/A | BL284: N/A | BM284: N/A | BN284: N/A | BO284: N/A | BP284: N/A | BQ284: N/A | BR284: N/A | BS284: N/A | BT284: N/A | BU284: N/A | BV284: N/A | BW284: N/A | BX284: N/A | BY284: N/A | BZ284: N/A
BA339: Raw numbers of respondents: | BB339: Basic water, sanitation and hygiene | BC339: NATIONAL wealth index quintile | BH339: URBAN wealth index quintile | BM339: RURAL wealth index quintile | BR339: SUB-REGIONS:
BA340: WatSan data, raw numbers (weighted) | BC340: Poorest | BD340: Poor | BE340: Middle | BF340: Rich | BG340: Richest | BH340: Poorest | BI340: Poor | BJ340: Middle | BK340: Rich | BL340: Richest | BM340: Poorest | BN340: Poor | BO340: Middle | BP340: Rich | BQ340: Richest | BR340: Bafata | BS340: Biombo | BT340: Bolama | BU340: Cacheu | BV340: Gabu | BW340: Oio | BX340: Quinara | BY340: SAB | BZ340: Tombali
BA341: Use of Basic Water Sanitation and Hygiene | BB341: Yes | BC341: N/A | BD341: N/A | BE341: N/A | BF341: N/A | BG341: N/A | BH341: N/A | BI341: N/A | BJ341: N/A | BK341: N/A | BL341: N/A | BM341: N/A | BN341: N/A | BO341: N/A | BP341: N/A | BQ341: N/A | BR341: N/A | BS341: N/A | BT341: N/A | BU341: N/A | BV341: N/A | BW341: N/A | BX341: N/A | BY341: N/A | BZ341: N/A
BB342: No | BC342: N/A | BD342: N/A | BE342: N/A | BF342: N/A | BG342: N/A | BH342: N/A | BI342: N/A | BJ342: N/A | BK342: N/A | BL342: N/A | BM342: N/A | BN342: N/A | BO342: N/A | BP342: N/A | BQ342: N/A | BR342: N/A | BS342: N/A | BT342: N/A | BU342: N/A | BV342: N/A | BW342: N/A | BX342: N/A | BY342: N/A | BZ342: N/A
BA343: Use of Basic Water and Sanitation | BB343: Yes | BC343: N/A | BD343: N/A | BE343: N/A | BF343: N/A | BG343: N/A | BH343: N/A | BI343: N/A | BJ343: N/A | BK343: N/A | BL343: N/A | BM343: N/A | BN343: N/A | BO343: N/A | BP343: N/A | BQ343: N/A | BR343: N/A | BS343: N/A | BT343: N/A | BU343: N/A | BV343: N/A | BW343: N/A | BX343: N/A | BY343: N/A | BZ343: N/A
BB344: No | BC344: N/A | BD344: N/A | BE344: N/A | BF344: N/A | BG344: N/A | BH344: N/A | BI344: N/A | BJ344: N/A | BK344: N/A | BL344: N/A | BM344: N/A | BN344: N/A | BO344: N/A | BP344: N/A | BQ344: N/A | BR344: N/A | BS344: N/A | BT344: N/A | BU344: N/A | BV344: N/A | BW344: N/A | BX344: N/A | BY344: N/A | BZ344: N/A
BA345: Use of Basic Water and Hygiene | BB345: Yes | BC345: N/A | BD345: N/A | BE345: N/A | BF345: N/A | BG345: N/A | BH345: N/A | BI345: N/A | BJ345: N/A | BK345: N/A | BL345: N/A | BM345: N/A | BN345: N/A | BO345: N/A | BP345: N/A | BQ345: N/A | BR345: N/A | BS345: N/A | BT345: N/A | BU345: N/A | BV345: N/A | BW345: N/A | BX345: N/A | BY345: N/A | BZ345: N/A
BB346: No | BC346: N/A | BD346: N/A | BE346: N/A | BF346: N/A | BG346: N/A | BH346: N/A | BI346: N/A | BJ346: N/A | BK346: N/A | BL346: N/A | BM346: N/A | BN346: N/A | BO346: N/A | BP346: N/A | BQ346: N/A | BR346: N/A | BS346: N/A | BT346: N/A | BU346: N/A | BV346: N/A | BW346: N/A | BX346: N/A | BY346: N/A | BZ346: N/A
BA347: Use of Basic Sanitation and Hygiene | BB347: Yes | BC347: N/A | BD347: N/A | BE347: N/A | BF347: N/A | BG347: N/A | BH347: N/A | BI347: N/A | BJ347: N/A | BK347: N/A | BL347: N/A | BM347: N/A | BN347: N/A | BO347: N/A | BP347: N/A | BQ347: N/A | BR347: N/A | BS347: N/A | BT347: N/A | BU347: N/A | BV347: N/A | BW347: N/A | BX347: N/A | BY347: N/A | BZ347: N/A
BB348: No | BC348: N/A | BD348: N/A | BE348: N/A | BF348: N/A | BG348: N/A | BH348: N/A | BI348: N/A | BJ348: N/A | BK348: N/A | BL348: N/A | BM348: N/A | BN348: N/A | BO348: N/A | BP348: N/A | BQ348: N/A | BR348: N/A | BS348: N/A | BT348: N/A | BU348: N/A | BV348: N/A | BW348: N/A | BX348: N/A | BY348: N/A | BZ348: N/A
BA349: Use of Basic Water | BB349: Yes | BC349: N/A | BD349: N/A | BE349: N/A | BF349: N/A | BG349: N/A | BH349: N/A | BI349: N/A | BJ349: N/A | BK349: N/A | BL349: N/A | BM349: N/A | BN349: N/A | BO349: N/A | BP349: N/A | BQ349: N/A | BR349: N/A | BS349: N/A | BT349: N/A | BU349: N/A | BV349: N/A | BW349: N/A | BX349: N/A | BY349: N/A | BZ349: N/A
BB350: No | BC350: N/A | BD350: N/A | BE350: N/A | BF350: N/A | BG350: N/A | BH350: N/A | BI350: N/A | BJ350: N/A | BK350: N/A | BL350: N/A | BM350: N/A | BN350: N/A | BO350: N/A | BP350: N/A | BQ350: N/A | BR350: N/A | BS350: N/A | BT350: N/A | BU350: N/A | BV350: N/A | BW350: N/A | BX350: N/A | BY350: N/A | BZ350: N/A
BA351: Use of Basic Sanitation | BB351: Yes | BC351: N/A | BD351: N/A | BE351: N/A | BF351: N/A | BG351: N/A | BH351: N/A | BI351: N/A | BJ351: N/A | BK351: N/A | BL351: N/A | BM351: N/A | BN351: N/A | BO351: N/A | BP351: N/A | BQ351: N/A | BR351: N/A | BS351: N/A | BT351: N/A | BU351: N/A | BV351: N/A | BW351: N/A | BX351: N/A | BY351: N/A | BZ351: N/A
BB352: No | BC352: N/A | BD352: N/A | BE352: N/A | BF352: N/A | BG352: N/A | BH352: N/A | BI352: N/A | BJ352: N/A | BK352: N/A | BL352: N/A | BM352: N/A | BN352: N/A | BO352: N/A | BP352: N/A | BQ352: N/A | BR352: N/A | BS352: N/A | BT352: N/A | BU352: N/A | BV352: N/A | BW352: N/A | BX352: N/A | BY352: N/A | BZ352: N/A
BA353: Access to Basic Hygiene | BB353: Yes | BC353: N/A | BD353: N/A | BE353: N/A | BF353: N/A | BG353: N/A | BH353: N/A | BI353: N/A | BJ353: N/A | BK353: N/A | BL353: N/A | BM353: N/A | BN353: N/A | BO353: N/A | BP353: N/A | BQ353: N/A | BR353: N/A | BS353: N/A | BT353: N/A | BU353: N/A | BV353: N/A | BW353: N/A | BX353: N/A | BY353: N/A | BZ353: N/A
BB354: No | BC354: N/A | BD354: N/A | BE354: N/A | BF354: N/A | BG354: N/A | BH354: N/A | BI354: N/A | BJ354: N/A | BK354: N/A | BL354: N/A | BM354: N/A | BN354: N/A | BO354: N/A | BP354: N/A | BQ354: N/A | BR354: N/A | BS354: N/A | BT354: N/A | BU354: N/A | BV354: N/A | BW354: N/A | BX354: N/A | BY354: N/A | BZ354: N/A
C399: INITIAL (national) Wealth Index | H399: URBAN Wealth Index | M399: RURAL Wealth Index
C400: Component Matrix | H400: Component Matrix | M400: Component Matrix
E401: Component | J401: Component | O401: Component
B402: Note: The INITIAL (national) Wealth Index is based on the first component of the Principal Component Analysis (PCA) which has been obtained at national level. The final national-level (NATIONAL) Wealth Index is based on the URBAN and RURAL specific wealth indexes. Regression procedures are used to establish the relationships between the two sets of scores (urban and rural) and the initial (national) wealth factors. This allows best use of the available information for each area and a better precision of the FINAL (NATIONAL) Wealth Index. For dependency reasons, all WASH variables (contained in the generic MICS and DHS scripts) have been excluded from the sets of asset variables used in the PCAs. The PCA can extracts as many components as there are asset variables in the input. Only the first of the components is used to represent the Wealth Index. The scores represent the weights of the asset variables on the Wealth Index (correlations between the variables and the component). The communalities are the proportion of each variable's variance that can be explained by the component. Proportion of explained variance is the part of the model's total variance that is explained by the component. For more information on the procedure used: The DHS Wealth Index, DHS Comparative Reports No. 6, Shea Oscar Rutstein, Kiersten Johnson, ORC Macro International Inc., 2004. The DHS Wealth Index: Approaches for Rural and Urban Areas, Shea O. Rutstein, ORC Macro International Inc., 2008. MICS Methodological Paper No. 4, Review of options for reporting water, sanitation and hygiene coverage by wealth quintile, UNICEF, 2016. | E402: 1 | J402: 1 | O402: 1
C403: Household member owns: asset2g | E403: 0.7100407218 | H403: Household member owns: asset2j | J403: 0.7282843381 | M403: Household member owns: asset2j | O403: 0.994703136
C404: Household member owns: asset2f | E404: 0.7047401123 | H404: Household member owns: asset2k | J404: 0.7282843381 | M404: Household member owns: asset2h | O404: 0.994703136
C405: Household member owns: asset2a | E405: 0.6988076247 | H405: Household member owns: asset2i | J405: 0.7282843381 | M405: Household member owns: asset2k | O405: 0.994703136
C406: Household member owns: asset2c | E406: 0.6974141701 | H406: Household member owns: asset2l | J406: 0.7282843381 | M406: Household member owns: asset2l | O406: 0.994703136
C407: Household member owns: asset2h | E407: 0.6840491223 | H407: Household member owns: asset2h | J407: 0.7282843381 | M407: Household member owns: asset2i | O407: 0.994703136
C408: Household member owns: asset2i | E408: 0.6840491223 | H408: Household member owns: asset2f | J408: 0.6869838498 | M408: Household member owns: asset2f | O408: 0.1384225504
C409: Household member owns: asset2j | E409: 0.6840491223 | H409: Household member owns: asset2g | J409: 0.6820971674 | M409: Household member owns: asset2a | O409: 0.128196671
C410: Household member owns: asset2l | E410: 0.6840491223 | H410: Household member owns: asset2c | J410: 0.6690401605 | M410: Household member owns: asset2c | O410: 0.1247945446
C411: Household member owns: asset2k | E411: 0.6840491223 | H411: Household member owns: asset2a | J411: 0.6578737001 | M411: wall11 | O411: 0.09590295896
C412: fuel9 | E412: -0.6689233134 | H412: Household member owns: asset2d | J412: 0.5679804066 | M412: floor10 | O412: 0.09004699592
C413: Household member owns: asset2d | E413: 0.6512685904 | H413: Household member owns: asset2e | J413: 0.5548100198 | M413: chimney | O413: 0.08361849109
C414: fuel7 | E414: 0.6079511914 | H414: fuel9 | J414: -0.5069372619 | M414: roof2 | O414: -0.07407445173
C415: floor10 | E415: 0.5702062795 | H415: floor1 | J415: -0.4729332759 | M415: roof9 | O415: 0.06965279442
C416: Household member owns: asset2e | E416: 0.558716215 | H416: Household member owns: asset2q | J416: 0.4460158581 | M416: floor2 | O416: -0.04857048515
C417: floor1 | E417: -0.5226996986 | H417: floor9 | J417: 0.4141338858 | M417: Household member owns: asset2g | O417: 0.04415354001
... 311 more rows

Sheet MICS10
A2: =A1026 -> Guinea-Bissau
A3: =A1034 -> 2010
A4: Use of drinking water sources
A5: by wealth quintile and sub-national region
A6: Notes:
A7: WHO/UNICEF JMP customised wealth index excludes water,
A8: sanitation and hygiene assets.
A9: Survey used for analysis: | B9: =A1025 -> MICS10
A10: =B1028 -> 
A11: =B1027 -> 
A14: Use of drinking water sources | C14: NATIONAL wealth index quintile | H14: URBAN wealth index quintile | M14: RURAL wealth index quintile | R14: REGIÃO | BA14: Raw numbers of respondents: | BB14: Use of drinking water sources | BC14: NATIONAL wealth index quintile | BH14: URBAN wealth index quintile | BM14: RURAL wealth index quintile | BR14: SUB-REGIONS:
A15: Weighted percentage (used in graphs) | C15: Poorest | D15: Poor | E15: Middle | F15: Rich | G15: Richest | H15: Poorest | I15: Poor | J15: Middle | K15: Rich | L15: Richest | M15: Poorest | N15: Poor | O15: Middle | P15: Rich | Q15: Richest | R15: Bafata | S15: Bijagos/Bubaque | T15: Biombo | U15: Cacheu | V15: Gabú | W15: Oio | X15: Quinara | Y15: SAB | Z15: Tombali | BA15: Water data, raw numbers (weighted) | BC15: Poorest | BD15: Poor | BE15: Middle | BF15: Rich | BG15: Richest | BH15: Poorest | BI15: Poor | BJ15: Middle | BK15: Rich | BL15: Richest | BM15: Poorest | BN15: Poor | BO15: Middle | BP15: Rich | BQ15: Richest | BR15: Bafata | BS15: Bijagos/Bubaque | BT15: Biombo | BU15: Cacheu | BV15: Gabú | BW15: Oio | BX15: Quinara | BY15: SAB | BZ15: Tombali
A16: Water | B16: Improved | C16: 47.3969561 | D16: 54.78788285 | E16: 62.70775964 | F16: 77.46931991 | G16: 89.80980434 | H16: 69.61863269 | I16: 76.86672741 | J16: 86.60837686 | K16: 90.76765437 | L16: 93.43114646 | M16: 44.30320996 | N16: 50.44736485 | O16: 53.74431143 | P16: 54.18235279 | Q16: 65.61653534 | R16: 70.98504384 | S16: 72.35572993 | T16: 50.28790787 | U16: 58.41720037 | V16: 55.47070258 | W16: 34.9958139 | X16: 78.66487346 | Y16: 90.77445233 | Z16: 68.56928276 | BA16: Water | BB16: Improved | BC16: N/A | BD16: N/A | BE16: N/A | BF16: N/A | BG16: N/A | BH16: N/A | BI16: N/A | BJ16: N/A | BK16: N/A | BL16: N/A | BM16: N/A | BN16: N/A | BO16: N/A | BP16: N/A | BQ16: N/A | BR16: N/A | BS16: N/A | BT16: N/A | BU16: N/A | BV16: N/A | BW16: N/A | BX16: N/A | BY16: N/A | BZ16: N/A
B17: Not Improved | C17: 52.6030439 | D17: 45.21211715 | E17: 37.29224036 | F17: 22.53068009 | G17: 10.19019566 | H17: 30.38136731 | I17: 23.13327259 | J17: 13.39162314 | K17: 9.232345626 | L17: 6.56885354 | M17: 55.69679004 | N17: 49.55263515 | O17: 46.25568857 | P17: 45.81764721 | Q17: 34.38346466 | R17: 29.01495616 | S17: 27.64427007 | T17: 49.71209213 | U17: 41.58279963 | V17: 44.52929742 | W17: 65.0041861 | X17: 21.33512654 | Y17: 9.22554767 | Z17: 31.43071724 | BB17: Not Improved | BC17: N/A | BD17: N/A | BE17: N/A | BF17: N/A | BG17: N/A | BH17: N/A | BI17: N/A | BJ17: N/A | BK17: N/A | BL17: N/A | BM17: N/A | BN17: N/A | BO17: N/A | BP17: N/A | BQ17: N/A | BR17: N/A | BS17: N/A | BT17: N/A | BU17: N/A | BV17: N/A | BW17: N/A | BX17: N/A | BY17: N/A | BZ17: N/A
A18: Water ladder | B18: Basic | C18: =C16*C23/100 -> 43.26490062 | D18: =D16*D23/100 -> 51.02691266 | E18: =E16*E23/100 -> 59.50014467 | F18: 70.29539328 | G18: 83.25480512 | H18: 63.50441898 | I18: 69.11803171 | J18: 76.71022766 | K18: 83.06740207 | L18: 88.27012554 | M18: 40.11969672 | N18: 47.2897954 | O18: 50.3519299 | P18: 51.15613216 | Q18: 63.07895995 | R18: 69.46433219 | S18: 71.36282446 | T18: 49.51305567 | U18: 55.91385615 | V18: 50.3617584 | W18: 31.4128356 | X18: 62.55703902 | Y18: 82.26263795 | Z18: 63.27746552 | BA18: Water ladder | BB18: Basic | BC18: N/A | BD18: N/A | BE18: N/A | BF18: N/A | BG18: N/A | BH18: N/A | BI18: N/A | BJ18: N/A | BK18: N/A | BL18: N/A | BM18: N/A | BN18: N/A | BO18: N/A | BP18: N/A | BQ18: N/A | BR18: N/A | BS18: N/A | BT18: N/A | BU18: N/A | BV18: N/A | BW18: N/A | BX18: N/A | BY18: N/A | BZ18: N/A
B19: Limited | C19: =C16*C22/100 -> 4.132055485 | D19: =D16*D22/100 -> 3.760970187 | E19: =E16*E22/100 -> 3.207614972 | F19: 7.173926631 | G19: 6.554999214 | H19: 6.114213714 | I19: 7.7486957 | J19: 9.898149201 | K19: 7.700252307 | L19: 5.16102092 | M19: 4.183513232 | N19: 3.157569452 | O19: 3.392381535 | P19: 3.026220625 | Q19: 2.537575388 | R19: 1.520711651 | S19: 0.9929054756 | T19: 0.7748522014 | U19: 2.503344217 | V19: 5.108944184 | W19: 3.582978298 | X19: 16.10783443 | Y19: 8.51181438 | Z19: 5.291817242 | BB19: Limited | BC19: N/A | BD19: N/A | BE19: N/A | BF19: N/A | BG19: N/A | BH19: N/A | BI19: N/A | BJ19: N/A | BK19: N/A | BL19: N/A | BM19: N/A | BN19: N/A | BO19: N/A | BP19: N/A | BQ19: N/A | BR19: N/A | BS19: N/A | BT19: N/A | BU19: N/A | BV19: N/A | BW19: N/A | BX19: N/A | BY19: N/A | BZ19: N/A
B20: Unimproved | C20: =100-C18-C19-C21 -> 48.88688045 | D20: =100-D18-D19-D21 -> 40.2883905 | E20: =100-E18-E19-E21 -> 34.07676565 | F20: 20.73796732 | G20: 9.874280257 | H20: 28.73188547 | I20: 22.00751322 | J20: 12.98171137 | K20: 8.977337593 | L20: 6.417163367 | M20: 52.29452574 | N20: 44.66305642 | O20: 40.82617116 | P20: 41.96497354 | Q20: 30.53491873 | R20: 18.95848353 | S20: 24.4331804 | T20: 41.70022269 | U20: 40.28002919 | V20: 40.53861871 | W20: 64.86134751 | X20: 21.33512654 | Y20: 9.067536504 | Z20: 30.19807159 | BB20: Unimproved | BC20: N/A | BD20: N/A | BE20: N/A | BF20: N/A | BG20: N/A | BH20: N/A | BI20: N/A | BJ20: N/A | BK20: N/A | BL20: N/A | BM20: N/A | BN20: N/A | BO20: N/A | BP20: N/A | BQ20: N/A | BR20: N/A | BS20: N/A | BT20: N/A | BU20: N/A | BV20: N/A | BW20: N/A | BX20: N/A | BY20: N/A | BZ20: N/A
B21: Surface water | C21: 3.716163447 | D21: 4.923726652 | E21: 3.215474704 | F21: 1.792712771 | G21: 0.315915407 | H21: 1.649481834 | I21: 1.125759374 | J21: 0.4099117738 | K21: 0.2550080329 | L21: 0.1516901729 | M21: 3.402264305 | N21: 4.889578727 | O21: 5.429517413 | P21: 3.852673673 | Q21: 3.848545935 | R21: 10.05647263 | S21: 3.211089665 | T21: 8.011869436 | U21: 1.302770449 | V21: 3.990678707 | W21: 0.1428385924 | X21: 0 | Y21: 0.1580111661 | Z21: 1.232645647 | BB21: Surface water | BC21: N/A | BD21: N/A | BE21: N/A | BF21: N/A | BG21: N/A | BH21: N/A | BI21: N/A | BJ21: N/A | BK21: N/A | BL21: N/A | BM21: N/A | BN21: N/A | BO21: N/A | BP21: N/A | BQ21: N/A | BR21: N/A | BS21: N/A | BT21: N/A | BU21: N/A | BV21: N/A | BW21: N/A | BX21: N/A | BY21: N/A | BZ21: N/A
A22: Improved water point at more than 30 minutes | B22: Yes | C22: 8.717976478 | D22: 6.864602156 | E22: 5.115180307 | F22: 9.260345437 | G22: 7.298756814 | H22: 8.782438662 | I22: 10.08068896 | J22: 11.42862799 | K22: 8.483476146 | L22: 5.523876261 | M22: 9.442912232 | N22: 6.25913655 | O22: 6.312075538 | P22: 5.585251414 | Q22: 3.867280366 | R22: 2.142298671 | S22: 1.372255489 | T22: 1.540832049 | U22: 4.285286185 | V22: 9.210166712 | W22: 10.23830538 | X22: 20.47652748 | Y22: 9.376883211 | Z22: 7.717474981 | BA22: Improved water point at more than 30 minutes | BB22: Yes | BC22: N/A | BD22: N/A | BE22: N/A | BF22: N/A | BG22: N/A | BH22: N/A | BI22: N/A | BJ22: N/A | BK22: N/A | BL22: N/A | BM22: N/A | BN22: N/A | BO22: N/A | BP22: N/A | BQ22: N/A | BR22: N/A | BS22: N/A | BT22: N/A | BU22: N/A | BV22: N/A | BW22: N/A | BX22: N/A | BY22: N/A | BZ22: N/A
B23: No | C23: 91.28202352 | D23: 93.13539784 | E23: 94.88481969 | F23: 90.73965456 | G23: 92.70124319 | H23: 91.21756134 | I23: 89.91931104 | J23: 88.57137201 | K23: 91.51652385 | L23: 94.47612374 | M23: 90.55708777 | N23: 93.74086345 | O23: 93.68792446 | P23: 94.41474859 | Q23: 96.13271963 | R23: 97.85770133 | S23: 98.62774451 | T23: 98.45916795 | U23: 95.71471381 | V23: 90.78983329 | W23: 89.76169462 | X23: 79.52347252 | Y23: 90.62311679 | Z23: 92.28252502 | BB23: No | BC23: N/A | BD23: N/A | BE23: N/A | BF23: N/A | BG23: N/A | BH23: N/A | BI23: N/A | BJ23: N/A | BK23: N/A | BL23: N/A | BM23: N/A | BN23: N/A | BO23: N/A | BP23: N/A | BQ23: N/A | BR23: N/A | BS23: N/A | BT23: N/A | BU23: N/A | BV23: N/A | BW23: N/A | BX23: N/A | BY23: N/A | BZ23: N/A
A24: Manually calculated ratios | B24: Improved wells
B25: Improved springs
B26: Other
C27: NATIONAL wealth index quintile | H27: URBAN wealth index quintile | M27: RURAL wealth index quintile | R27: REGIÃO | BA27: Raw numbers of respondents: | BB27: Use of drinking water sources | BC27: NATIONAL wealth index quintile | BH27: URBAN wealth index quintile | BM27: RURAL wealth index quintile | BR27: SUB-REGIONS:
A28: Percentage based on weighted population | C28: Poorest | D28: Poor | E28: Middle | F28: Rich | G28: Richest | H28: Poorest | I28: Poor | J28: Middle | K28: Rich | L28: Richest | M28: Poorest | N28: Poor | O28: Middle | P28: Rich | Q28: Richest | R28: Bafata | S28: Bijagos/Bubaque | T28: Biombo | U28: Cacheu | V28: Gabú | W28: Oio | X28: Quinara | Y28: SAB | Z28: Tombali | BA28: Water data, raw numbers (weighted) | BC28: Poorest | BD28: Poor | BE28: Middle | BF28: Rich | BG28: Richest | BH28: Poorest | BI28: Poor | BJ28: Middle | BK28: Rich | BL28: Richest | BM28: Poorest | BN28: Poor | BO28: Middle | BP28: Rich | BQ28: Richest | BR28: Bafata | BS28: Bijagos/Bubaque | BT28: Biombo | BU28: Cacheu | BV28: Gabú | BW28: Oio | BX28: Quinara | BY28: SAB | BZ28: Tombali
A29: Piped water | B29: Yes | C29: 5.23088786 | D29: 5.907372928 | E29: 9.630285494 | F29: 26.42649746 | G29: 45.8740201 | H29: 18.35151734 | I29: 22.57838429 | J29: 41.13070294 | K29: 41.36458685 | L29: 54.47122811 | M29: 4.479141982 | N29: 3.868020074 | O29: 5.655588837 | P29: 3.820484043 | Q29: 11.58134526 | R29: 9.571944301 | S29: 8.304724538 | T29: 13.73960333 | U29: 9.408356206 | V29: 5.290197167 | W29: 3.492405215 | X29: 3.166646289 | Y29: 47.95587782 | Z29: 13.98172487 | BA29: Piped water | BB29: Yes | BC29: N/A | BD29: N/A | BE29: N/A | BF29: N/A | BG29: N/A | BH29: N/A | BI29: N/A | BJ29: N/A | BK29: N/A | BL29: N/A | BM29: N/A | BN29: N/A | BO29: N/A | BP29: N/A | BQ29: N/A | BR29: N/A | BS29: N/A | BT29: N/A | BU29: N/A | BV29: N/A | BW29: N/A | BX29: N/A | BY29: N/A | BZ29: N/A
B30: No | C30: 94.76911214 | D30: 94.09262707 | E30: 90.36971451 | F30: 73.57350254 | G30: 54.1259799 | H30: 81.64848266 | I30: 77.42161571 | J30: 58.86929706 | K30: 58.63541315 | L30: 45.52877189 | M30: 95.52085802 | N30: 96.13197993 | O30: 94.34441116 | P30: 96.17951596 | Q30: 88.41865474 | R30: 90.4280557 | S30: 91.69527546 | T30: 86.26039667 | U30: 90.59164379 | V30: 94.70980283 | W30: 96.50759479 | X30: 96.83335371 | Y30: 52.04412218 | Z30: 86.01827513 | BB30: No | BC30: N/A | BD30: N/A | BE30: N/A | BF30: N/A | BG30: N/A | BH30: N/A | BI30: N/A | BJ30: N/A | BK30: N/A | BL30: N/A | BM30: N/A | BN30: N/A | BO30: N/A | BP30: N/A | BQ30: N/A | BR30: N/A | BS30: N/A | BT30: N/A | BU30: N/A | BV30: N/A | BW30: N/A | BX30: N/A | BY30: N/A | BZ30: N/A
A31: Piped water on premises | B31: Yes | C31: 0.2941289204 | D31: 0.325951647 | E31: 0.3992014461 | F31: 4.070399776 | G31: 14.23515427 | H31: 1.208300831 | I31: 3.675918105 | J31: 6.0816458 | K31: 8.426059574 | L31: 22.67317115 | M31: 0.04865539136 | N31: 0.4966072474 | O31: 0.0535656944 | P31: 0.279694508 | Q31: 1.382777916 | R31: 0.1237751418 | S31: 0.4413928396 | T31: 1.359564939 | U31: 4.3915828 | V31: 0.638711469 | W31: 0.920942471 | X31: 0.1467172026 | Y31: 11.23881518 | Z31: 0 | BA31: Piped water on premises | BB31: Yes | BC31: N/A | BD31: N/A | BE31: N/A | BF31: N/A | BG31: N/A | BH31: N/A | BI31: N/A | BJ31: N/A | BK31: N/A | BL31: N/A | BM31: N/A | BN31: N/A | BO31: N/A | BP31: N/A | BQ31: N/A | BR31: N/A | BS31: N/A | BT31: N/A | BU31: N/A | BV31: N/A | BW31: N/A | BX31: N/A | BY31: N/A | BZ31: N/A
B32: No | C32: 99.70587108 | D32: 99.67404835 | E32: 99.60079855 | F32: 95.92960022 | G32: 85.76484573 | H32: 98.79169917 | I32: 96.3240819 | J32: 93.9183542 | K32: 91.57394043 | L32: 77.32682885 | M32: 99.95134461 | N32: 99.50339275 | O32: 99.94643431 | P32: 99.72030549 | Q32: 98.61722208 | R32: 99.87622486 | S32: 99.55860716 | T32: 98.64043506 | U32: 95.6084172 | V32: 99.36128853 | W32: 99.07905753 | X32: 99.8532828 | Y32: 88.76118482 | Z32: 100 | BB32: No | BC32: N/A | BD32: N/A | BE32: N/A | BF32: N/A | BG32: N/A | BH32: N/A | BI32: N/A | BJ32: N/A | BK32: N/A | BL32: N/A | BM32: N/A | BN32: N/A | BO32: N/A | BP32: N/A | BQ32: N/A | BR32: N/A | BS32: N/A | BT32: N/A | BU32: N/A | BV32: N/A | BW32: N/A | BX32: N/A | BY32: N/A | BZ32: N/A
A33: Piped water into dwelling | B33: Yes | C33: N/A | D33: N/A | E33: N/A | F33: N/A | G33: N/A | H33: N/A | I33: N/A | J33: N/A | K33: N/A | L33: N/A | M33: N/A | N33: N/A | O33: N/A | P33: N/A | Q33: N/A | R33: N/A | S33: N/A | T33: N/A | U33: N/A | V33: N/A | W33: N/A | X33: N/A | Y33: N/A | Z33: N/A | BA33: Piped water into dwelling | BB33: Yes | BC33: N/A | BD33: N/A | BE33: N/A | BF33: N/A | BG33: N/A | BH33: N/A | BI33: N/A | BJ33: N/A | BK33: N/A | BL33: N/A | BM33: N/A | BN33: N/A | BO33: N/A | BP33: N/A | BQ33: N/A | BR33: N/A | BS33: N/A | BT33: N/A | BU33: N/A | BV33: N/A | BW33: N/A | BX33: N/A | BY33: N/A | BZ33: N/A
B34: No | C34: N/A | D34: N/A | E34: N/A | F34: N/A | G34: N/A | H34: N/A | I34: N/A | J34: N/A | K34: N/A | L34: N/A | M34: N/A | N34: N/A | O34: N/A | P34: N/A | Q34: N/A | R34: N/A | S34: N/A | T34: N/A | U34: N/A | V34: N/A | W34: N/A | X34: N/A | Y34: N/A | Z34: N/A | BB34: No | BC34: N/A | BD34: N/A | BE34: N/A | BF34: N/A | BG34: N/A | BH34: N/A | BI34: N/A | BJ34: N/A | BK34: N/A | BL34: N/A | BM34: N/A | BN34: N/A | BO34: N/A | BP34: N/A | BQ34: N/A | BR34: N/A | BS34: N/A | BT34: N/A | BU34: N/A | BV34: N/A | BW34: N/A | BX34: N/A | BY34: N/A | BZ34: N/A
